Workbook

Sheet Εισαγωγή
F4: Εργαλείο Υπολογισμού Ανθρακικού Αποτυπώματος Οργανισμών
F6: Σκοπός του εργαλείου είναι να διευκολύνει και να επιταχύνει τον υπολογισμό του ανθρακικού αποτυπώματος και την ανάλυση των σχετικών δεδομένων των οργανισμών. Παράλληλα, παρέχει συνοπτική και κατανοητή οπτικοποίηση όλων των απαραίτητων στοιχείων μέσω αυτοματοποιημένων αναφορών. Το εργαλείο, το οποίο αναπτύχθηκε στο Εθνικό Μετσόβιο Πολυτεχνείο στο πλαίσιο της Διπλωματικής Εργασίας του φοιτητή Δ. Χάνουζα, ευθυγραμμίζεται με το GHG Protocol του WRI, διατηρώντας τις πέντε βασικές αρχές του: σχετικότητα, πληρότητα, συνέπεια, ακρίβεια και διαφάνεια.
F14: Βήμα 1.
F15: Ενεργοποίηση μακροεντολών.
F17: Βήμα 2.
F18: Συμπλήρωση των γενικών στοιχείων του οργανισμού και της απογραφής εκπομπών στα αντίστοιχα φύλλα.
F20: Βήμα 3.
F21: Αλλαγή παραμέτρων στο φύλλο παραμετροποίησης, αν κρίνεται απαραίτητο.
F23: Βήμα 4.
F24: Εισαγωγή δεδομένων κατανάλωσης στο φύλλο υπολογισμού του ανθρακικού αποτυπώματος.
F26: Βήμα 5.
F27: Προβολή αναλυτικών αποτελεσμάτων στα φύλλα της σύνοψης. Για την ορθή απεικόνιση των διαγραμμάτων θα πρέπει να γίνεται ανανέωση των δεδομένων με το πάτημα του σχετικού κουμπιού.
F29: Βήμα 6.
F30: Λήψη της αυτοματοποιημένης αναφοράς. (Διάρκεια: περίπου 20 δευτερόλεπτα)

Sheet Γενικά Στοιχεία Οργανισμού
C3: Γενικά Στοιχεία Οργανισμού
C6: Επωνυμία | D6: Εθνικό Μετσόβιο Πολυτεχνείο
C7: Έδρα | D7: Ηρώων Πολυτεχνείου 9, 15772 Ζωγράφου
C8: Τομέας Δραστηριότητας | D8: Τριτοβάθμια εκπαίδευση, Έρευνα &Ανάπτυξη
C9: Πλήθος Διοικητικών Υπαλλήλων | D9: 500
C11: Εγκαταστάσεις
C12: Κτίριο | D12: Πλήθος Φοιτητών | E12: Πλήθος ΔΕΠ | F12: Επιφάνεια (m2)
C13: Βιβλιοθήκη | D13: - | E13: - | F13: 8433.4
C14: Γυμναστήριο | D14: - | E14: - | F14: 3113.37
C15: Διοίκηση | D15: - | E15: - | F15: 7022.12
C16: Σχολή Αγρονόμων και Τοπογράφων Μηχανικών | D16: 471 | E16: 54 | F16: 14341.83
C17: Σχολή Εφαρμοσμένων Μαθηματικών και Φυσικών Επιστημών | D17: 476 | E17: 95 | F17: 24982.47
C18: Σχολή Ηλεκτρολόγων Μηχανικών και Μηχανικών Υπολογιστών | D18: 765 | E18: 58 | F18: 15367.35
C19: Σχολή Μηχανικών Μεταλλείων Μεταλλουργών | D19: 1243 | E19: 90 | F19: 23734.9
C20: Σχολή Μηχανολόγων Μηχανικών | D20: 500 | E20: 132 | F20: 35254.83
C21: Σχολή Ναυπηγών Μηχανολόγων Μηχανικών | D21: 627 | E21: 30 | F21: 7913.11
C22: Σχολή Πολιτικών Μηχανικών | D22: 476 | E22: 75 | F22: 19694.65
C23: Σχολή Χημικών Μηχανικών | D23: 627 | E23: 117 | F23: 30849.17
C24: Σχολή Αρχιτεκτόνων Μηχανικών | D24: 608 | E24: 99 | F24: 26036

Sheet Γενικό Πλαίσιο Απογραφής
C3: Γενικό Πλαίσιο Απογραφής
C6: Έτος Αναφοράς | F6: 2024
C7: Έτος Βάσης | F7: 2023
C8: Εκπομπές Έτους Βάσης (tn CO2e)
C9: Στόχος (tn CO2e)
C11: Οργανωσιακά Όρια
C12: Λειτουργικός Έλεγχος
C14: Λειτουργικά Όρια
C15: Scope 1 | E15: Σταθερή Καύση
E16: Κινητή Καύση
E17: Ανεξέλεγκτες Εκπομπές Ανθρωπογενών Συστημάτων
C18: Scope 2 | E18: Εισαγόμενη Ηλεκτρική Ενέργεια
C19: Scope 3 | E19: Μετακίνηση Φοιτητών
E20: Μετακίνηση Υπαλλήλων
E21: Επαγγελματικά Ταξίδια
E22: Διάθεση Αποβλήτων
E23: Διαχείριση Λυμάτων
E24: Προμήθεια Χαρτιών
E25: Προμήθεια Τροφίμων
C27: Υλοποιημένες Δράσεις Μείωσης Εκπομπών
C28: 1. | D28: Εγκατάσταση Φωτοβολταϊκού Συστήματος
C29: 2. | D29: Εγκατάσταση Μετρητών Ενέργειας - Καταγραφή & Παρακολούθηση Καταναλώσεων
C31: Υποψήφιες Δράσεις Μείωσης Εκπομπών
C32: 1.
C33: 2.

Sheet Παραμετροποίηση
C3: Παραμετροποίηση
C6: Δυναμικό Υπερθέρμανσης του Πλανήτη (GWP-100)
C7: Αέριο Θερμοκηπίου (GHG) | D7: GWP (tn CO2e/tn GHG) | E7: Πηγή
C8: CO2 | D8: 1 | E8: AR6 - IPCC
C9: CH4 | D9: 27.9
C10: N2O | D10: 273
C11: CFC-11 | D11: 6230
C12: CFC-12 | D12: 12500
C13: Propane | D13: 0.02
C14: HFC-32 | D14: 771
C15: HFC-125 | D15: 3740
C16: HFC-134a | D16: 1530
C17: HFC-143a | D17: 5810
C19: Σταθερή Καύση
C20: Καύσιμο | D20: Σύστημα | E20: NCV (TJ/ktn) | F20: Πηγή | G20: Πυκνότητα (kg/lt) | H20: Πηγή | I20: EF CO2 (tn CO2/TJ) | J20: Πηγή | K20: EF CH4 (tn CH4/TJ) | L20: Πηγή | M20: EF N2O (tn N2O/TJ) | N20: Πηγή | O20: EF CO2 (tn CO2/lt ή tn CO2/kWh) | P20: EF CH4 (tn CH4/lt ή tn CH4/kWh) | Q20: EF N2O (tn N2O/lt ή tn N2O/kWh) | R20: EF CO2e (tn CO2e/lt ή tn CO2e/kWh)
C21: Πετρέλαιο Θέρμανσης | D21: Όλα | E21: 42.8 | F21: NIR GR 2024 | G21: 0.8325 | H21: ΚΥΑ 355/2000/2001 (ΦΕΚ 410Β) | I21: 73.78 | J21: NIR GR 2024 | K21: 0.003 | L21: IPCC Guidelines for National Greenhouse Gas Inventories 2006 / 2019 | M21: 0.0006 | N21: IPCC Guidelines for National Greenhouse Gas Inventories 2006 / 2019 | O21: =E21*G21*10^-6*I21 -> 0.00262885518 | P21: =E21*G21*10^-6*K21 -> 1.06893e-07 | Q21: =E21*G21*10^-6*M21 -> 2.13786e-08 | R21: =O21*$D$8+P21*$D$9+Q21*$D$10 -> 0.002637673852
C22: Φυσικό Αέριο | D22: Όλα | E22: - | F22: - | G22: - | H22: - | I22: 55.78 | J22: NIR GR 2024 | K22: 0.001 | L22: IPCC Guidelines for National Greenhouse Gas Inventories 2006 / 2019 | M22: 0.0001 | N22: IPCC Guidelines for National Greenhouse Gas Inventories 2006 / 2019 | O22: =I22*0.0000036 -> 0.000200808 | P22: =K22*0.0000036 -> 3.6e-09 | Q22: =M22*0.0000036 -> 3.6e-10 | R22: =O22*$D$8+P22*$D$9+Q22*$D$10 -> 0.00020100672
C24: Κινητή Καύση
C25: Καύσιμο | D25: Τύπος Οχήματος | E25: NCV (TJ/ktn) | F25: Πηγή | G25: Πυκνότητα (kg/lt) | H25: Πηγή | I25: EF CO2 (tn CO2/TJ) | J25: Πηγή | K25: EF CH4 (tn CH4/TJ) | L25: Πηγή | M25: EF N2O (tn N2O/TJ) | N25: Πηγή | O25: EF CO2 (tn CO2/lt ή tn CO2/kg) | P25: EF CH4 (tn CH4/lt ή tn CH4/kg) | Q25: EF N2O (tn N2O/lt ή tn N2O/kg) | R25: EF CO2e (tn CO2e/lt ή tn CO2e/kg)
C26: Πετρέλαιο Κίνησης | D26: Επιβατικό | E26: 42.8 | F26: NIR GR 2024 | G26: 0.8325 | H26: ΚΥΑ 355/2000/2001 (ΦΕΚ 410Β) | I26: 73.23 | J26: NIR GR 2024 | K26: 3e-05 | L26: NIR GR 2024 | M26: 0.00294 | N26: NIR GR 2024 | O26: =E26*G26*10^-6*I26 -> 0.00260925813 | P26: =E26*G26*10^-6*K26 -> 1.06893e-09 | Q26: =E26*G26*10^-6*M26 -> 1.0475514e-07 | R26: =O26*$D$8+P26*$D$9+Q26*$D$10 -> 0.002637886106
C27: Βενζίνη | D27: Επιβατικό | E27: 42.79 | F27: NIR GR 2024 | G27: 0.7475 | H27: ΚΥΑ 355/2000/2001 (ΦΕΚ 410Β) | I27: 73.26 | J27: NIR GR 2024 | K27: 0.00934 | L27: NIR GR 2024 | M27: 0.00136 | N27: NIR GR 2024 | O27: =E27*G27*10^-6*I27 -> 0.002343259562 | P27: =E27*G27*10^-6*K27 -> 2.987448035e-07 | Q27: =E27*G27*10^-6*M27 -> 4.3500314e-08 | R27: =O27*$D$8+P27*$D$9+Q27*$D$10 -> 0.002363470127
C28: Πετρέλαιο Κίνησης | D28: Επιβατικό (Διεθνείς Μεταφορές) | E28: 43 | F28: IPCC Guidelines for National Greenhouse Gas Inventories 2006 / 2019 | G28: 0.8325 | H28: ΚΥΑ 355/2000/2001 (ΦΕΚ 410Β) | I28: 74.1 | J28: IPCC Guidelines for National Greenhouse Gas Inventories 2006 / 2019 | K28: 0.0039 | L28: IPCC Guidelines for National Greenhouse Gas Inventories 2006 / 2019 | M28: 0.0039 | N28: IPCC Guidelines for National Greenhouse Gas Inventories 2006 / 2019 | O28: 0.00265259475 | P28: 1.3961025e-07 | Q28: 1.3961025e-07 | R28: =O28*$D$8+P28*$D$9+Q28*$D$10 -> 0.002694603474
C29: Βενζίνη | D29: Επιβατικό (Διεθνείς Μεταφορές) | E29: 44.3 | F29: IPCC Guidelines for National Greenhouse Gas Inventories 2006 / 2019 | G29: 0.7475 | H29: ΚΥΑ 355/2000/2001 (ΦΕΚ 410Β) | I29: 69.3 | J29: IPCC Guidelines for National Greenhouse Gas Inventories 2006 / 2019 | K29: 0.025 | L29: IPCC Guidelines for National Greenhouse Gas Inventories 2006 / 2019 | M29: 0.008 | N29: IPCC Guidelines for National Greenhouse Gas Inventories 2006 / 2019 | O29: =E29*G29*10^-6*I29 -> 0.002294817525 | P29: =E29*G29*10^-6*K29 -> 8.2785625e-07 | Q29: =E29*G29*10^-6*M29 -> 2.64914e-07 | R29: =O29*$D$8+P29*$D$9+Q29*$D$10 -> 0.002390236236
C30: Βενζίνη | D30: Μοτοσυκλέτα | E30: 42.79 | F30: NIR GR 2024 | G30: 0.7475 | H30: ΚΥΑ 355/2000/2001 (ΦΕΚ 410Β) | I30: 73.26 | J30: NIR GR 2024 | K30: 0.09362 | L30: NIR GR 2024 | M30: 0.00154 | N30: NIR GR 2024 | O30: 0.002343259562 | P30: 2.99448485e-06 | Q30: 4.92577085e-08 | R30: =O30*$D$8+P30*$D$9+Q30*$D$10 -> 0.002440253043
C31: Πετρέλαιο Κίνησης | D31: Λεωφορείο | E31: 42.8 | F31: NIR GR 2024 | G31: 0.8325 | H31: ΚΥΑ 355/2000/2001 (ΦΕΚ 410Β) | I31: 73.23 | J31: NIR GR 2024 | K31: 0.00572 | L31: NIR GR 2024 | M31: 0.00166 | N31: NIR GR 2024 | O31: =E31*G31*10^-6*I31 -> 0.00260925813 | P31: =E31*G31*10^-6*K31 -> 2.0380932e-07 | Q31: =E31*G31*10^-6*M31 -> 5.914746e-08 | R31: =O31*$D$8+P31*$D$9+Q31*$D$10 -> 0.002631091667
C32: Φυσικό Αέριο Κίνησης | D32: Λεωφορείο | E32: 48 | F32: NIR GR 2024 | G32: - | H32: - | I32: 55.82 | J32: NIR GR 2024 | K32: 0.10222 | L32: NIR GR 2024 | M32: 0.00333 | N32: NIR GR 2024 | O32: =E32*10^-6*I32 -> 0.00267936 | P32: =E32*10^-6*K32 -> 4.90656e-06 | Q32: =E32*10^-6*M32 -> 1.5984e-07 | R32: 0.002859889344
C33: Πετρέλαιο Κίνησης | D33: Τρένο | E33: 42.8 | F33: NIR GR 2024 | G33: 0.8325 | H33: ΚΥΑ 355/2000/2001 (ΦΕΚ 410Β) | I33: 73.23 | J33: NIR GR 2024 | K33: 0.00415 | L33: IPCC Guidelines for National Greenhouse Gas Inventories 2006 / 2019 | M33: 0.0286 | N33: IPCC Guidelines for National Greenhouse Gas Inventories 2006 / 2019 | O33: 0.00260925813 | P33: 1.4786865e-07 | Q33: 1.0190466e-06 | R33: 0.002891583387
C34: Πετρέλαιο Κίνησης | D34: Τρένο (Διεθνείς Μεταφορές) | E34: 43 | F34: IPCC Guidelines for National Greenhouse Gas Inventories 2006 / 2019 | G34: 0.8325 | H34: ΚΥΑ 355/2000/2001 (ΦΕΚ 410Β) | I34: 74.1 | J34: IPCC Guidelines for National Greenhouse Gas Inventories 2006 / 2019 | K34: 0.00415 | L34: IPCC Guidelines for National Greenhouse Gas Inventories 2006 / 2019 | M34: 0.0286 | N34: IPCC Guidelines for National Greenhouse Gas Inventories 2006 / 2019 | O34: =E34*G34*10^-6*I34 -> 0.00265259475 | P34: =E34*G34*10^-6*K34 -> 1.48559625e-07 | Q34: =E34*G34*10^-6*M34 -> 1.0238085e-06 | R34: 0.002936239284
C35: Κηροζίνη | D35: Αεροσκάφος | E35: 71.43 | F35: NIR GR 2024 | G35: - | H35: - | I35: 73.23 | J35: NIR GR 2024 | K35: 0.0005 | L35: IPCC Guidelines for National Greenhouse Gas Inventories 2006 / 2019 | M35: 0.002 | N35: IPCC Guidelines for National Greenhouse Gas Inventories 2006 / 2019 | O35: =E35*10^-6*I35 -> 0.0052308189 | P35: =E35*10^-6*K35 -> 3.5715e-08 | Q35: =E35*10^-6*M35 -> 1.4286e-07 | R35: 0.005270816128
C36: Κηροζίνη | D36: Αεροσκάφος (Διεθνείς Μεταφορές) | E36: 71.5 | F36: IPCC Guidelines for National Greenhouse Gas Inventories 2006 / 2019 | G36: - | H36: - | I36: 74.1 | J36: IPCC Guidelines for National Greenhouse Gas Inventories 2006 / 2019 | K36: 0.0005 | L36: IPCC Guidelines for National Greenhouse Gas Inventories 2006 / 2019 | M36: 0.002 | N36: IPCC Guidelines for National Greenhouse Gas Inventories 2006 / 2019 | O36: =E36*10^-6*I36 -> 0.00529815 | P36: =E36*10^-6*K36 -> 3.575e-08 | Q36: =E36*10^-6*M36 -> 1.43e-07 | R36: 0.005338186425
C38: Ανεξέλεγκτες Εκπομπές Ανθρωπογενών Συστημάτων
C39: Ψυκτικό Υγρό | D39: EF CO2e (tn CO2e/tn R)
C40: R-11 | D40: =D11 -> 6230
C41: R-12 | D41: =D12 -> 12500
C42: R-134a | D42: =D16 -> 1530
C43: R-290 | D43: =D13 -> 0.02
C44: R-404a | D44: =D17*0.52+D15*0.44+D16*0.04 -> 4728
C45: R-410a | D45: =D14*0.5+D15*0.5 -> 2255.5
C47: Ηλεκτρική Ενέργεια
C48: Τοποθεσία | D48: EF CO2 (g CO2/kWh) | E48: Πηγή | F48: EF CH4 (g CH4/kWh) | G48: Πηγή | H48: EF N2O (g N2O/kWh) | I48: Πηγή | J48: EF CO2e (g CO2e/kWh) | K48: Πηγή
C49: Ελλάδα | D49: 271.618 | E49: Υπολειπόμενο Ενεργειακό Μείγμα - ΔΑΠΕΕΠ 2023 - ΔΕΗ | F49: 0.006125574 | G49: NIR GR 2024, Υπολειπόμενο Ενεργειακό Μείγμα - ΔΑΠΕΕΠ 2022 | H49: 0.002488515 | I49: NIR GR 2024, Υπολειπόμενο Ενεργειακό Μείγμα - ΔΑΠΕΕΠ 2022 | J49: =D49*D8+F49*D9+H49*D10 -> 272.4682681 | K49: -
C50: Ελλάδα | D50: 498.735 | E50: Υπολειπόμενο Ενεργειακό Μείγμα - ΔΑΠΕΕΠ 2023 | F50: 0.006125574 | G50: NIR GR 2024, Υπολειπόμενο Ενεργειακό Μείγμα - ΔΑΠΕΕΠ 2022 | H50: 0.002488515 | I50: NIR GR 2024, Υπολειπόμενο Ενεργειακό Μείγμα - ΔΑΠΕΕΠ 2022 | J50: =D50*D8+F50*D9+H50*D10 -> 499.5852681 | K50: -
C51: Κόσμος | D51: - | E51: - | F51: - | G51: - | H51: - | I51: - | J51: 470 | K51: ΙΕΑ, CO2 emissions intensity of electricity generation 2022
C52: Προηγμένες Οικονομίες | D52: - | E52: - | F52: - | G52: - | H52: - | I52: - | J52: 320 | K52: ΙΕΑ, CO2 emissions intensity of electricity generation 2022
C53: Αναπτυσσόμενες χώρες | D53: - | E53: - | F53: - | G53: - | H53: - | I53: - | J53: 550 | K53: ΙΕΑ, CO2 emissions intensity of electricity generation 2022
C54: Μ.Ο. Ευρώπης | D54: - | E54: - | F54: - | G54: - | H54: - | I54: - | J54: 258 | K54: ΕΕΑ, Greenhouse gas emission intensity of electricity generation 2022
C55: Σουηδία | D55: - | E55: - | F55: - | G55: - | H55: - | I55: - | J55: 8 | K55: ΕΕΑ, Greenhouse gas emission intensity of electricity generation 2022
C56: Λουξεμβούργο | D56: - | E56: - | F56: - | G56: - | H56: - | I56: - | J56: 62 | K56: ΕΕΑ, Greenhouse gas emission intensity of electricity generation 2022
C57: Φινλανδία | D57: - | E57: - | F57: - | G57: - | H57: - | I57: - | J57: 62 | K57: ΕΕΑ, Greenhouse gas emission intensity of electricity generation 2022
C58: Λετονία | D58: - | E58: - | F58: - | G58: - | H58: - | I58: - | J58: 66 | K58: ΕΕΑ, Greenhouse gas emission intensity of electricity generation 2022
C59: Γαλλία | D59: - | E59: - | F59: - | G59: - | H59: - | I59: - | J59: 74 | K59: ΕΕΑ, Greenhouse gas emission intensity of electricity generation 2022
C60: Αυστρία | D60: - | E60: - | F60: - | G60: - | H60: - | I60: - | J60: 80 | K60: ΕΕΑ, Greenhouse gas emission intensity of electricity generation 2022
C61: Σλοβακία | D61: - | E61: - | F61: - | G61: - | H61: - | I61: - | J61: 95 | K61: ΕΕΑ, Greenhouse gas emission intensity of electricity generation 2022
C62: Λιθουανία | D62: - | E62: - | F62: - | G62: - | H62: - | I62: - | J62: 110 | K62: ΕΕΑ, Greenhouse gas emission intensity of electricity generation 2022
C63: Δανία | D63: - | E63: - | F63: - | G63: - | H63: - | I63: - | J63: 117 | K63: ΕΕΑ, Greenhouse gas emission intensity of electricity generation 2022
C64: Βέλγιο | D64: - | E64: - | F64: - | G64: - | H64: - | I64: - | J64: 154 | K64: ΕΕΑ, Greenhouse gas emission intensity of electricity generation 2022
C65: Κροατία | D65: - | E65: - | F65: - | G65: - | H65: - | I65: - | J65: 170 | K65: ΕΕΑ, Greenhouse gas emission intensity of electricity generation 2022
C66: Πορτογαλία | D66: - | E66: - | F66: - | G66: - | H66: - | I66: - | J66: 171 | K66: ΕΕΑ, Greenhouse gas emission intensity of electricity generation 2022
C67: Ισπανία | D67: - | E67: - | F67: - | G67: - | H67: - | I67: - | J67: 178 | K67: ΕΕΑ, Greenhouse gas emission intensity of electricity generation 2022
C68: Ουγγαρία | D68: - | E68: - | F68: - | G68: - | H68: - | I68: - | J68: 181 | K68: ΕΕΑ, Greenhouse gas emission intensity of electricity generation 2022
C69: Σλοβενία | D69: - | E69: - | F69: - | G69: - | H69: - | I69: - | J69: 202 | K69: ΕΕΑ, Greenhouse gas emission intensity of electricity generation 2022
C70: Ρουμανία | D70: - | E70: - | F70: - | G70: - | H70: - | I70: - | J70: 250 | K70: ΕΕΑ, Greenhouse gas emission intensity of electricity generation 2022
C71: Ιταλία | D71: - | E71: - | F71: - | G71: - | H71: - | I71: - | J71: 297 | K71: ΕΕΑ, Greenhouse gas emission intensity of electricity generation 2022
C72: Ιρλανδία | D72: - | E72: - | F72: - | G72: - | H72: - | I72: - | J72: 305 | K72: ΕΕΑ, Greenhouse gas emission intensity of electricity generation 2022
C73: Ολλανδία | D73: - | E73: - | F73: - | G73: - | H73: - | I73: - | J73: 310 | K73: ΕΕΑ, Greenhouse gas emission intensity of electricity generation 2022
C74: Μάλτα | D74: - | E74: - | F74: - | G74: - | H74: - | I74: - | J74: 348 | K74: ΕΕΑ, Greenhouse gas emission intensity of electricity generation 2022
C75: Γερμανία | D75: - | E75: - | F75: - | G75: - | H75: - | I75: - | J75: 368 | K75: ΕΕΑ, Greenhouse gas emission intensity of electricity generation 2022
C76: Τσεχία | D76: - | E76: - | F76: - | G76: - | H76: - | I76: - | J76: 407 | K76: ΕΕΑ, Greenhouse gas emission intensity of electricity generation 2022
C77: Βουλγαρία | D77: - | E77: - | F77: - | G77: - | H77: - | I77: - | J77: 455 | K77: ΕΕΑ, Greenhouse gas emission intensity of electricity generation 2022
C78: Κύπρος | D78: - | E78: - | F78: - | G78: - | H78: - | I78: - | J78: 591 | K78: ΕΕΑ, Greenhouse gas emission intensity of electricity generation 2022
C79: Πολωνία | D79: - | E79: - | F79: - | G79: - | H79: - | I79: - | J79: 681 | K79: ΕΕΑ, Greenhouse gas emission intensity of electricity generation 2022
C80: Εσθονία | D80: - | E80: - | F80: - | G80: - | H80: - | I80: - | J80: 693 | K80: ΕΕΑ, Greenhouse gas emission intensity of electricity generation 2022
C82: Τελική Διάθεση Στερεών Αποβλήτων
C83: MCF | D83: Πηγή | E83: DOC (tn C/tn αποβλήτων) | F83: DOCf | G83: Πηγή | H83: F | I83: tn CH4/tn C | J83: Δυναμικό Παραγωγής CH4 (tn CH4/tn αποβλήτων) | K83: OX | L83: Πηγή | M83: EF CH4 (tn CH4/tn αποβλήτων) | N83: EF CO2e (tn CO2e/tn αποβλήτων)
C84: 1 | D84: ΧΥΤΑ, IPCC Guidelines for National Greenhouse Gas Inventories 2006 / 2019 | E84: =(D88*E88+D89*E89+D90*E90+D91*E91+D92*E92)/100 -> 0.16786 | F84: 0.5 | G84: IPCC Guidelines for National Greenhouse Gas Inventories 2006 / 2019 | H84: 0.5 | I84: =16/12 -> 1.333333333 | J84: =C84*E84*F84*H84*I84 -> 0.05595333333 | K84: 0.1 | L84: ΧΥΤΑ, IPCC Guidelines for National Greenhouse Gas Inventories 2006 / 2019 | M84: =J84*(1-K84) -> 0.050358 | N84: =M84*D9 -> 1.4049882
C86: Σύσταση Αποβλήτων
C87: Κατηγορία Αποβλήτου | D87: Περιεκτικότητα σε άνθρακα (tn C/tn αποβλήτων) | E87: Κλάσμα μάζας αποβλήτου στα ΑΣΑ (%) | F87: Πηγή
C88: Χαρτί | D88: 0.4 | E88: 17.1 | F88: NIR GR 2024
C89: Ύφασμα | D89: 0.24 | E89: 2.5
C90: Τρόφιμα | D90: 0.15 | E90: 43.2
C91: Πράσινα | D91: 0.2 | E91: 5.3
C92: Ξύλο / Άχυρο | D92: 0.43 | E92: 4.2
C93: Αφυδατωμένη ιλύς | D93: 0.45 | E93: 0.83
C95: Διαχείριση Λυμάτων
C96: EF CH4 (tn CH4/tn BOD) | D96: Πηγή | E96: FBOD (gr BOD/person/day) | F96: Πηγή | G96: Βιοαποδομίσημο Φορτίο Παραγόμενων Λυμάτων (tn BOD/person/yr) | H96: Οργανικό Φορτίο Παραγόμενης Ιλύος (tn BOD/person/yr) | I96: Πηγή | J96: EF CH4 (tn CH4/person/yr) | K96: Κατανάλωση Πρωτεΐνης (kg/person/yr) | L96: Πηγή | M96: FNPR | N96: Πηγή | O96: FNON-CON | P96: Πηγή | Q96: EF N2O εισροής (tn N2O/tn N) | R96: Πηγή | S96: tn N2O-Ν /tn Ν2Ο | T96: Κλάσμα απομάκρυνσης αζώτου λόγω βιολογικής επεξεργασίας | U96: Πηγή | V96: EF N2O εκροής (tn N2O/tn N) | W96: Πηγή | X96: EF N2O (tn N2O/person/yr) | Y96: EF CO2e (tn CO2e/person/yr)
C97: =0.6*0.03 -> 0.018 | D97: Μονάδα Ενεργού Ιλύος, IPCC Guidelines for National Greenhouse Gas Inventories 2006 / 2019 | E97: 57 | F97: GR, IPCC Guidelines for National Greenhouse Gas Inventories 2006 / 2019 | G97: =E97*10^-6*365 -> 0.020805 | H97: =0.0513*E97*10^-6*365 -> 0.0010672965 | I97: NIR GR 2024 | J97: =C97*(G97-H97) -> 0.000355278663 | K97: 39.7 | L97: NIR GR 2024 | M97: 0.16 | N97: IPCC Guidelines for National Greenhouse Gas Inventories 2006 / 2019 | O97: 1.4 | P97: IPCC Guidelines for National Greenhouse Gas Inventories 2006 / 2019 | Q97: 0.016 | R97: Μονάδα Ενεργού Ιλύος, IPCC Guidelines for National Greenhouse Gas Inventories 2006 / 2019 | S97: =44/28 -> 1.571428571 | T97: 0.8 | U97: Μονάδα Ενεργού Ιλύος, IPCC Guidelines for National Greenhouse Gas Inventories 2006 / 2019 | V97: 0.005 | W97: Υδάτινος Αποδέκτης, IPCC Guidelines for National Greenhouse Gas Inventories 2006 / 2019 | X97: =(K97*M97*O97*10^-3)*(Q97+(1-T97)*V97)*S97 -> 0.0002375648 | Y97: =J97*D9+X97*D10 -> 0.0747674651
C99: Προμήθεια Χαρτιών
C100: EF CO2e (tn CO2e/tn paper) | D100: Πηγή
C101: 0.95 | D101: DEFRA, GHG Conversion Factors for Company Reporting, 2024

Sheet Υπολογισμός Αν. Απ.
C3: Υπολογισμός Ανθρακικού Αποτυπώματος
C6: | SCOPE 1 | SCOPE 1 | | E6: Σταθερή Καύση
E7: Καύσιμο | F7: Σύστημα | G7: Μονάδες | H7: Κατανάλωση | I7: Πηγή | J7: EF CO2 (tn CO2/lt ή tn CO2/kWh) | K7: EF CH4 (tn CH4/lt ή tn CH4/kWh) | L7: EF N2O (tn N2O/lt ή tn N2O/kWh) | M7: EF CO2e (tn CO2e/lt ή tn CO2e/kWh) | N7: CO2 (tn) | O7: CH4 (tn) | P7: N2O (tn) | Q7: CO2e (tn)
E8: Πετρέλαιο Θέρμανσης | F8: Όλα | G8: lt | H8: 0 | J8: =Παραμετροποίηση!O21 -> 0.00262885518 | K8: =Παραμετροποίηση!P21 -> 1.06893e-07 | L8: =Παραμετροποίηση!Q21 -> 2.13786e-08 | M8: =Παραμετροποίηση!R21 -> 0.002637673852 | N8: =$H$8*J8 -> 0 | O8: =$H$8*K8 -> 0 | P8: 0 | Q8: 0
E9: Φυσικό Αέριο | F9: Όλα | G9: kWh | H9: 2750296.85 | J9: =Παραμετροποίηση!O22 -> 0.000200808 | K9: =Παραμετροποίηση!P22 -> 3.6e-09 | L9: =Παραμετροποίηση!Q22 -> 3.6e-10 | M9: =Παραμετροποίηση!R22 -> 0.00020100672 | N9: =$H$9*J9 -> 552.2816099 | O9: =$H$9*K9 -> 0.00990106866 | P9: =$H$9*L9 -> 0.000990106866 | Q9: =$H$9*M9 -> 552.8281488
E11: Κινητή Καύση
E12: Καύσιμο | F12: Τύπος Οχήματος | G12: Μονάδες | H12: Κατανάλωση | I12: Πηγή | J12: EF CO2 (tn CO2/lt) | K12: EF CH4 (tn CH4/lt) | L12: EF N2O (tn N2O/lt) | M12: EF CO2e (tn CO2e/lt) | N12: CO2 (tn) | O12: CH4 (tn) | P12: N2O (tn) | Q12: CO2e (tn)
E13: Πετρέλαιο Κίνησης | F13: Επιβατικό | G13: lt | H13: 12500 | J13: =Παραμετροποίηση!O26 -> 0.00260925813 | K13: =Παραμετροποίηση!P26 -> 1.06893e-09 | L13: =Παραμετροποίηση!Q26 -> 1.0475514e-07 | M13: =Παραμετροποίηση!R26 -> 0.002637886106 | N13: =$H$13*J13 -> 32.61572663 | O13: =$H$13*K13 -> 1.3361625e-05 | P13: 0.00130943925 | Q13: 32.97357633
E14: Βενζίνη | F14: Επιβατικό | G14: lt | H14: 5500 | J14: =Παραμετροποίηση!O27 -> 0.002343259562 | K14: =Παραμετροποίηση!P27 -> 2.987448035e-07 | L14: =Παραμετροποίηση!Q27 -> 4.3500314e-08 | M14: =Παραμετροποίηση!R27 -> 0.002363470127 | N14: =$H$14*J14 -> 12.88792759 | O14: =$H$14*K14 -> 0.001643096419 | P14: 0.000239251727 | Q14: 12.9990857
E16: Ανεξέλεγκτες Εκπομπές Ανθρωπογενών Συστημάτων
E17: Ψυκτικό Υγρό | F17: Διαρροή (tn) | G17: Πηγή | H17: EF CO2e (tn CO2e/tn R) | I17: CO2e (tn)
E18: R-11 | H18: =Παραμετροποίηση!D40 -> 6230 | I18: =F18*H18 -> 0
E19: R-12 | H19: =Παραμετροποίηση!D41 -> 12500 | I19: 0
E20: R-134a | H20: =Παραμετροποίηση!D42 -> 1530 | I20: 0
E21: R-290 | H21: =Παραμετροποίηση!D43 -> 0.02 | I21: 0
E22: R-404a | H22: =Παραμετροποίηση!D44 -> 4728 | I22: 0
E23: R-410a | H23: =Παραμετροποίηση!D45 -> 2255.5 | I23: 0
C25: SCOPE 2 | E25: Εισαγόμενη Ηλεκτρική Ενέργεια
E26: Κατανάλωση (kWh) | F26: Πηγή | G26: EF CO2 (g CO2/kWh) | H26: EF CH4 (g CH4/kWh) | I26: EF N2O (g N2O/kWh) | J26: EF CO2e (g CO2e/kWh) | K26: CO2 (tn) | L26: CH4 (tn) | M26: N2O (tn) | N26: CO2e (tn)
E27: 11266091.65 | G27: =Παραμετροποίηση!D49 -> 271.618 | H27: =Παραμετροποίηση!F49 -> 0.006125574 | I27: =Παραμετροποίηση!H49 -> 0.002488515 | J27: =Παραμετροποίηση!J49 -> 272.4682681 | K27: =$E$27*G27*10^-6 -> 3060.073282 | L27: =$E$27*H27*10^-6 -> 0.06901127809 | M27: =$E$27*I27*10^-6 -> 0.02803583806 | N27: =$E$27*J27*10^-6 -> 3069.65248
C29: | SCOPE 3 | SCOPE 3 | SCOPE 3 | SCOPE 3 | SCOPE 3 | | E29: Μετακίνηση Φοιτητών
E30: Καύσιμο | F30: Τύπος Οχήματος | G30: Μονάδες | H30: Κατανάλωση | I30: Πηγή | J30: EF CO2 (tn CO2/lt ή tn CO2/kWh ή tn CO2/kg) | K30: EF CH4 (tn CH4/lt ή tn CH4/kWh ή tn CH4/kg) | L30: EF N2O (tn N2O/lt ή tn N2O/kWh ή tn N2O/kg) | M30: EF CO2e (tn CO2e/lt ή tn CO2e/kWh ή tn CO2e/kg) | N30: CO2 (tn) | O30: CH4 (tn) | P30: N2O (tn) | Q30: CO2e (tn)
E31: Πετρέλαιο Κίνησης | F31: Επιβατικό | G31: lt | H31: 16045 | J31: =Παραμετροποίηση!O26 -> 0.00260925813 | K31: =Παραμετροποίηση!P26 -> 1.06893e-09 | L31: =Παραμετροποίηση!Q26 -> 1.0475514e-07 | M31: =Παραμετροποίηση!R26 -> 0.002637886106 | N31: =$H31*J31 -> 41.8655467 | O31: =$H31*K31 -> 1.715098185e-05 | P31: =$H31*L31 -> 0.001680796221 | Q31: 42.32488258
E32: Βενζίνη | F32: Επιβατικό | G32: lt | H32: 160790 | J32: =Παραμετροποίηση!O27 -> 0.002343259562 | K32: =Παραμετροποίηση!P27 -> 2.987448035e-07 | L32: =Παραμετροποίηση!Q27 -> 4.3500314e-08 | M32: =Παραμετροποίηση!R27 -> 0.002363470127 | N32: =$H32*J32 -> 376.7727049 | O32: =$H32*K32 -> 0.04803517695 | P32: =$H32*L32 -> 0.006994415488 | Q32: =$H32*M32 -> 380.0223618
E33: Βενζίνη | F33: Μοτοσυκλέτα | G33: lt | H33: 37009 | J33: =Παραμετροποίηση!O30 -> 0.002343259562 | K33: =Παραμετροποίηση!P30 -> 2.99448485e-06 | L33: =Παραμετροποίηση!Q30 -> 4.92577085e-08 | M33: =Παραμετροποίηση!R30 -> 0.002440253043 | N33: 86.72169311 | O33: 0.1108228898 | P33: =$H33*L33 -> 0.001822978534 | Q33: =$H33*M33 -> 90.31132488
E34: Πετρέλαιο Κίνησης | F34: Λεωφορείο | G34: lt | H34: 8223 | J34: =Παραμετροποίηση!O29 -> 0.002294817525 | K34: =Παραμετροποίηση!P29 -> 8.2785625e-07 | L34: =Παραμετροποίηση!Q29 -> 2.64914e-07 | M34: =Παραμετροποίηση!R29 -> 0.002390236236 | N34: =$H34*J34 -> 18.87028451 | O34: =$H34*K34 -> 0.006807461944 | P34: =$H34*L34 -> 0.002178387822 | Q34: =$H34*M34 -> 19.65491257
E35: Φυσικό Αέριο Κίνησης | F35: Λεωφορείο | G35: kg | H35: 1453 | J35: =Παραμετροποίηση!O32 -> 0.00267936 | K35: =Παραμετροποίηση!P32 -> 4.90656e-06 | L35: =Παραμετροποίηση!Q32 -> 1.5984e-07 | M35: =Παραμετροποίηση!R32 -> 0.002859889344 | N35: 3.89311008 | O35: 0.00712923168 | P35: 0.00023224752 | Q35: 4.155419217
E36: Ηλεκτρική Ενέργεια | F36: Επιβατικό | G36: kWh | H36: 3808 | J36: =Παραμετροποίηση!$D$50 -> 498.735 | K36: =Παραμετροποίηση!$F$50 -> 0.006125574 | L36: =Παραμετροποίηση!$H$50 -> 0.002488515 | M36: =Παραμετροποίηση!$J$50 -> 499.5852681 | N36: =$H36*J36*10^-6 -> 1.89918288 | O36: =$H36*K36*10^-6 -> 2.332618579e-05 | P36: =$H36*L36*10^-6 -> 9.47626512e-06 | Q36: =$H36*M36*10^-6 -> 1.902420701
E37: Ηλεκτρική Ενέργεια | F37: Λεωφορείο / Τρόλεϊ | G37: kWh | H37: =5627+1359 -> 6986 | J37: =Παραμετροποίηση!$D$50 -> 498.735 | K37: =Παραμετροποίηση!$F$50 -> 0.006125574 | L37: =Παραμετροποίηση!$H$50 -> 0.002488515 | M37: =Παραμετροποίηση!$J$50 -> 499.5852681 | N37: =$H37*J37*10^-6 -> 3.48416271 | O37: 4.279325996e-05 | P37: 1.738476579e-05 | Q37: 3.490102683
E38: Ηλεκτρική Ενέργεια | F38: Αστικές / Περιφερειακές Σιδηροδρομικές Αμαξοστοιχίες | G38: kWh | H38: 572008 | J38: =Παραμετροποίηση!$D$50 -> 498.735 | K38: =Παραμετροποίηση!$F$50 -> 0.006125574 | L38: =Παραμετροποίηση!$H$50 -> 0.002488515 | M38: =Παραμετροποίηση!$J$50 -> 499.5852681 | N38: 285.2804099 | O38: 0.003503877333 | P38: 0.001423450488 | Q38: 285.76677
E40: Μετακίνηση Υπαλλήλων
E41: Καύσιμο | F41: Τύπος Οχήματος | G41: Μονάδες | H41: Κατανάλωση | I41: Πηγή | J41: EF CO2 (tn CO2/lt ή tn CO2/kWh ή tn CO2/kg) | K41: EF CH4 (tn CH4/lt ή tn CH4/kWh ή tn CH4/kg) | L41: EF N2O (tn N2O/lt ή tn N2O/kWh ή tn N2O/kg) | M41: EF CO2e (tn CO2e/lt ή tn CO2e/kWh ή tn CO2e/kg) | N41: CO2 (tn) | O41: CH4 (tn) | P41: N2O (tn) | Q41: CO2e (tn)
E42: Πετρέλαιο Κίνησης | F42: Επιβατικό | G42: lt | H42: 23972 | J42: =Παραμετροποίηση!O26 -> 0.00260925813 | K42: =Παραμετροποίηση!P26 -> 1.06893e-09 | L42: =Παραμετροποίηση!Q26 -> 1.0475514e-07 | M42: =Παραμετροποίηση!R26 -> 0.002637886106 | N42: =$H42*J42 -> 62.54913589 | O42: =$H42*K42 -> 2.562438996e-05 | P42: =$H42*L42 -> 0.002511190216 | Q42: =$H42*M42 -> 63.23540574
E43: Βενζίνη | F43: Επιβατικό | G43: lt | H43: 239119 | J43: =Παραμετροποίηση!O27 -> 0.002343259562 | K43: =Παραμετροποίηση!P27 -> 2.987448035e-07 | L43: =Παραμετροποίηση!Q27 -> 4.3500314e-08 | M43: =Παραμετροποίηση!R27 -> 0.002363470127 | N43: =$H43*J43 -> 560.3178831 | O43: =$H43*K43 -> 0.07143555867 | P43: 0.01040175158 | Q43: 565.1506134
E44: Βενζίνη | F44: Μοτοσυκλέτα | G44: lt | H44: 30508 | J44: =Παραμετροποίηση!O30 -> 0.002343259562 | K44: =Παραμετροποίηση!P30 -> 2.99448485e-06 | L44: =Παραμετροποίηση!Q30 -> 4.92577085e-08 | M44: =Παραμετροποίηση!R30 -> 0.002440253043 | N44: 71.4881627 | O44: 0.09135574382 | P44: =$H44*L44 -> 0.001502754171 | Q44: =$H44*M44 -> 74.44723984
E45: Πετρέλαιο Κίνησης | F45: Λεωφορείο | G45: lt | H45: 1255 | J45: =Παραμετροποίηση!O29 -> 0.002294817525 | K45: =Παραμετροποίηση!P29 -> 8.2785625e-07 | L45: =Παραμετροποίηση!Q29 -> 2.64914e-07 | M45: =Παραμετροποίηση!R29 -> 0.002390236236 | N45: =$H45*J45 -> 2.879995994 | O45: =$H45*K45 -> 0.001038959594 | P45: =$H45*L45 -> 0.00033246707 | Q45: =$H45*M45 -> 2.999746477
E46: Φυσικό Αέριο Κίνησης | F46: Λεωφορείο | G46: kg | H46: 220 | J46: =Παραμετροποίηση!O32 -> 0.00267936 | K46: =Παραμετροποίηση!P32 -> 4.90656e-06 | L46: =Παραμετροποίηση!Q32 -> 1.5984e-07 | M46: =Παραμετροποίηση!R32 -> 0.002859889344 | N46: 0.5894592 | O46: 0.0010794432 | P46: =$H46*L46 -> 3.51648e-05 | Q46: =$H46*M46 -> 0.6291756557
E47: Ηλεκτρική Ενέργεια | F47: Επιβατικό | G47: kWh | H47: 5584 | J47: =Παραμετροποίηση!$D$50 -> 498.735 | K47: =Παραμετροποίηση!$F$50 -> 0.006125574 | L47: =Παραμετροποίηση!$H$50 -> 0.002488515 | M47: =Παραμετροποίηση!$J$50 -> 499.5852681 | N47: =$H47*J47*10^-6 -> 2.78493624 | O47: =$H47*K47*10^-6 -> 3.420520522e-05 | P47: 1.389586776e-05 | Q47: 2.789684137
E48: Ηλεκτρική Ενέργεια | F48: Λεωφορείο / Τρόλεϊ | G48: kWh | H48: =858+210 -> 1068 | J48: =Παραμετροποίηση!$D$50 -> 498.735 | K48: =Παραμετροποίηση!$F$50 -> 0.006125574 | L48: =Παραμετροποίηση!$H$50 -> 0.002488515 | M48: =Παραμετροποίηση!$J$50 -> 499.5852681 | N48: =$H48*J48*10^-6 -> 0.53264898 | O48: =$H48*K48*10^-6 -> 6.542113032e-06 | P48: =$H48*L48*10^-6 -> 2.65773402e-06 | Q48: =$H48*M48*10^-6 -> 0.5335570663
E49: Ηλεκτρική Ενέργεια | F49: Αστικές / Περιφερειακές Σιδηροδρομικές Αμαξοστοιχίες | G49: kWh | H49: 87300 | J49: =Παραμετροποίηση!$D$50 -> 498.735 | K49: =Παραμετροποίηση!$F$50 -> 0.006125574 | L49: =Παραμετροποίηση!$H$50 -> 0.002488515 | M49: =Παραμετροποίηση!$J$50 -> 499.5852681 | N49: 43.5395655 | O49: =$H49*K49*10^-6 -> 0.0005347626102 | P49: 0.0002172473595 | Q49: 43.61379391
E51: Επαγγελματικά Ταξίδια
E52: Καύσιμο | F52: Τύπος Οχήματος | G52: Μονάδες | H52: Κατανάλωση | I52: Πηγή | J52: EF CO2 (tn CO2/lt ή tn CO2/kWh ή tn CO2/kg) | K52: EF CH4 (tn CH4/lt ή tn CH4/kWh ή tn CH4/kg) | L52: EF N2O (tn N2O/lt ή tn N2O/kWh ή tn N2O/kg) | M52: EF CO2e (tn CO2e/lt ή tn CO2e/kWh ή tn CO2e/kg) | N52: CO2 (tn) | O52: CH4 (tn) | P52: N2O (tn) | Q52: CO2e (tn)
E53: Πετρέλαιο Κίνησης | F53: Επιβατικό | G53: lt | H53: 981.62 | J53: =Παραμετροποίηση!O26 -> 0.00260925813 | K53: =Παραμετροποίηση!P26 -> 1.06893e-09 | L53: =Παραμετροποίηση!Q26 -> 1.0475514e-07 | M53: =Παραμετροποίηση!R26 -> 0.002637886106 | N53: =$H53*J53 -> 2.561299966 | O53: =$H53*K53 -> 1.049283067e-06 | P53: =$H53*L53 -> 0.0001028297405 | Q53: =$H53*M53 -> 2.58940176
E54: Βενζίνη | F54: Επιβατικό | G54: lt | H54: 9798.99 | J54: =Παραμετροποίηση!O27 -> 0.002343259562 | K54: =Παραμετροποίηση!P27 -> 2.987448035e-07 | L54: =Παραμετροποίηση!Q27 -> 4.3500314e-08 | M54: =Παραμετροποίηση!R27 -> 0.002363470127 | N54: =$H54*J54 -> 22.96157701 | O54: =$H54*K54 -> 0.002927397342 | P54: =$H54*L54 -> 0.0004262591419 | Q54: =$H54*M54 -> 23.15962014
E55: Πετρέλαιο Κίνησης | F55: Επιβατικό (Διεθνείς Μεταφορές) | G55: lt | H55: 0 | J55: =Παραμετροποίηση!O28 -> 0.00265259475 | K55: =Παραμετροποίηση!P28 -> 1.3961025e-07 | L55: =Παραμετροποίηση!Q28 -> 1.3961025e-07 | M55: =Παραμετροποίηση!R28 -> 0.002694603474 | N55: =$H55*J55 -> 0 | O55: =$H55*K55 -> 0 | P55: =$H55*L55 -> 0 | Q55: =$H55*M55 -> 0
E56: Βενζίνη | F56: Επιβατικό (Διεθνείς Μεταφορές) | G56: lt | H56: 0 | J56: =Παραμετροποίηση!O29 -> 0.002294817525 | K56: =Παραμετροποίηση!P29 -> 8.2785625e-07 | L56: =Παραμετροποίηση!Q29 -> 2.64914e-07 | M56: =Παραμετροποίηση!R29 -> 0.002390236236 | N56: 0 | O56: =$H56*K56 -> 0 | P56: 0 | Q56: 0
E57: Πετρέλαιο Κίνησης | F57: Τρένο | G57: lt | H57: 0 | J57: =Παραμετροποίηση!O33 -> 0.00260925813 | K57: =Παραμετροποίηση!P33 -> 1.4786865e-07 | L57: =Παραμετροποίηση!Q33 -> 1.0190466e-06 | M57: =Παραμετροποίηση!R33 -> 0.002891583387 | N57: =$H57*J57 -> 0 | O57: =$H57*K57 -> 0 | P57: 0 | Q57: 0
E58: Πετρέλαιο Κίνησης | F58: Τρένο (Διεθνείς Μεταφορές) | G58: lt | H58: 0 | J58: =Παραμετροποίηση!O34 -> 0.00265259475 | K58: =Παραμετροποίηση!P34 -> 1.48559625e-07 | L58: =Παραμετροποίηση!Q34 -> 1.0238085e-06 | M58: =Παραμετροποίηση!R34 -> 0.002936239284 | N58: 0 | O58: 0 | P58: =$H58*L58 -> 0 | Q58: =$H58*M58 -> 0
E59: Κηροζίνη | F59: Αεροσκάφος | G59: kg | H59: =0.1*91144.5 -> 9114.45 | J59: =Παραμετροποίηση!O35 -> 0.0052308189 | K59: =Παραμετροποίηση!P35 -> 3.5715e-08 | L59: =Παραμετροποίηση!Q35 -> 1.4286e-07 | M59: =Παραμετροποίηση!R35 -> 0.005270816128 | N59: 47.67603732 | O59: 0.0003255225818 | P59: =$H59*L59 -> 0.001302090327 | Q59: =$H59*M59 -> 48.04059006
E60: Κηροζίνη | F60: Αεροσκάφος (Διεθνείς Μεταφορές) | G60: kg | H60: =0.9*91144.5 -> 82030.05 | J60: =Παραμετροποίηση!O36 -> 0.00529815 | K60: =Παραμετροποίηση!P36 -> 3.575e-08 | L60: =Παραμετροποίηση!Q36 -> 1.43e-07 | M60: =Παραμετροποίηση!R36 -> 0.005338186425 | N60: =$H60*J60 -> 434.6075094 | O60: 0.002932574288 | P60: 0.01173029715 | Q60: 437.8916994
E61: Ηλεκτρική Ενέργεια | F61: Επιβατικό | G61: kWh | H61: 238.04 | J61: =_xlfn.XLOOKUP(F62,Παραμετροποίηση!$C$50:$C$80,Παραμετροποίηση!D$50:D$80) -> 498.735 | K61: =_xlfn.XLOOKUP(F62,Παραμετροποίηση!$C$50:$C$80,Παραμετροποίηση!F$50:F$80) -> 0.006125574 | L61: =_xlfn.XLOOKUP(F62,Παραμετροποίηση!$C$50:$C$80,Παραμετροποίηση!H$50:H$80) -> 0.002488515 | M61: =_xlfn.XLOOKUP(F62,Παραμετροποίηση!$C$50:$C$80,Παραμετροποίηση!J$50:J$80) -> 499.5852681 | N61: =IF(F62="Ελλάδα",$H$61*J61*10^-6,"-") -> 0.1187188794 | O61: =IF(F62="Ελλάδα",$H$61*K61*10^-6,"-") -> 1.458131635e-06 | P61: =IF(F62="Ελλάδα",$H$61*L61*10^-6,"-") -> 5.923661106e-07 | Q61: =$H61*M61*10^-6 -> 0.1189212772
F62: Ελλάδα
E63: Ηλεκτρική Ενέργεια | F63: Τρένο | G63: kWh | H63: 0 | J63: =_xlfn.XLOOKUP(F64,Παραμετροποίηση!$C$50:$C$80,Παραμετροποίηση!D$50:D$80) -> 498.735 | K63: =_xlfn.XLOOKUP(F64,Παραμετροποίηση!$C$50:$C$80,Παραμετροποίηση!F$50:F$80) -> 0.006125574 | L63: =_xlfn.XLOOKUP(F64,Παραμετροποίηση!$C$50:$C$80,Παραμετροποίηση!H$50:H$80) -> 0.002488515 | M63: =_xlfn.XLOOKUP(F64,Παραμετροποίηση!$C$50:$C$80,Παραμετροποίηση!J$50:J$80) -> 499.5852681 | N63: =IF(F64="Ελλάδα",$H$63*J63*10^-6,"-") -> 0 | O63: =IF(F64="Ελλάδα",$H$63*K63*10^-6,"-") -> 0 | P63: =IF(F64="Ελλάδα",$H$63*L63*10^-6,"-") -> 0 | Q63: =$H63*M63*10^-6 -> 0
F64: Ελλάδα
E66: Τελική Διάθεση Στερεών Αποβλήτων
E67: Στερεά Απόβλητα (tn) | F67: Πηγή | G67: EF CH4 (tn CH4/tn αποβλήτων) | H67: EF CO2e (tn CO2e/tn αποβλήτων) | I67: CH4 (tn) | J67: CO2e (tn)
E68: 58.62 | G68: =Παραμετροποίηση!M84 -> 0.050358 | H68: =Παραμετροποίηση!N84 -> 1.4049882 | I68: =G68*E68 -> 2.95198596 | J68: =E68*H68 -> 82.36040828
E70: Διαχείριση Λυμάτων
E71: Πλήθος Ατόμων που Παράγουν Λύματα | F71: Πηγή | G71: EF CH4 (tn CH4/person) | H71: EF N2O (tn N2O/person) | I71: EF CO2e (tn CO2e/person) | J71: CH4 (tn) | K71: N2O (tn) | L71: CO2e (tn)
E72: 200 | G72: =Παραμετροποίηση!J97 -> 0.000355278663 | H72: =Παραμετροποίηση!X97 -> 0.0002375648 | I72: =Παραμετροποίηση!Y97 -> 0.0747674651 | J72: =$E$72*G72 -> 0.0710557326 | K72: =$E$72*H72 -> 0.04751296 | L72: =$E$72*I72 -> 14.95349302
E74: Προμήθεια Χαρτιών
E75: Χαρτί (tn) | F75: Πηγή | G75: EF CO2e (tn CO2e/tn paper) | H75: EF CO2e (tn CO2e/tn paper)
E76: 17.8 | G76: =Παραμετροποίηση!C101 -> 0.95 | H76: =E76*G76 -> 16.91

Sheet Σύνοψη - Πίνακες
C3: Σύνοψη
C6: Στοιχεία Έκθεσης
C7: Οργανισμός | D7: ='Γενικά Στοιχεία Οργανισμού'!D6 -> Εθνικό Μετσόβιο Πολυτεχνείο
C8: Έτος Αναφοράς | D8: ='Γενικό Πλαίσιο Απογραφής'!F6 -> 2024
C9: Έτος Βάσης | D9: ='Γενικό Πλαίσιο Απογραφής'!F7 -> 2023
C11: Σύνοψη Βασικών Μεγεθών
C12: Συνολικές Εκπομπές Αερίων του Θερμοκηπίου (tn CO2e) | G12: =D159 -> 5875.504836
C13: Συνολική Κατανάλωση Τελικής Ενέργειας (kWh) | G13: =D200 -> 21456874.35
C14: Σύνολο Παραγόμενων Στερεών Αποβλήτων (tn) | G14: ='Υπολογισμός Αν. Απ.'!E68 -> 58.62
C15: Βιοαποδομίσημο Φορτίο Παραγόμενων Λυμάτων (tn BOD) | G15: =Παραμετροποίηση!G97*'Υπολογισμός Αν. Απ.'!E72 -> 4.161
C16: Επίτευξη Στόχου Μείωσης Εκπομπών (%) | G16: =('Γενικό Πλαίσιο Απογραφής'!F8-G12)/('Γενικό Πλαίσιο Απογραφής'!F8-'Γενικό Πλαίσιο Απογραφής'!F9) -> 
C18: Συγκεντρωτικός Πίνακας Εκπομπών (tn)
C19: ΑτΘ Πίνακα ανά Θέση | D19: CO2e | E19: CO2
E20: CH4
E21: N2O
C23: Κατηγορία | D23: Ε.Μ.Π. | F23: Βιβλιοθήκη | H23: Γυμναστήριο | J23: Διοίκηση | L23: Σχολή Αγρονόμων και Τοπογράφων Μηχανικών | N23: Σχολή Εφαρμοσμένων Μαθηματικών και Φυσικών Επιστημών | P23: Σχολή Ηλεκτρολόγων Μηχανικών και Μηχανικών Υπολογιστών | R23: Σχολή Μηχανικών Μεταλλείων Μεταλλουργών | T23: Σχολή Μηχανολόγων Μηχανικών | V23: Σχολή Ναυπηγών Μηχανολόγων Μηχανικών | X23: Σχολή Πολιτικών Μηχανικών | Z23: Σχολή Χημικών Μηχανικών | AB23: Σχολή Αρχιτεκτόνων Μηχανικών
C24: SCOPE 1 | D24: =D27+D36+D45 -> 598.8008109 | E24: =E27+E36+E45 -> 597.7852641 | F24: =F27+F36+F45 -> 25.34139972 | G24: 25.2810501 | H24: 11.77205896 | I24: 11.72512432 | J24: 21.74176979 | K24: 21.68497885 | L24: 40.4115215 | M24: 40.3362732 | N24: 67.55168236 | O24: 67.44960266 | P24: 43.02722674 | Q24: 42.94939249 | R24: 64.36961338 | S24: 64.27067954 | T24: 93.75250325 | U24: 93.6245208 | V24: 24.01434098 | W24: 23.95530332 | X24: 54.06449687 | Y24: 53.97575092 | Z24: 82.51536704 | AA24: 82.39849388 | AB24: 70.23883028 | AC24: 70.134094
E25: =E28+E37+E46 -> 0.0115575267 | G25: 0.0005232851928 | I25: 0.0002802603491 | K25: 0.0004588163644 | M25: 0.0007931887981 | O25: 0.001279264981 | Q25: 0.0008400356839 | S25: =S28+S37+S46 -> 0.001222274606 | U25: 0.001748517726 | W25: 0.0004995177712 | Y25: 0.001037711525 | AA25: 0.001547262313 | AC25: 0.001327391394
E26: 0.002538797843 | G26: 0.0001675822837 | I26: 0.0001432797993 | K26: 0.0001611354008 | M26: 0.0001945726442 | O26: 0.0002431802624 | Q26: 0.0001992573328 | S26: 0.0002374812249 | U26: 0.000290105537 | W26: 0.0001652055415 | Y26: 0.0002190249169 | AA26: 0.0002699799957 | AC26: 0.0002479929038
C27: Σταθερή Καύση | D27: =SUM(D30:D35) -> 552.8281488 | E27: =E30+E33 -> 552.2816099 | F27: =SUM(F30:F35) -> 21.51034455 | G27: =G30+G33 -> 21.48907891 | H27: =SUM(H30:H35) -> 7.941003795 | I27: =I30+I33 -> 7.933153131 | J27: =SUM(J30:J35) -> 17.91071462 | K27: =K30+K33 -> 17.89300766 | L27: =SUM(L30:L35) -> 36.58046633 | M27: =M30+M33 -> 36.54430202 | N27: =SUM(N30:N35) -> 63.72062719 | O27: =O30+O33 -> 63.65763147 | P27: =SUM(P30:P35) -> 39.19617157 | Q27: =Q30+Q33 -> 39.1574213 | R27: =SUM(R30:R35) -> 60.53855821 | S27: =S30+S33 -> 60.47870836 | T27: =SUM(T30:T35) -> 89.92144809 | U27: =U30+U33 -> 89.83254961 | V27: =SUM(V30:V35) -> 20.18328581 | W27: =W30+W33 -> 20.16333214 | X27: =SUM(X30:X35) -> 50.2334417 | Y27: =Y30+Y33 -> 50.18377973 | Z27: =SUM(Z30:Z35) -> 78.68431187 | AA27: =AA30+AA33 -> 78.6065227 | AB27: =SUM(AB30:AB35) -> 66.40777512 | AC27: =AC30+AC33 -> 66.34212282
E28: =E31+E34 -> 0.00990106866 | G28: 0.0003852470225 | I28: =I31+I34 -> 0.0001422221788 | K28: =K31+K34 -> 0.000320778194 | M28: =M31+M34 -> 0.0006551506277 | O28: =O31+O34 -> 0.00114122681 | Q28: =Q31+Q34 -> 0.0007019975135 | S28: =S31+S34 -> 0.001084236435 | U28: =U31+U34 -> 0.001610479556 | W28: =W31+W34 -> 0.0003614796009 | Y28: =Y31+Y34 -> 0.0008996733548 | AA28: =AA31+AA34 -> 0.001409224143 | AC28: =AC31+AC34 -> 0.001189353224
E29: 0.000990106866 | G29: 3.852470225e-05 | I29: =I32+I35 -> 1.422221788e-05 | K29: =K32+K35 -> 3.20778194e-05 | M29: =M32+M35 -> 6.551506277e-05 | O29: =O32+O35 -> 0.000114122681 | Q29: =Q32+Q35 -> 7.019975135e-05 | S29: =S32+S35 -> 0.0001084236435 | U29: =U32+U35 -> 0.0001610479556 | W29: =W32+W35 -> 3.614796009e-05 | Y29: =Y32+Y35 -> 8.996733548e-05 | AA29: =AA32+AA35 -> 0.0001409224143 | AC29: =AC32+AC35 -> 0.0001189353224
C30: Πετρέλαιο Θέρμανσης | D30: ='Υπολογισμός Αν. Απ.'!Q8 -> 0 | E30: ='Υπολογισμός Αν. Απ.'!N8 -> 0 | F30: =D30*'Γενικά Στοιχεία Οργανισμού'!$F$13/SUM('Γενικά Στοιχεία Οργανισμού'!$F$13:$F$24) -> 0 | G30: =E30*'Γενικά Στοιχεία Οργανισμού'!$F$13/SUM('Γενικά Στοιχεία Οργανισμού'!$F$13:$F$24) -> 0 | H30: =D30*'Γενικά Στοιχεία Οργανισμού'!$F$14/SUM('Γενικά Στοιχεία Οργανισμού'!$F$13:$F$24) -> 0 | I30: =E30*'Γενικά Στοιχεία Οργανισμού'!$F$14/SUM('Γενικά Στοιχεία Οργανισμού'!$F$13:$F$24) -> 0 | J30: =D30*'Γενικά Στοιχεία Οργανισμού'!$F$15/SUM('Γενικά Στοιχεία Οργανισμού'!$F$13:$F$24) -> 0 | K30: =E30*'Γενικά Στοιχεία Οργανισμού'!$F$15/SUM('Γενικά Στοιχεία Οργανισμού'!$F$13:$F$24) -> 0 | L30: =D30*'Γενικά Στοιχεία Οργανισμού'!$F$16/SUM('Γενικά Στοιχεία Οργανισμού'!$F$13:$F$24) -> 0 | M30: =E30*'Γενικά Στοιχεία Οργανισμού'!$F$16/SUM('Γενικά Στοιχεία Οργανισμού'!$F$13:$F$24) -> 0 | N30: =D30*'Γενικά Στοιχεία Οργανισμού'!$F$17/SUM('Γενικά Στοιχεία Οργανισμού'!$F$13:$F$24) -> 0 | O30: =E30*'Γενικά Στοιχεία Οργανισμού'!$F$17/SUM('Γενικά Στοιχεία Οργανισμού'!$F$13:$F$24) -> 0 | P30: =D30*'Γενικά Στοιχεία Οργανισμού'!$F$18/SUM('Γενικά Στοιχεία Οργανισμού'!$F$13:$F$24) -> 0 | Q30: =E30*'Γενικά Στοιχεία Οργανισμού'!$F$18/SUM('Γενικά Στοιχεία Οργανισμού'!$F$13:$F$24) -> 0 | R30: =D30*'Γενικά Στοιχεία Οργανισμού'!$F$19/SUM('Γενικά Στοιχεία Οργανισμού'!$F$13:$F$24) -> 0 | S30: =E30*'Γενικά Στοιχεία Οργανισμού'!$F$19/SUM('Γενικά Στοιχεία Οργανισμού'!$F$13:$F$24) -> 0 | T30: =D30*'Γενικά Στοιχεία Οργανισμού'!$F$20/SUM('Γενικά Στοιχεία Οργανισμού'!$F$13:$F$24) -> 0 | U30: =E30*'Γενικά Στοιχεία Οργανισμού'!$F$20/SUM('Γενικά Στοιχεία Οργανισμού'!$F$13:$F$24) -> 0 | V30: =D30*'Γενικά Στοιχεία Οργανισμού'!$F$21/SUM('Γενικά Στοιχεία Οργανισμού'!$F$13:$F$24) -> 0 | W30: =E30*'Γενικά Στοιχεία Οργανισμού'!$F$21/SUM('Γενικά Στοιχεία Οργανισμού'!$F$13:$F$24) -> 0 | X30: =D30*'Γενικά Στοιχεία Οργανισμού'!$F$22/SUM('Γενικά Στοιχεία Οργανισμού'!$F$13:$F$24) -> 0 | Y30: =E30*'Γενικά Στοιχεία Οργανισμού'!$F$22/SUM('Γενικά Στοιχεία Οργανισμού'!$F$13:$F$24) -> 0 | Z30: =D30*'Γενικά Στοιχεία Οργανισμού'!$F$23/SUM('Γενικά Στοιχεία Οργανισμού'!$F$13:$F$24) -> 0 | AA30: =E30*'Γενικά Στοιχεία Οργανισμού'!$F$23/SUM('Γενικά Στοιχεία Οργανισμού'!$F$13:$F$24) -> 0 | AB30: =D30*'Γενικά Στοιχεία Οργανισμού'!$F$24/SUM('Γενικά Στοιχεία Οργανισμού'!$F$13:$F$24) -> 0 | AC30: =E30*'Γενικά Στοιχεία Οργανισμού'!$F$24/SUM('Γενικά Στοιχεία Οργανισμού'!$F$13:$F$24) -> 0
E31: ='Υπολογισμός Αν. Απ.'!O8 -> 0 | G31: =E31*'Γενικά Στοιχεία Οργανισμού'!$F$13/SUM('Γενικά Στοιχεία Οργανισμού'!$F$13:$F$24) -> 0 | I31: =E31*'Γενικά Στοιχεία Οργανισμού'!$F$14/SUM('Γενικά Στοιχεία Οργανισμού'!$F$13:$F$24) -> 0 | K31: =E31*'Γενικά Στοιχεία Οργανισμού'!$F$15/SUM('Γενικά Στοιχεία Οργανισμού'!$F$13:$F$24) -> 0 | M31: =E31*'Γενικά Στοιχεία Οργανισμού'!$F$16/SUM('Γενικά Στοιχεία Οργανισμού'!$F$13:$F$24) -> 0 | O31: =E31*'Γενικά Στοιχεία Οργανισμού'!$F$17/SUM('Γενικά Στοιχεία Οργανισμού'!$F$13:$F$24) -> 0 | Q31: =E31*'Γενικά Στοιχεία Οργανισμού'!$F$18/SUM('Γενικά Στοιχεία Οργανισμού'!$F$13:$F$24) -> 0 | S31: =E31*'Γενικά Στοιχεία Οργανισμού'!$F$19/SUM('Γενικά Στοιχεία Οργανισμού'!$F$13:$F$24) -> 0 | U31: =E31*'Γενικά Στοιχεία Οργανισμού'!$F$20/SUM('Γενικά Στοιχεία Οργανισμού'!$F$13:$F$24) -> 0 | W31: =E31*'Γενικά Στοιχεία Οργανισμού'!$F$21/SUM('Γενικά Στοιχεία Οργανισμού'!$F$13:$F$24) -> 0 | Y31: =E31*'Γενικά Στοιχεία Οργανισμού'!$F$22/SUM('Γενικά Στοιχεία Οργανισμού'!$F$13:$F$24) -> 0 | AA31: =E31*'Γενικά Στοιχεία Οργανισμού'!$F$23/SUM('Γενικά Στοιχεία Οργανισμού'!$F$13:$F$24) -> 0 | AC31: =E31*'Γενικά Στοιχεία Οργανισμού'!$F$24/SUM('Γενικά Στοιχεία Οργανισμού'!$F$13:$F$24) -> 0
E32: ='Υπολογισμός Αν. Απ.'!P8 -> 0 | G32: =E32*'Γενικά Στοιχεία Οργανισμού'!$F$13/SUM('Γενικά Στοιχεία Οργανισμού'!$F$13:$F$24) -> 0 | I32: =E32*'Γενικά Στοιχεία Οργανισμού'!$F$14/SUM('Γενικά Στοιχεία Οργανισμού'!$F$13:$F$24) -> 0 | K32: =E32*'Γενικά Στοιχεία Οργανισμού'!$F$15/SUM('Γενικά Στοιχεία Οργανισμού'!$F$13:$F$24) -> 0 | M32: =E32*'Γενικά Στοιχεία Οργανισμού'!$F$16/SUM('Γενικά Στοιχεία Οργανισμού'!$F$13:$F$24) -> 0 | O32: =E32*'Γενικά Στοιχεία Οργανισμού'!$F$17/SUM('Γενικά Στοιχεία Οργανισμού'!$F$13:$F$24) -> 0 | Q32: =E32*'Γενικά Στοιχεία Οργανισμού'!$F$18/SUM('Γενικά Στοιχεία Οργανισμού'!$F$13:$F$24) -> 0 | S32: =E32*'Γενικά Στοιχεία Οργανισμού'!$F$19/SUM('Γενικά Στοιχεία Οργανισμού'!$F$13:$F$24) -> 0 | U32: =E32*'Γενικά Στοιχεία Οργανισμού'!$F$20/SUM('Γενικά Στοιχεία Οργανισμού'!$F$13:$F$24) -> 0 | W32: =E32*'Γενικά Στοιχεία Οργανισμού'!$F$21/SUM('Γενικά Στοιχεία Οργανισμού'!$F$13:$F$24) -> 0 | Y32: =E32*'Γενικά Στοιχεία Οργανισμού'!$F$22/SUM('Γενικά Στοιχεία Οργανισμού'!$F$13:$F$24) -> 0 | AA32: =E32*'Γενικά Στοιχεία Οργανισμού'!$F$23/SUM('Γενικά Στοιχεία Οργανισμού'!$F$13:$F$24) -> 0 | AC32: =E32*'Γενικά Στοιχεία Οργανισμού'!$F$24/SUM('Γενικά Στοιχεία Οργανισμού'!$F$13:$F$24) -> 0
C33: Φυσικό Αέριο | D33: ='Υπολογισμός Αν. Απ.'!Q9 -> 552.8281488 | E33: ='Υπολογισμός Αν. Απ.'!N9 -> 552.2816099 | F33: =D33*'Γενικά Στοιχεία Οργανισμού'!$F$13/SUM('Γενικά Στοιχεία Οργανισμού'!$F$13:$F$24) -> 21.51034455 | G33: =E33*'Γενικά Στοιχεία Οργανισμού'!$F$13/SUM('Γενικά Στοιχεία Οργανισμού'!$F$13:$F$24) -> 21.48907891 | H33: =D33*'Γενικά Στοιχεία Οργανισμού'!$F$14/SUM('Γενικά Στοιχεία Οργανισμού'!$F$13:$F$24) -> 7.941003795 | I33: =E33*'Γενικά Στοιχεία Οργανισμού'!$F$14/SUM('Γενικά Στοιχεία Οργανισμού'!$F$13:$F$24) -> 7.933153131 | J33: =D33*'Γενικά Στοιχεία Οργανισμού'!$F$15/SUM('Γενικά Στοιχεία Οργανισμού'!$F$13:$F$24) -> 17.91071462 | K33: =E33*'Γενικά Στοιχεία Οργανισμού'!$F$15/SUM('Γενικά Στοιχεία Οργανισμού'!$F$13:$F$24) -> 17.89300766 | L33: =D33*'Γενικά Στοιχεία Οργανισμού'!$F$16/SUM('Γενικά Στοιχεία Οργανισμού'!$F$13:$F$24) -> 36.58046633 | M33: =E33*'Γενικά Στοιχεία Οργανισμού'!$F$16/SUM('Γενικά Στοιχεία Οργανισμού'!$F$13:$F$24) -> 36.54430202 | N33: =D33*'Γενικά Στοιχεία Οργανισμού'!$F$17/SUM('Γενικά Στοιχεία Οργανισμού'!$F$13:$F$24) -> 63.72062719 | O33: =E33*'Γενικά Στοιχεία Οργανισμού'!$F$17/SUM('Γενικά Στοιχεία Οργανισμού'!$F$13:$F$24) -> 63.65763147 | P33: =D33*'Γενικά Στοιχεία Οργανισμού'!$F$18/SUM('Γενικά Στοιχεία Οργανισμού'!$F$13:$F$24) -> 39.19617157 | Q33: =E33*'Γενικά Στοιχεία Οργανισμού'!$F$18/SUM('Γενικά Στοιχεία Οργανισμού'!$F$13:$F$24) -> 39.1574213 | R33: =D33*'Γενικά Στοιχεία Οργανισμού'!$F$19/SUM('Γενικά Στοιχεία Οργανισμού'!$F$13:$F$24) -> 60.53855821 | S33: =E33*'Γενικά Στοιχεία Οργανισμού'!$F$19/SUM('Γενικά Στοιχεία Οργανισμού'!$F$13:$F$24) -> 60.47870836 | T33: =D33*'Γενικά Στοιχεία Οργανισμού'!$F$20/SUM('Γενικά Στοιχεία Οργανισμού'!$F$13:$F$24) -> 89.92144809 | U33: =E33*'Γενικά Στοιχεία Οργανισμού'!$F$20/SUM('Γενικά Στοιχεία Οργανισμού'!$F$13:$F$24) -> 89.83254961 | V33: =D33*'Γενικά Στοιχεία Οργανισμού'!$F$21/SUM('Γενικά Στοιχεία Οργανισμού'!$F$13:$F$24) -> 20.18328581 | W33: =E33*'Γενικά Στοιχεία Οργανισμού'!$F$21/SUM('Γενικά Στοιχεία Οργανισμού'!$F$13:$F$24) -> 20.16333214 | X33: =D33*'Γενικά Στοιχεία Οργανισμού'!$F$22/SUM('Γενικά Στοιχεία Οργανισμού'!$F$13:$F$24) -> 50.2334417 | Y33: =E33*'Γενικά Στοιχεία Οργανισμού'!$F$22/SUM('Γενικά Στοιχεία Οργανισμού'!$F$13:$F$24) -> 50.18377973 | Z33: =D33*'Γενικά Στοιχεία Οργανισμού'!$F$23/SUM('Γενικά Στοιχεία Οργανισμού'!$F$13:$F$24) -> 78.68431187 | AA33: =E33*'Γενικά Στοιχεία Οργανισμού'!$F$23/SUM('Γενικά Στοιχεία Οργανισμού'!$F$13:$F$24) -> 78.6065227 | AB33: =D33*'Γενικά Στοιχεία Οργανισμού'!$F$24/SUM('Γενικά Στοιχεία Οργανισμού'!$F$13:$F$24) -> 66.40777512 | AC33: =E33*'Γενικά Στοιχεία Οργανισμού'!$F$24/SUM('Γενικά Στοιχεία Οργανισμού'!$F$13:$F$24) -> 66.34212282
E34: ='Υπολογισμός Αν. Απ.'!O9 -> 0.00990106866 | G34: =E34*'Γενικά Στοιχεία Οργανισμού'!$F$13/SUM('Γενικά Στοιχεία Οργανισμού'!$F$13:$F$24) -> 0.0003852470225 | I34: =E34*'Γενικά Στοιχεία Οργανισμού'!$F$14/SUM('Γενικά Στοιχεία Οργανισμού'!$F$13:$F$24) -> 0.0001422221788 | K34: =E34*'Γενικά Στοιχεία Οργανισμού'!$F$15/SUM('Γενικά Στοιχεία Οργανισμού'!$F$13:$F$24) -> 0.000320778194 | M34: =E34*'Γενικά Στοιχεία Οργανισμού'!$F$16/SUM('Γενικά Στοιχεία Οργανισμού'!$F$13:$F$24) -> 0.0006551506277 | O34: =E34*'Γενικά Στοιχεία Οργανισμού'!$F$17/SUM('Γενικά Στοιχεία Οργανισμού'!$F$13:$F$24) -> 0.00114122681 | Q34: =E34*'Γενικά Στοιχεία Οργανισμού'!$F$18/SUM('Γενικά Στοιχεία Οργανισμού'!$F$13:$F$24) -> 0.0007019975135 | S34: =E34*'Γενικά Στοιχεία Οργανισμού'!$F$19/SUM('Γενικά Στοιχεία Οργανισμού'!$F$13:$F$24) -> 0.001084236435 | U34: =E34*'Γενικά Στοιχεία Οργανισμού'!$F$20/SUM('Γενικά Στοιχεία Οργανισμού'!$F$13:$F$24) -> 0.001610479556 | W34: =E34*'Γενικά Στοιχεία Οργανισμού'!$F$21/SUM('Γενικά Στοιχεία Οργανισμού'!$F$13:$F$24) -> 0.0003614796009 | Y34: =E34*'Γενικά Στοιχεία Οργανισμού'!$F$22/SUM('Γενικά Στοιχεία Οργανισμού'!$F$13:$F$24) -> 0.0008996733548 | AA34: =E34*'Γενικά Στοιχεία Οργανισμού'!$F$23/SUM('Γενικά Στοιχεία Οργανισμού'!$F$13:$F$24) -> 0.001409224143 | AC34: =E34*'Γενικά Στοιχεία Οργανισμού'!$F$24/SUM('Γενικά Στοιχεία Οργανισμού'!$F$13:$F$24) -> 0.001189353224
E35: ='Υπολογισμός Αν. Απ.'!P9 -> 0.000990106866 | G35: =E35*'Γενικά Στοιχεία Οργανισμού'!$F$13/SUM('Γενικά Στοιχεία Οργανισμού'!$F$13:$F$24) -> 3.852470225e-05 | I35: =E35*'Γενικά Στοιχεία Οργανισμού'!$F$14/SUM('Γενικά Στοιχεία Οργανισμού'!$F$13:$F$24) -> 1.422221788e-05 | K35: =E35*'Γενικά Στοιχεία Οργανισμού'!$F$15/SUM('Γενικά Στοιχεία Οργανισμού'!$F$13:$F$24) -> 3.20778194e-05 | M35: =E35*'Γενικά Στοιχεία Οργανισμού'!$F$16/SUM('Γενικά Στοιχεία Οργανισμού'!$F$13:$F$24) -> 6.551506277e-05 | O35: =E35*'Γενικά Στοιχεία Οργανισμού'!$F$17/SUM('Γενικά Στοιχεία Οργανισμού'!$F$13:$F$24) -> 0.000114122681 | Q35: =E35*'Γενικά Στοιχεία Οργανισμού'!$F$18/SUM('Γενικά Στοιχεία Οργανισμού'!$F$13:$F$24) -> 7.019975135e-05 | S35: =E35*'Γενικά Στοιχεία Οργανισμού'!$F$19/SUM('Γενικά Στοιχεία Οργανισμού'!$F$13:$F$24) -> 0.0001084236435 | U35: =E35*'Γενικά Στοιχεία Οργανισμού'!$F$20/SUM('Γενικά Στοιχεία Οργανισμού'!$F$13:$F$24) -> 0.0001610479556 | W35: =E35*'Γενικά Στοιχεία Οργανισμού'!$F$21/SUM('Γενικά Στοιχεία Οργανισμού'!$F$13:$F$24) -> 3.614796009e-05 | Y35: =E35*'Γενικά Στοιχεία Οργανισμού'!$F$22/SUM('Γενικά Στοιχεία Οργανισμού'!$F$13:$F$24) -> 8.996733548e-05 | AA35: =E35*'Γενικά Στοιχεία Οργανισμού'!$F$23/SUM('Γενικά Στοιχεία Οργανισμού'!$F$13:$F$24) -> 0.0001409224143 | AC35: =E35*'Γενικά Στοιχεία Οργανισμού'!$F$24/SUM('Γενικά Στοιχεία Οργανισμού'!$F$13:$F$24) -> 0.0001189353224
C36: Κινητή Καύση | D36: =SUM(D39:D44) -> 45.97266203 | E36: =E39+E42 -> 45.50365421 | F36: =SUM(F39:F44) -> 3.831055169 | G36: =G39+G42 -> 3.791971184 | H36: =SUM(H39:H44) -> 3.831055169 | I36: =I39+I42 -> 3.791971184 | J36: =SUM(J39:J44) -> 3.831055169 | K36: =K39+K42 -> 3.791971184 | L36: =SUM(L39:L44) -> 3.831055169 | M36: =M39+M42 -> 3.791971184 | N36: =SUM(N39:N44) -> 3.831055169 | O36: =O39+O42 -> 3.791971184 | P36: =SUM(P39:P44) -> 3.831055169 | Q36: =Q39+Q42 -> 3.791971184 | R36: =SUM(R39:R44) -> 3.831055169 | S36: =S39+S42 -> 3.791971184 | T36: =SUM(T39:T44) -> 3.831055169 | U36: =U39+U42 -> 3.791971184 | V36: =SUM(V39:V44) -> 3.831055169 | W36: =W39+W42 -> 3.791971184 | X36: =SUM(X39:X44) -> 3.831055169 | Y36: =Y39+Y42 -> 3.791971184 | Z36: =SUM(Z39:Z44) -> 3.831055169 | AA36: =AA39+AA42 -> 3.791971184 | AB36: =SUM(AB39:AB44) -> 3.831055169 | AC36: =AC39+AC42 -> 3.791971184
E37: =E40+E43 -> 0.001656458044 | G37: 0.0001380381704 | I37: 0.0001380381704 | K37: 0.0001380381704 | M37: 0.0001380381704 | O37: 0.0001380381704 | Q37: 0.0001380381704 | S37: 0.0001380381704 | U37: 0.0001380381704 | W37: 0.0001380381704 | Y37: 0.0001380381704 | AA37: 0.0001380381704 | AC37: 0.0001380381704
E38: 0.001548690977 | G38: =G41+G44 -> 0.0001290575814 | I38: 0.0001290575814 | K38: 0.0001290575814 | M38: 0.0001290575814 | O38: 0.0001290575814 | Q38: 0.0001290575814 | S38: 0.0001290575814 | U38: 0.0001290575814 | W38: 0.0001290575814 | Y38: 0.0001290575814 | AA38: 0.0001290575814 | AC38: 0.0001290575814
C39: Πετρέλαιο Κίνησης (Επιβατικό) | D39: ='Υπολογισμός Αν. Απ.'!Q13 -> 32.97357633 | E39: ='Υπολογισμός Αν. Απ.'!N13 -> 32.61572663 | F39: =$D$39/12 -> 2.747798027 | G39: =$E$39/12 -> 2.717977219 | H39: =$D$39/12 -> 2.747798027 | I39: =$E$39/12 -> 2.717977219 | J39: =$D$39/12 -> 2.747798027 | K39: =$E$39/12 -> 2.717977219 | L39: =$D$39/12 -> 2.747798027 | M39: =$E$39/12 -> 2.717977219 | N39: =$D$39/12 -> 2.747798027 | O39: =$E$39/12 -> 2.717977219 | P39: =$D$39/12 -> 2.747798027 | Q39: =$E$39/12 -> 2.717977219 | R39: =$D$39/12 -> 2.747798027 | S39: =$E$39/12 -> 2.717977219 | T39: =$D$39/12 -> 2.747798027 | U39: =$E$39/12 -> 2.717977219 | V39: =$D$39/12 -> 2.747798027 | W39: =$E$39/12 -> 2.717977219 | X39: =$D$39/12 -> 2.747798027 | Y39: =$E$39/12 -> 2.717977219 | Z39: =$D$39/12 -> 2.747798027 | AA39: =$E$39/12 -> 2.717977219 | AB39: =$D$39/12 -> 2.747798027 | AC39: =$E$39/12 -> 2.717977219
E40: ='Υπολογισμός Αν. Απ.'!O13 -> 1.3361625e-05 | G40: =$E$40/12 -> 1.11346875e-06 | I40: =$E$40/12 -> 1.11346875e-06 | K40: =$E$40/12 -> 1.11346875e-06 | M40: =$E$40/12 -> 1.11346875e-06 | O40: =$E$40/12 -> 1.11346875e-06 | Q40: =$E$40/12 -> 1.11346875e-06 | S40: =$E$40/12 -> 1.11346875e-06 | U40: =$E$40/12 -> 1.11346875e-06 | W40: =$E$40/12 -> 1.11346875e-06 | Y40: =$E$40/12 -> 1.11346875e-06 | AA40: =$E$40/12 -> 1.11346875e-06 | AC40: =$E$40/12 -> 1.11346875e-06
E41: ='Υπολογισμός Αν. Απ.'!P13 -> 0.00130943925 | G41: =$E$41/12 -> 0.0001091199375 | I41: =$E$41/12 -> 0.0001091199375 | K41: =$E$41/12 -> 0.0001091199375 | M41: =$E$41/12 -> 0.0001091199375 | O41: =$E$41/12 -> 0.0001091199375 | Q41: =$E$41/12 -> 0.0001091199375 | S41: =$E$41/12 -> 0.0001091199375 | U41: =$E$41/12 -> 0.0001091199375 | W41: =$E$41/12 -> 0.0001091199375 | Y41: =$E$41/12 -> 0.0001091199375 | AA41: =$E$41/12 -> 0.0001091199375 | AC41: =$E$41/12 -> 0.0001091199375
C42: Βενζίνη (Επιβατικό) | D42: ='Υπολογισμός Αν. Απ.'!Q14 -> 12.9990857 | E42: ='Υπολογισμός Αν. Απ.'!N14 -> 12.88792759 | F42: =$D$42/12 -> 1.083257142 | G42: =$E$42/12 -> 1.073993966 | H42: =$D$42/12 -> 1.083257142 | I42: =$E$42/12 -> 1.073993966 | J42: =$D$42/12 -> 1.083257142 | K42: =$E$42/12 -> 1.073993966 | L42: =$D$42/12 -> 1.083257142 | M42: =$E$42/12 -> 1.073993966 | N42: =$D$42/12 -> 1.083257142 | O42: =$E$42/12 -> 1.073993966 | P42: =$D$42/12 -> 1.083257142 | Q42: =$E$42/12 -> 1.073993966 | R42: =$D$42/12 -> 1.083257142 | S42: =$E$42/12 -> 1.073993966 | T42: =$D$42/12 -> 1.083257142 | U42: =$E$42/12 -> 1.073993966 | V42: =$D$42/12 -> 1.083257142 | W42: =$E$42/12 -> 1.073993966 | X42: =$D$42/12 -> 1.083257142 | Y42: =$E$42/12 -> 1.073993966 | Z42: =$D$42/12 -> 1.083257142 | AA42: =$E$42/12 -> 1.073993966 | AB42: =$D$42/12 -> 1.083257142 | AC42: =$E$42/12 -> 1.073993966
E43: ='Υπολογισμός Αν. Απ.'!O14 -> 0.001643096419 | G43: =$E$43/12 -> 0.0001369247016 | I43: =$E$43/12 -> 0.0001369247016 | K43: =$E$43/12 -> 0.0001369247016 | M43: =$E$43/12 -> 0.0001369247016 | O43: =$E$43/12 -> 0.0001369247016 | Q43: =$E$43/12 -> 0.0001369247016 | S43: =$E$43/12 -> 0.0001369247016 | U43: =$E$43/12 -> 0.0001369247016 | W43: =$E$43/12 -> 0.0001369247016 | Y43: =$E$43/12 -> 0.0001369247016 | AA43: =$E$43/12 -> 0.0001369247016 | AC43: =$E$43/12 -> 0.0001369247016
E44: ='Υπολογισμός Αν. Απ.'!P14 -> 0.000239251727 | G44: =$E$44/12 -> 1.993764392e-05 | I44: =$E$44/12 -> 1.993764392e-05 | K44: =$E$44/12 -> 1.993764392e-05 | M44: =$E$44/12 -> 1.993764392e-05 | O44: =$E$44/12 -> 1.993764392e-05 | Q44: =$E$44/12 -> 1.993764392e-05 | S44: =$E$44/12 -> 1.993764392e-05 | U44: =$E$44/12 -> 1.993764392e-05 | W44: =$E$44/12 -> 1.993764392e-05 | Y44: =$E$44/12 -> 1.993764392e-05 | AA44: =$E$44/12 -> 1.993764392e-05 | AC44: =$E$44/12 -> 1.993764392e-05
C45: Ανεξέλεγκτες Εκπομπές Ανθρωπογενών Συστημάτων | D45: =SUM(D48:D65) -> 0 | E45: 0 | F45: =SUM(F48:F65) -> 0 | G45: 0 | H45: =SUM(H48:H65) -> 0 | I45: 0 | J45: =SUM(J48:J65) -> 0 | K45: 0 | L45: =SUM(L48:L65) -> 0 | M45: 0 | N45: =SUM(N48:N65) -> 0 | O45: 0 | P45: =SUM(P48:P65) -> 0 | Q45: 0 | R45: =SUM(R48:R65) -> 0 | S45: 0 | T45: =SUM(T48:T65) -> 0 | U45: 0 | V45: =SUM(V48:V65) -> 0 | W45: 0 | X45: =SUM(X48:X65) -> 0 | Y45: 0 | Z45: =SUM(Z48:Z65) -> 0 | AA45: 0 | AB45: =SUM(AB48:AB65) -> 0 | AC45: 0
E46: 0 | G46: 0 | I46: 0 | K46: 0 | M46: 0 | O46: 0 | Q46: 0 | S46: 0 | U46: 0 | W46: 0 | Y46: 0 | AA46: 0 | AC46: 0
E47: 0 | G47: 0 | I47: 0 | K47: 0 | M47: 0 | O47: 0 | Q47: 0 | S47: 0 | U47: 0 | W47: 0 | Y47: 0 | AA47: 0 | AC47: 0
C48: R-11 | D48: ='Υπολογισμός Αν. Απ.'!I18 -> 0 | E48: 0 | F48: =D48*'Γενικά Στοιχεία Οργανισμού'!$F$13/SUM('Γενικά Στοιχεία Οργανισμού'!$F$13:$F$24) -> 0 | G48: =E48*'Γενικά Στοιχεία Οργανισμού'!$F$13/SUM('Γενικά Στοιχεία Οργανισμού'!$F$13:$F$24) -> 0 | H48: =D48*'Γενικά Στοιχεία Οργανισμού'!$F$14/SUM('Γενικά Στοιχεία Οργανισμού'!$F$13:$F$24) -> 0 | I48: =E48*'Γενικά Στοιχεία Οργανισμού'!$F$14/SUM('Γενικά Στοιχεία Οργανισμού'!$F$13:$F$24) -> 0 | J48: =D48*'Γενικά Στοιχεία Οργανισμού'!$F$15/SUM('Γενικά Στοιχεία Οργανισμού'!$F$13:$F$24) -> 0 | K48: =E48*'Γενικά Στοιχεία Οργανισμού'!$F$15/SUM('Γενικά Στοιχεία Οργανισμού'!$F$13:$F$24) -> 0 | L48: =D48*'Γενικά Στοιχεία Οργανισμού'!$F$16/SUM('Γενικά Στοιχεία Οργανισμού'!$F$13:$F$24) -> 0 | M48: =E48*'Γενικά Στοιχεία Οργανισμού'!$F$16/SUM('Γενικά Στοιχεία Οργανισμού'!$F$13:$F$24) -> 0 | N48: =D48*'Γενικά Στοιχεία Οργανισμού'!$F$17/SUM('Γενικά Στοιχεία Οργανισμού'!$F$13:$F$24) -> 0 | O48: =E48*'Γενικά Στοιχεία Οργανισμού'!$F$17/SUM('Γενικά Στοιχεία Οργανισμού'!$F$13:$F$24) -> 0 | P48: =D48*'Γενικά Στοιχεία Οργανισμού'!$F$18/SUM('Γενικά Στοιχεία Οργανισμού'!$F$13:$F$24) -> 0 | Q48: =E48*'Γενικά Στοιχεία Οργανισμού'!$F$18/SUM('Γενικά Στοιχεία Οργανισμού'!$F$13:$F$24) -> 0 | R48: =D48*'Γενικά Στοιχεία Οργανισμού'!$F$19/SUM('Γενικά Στοιχεία Οργανισμού'!$F$13:$F$24) -> 0 | S48: =E48*'Γενικά Στοιχεία Οργανισμού'!$F$19/SUM('Γενικά Στοιχεία Οργανισμού'!$F$13:$F$24) -> 0 | T48: =D48*'Γενικά Στοιχεία Οργανισμού'!$F$20/SUM('Γενικά Στοιχεία Οργανισμού'!$F$13:$F$24) -> 0 | U48: =E48*'Γενικά Στοιχεία Οργανισμού'!$F$20/SUM('Γενικά Στοιχεία Οργανισμού'!$F$13:$F$24) -> 0 | V48: =D48*'Γενικά Στοιχεία Οργανισμού'!$F$21/SUM('Γενικά Στοιχεία Οργανισμού'!$F$13:$F$24) -> 0 | W48: =E48*'Γενικά Στοιχεία Οργανισμού'!$F$21/SUM('Γενικά Στοιχεία Οργανισμού'!$F$13:$F$24) -> 0 | X48: =D48*'Γενικά Στοιχεία Οργανισμού'!$F$22/SUM('Γενικά Στοιχεία Οργανισμού'!$F$13:$F$24) -> 0 | Y48: =E48*'Γενικά Στοιχεία Οργανισμού'!$F$22/SUM('Γενικά Στοιχεία Οργανισμού'!$F$13:$F$24) -> 0 | Z48: =D48*'Γενικά Στοιχεία Οργανισμού'!$F$23/SUM('Γενικά Στοιχεία Οργανισμού'!$F$13:$F$24) -> 0 | AA48: =E48*'Γενικά Στοιχεία Οργανισμού'!$F$23/SUM('Γενικά Στοιχεία Οργανισμού'!$F$13:$F$24) -> 0 | AB48: =D48*'Γενικά Στοιχεία Οργανισμού'!$F$24/SUM('Γενικά Στοιχεία Οργανισμού'!$F$13:$F$24) -> 0 | AC48: =E48*'Γενικά Στοιχεία Οργανισμού'!$F$24/SUM('Γενικά Στοιχεία Οργανισμού'!$F$13:$F$24) -> 0
E49: 0 | G49: =E49*'Γενικά Στοιχεία Οργανισμού'!$F$13/SUM('Γενικά Στοιχεία Οργανισμού'!$F$13:$F$24) -> 0 | I49: =E49*'Γενικά Στοιχεία Οργανισμού'!$F$14/SUM('Γενικά Στοιχεία Οργανισμού'!$F$13:$F$24) -> 0 | K49: =E49*'Γενικά Στοιχεία Οργανισμού'!$F$15/SUM('Γενικά Στοιχεία Οργανισμού'!$F$13:$F$24) -> 0 | M49: =E49*'Γενικά Στοιχεία Οργανισμού'!$F$16/SUM('Γενικά Στοιχεία Οργανισμού'!$F$13:$F$24) -> 0 | O49: =E49*'Γενικά Στοιχεία Οργανισμού'!$F$17/SUM('Γενικά Στοιχεία Οργανισμού'!$F$13:$F$24) -> 0 | Q49: =E49*'Γενικά Στοιχεία Οργανισμού'!$F$18/SUM('Γενικά Στοιχεία Οργανισμού'!$F$13:$F$24) -> 0 | S49: =E49*'Γενικά Στοιχεία Οργανισμού'!$F$19/SUM('Γενικά Στοιχεία Οργανισμού'!$F$13:$F$24) -> 0 | U49: =E49*'Γενικά Στοιχεία Οργανισμού'!$F$20/SUM('Γενικά Στοιχεία Οργανισμού'!$F$13:$F$24) -> 0 | W49: =E49*'Γενικά Στοιχεία Οργανισμού'!$F$21/SUM('Γενικά Στοιχεία Οργανισμού'!$F$13:$F$24) -> 0 | Y49: =E49*'Γενικά Στοιχεία Οργανισμού'!$F$22/SUM('Γενικά Στοιχεία Οργανισμού'!$F$13:$F$24) -> 0 | AA49: =E49*'Γενικά Στοιχεία Οργανισμού'!$F$23/SUM('Γενικά Στοιχεία Οργανισμού'!$F$13:$F$24) -> 0 | AC49: =E49*'Γενικά Στοιχεία Οργανισμού'!$F$24/SUM('Γενικά Στοιχεία Οργανισμού'!$F$13:$F$24) -> 0
E50: 0 | G50: =E50*'Γενικά Στοιχεία Οργανισμού'!$F$13/SUM('Γενικά Στοιχεία Οργανισμού'!$F$13:$F$24) -> 0 | I50: =E50*'Γενικά Στοιχεία Οργανισμού'!$F$14/SUM('Γενικά Στοιχεία Οργανισμού'!$F$13:$F$24) -> 0 | K50: =E50*'Γενικά Στοιχεία Οργανισμού'!$F$15/SUM('Γενικά Στοιχεία Οργανισμού'!$F$13:$F$24) -> 0 | M50: =E50*'Γενικά Στοιχεία Οργανισμού'!$F$16/SUM('Γενικά Στοιχεία Οργανισμού'!$F$13:$F$24) -> 0 | O50: =E50*'Γενικά Στοιχεία Οργανισμού'!$F$17/SUM('Γενικά Στοιχεία Οργανισμού'!$F$13:$F$24) -> 0 | Q50: =E50*'Γενικά Στοιχεία Οργανισμού'!$F$18/SUM('Γενικά Στοιχεία Οργανισμού'!$F$13:$F$24) -> 0 | S50: =E50*'Γενικά Στοιχεία Οργανισμού'!$F$19/SUM('Γενικά Στοιχεία Οργανισμού'!$F$13:$F$24) -> 0 | U50: =E50*'Γενικά Στοιχεία Οργανισμού'!$F$20/SUM('Γενικά Στοιχεία Οργανισμού'!$F$13:$F$24) -> 0 | W50: =E50*'Γενικά Στοιχεία Οργανισμού'!$F$21/SUM('Γενικά Στοιχεία Οργανισμού'!$F$13:$F$24) -> 0 | Y50: =E50*'Γενικά Στοιχεία Οργανισμού'!$F$22/SUM('Γενικά Στοιχεία Οργανισμού'!$F$13:$F$24) -> 0 | AA50: =E50*'Γενικά Στοιχεία Οργανισμού'!$F$23/SUM('Γενικά Στοιχεία Οργανισμού'!$F$13:$F$24) -> 0 | AC50: =E50*'Γενικά Στοιχεία Οργανισμού'!$F$24/SUM('Γενικά Στοιχεία Οργανισμού'!$F$13:$F$24) -> 0
C51: R-12 | D51: ='Υπολογισμός Αν. Απ.'!I19 -> 0 | E51: 0 | F51: =D51*'Γενικά Στοιχεία Οργανισμού'!$F$13/SUM('Γενικά Στοιχεία Οργανισμού'!$F$13:$F$24) -> 0 | G51: =E51*'Γενικά Στοιχεία Οργανισμού'!$F$13/SUM('Γενικά Στοιχεία Οργανισμού'!$F$13:$F$24) -> 0 | H51: =D51*'Γενικά Στοιχεία Οργανισμού'!$F$14/SUM('Γενικά Στοιχεία Οργανισμού'!$F$13:$F$24) -> 0 | I51: =E51*'Γενικά Στοιχεία Οργανισμού'!$F$14/SUM('Γενικά Στοιχεία Οργανισμού'!$F$13:$F$24) -> 0 | J51: =D51*'Γενικά Στοιχεία Οργανισμού'!$F$15/SUM('Γενικά Στοιχεία Οργανισμού'!$F$13:$F$24) -> 0 | K51: =E51*'Γενικά Στοιχεία Οργανισμού'!$F$15/SUM('Γενικά Στοιχεία Οργανισμού'!$F$13:$F$24) -> 0 | L51: =D51*'Γενικά Στοιχεία Οργανισμού'!$F$16/SUM('Γενικά Στοιχεία Οργανισμού'!$F$13:$F$24) -> 0 | M51: =E51*'Γενικά Στοιχεία Οργανισμού'!$F$16/SUM('Γενικά Στοιχεία Οργανισμού'!$F$13:$F$24) -> 0 | N51: =D51*'Γενικά Στοιχεία Οργανισμού'!$F$17/SUM('Γενικά Στοιχεία Οργανισμού'!$F$13:$F$24) -> 0 | O51: =E51*'Γενικά Στοιχεία Οργανισμού'!$F$17/SUM('Γενικά Στοιχεία Οργανισμού'!$F$13:$F$24) -> 0 | P51: =D51*'Γενικά Στοιχεία Οργανισμού'!$F$18/SUM('Γενικά Στοιχεία Οργανισμού'!$F$13:$F$24) -> 0 | Q51: =E51*'Γενικά Στοιχεία Οργανισμού'!$F$18/SUM('Γενικά Στοιχεία Οργανισμού'!$F$13:$F$24) -> 0 | R51: =D51*'Γενικά Στοιχεία Οργανισμού'!$F$19/SUM('Γενικά Στοιχεία Οργανισμού'!$F$13:$F$24) -> 0 | S51: =E51*'Γενικά Στοιχεία Οργανισμού'!$F$19/SUM('Γενικά Στοιχεία Οργανισμού'!$F$13:$F$24) -> 0 | T51: =D51*'Γενικά Στοιχεία Οργανισμού'!$F$20/SUM('Γενικά Στοιχεία Οργανισμού'!$F$13:$F$24) -> 0 | U51: =E51*'Γενικά Στοιχεία Οργανισμού'!$F$20/SUM('Γενικά Στοιχεία Οργανισμού'!$F$13:$F$24) -> 0 | V51: =D51*'Γενικά Στοιχεία Οργανισμού'!$F$21/SUM('Γενικά Στοιχεία Οργανισμού'!$F$13:$F$24) -> 0 | W51: =E51*'Γενικά Στοιχεία Οργανισμού'!$F$21/SUM('Γενικά Στοιχεία Οργανισμού'!$F$13:$F$24) -> 0 | X51: =D51*'Γενικά Στοιχεία Οργανισμού'!$F$22/SUM('Γενικά Στοιχεία Οργανισμού'!$F$13:$F$24) -> 0 | Y51: =E51*'Γενικά Στοιχεία Οργανισμού'!$F$22/SUM('Γενικά Στοιχεία Οργανισμού'!$F$13:$F$24) -> 0 | Z51: =D51*'Γενικά Στοιχεία Οργανισμού'!$F$23/SUM('Γενικά Στοιχεία Οργανισμού'!$F$13:$F$24) -> 0 | AA51: =E51*'Γενικά Στοιχεία Οργανισμού'!$F$23/SUM('Γενικά Στοιχεία Οργανισμού'!$F$13:$F$24) -> 0 | AB51: =D51*'Γενικά Στοιχεία Οργανισμού'!$F$24/SUM('Γενικά Στοιχεία Οργανισμού'!$F$13:$F$24) -> 0 | AC51: =E51*'Γενικά Στοιχεία Οργανισμού'!$F$24/SUM('Γενικά Στοιχεία Οργανισμού'!$F$13:$F$24) -> 0
E52: 0 | G52: =E52*'Γενικά Στοιχεία Οργανισμού'!$F$13/SUM('Γενικά Στοιχεία Οργανισμού'!$F$13:$F$24) -> 0 | I52: =E52*'Γενικά Στοιχεία Οργανισμού'!$F$14/SUM('Γενικά Στοιχεία Οργανισμού'!$F$13:$F$24) -> 0 | K52: =E52*'Γενικά Στοιχεία Οργανισμού'!$F$15/SUM('Γενικά Στοιχεία Οργανισμού'!$F$13:$F$24) -> 0 | M52: =E52*'Γενικά Στοιχεία Οργανισμού'!$F$16/SUM('Γενικά Στοιχεία Οργανισμού'!$F$13:$F$24) -> 0 | O52: =E52*'Γενικά Στοιχεία Οργανισμού'!$F$17/SUM('Γενικά Στοιχεία Οργανισμού'!$F$13:$F$24) -> 0 | Q52: =E52*'Γενικά Στοιχεία Οργανισμού'!$F$18/SUM('Γενικά Στοιχεία Οργανισμού'!$F$13:$F$24) -> 0 | S52: =E52*'Γενικά Στοιχεία Οργανισμού'!$F$19/SUM('Γενικά Στοιχεία Οργανισμού'!$F$13:$F$24) -> 0 | U52: =E52*'Γενικά Στοιχεία Οργανισμού'!$F$20/SUM('Γενικά Στοιχεία Οργανισμού'!$F$13:$F$24) -> 0 | W52: =E52*'Γενικά Στοιχεία Οργανισμού'!$F$21/SUM('Γενικά Στοιχεία Οργανισμού'!$F$13:$F$24) -> 0 | Y52: =E52*'Γενικά Στοιχεία Οργανισμού'!$F$22/SUM('Γενικά Στοιχεία Οργανισμού'!$F$13:$F$24) -> 0 | AA52: =E52*'Γενικά Στοιχεία Οργανισμού'!$F$23/SUM('Γενικά Στοιχεία Οργανισμού'!$F$13:$F$24) -> 0 | AC52: =E52*'Γενικά Στοιχεία Οργανισμού'!$F$24/SUM('Γενικά Στοιχεία Οργανισμού'!$F$13:$F$24) -> 0
E53: 0 | G53: =E53*'Γενικά Στοιχεία Οργανισμού'!$F$13/SUM('Γενικά Στοιχεία Οργανισμού'!$F$13:$F$24) -> 0 | I53: =E53*'Γενικά Στοιχεία Οργανισμού'!$F$14/SUM('Γενικά Στοιχεία Οργανισμού'!$F$13:$F$24) -> 0 | K53: =E53*'Γενικά Στοιχεία Οργανισμού'!$F$15/SUM('Γενικά Στοιχεία Οργανισμού'!$F$13:$F$24) -> 0 | M53: =E53*'Γενικά Στοιχεία Οργανισμού'!$F$16/SUM('Γενικά Στοιχεία Οργανισμού'!$F$13:$F$24) -> 0 | O53: =E53*'Γενικά Στοιχεία Οργανισμού'!$F$17/SUM('Γενικά Στοιχεία Οργανισμού'!$F$13:$F$24) -> 0 | Q53: =E53*'Γενικά Στοιχεία Οργανισμού'!$F$18/SUM('Γενικά Στοιχεία Οργανισμού'!$F$13:$F$24) -> 0 | S53: =E53*'Γενικά Στοιχεία Οργανισμού'!$F$19/SUM('Γενικά Στοιχεία Οργανισμού'!$F$13:$F$24) -> 0 | U53: =E53*'Γενικά Στοιχεία Οργανισμού'!$F$20/SUM('Γενικά Στοιχεία Οργανισμού'!$F$13:$F$24) -> 0 | W53: =E53*'Γενικά Στοιχεία Οργανισμού'!$F$21/SUM('Γενικά Στοιχεία Οργανισμού'!$F$13:$F$24) -> 0 | Y53: =E53*'Γενικά Στοιχεία Οργανισμού'!$F$22/SUM('Γενικά Στοιχεία Οργανισμού'!$F$13:$F$24) -> 0 | AA53: =E53*'Γενικά Στοιχεία Οργανισμού'!$F$23/SUM('Γενικά Στοιχεία Οργανισμού'!$F$13:$F$24) -> 0 | AC53: =E53*'Γενικά Στοιχεία Οργανισμού'!$F$24/SUM('Γενικά Στοιχεία Οργανισμού'!$F$13:$F$24) -> 0
C54: R-134a | D54: ='Υπολογισμός Αν. Απ.'!I20 -> 0 | E54: 0 | F54: =D54*'Γενικά Στοιχεία Οργανισμού'!$F$13/SUM('Γενικά Στοιχεία Οργανισμού'!$F$13:$F$24) -> 0 | G54: =E54*'Γενικά Στοιχεία Οργανισμού'!$F$13/SUM('Γενικά Στοιχεία Οργανισμού'!$F$13:$F$24) -> 0 | H54: =D54*'Γενικά Στοιχεία Οργανισμού'!$F$14/SUM('Γενικά Στοιχεία Οργανισμού'!$F$13:$F$24) -> 0 | I54: =E54*'Γενικά Στοιχεία Οργανισμού'!$F$14/SUM('Γενικά Στοιχεία Οργανισμού'!$F$13:$F$24) -> 0 | J54: =D54*'Γενικά Στοιχεία Οργανισμού'!$F$15/SUM('Γενικά Στοιχεία Οργανισμού'!$F$13:$F$24) -> 0 | K54: =E54*'Γενικά Στοιχεία Οργανισμού'!$F$15/SUM('Γενικά Στοιχεία Οργανισμού'!$F$13:$F$24) -> 0 | L54: =D54*'Γενικά Στοιχεία Οργανισμού'!$F$16/SUM('Γενικά Στοιχεία Οργανισμού'!$F$13:$F$24) -> 0 | M54: =E54*'Γενικά Στοιχεία Οργανισμού'!$F$16/SUM('Γενικά Στοιχεία Οργανισμού'!$F$13:$F$24) -> 0 | N54: =D54*'Γενικά Στοιχεία Οργανισμού'!$F$17/SUM('Γενικά Στοιχεία Οργανισμού'!$F$13:$F$24) -> 0 | O54: =E54*'Γενικά Στοιχεία Οργανισμού'!$F$17/SUM('Γενικά Στοιχεία Οργανισμού'!$F$13:$F$24) -> 0 | P54: =D54*'Γενικά Στοιχεία Οργανισμού'!$F$18/SUM('Γενικά Στοιχεία Οργανισμού'!$F$13:$F$24) -> 0 | Q54: =E54*'Γενικά Στοιχεία Οργανισμού'!$F$18/SUM('Γενικά Στοιχεία Οργανισμού'!$F$13:$F$24) -> 0 | R54: =D54*'Γενικά Στοιχεία Οργανισμού'!$F$19/SUM('Γενικά Στοιχεία Οργανισμού'!$F$13:$F$24) -> 0 | S54: =E54*'Γενικά Στοιχεία Οργανισμού'!$F$19/SUM('Γενικά Στοιχεία Οργανισμού'!$F$13:$F$24) -> 0 | T54: =D54*'Γενικά Στοιχεία Οργανισμού'!$F$20/SUM('Γενικά Στοιχεία Οργανισμού'!$F$13:$F$24) -> 0 | U54: =E54*'Γενικά Στοιχεία Οργανισμού'!$F$20/SUM('Γενικά Στοιχεία Οργανισμού'!$F$13:$F$24) -> 0 | V54: =D54*'Γενικά Στοιχεία Οργανισμού'!$F$21/SUM('Γενικά Στοιχεία Οργανισμού'!$F$13:$F$24) -> 0 | W54: =E54*'Γενικά Στοιχεία Οργανισμού'!$F$21/SUM('Γενικά Στοιχεία Οργανισμού'!$F$13:$F$24) -> 0 | X54: =D54*'Γενικά Στοιχεία Οργανισμού'!$F$22/SUM('Γενικά Στοιχεία Οργανισμού'!$F$13:$F$24) -> 0 | Y54: =E54*'Γενικά Στοιχεία Οργανισμού'!$F$22/SUM('Γενικά Στοιχεία Οργανισμού'!$F$13:$F$24) -> 0 | Z54: =D54*'Γενικά Στοιχεία Οργανισμού'!$F$23/SUM('Γενικά Στοιχεία Οργανισμού'!$F$13:$F$24) -> 0 | AA54: =E54*'Γενικά Στοιχεία Οργανισμού'!$F$23/SUM('Γενικά Στοιχεία Οργανισμού'!$F$13:$F$24) -> 0 | AB54: =D54*'Γενικά Στοιχεία Οργανισμού'!$F$24/SUM('Γενικά Στοιχεία Οργανισμού'!$F$13:$F$24) -> 0 | AC54: =E54*'Γενικά Στοιχεία Οργανισμού'!$F$24/SUM('Γενικά Στοιχεία Οργανισμού'!$F$13:$F$24) -> 0
E55: 0 | G55: =E55*'Γενικά Στοιχεία Οργανισμού'!$F$13/SUM('Γενικά Στοιχεία Οργανισμού'!$F$13:$F$24) -> 0 | I55: =E55*'Γενικά Στοιχεία Οργανισμού'!$F$14/SUM('Γενικά Στοιχεία Οργανισμού'!$F$13:$F$24) -> 0 | K55: =E55*'Γενικά Στοιχεία Οργανισμού'!$F$15/SUM('Γενικά Στοιχεία Οργανισμού'!$F$13:$F$24) -> 0 | M55: =E55*'Γενικά Στοιχεία Οργανισμού'!$F$16/SUM('Γενικά Στοιχεία Οργανισμού'!$F$13:$F$24) -> 0 | O55: =E55*'Γενικά Στοιχεία Οργανισμού'!$F$17/SUM('Γενικά Στοιχεία Οργανισμού'!$F$13:$F$24) -> 0 | Q55: =E55*'Γενικά Στοιχεία Οργανισμού'!$F$18/SUM('Γενικά Στοιχεία Οργανισμού'!$F$13:$F$24) -> 0 | S55: =E55*'Γενικά Στοιχεία Οργανισμού'!$F$19/SUM('Γενικά Στοιχεία Οργανισμού'!$F$13:$F$24) -> 0 | U55: =E55*'Γενικά Στοιχεία Οργανισμού'!$F$20/SUM('Γενικά Στοιχεία Οργανισμού'!$F$13:$F$24) -> 0 | W55: =E55*'Γενικά Στοιχεία Οργανισμού'!$F$21/SUM('Γενικά Στοιχεία Οργανισμού'!$F$13:$F$24) -> 0 | Y55: =E55*'Γενικά Στοιχεία Οργανισμού'!$F$22/SUM('Γενικά Στοιχεία Οργανισμού'!$F$13:$F$24) -> 0 | AA55: =E55*'Γενικά Στοιχεία Οργανισμού'!$F$23/SUM('Γενικά Στοιχεία Οργανισμού'!$F$13:$F$24) -> 0 | AC55: =E55*'Γενικά Στοιχεία Οργανισμού'!$F$24/SUM('Γενικά Στοιχεία Οργανισμού'!$F$13:$F$24) -> 0
E56: 0 | G56: =E56*'Γενικά Στοιχεία Οργανισμού'!$F$13/SUM('Γενικά Στοιχεία Οργανισμού'!$F$13:$F$24) -> 0 | I56: =E56*'Γενικά Στοιχεία Οργανισμού'!$F$14/SUM('Γενικά Στοιχεία Οργανισμού'!$F$13:$F$24) -> 0 | K56: =E56*'Γενικά Στοιχεία Οργανισμού'!$F$15/SUM('Γενικά Στοιχεία Οργανισμού'!$F$13:$F$24) -> 0 | M56: =E56*'Γενικά Στοιχεία Οργανισμού'!$F$16/SUM('Γενικά Στοιχεία Οργανισμού'!$F$13:$F$24) -> 0 | O56: =E56*'Γενικά Στοιχεία Οργανισμού'!$F$17/SUM('Γενικά Στοιχεία Οργανισμού'!$F$13:$F$24) -> 0 | Q56: =E56*'Γενικά Στοιχεία Οργανισμού'!$F$18/SUM('Γενικά Στοιχεία Οργανισμού'!$F$13:$F$24) -> 0 | S56: =E56*'Γενικά Στοιχεία Οργανισμού'!$F$19/SUM('Γενικά Στοιχεία Οργανισμού'!$F$13:$F$24) -> 0 | U56: =E56*'Γενικά Στοιχεία Οργανισμού'!$F$20/SUM('Γενικά Στοιχεία Οργανισμού'!$F$13:$F$24) -> 0 | W56: =E56*'Γενικά Στοιχεία Οργανισμού'!$F$21/SUM('Γενικά Στοιχεία Οργανισμού'!$F$13:$F$24) -> 0 | Y56: =E56*'Γενικά Στοιχεία Οργανισμού'!$F$22/SUM('Γενικά Στοιχεία Οργανισμού'!$F$13:$F$24) -> 0 | AA56: =E56*'Γενικά Στοιχεία Οργανισμού'!$F$23/SUM('Γενικά Στοιχεία Οργανισμού'!$F$13:$F$24) -> 0 | AC56: =E56*'Γενικά Στοιχεία Οργανισμού'!$F$24/SUM('Γενικά Στοιχεία Οργανισμού'!$F$13:$F$24) -> 0
C57: R-290 | D57: ='Υπολογισμός Αν. Απ.'!I21 -> 0 | E57: 0 | F57: =D57*'Γενικά Στοιχεία Οργανισμού'!$F$13/SUM('Γενικά Στοιχεία Οργανισμού'!$F$13:$F$24) -> 0 | G57: =E57*'Γενικά Στοιχεία Οργανισμού'!$F$13/SUM('Γενικά Στοιχεία Οργανισμού'!$F$13:$F$24) -> 0 | H57: =D57*'Γενικά Στοιχεία Οργανισμού'!$F$14/SUM('Γενικά Στοιχεία Οργανισμού'!$F$13:$F$24) -> 0 | I57: =E57*'Γενικά Στοιχεία Οργανισμού'!$F$14/SUM('Γενικά Στοιχεία Οργανισμού'!$F$13:$F$24) -> 0 | J57: =D57*'Γενικά Στοιχεία Οργανισμού'!$F$15/SUM('Γενικά Στοιχεία Οργανισμού'!$F$13:$F$24) -> 0 | K57: =E57*'Γενικά Στοιχεία Οργανισμού'!$F$15/SUM('Γενικά Στοιχεία Οργανισμού'!$F$13:$F$24) -> 0 | L57: =D57*'Γενικά Στοιχεία Οργανισμού'!$F$16/SUM('Γενικά Στοιχεία Οργανισμού'!$F$13:$F$24) -> 0 | M57: =E57*'Γενικά Στοιχεία Οργανισμού'!$F$16/SUM('Γενικά Στοιχεία Οργανισμού'!$F$13:$F$24) -> 0 | N57: =D57*'Γενικά Στοιχεία Οργανισμού'!$F$17/SUM('Γενικά Στοιχεία Οργανισμού'!$F$13:$F$24) -> 0 | O57: =E57*'Γενικά Στοιχεία Οργανισμού'!$F$17/SUM('Γενικά Στοιχεία Οργανισμού'!$F$13:$F$24) -> 0 | P57: =D57*'Γενικά Στοιχεία Οργανισμού'!$F$18/SUM('Γενικά Στοιχεία Οργανισμού'!$F$13:$F$24) -> 0 | Q57: =E57*'Γενικά Στοιχεία Οργανισμού'!$F$18/SUM('Γενικά Στοιχεία Οργανισμού'!$F$13:$F$24) -> 0 | R57: =D57*'Γενικά Στοιχεία Οργανισμού'!$F$19/SUM('Γενικά Στοιχεία Οργανισμού'!$F$13:$F$24) -> 0 | S57: =E57*'Γενικά Στοιχεία Οργανισμού'!$F$19/SUM('Γενικά Στοιχεία Οργανισμού'!$F$13:$F$24) -> 0 | T57: =D57*'Γενικά Στοιχεία Οργανισμού'!$F$20/SUM('Γενικά Στοιχεία Οργανισμού'!$F$13:$F$24) -> 0 | U57: =E57*'Γενικά Στοιχεία Οργανισμού'!$F$20/SUM('Γενικά Στοιχεία Οργανισμού'!$F$13:$F$24) -> 0 | V57: =D57*'Γενικά Στοιχεία Οργανισμού'!$F$21/SUM('Γενικά Στοιχεία Οργανισμού'!$F$13:$F$24) -> 0 | W57: =E57*'Γενικά Στοιχεία Οργανισμού'!$F$21/SUM('Γενικά Στοιχεία Οργανισμού'!$F$13:$F$24) -> 0 | X57: =D57*'Γενικά Στοιχεία Οργανισμού'!$F$22/SUM('Γενικά Στοιχεία Οργανισμού'!$F$13:$F$24) -> 0 | Y57: =E57*'Γενικά Στοιχεία Οργανισμού'!$F$22/SUM('Γενικά Στοιχεία Οργανισμού'!$F$13:$F$24) -> 0 | Z57: =D57*'Γενικά Στοιχεία Οργανισμού'!$F$23/SUM('Γενικά Στοιχεία Οργανισμού'!$F$13:$F$24) -> 0 | AA57: =E57*'Γενικά Στοιχεία Οργανισμού'!$F$23/SUM('Γενικά Στοιχεία Οργανισμού'!$F$13:$F$24) -> 0 | AB57: =D57*'Γενικά Στοιχεία Οργανισμού'!$F$24/SUM('Γενικά Στοιχεία Οργανισμού'!$F$13:$F$24) -> 0 | AC57: =E57*'Γενικά Στοιχεία Οργανισμού'!$F$24/SUM('Γενικά Στοιχεία Οργανισμού'!$F$13:$F$24) -> 0
E58: 0 | G58: =E58*'Γενικά Στοιχεία Οργανισμού'!$F$13/SUM('Γενικά Στοιχεία Οργανισμού'!$F$13:$F$24) -> 0 | I58: =E58*'Γενικά Στοιχεία Οργανισμού'!$F$14/SUM('Γενικά Στοιχεία Οργανισμού'!$F$13:$F$24) -> 0 | K58: =E58*'Γενικά Στοιχεία Οργανισμού'!$F$15/SUM('Γενικά Στοιχεία Οργανισμού'!$F$13:$F$24) -> 0 | M58: =E58*'Γενικά Στοιχεία Οργανισμού'!$F$16/SUM('Γενικά Στοιχεία Οργανισμού'!$F$13:$F$24) -> 0 | O58: =E58*'Γενικά Στοιχεία Οργανισμού'!$F$17/SUM('Γενικά Στοιχεία Οργανισμού'!$F$13:$F$24) -> 0 | Q58: =E58*'Γενικά Στοιχεία Οργανισμού'!$F$18/SUM('Γενικά Στοιχεία Οργανισμού'!$F$13:$F$24) -> 0 | S58: =E58*'Γενικά Στοιχεία Οργανισμού'!$F$19/SUM('Γενικά Στοιχεία Οργανισμού'!$F$13:$F$24) -> 0 | U58: =E58*'Γενικά Στοιχεία Οργανισμού'!$F$20/SUM('Γενικά Στοιχεία Οργανισμού'!$F$13:$F$24) -> 0 | W58: =E58*'Γενικά Στοιχεία Οργανισμού'!$F$21/SUM('Γενικά Στοιχεία Οργανισμού'!$F$13:$F$24) -> 0 | Y58: =E58*'Γενικά Στοιχεία Οργανισμού'!$F$22/SUM('Γενικά Στοιχεία Οργανισμού'!$F$13:$F$24) -> 0 | AA58: =E58*'Γενικά Στοιχεία Οργανισμού'!$F$23/SUM('Γενικά Στοιχεία Οργανισμού'!$F$13:$F$24) -> 0 | AC58: =E58*'Γενικά Στοιχεία Οργανισμού'!$F$24/SUM('Γενικά Στοιχεία Οργανισμού'!$F$13:$F$24) -> 0
E59: 0 | G59: =E59*'Γενικά Στοιχεία Οργανισμού'!$F$13/SUM('Γενικά Στοιχεία Οργανισμού'!$F$13:$F$24) -> 0 | I59: =E59*'Γενικά Στοιχεία Οργανισμού'!$F$14/SUM('Γενικά Στοιχεία Οργανισμού'!$F$13:$F$24) -> 0 | K59: =E59*'Γενικά Στοιχεία Οργανισμού'!$F$15/SUM('Γενικά Στοιχεία Οργανισμού'!$F$13:$F$24) -> 0 | M59: =E59*'Γενικά Στοιχεία Οργανισμού'!$F$16/SUM('Γενικά Στοιχεία Οργανισμού'!$F$13:$F$24) -> 0 | O59: =E59*'Γενικά Στοιχεία Οργανισμού'!$F$17/SUM('Γενικά Στοιχεία Οργανισμού'!$F$13:$F$24) -> 0 | Q59: =E59*'Γενικά Στοιχεία Οργανισμού'!$F$18/SUM('Γενικά Στοιχεία Οργανισμού'!$F$13:$F$24) -> 0 | S59: =E59*'Γενικά Στοιχεία Οργανισμού'!$F$19/SUM('Γενικά Στοιχεία Οργανισμού'!$F$13:$F$24) -> 0 | U59: =E59*'Γενικά Στοιχεία Οργανισμού'!$F$20/SUM('Γενικά Στοιχεία Οργανισμού'!$F$13:$F$24) -> 0 | W59: =E59*'Γενικά Στοιχεία Οργανισμού'!$F$21/SUM('Γενικά Στοιχεία Οργανισμού'!$F$13:$F$24) -> 0 | Y59: =E59*'Γενικά Στοιχεία Οργανισμού'!$F$22/SUM('Γενικά Στοιχεία Οργανισμού'!$F$13:$F$24) -> 0 | AA59: =E59*'Γενικά Στοιχεία Οργανισμού'!$F$23/SUM('Γενικά Στοιχεία Οργανισμού'!$F$13:$F$24) -> 0 | AC59: =E59*'Γενικά Στοιχεία Οργανισμού'!$F$24/SUM('Γενικά Στοιχεία Οργανισμού'!$F$13:$F$24) -> 0
C60: R-404a | D60: ='Υπολογισμός Αν. Απ.'!I22 -> 0 | E60: 0 | F60: =D60*'Γενικά Στοιχεία Οργανισμού'!$F$13/SUM('Γενικά Στοιχεία Οργανισμού'!$F$13:$F$24) -> 0 | G60: =E60*'Γενικά Στοιχεία Οργανισμού'!$F$13/SUM('Γενικά Στοιχεία Οργανισμού'!$F$13:$F$24) -> 0 | H60: =D60*'Γενικά Στοιχεία Οργανισμού'!$F$14/SUM('Γενικά Στοιχεία Οργανισμού'!$F$13:$F$24) -> 0 | I60: =E60*'Γενικά Στοιχεία Οργανισμού'!$F$14/SUM('Γενικά Στοιχεία Οργανισμού'!$F$13:$F$24) -> 0 | J60: =D60*'Γενικά Στοιχεία Οργανισμού'!$F$15/SUM('Γενικά Στοιχεία Οργανισμού'!$F$13:$F$24) -> 0 | K60: =E60*'Γενικά Στοιχεία Οργανισμού'!$F$15/SUM('Γενικά Στοιχεία Οργανισμού'!$F$13:$F$24) -> 0 | L60: =D60*'Γενικά Στοιχεία Οργανισμού'!$F$16/SUM('Γενικά Στοιχεία Οργανισμού'!$F$13:$F$24) -> 0 | M60: =E60*'Γενικά Στοιχεία Οργανισμού'!$F$16/SUM('Γενικά Στοιχεία Οργανισμού'!$F$13:$F$24) -> 0 | N60: =D60*'Γενικά Στοιχεία Οργανισμού'!$F$17/SUM('Γενικά Στοιχεία Οργανισμού'!$F$13:$F$24) -> 0 | O60: =E60*'Γενικά Στοιχεία Οργανισμού'!$F$17/SUM('Γενικά Στοιχεία Οργανισμού'!$F$13:$F$24) -> 0 | P60: =D60*'Γενικά Στοιχεία Οργανισμού'!$F$18/SUM('Γενικά Στοιχεία Οργανισμού'!$F$13:$F$24) -> 0 | Q60: =E60*'Γενικά Στοιχεία Οργανισμού'!$F$18/SUM('Γενικά Στοιχεία Οργανισμού'!$F$13:$F$24) -> 0 | R60: =D60*'Γενικά Στοιχεία Οργανισμού'!$F$19/SUM('Γενικά Στοιχεία Οργανισμού'!$F$13:$F$24) -> 0 | S60: =E60*'Γενικά Στοιχεία Οργανισμού'!$F$19/SUM('Γενικά Στοιχεία Οργανισμού'!$F$13:$F$24) -> 0 | T60: =D60*'Γενικά Στοιχεία Οργανισμού'!$F$20/SUM('Γενικά Στοιχεία Οργανισμού'!$F$13:$F$24) -> 0 | U60: =E60*'Γενικά Στοιχεία Οργανισμού'!$F$20/SUM('Γενικά Στοιχεία Οργανισμού'!$F$13:$F$24) -> 0 | V60: =D60*'Γενικά Στοιχεία Οργανισμού'!$F$21/SUM('Γενικά Στοιχεία Οργανισμού'!$F$13:$F$24) -> 0 | W60: =E60*'Γενικά Στοιχεία Οργανισμού'!$F$21/SUM('Γενικά Στοιχεία Οργανισμού'!$F$13:$F$24) -> 0 | X60: =D60*'Γενικά Στοιχεία Οργανισμού'!$F$22/SUM('Γενικά Στοιχεία Οργανισμού'!$F$13:$F$24) -> 0 | Y60: =E60*'Γενικά Στοιχεία Οργανισμού'!$F$22/SUM('Γενικά Στοιχεία Οργανισμού'!$F$13:$F$24) -> 0 | Z60: =D60*'Γενικά Στοιχεία Οργανισμού'!$F$23/SUM('Γενικά Στοιχεία Οργανισμού'!$F$13:$F$24) -> 0 | AA60: =E60*'Γενικά Στοιχεία Οργανισμού'!$F$23/SUM('Γενικά Στοιχεία Οργανισμού'!$F$13:$F$24) -> 0 | AB60: =D60*'Γενικά Στοιχεία Οργανισμού'!$F$24/SUM('Γενικά Στοιχεία Οργανισμού'!$F$13:$F$24) -> 0 | AC60: =E60*'Γενικά Στοιχεία Οργανισμού'!$F$24/SUM('Γενικά Στοιχεία Οργανισμού'!$F$13:$F$24) -> 0
E61: 0 | G61: =E61*'Γενικά Στοιχεία Οργανισμού'!$F$13/SUM('Γενικά Στοιχεία Οργανισμού'!$F$13:$F$24) -> 0 | I61: =E61*'Γενικά Στοιχεία Οργανισμού'!$F$14/SUM('Γενικά Στοιχεία Οργανισμού'!$F$13:$F$24) -> 0 | K61: =E61*'Γενικά Στοιχεία Οργανισμού'!$F$15/SUM('Γενικά Στοιχεία Οργανισμού'!$F$13:$F$24) -> 0 | M61: =E61*'Γενικά Στοιχεία Οργανισμού'!$F$16/SUM('Γενικά Στοιχεία Οργανισμού'!$F$13:$F$24) -> 0 | O61: =E61*'Γενικά Στοιχεία Οργανισμού'!$F$17/SUM('Γενικά Στοιχεία Οργανισμού'!$F$13:$F$24) -> 0 | Q61: =E61*'Γενικά Στοιχεία Οργανισμού'!$F$18/SUM('Γενικά Στοιχεία Οργανισμού'!$F$13:$F$24) -> 0 | S61: =E61*'Γενικά Στοιχεία Οργανισμού'!$F$19/SUM('Γενικά Στοιχεία Οργανισμού'!$F$13:$F$24) -> 0 | U61: =E61*'Γενικά Στοιχεία Οργανισμού'!$F$20/SUM('Γενικά Στοιχεία Οργανισμού'!$F$13:$F$24) -> 0 | W61: =E61*'Γενικά Στοιχεία Οργανισμού'!$F$21/SUM('Γενικά Στοιχεία Οργανισμού'!$F$13:$F$24) -> 0 | Y61: =E61*'Γενικά Στοιχεία Οργανισμού'!$F$22/SUM('Γενικά Στοιχεία Οργανισμού'!$F$13:$F$24) -> 0 | AA61: =E61*'Γενικά Στοιχεία Οργανισμού'!$F$23/SUM('Γενικά Στοιχεία Οργανισμού'!$F$13:$F$24) -> 0 | AC61: =E61*'Γενικά Στοιχεία Οργανισμού'!$F$24/SUM('Γενικά Στοιχεία Οργανισμού'!$F$13:$F$24) -> 0
E62: 0 | G62: =E62*'Γενικά Στοιχεία Οργανισμού'!$F$13/SUM('Γενικά Στοιχεία Οργανισμού'!$F$13:$F$24) -> 0 | I62: =E62*'Γενικά Στοιχεία Οργανισμού'!$F$14/SUM('Γενικά Στοιχεία Οργανισμού'!$F$13:$F$24) -> 0 | K62: =E62*'Γενικά Στοιχεία Οργανισμού'!$F$15/SUM('Γενικά Στοιχεία Οργανισμού'!$F$13:$F$24) -> 0 | M62: =E62*'Γενικά Στοιχεία Οργανισμού'!$F$16/SUM('Γενικά Στοιχεία Οργανισμού'!$F$13:$F$24) -> 0 | O62: =E62*'Γενικά Στοιχεία Οργανισμού'!$F$17/SUM('Γενικά Στοιχεία Οργανισμού'!$F$13:$F$24) -> 0 | Q62: =E62*'Γενικά Στοιχεία Οργανισμού'!$F$18/SUM('Γενικά Στοιχεία Οργανισμού'!$F$13:$F$24) -> 0 | S62: =E62*'Γενικά Στοιχεία Οργανισμού'!$F$19/SUM('Γενικά Στοιχεία Οργανισμού'!$F$13:$F$24) -> 0 | U62: =E62*'Γενικά Στοιχεία Οργανισμού'!$F$20/SUM('Γενικά Στοιχεία Οργανισμού'!$F$13:$F$24) -> 0 | W62: =E62*'Γενικά Στοιχεία Οργανισμού'!$F$21/SUM('Γενικά Στοιχεία Οργανισμού'!$F$13:$F$24) -> 0 | Y62: =E62*'Γενικά Στοιχεία Οργανισμού'!$F$22/SUM('Γενικά Στοιχεία Οργανισμού'!$F$13:$F$24) -> 0 | AA62: =E62*'Γενικά Στοιχεία Οργανισμού'!$F$23/SUM('Γενικά Στοιχεία Οργανισμού'!$F$13:$F$24) -> 0 | AC62: =E62*'Γενικά Στοιχεία Οργανισμού'!$F$24/SUM('Γενικά Στοιχεία Οργανισμού'!$F$13:$F$24) -> 0
C63: R-410a | D63: ='Υπολογισμός Αν. Απ.'!I23 -> 0 | E63: 0 | F63: =D63*'Γενικά Στοιχεία Οργανισμού'!$F$13/SUM('Γενικά Στοιχεία Οργανισμού'!$F$13:$F$24) -> 0 | G63: =E63*'Γενικά Στοιχεία Οργανισμού'!$F$13/SUM('Γενικά Στοιχεία Οργανισμού'!$F$13:$F$24) -> 0 | H63: =D63*'Γενικά Στοιχεία Οργανισμού'!$F$14/SUM('Γενικά Στοιχεία Οργανισμού'!$F$13:$F$24) -> 0 | I63: =E63*'Γενικά Στοιχεία Οργανισμού'!$F$14/SUM('Γενικά Στοιχεία Οργανισμού'!$F$13:$F$24) -> 0 | J63: =D63*'Γενικά Στοιχεία Οργανισμού'!$F$15/SUM('Γενικά Στοιχεία Οργανισμού'!$F$13:$F$24) -> 0 | K63: =E63*'Γενικά Στοιχεία Οργανισμού'!$F$15/SUM('Γενικά Στοιχεία Οργανισμού'!$F$13:$F$24) -> 0 | L63: =D63*'Γενικά Στοιχεία Οργανισμού'!$F$16/SUM('Γενικά Στοιχεία Οργανισμού'!$F$13:$F$24) -> 0 | M63: =E63*'Γενικά Στοιχεία Οργανισμού'!$F$16/SUM('Γενικά Στοιχεία Οργανισμού'!$F$13:$F$24) -> 0 | N63: =D63*'Γενικά Στοιχεία Οργανισμού'!$F$17/SUM('Γενικά Στοιχεία Οργανισμού'!$F$13:$F$24) -> 0 | O63: =E63*'Γενικά Στοιχεία Οργανισμού'!$F$17/SUM('Γενικά Στοιχεία Οργανισμού'!$F$13:$F$24) -> 0 | P63: =D63*'Γενικά Στοιχεία Οργανισμού'!$F$18/SUM('Γενικά Στοιχεία Οργανισμού'!$F$13:$F$24) -> 0 | Q63: =E63*'Γενικά Στοιχεία Οργανισμού'!$F$18/SUM('Γενικά Στοιχεία Οργανισμού'!$F$13:$F$24) -> 0 | R63: =D63*'Γενικά Στοιχεία Οργανισμού'!$F$19/SUM('Γενικά Στοιχεία Οργανισμού'!$F$13:$F$24) -> 0 | S63: =E63*'Γενικά Στοιχεία Οργανισμού'!$F$19/SUM('Γενικά Στοιχεία Οργανισμού'!$F$13:$F$24) -> 0 | T63: =D63*'Γενικά Στοιχεία Οργανισμού'!$F$20/SUM('Γενικά Στοιχεία Οργανισμού'!$F$13:$F$24) -> 0 | U63: =E63*'Γενικά Στοιχεία Οργανισμού'!$F$20/SUM('Γενικά Στοιχεία Οργανισμού'!$F$13:$F$24) -> 0 | V63: =D63*'Γενικά Στοιχεία Οργανισμού'!$F$21/SUM('Γενικά Στοιχεία Οργανισμού'!$F$13:$F$24) -> 0 | W63: =E63*'Γενικά Στοιχεία Οργανισμού'!$F$21/SUM('Γενικά Στοιχεία Οργανισμού'!$F$13:$F$24) -> 0 | X63: =D63*'Γενικά Στοιχεία Οργανισμού'!$F$22/SUM('Γενικά Στοιχεία Οργανισμού'!$F$13:$F$24) -> 0 | Y63: =E63*'Γενικά Στοιχεία Οργανισμού'!$F$22/SUM('Γενικά Στοιχεία Οργανισμού'!$F$13:$F$24) -> 0 | Z63: =D63*'Γενικά Στοιχεία Οργανισμού'!$F$23/SUM('Γενικά Στοιχεία Οργανισμού'!$F$13:$F$24) -> 0 | AA63: =E63*'Γενικά Στοιχεία Οργανισμού'!$F$23/SUM('Γενικά Στοιχεία Οργανισμού'!$F$13:$F$24) -> 0 | AB63: =D63*'Γενικά Στοιχεία Οργανισμού'!$F$24/SUM('Γενικά Στοιχεία Οργανισμού'!$F$13:$F$24) -> 0 | AC63: =E63*'Γενικά Στοιχεία Οργανισμού'!$F$24/SUM('Γενικά Στοιχεία Οργανισμού'!$F$13:$F$24) -> 0
E64: 0 | G64: =E64*'Γενικά Στοιχεία Οργανισμού'!$F$13/SUM('Γενικά Στοιχεία Οργανισμού'!$F$13:$F$24) -> 0 | I64: =E64*'Γενικά Στοιχεία Οργανισμού'!$F$14/SUM('Γενικά Στοιχεία Οργανισμού'!$F$13:$F$24) -> 0 | K64: =E64*'Γενικά Στοιχεία Οργανισμού'!$F$15/SUM('Γενικά Στοιχεία Οργανισμού'!$F$13:$F$24) -> 0 | M64: =E64*'Γενικά Στοιχεία Οργανισμού'!$F$16/SUM('Γενικά Στοιχεία Οργανισμού'!$F$13:$F$24) -> 0 | O64: =E64*'Γενικά Στοιχεία Οργανισμού'!$F$17/SUM('Γενικά Στοιχεία Οργανισμού'!$F$13:$F$24) -> 0 | Q64: =E64*'Γενικά Στοιχεία Οργανισμού'!$F$18/SUM('Γενικά Στοιχεία Οργανισμού'!$F$13:$F$24) -> 0 | S64: =E64*'Γενικά Στοιχεία Οργανισμού'!$F$19/SUM('Γενικά Στοιχεία Οργανισμού'!$F$13:$F$24) -> 0 | U64: =E64*'Γενικά Στοιχεία Οργανισμού'!$F$20/SUM('Γενικά Στοιχεία Οργανισμού'!$F$13:$F$24) -> 0 | W64: =E64*'Γενικά Στοιχεία Οργανισμού'!$F$21/SUM('Γενικά Στοιχεία Οργανισμού'!$F$13:$F$24) -> 0 | Y64: =E64*'Γενικά Στοιχεία Οργανισμού'!$F$22/SUM('Γενικά Στοιχεία Οργανισμού'!$F$13:$F$24) -> 0 | AA64: =E64*'Γενικά Στοιχεία Οργανισμού'!$F$23/SUM('Γενικά Στοιχεία Οργανισμού'!$F$13:$F$24) -> 0 | AC64: =E64*'Γενικά Στοιχεία Οργανισμού'!$F$24/SUM('Γενικά Στοιχεία Οργανισμού'!$F$13:$F$24) -> 0
E65: 0 | G65: =E65*'Γενικά Στοιχεία Οργανισμού'!$F$13/SUM('Γενικά Στοιχεία Οργανισμού'!$F$13:$F$24) -> 0 | I65: =E65*'Γενικά Στοιχεία Οργανισμού'!$F$14/SUM('Γενικά Στοιχεία Οργανισμού'!$F$13:$F$24) -> 0 | K65: =E65*'Γενικά Στοιχεία Οργανισμού'!$F$15/SUM('Γενικά Στοιχεία Οργανισμού'!$F$13:$F$24) -> 0 | M65: =E65*'Γενικά Στοιχεία Οργανισμού'!$F$16/SUM('Γενικά Στοιχεία Οργανισμού'!$F$13:$F$24) -> 0 | O65: =E65*'Γενικά Στοιχεία Οργανισμού'!$F$17/SUM('Γενικά Στοιχεία Οργανισμού'!$F$13:$F$24) -> 0 | Q65: =E65*'Γενικά Στοιχεία Οργανισμού'!$F$18/SUM('Γενικά Στοιχεία Οργανισμού'!$F$13:$F$24) -> 0 | S65: =E65*'Γενικά Στοιχεία Οργανισμού'!$F$19/SUM('Γενικά Στοιχεία Οργανισμού'!$F$13:$F$24) -> 0 | U65: =E65*'Γενικά Στοιχεία Οργανισμού'!$F$20/SUM('Γενικά Στοιχεία Οργανισμού'!$F$13:$F$24) -> 0 | W65: =E65*'Γενικά Στοιχεία Οργανισμού'!$F$21/SUM('Γενικά Στοιχεία Οργανισμού'!$F$13:$F$24) -> 0 | Y65: =E65*'Γενικά Στοιχεία Οργανισμού'!$F$22/SUM('Γενικά Στοιχεία Οργανισμού'!$F$13:$F$24) -> 0 | AA65: =E65*'Γενικά Στοιχεία Οργανισμού'!$F$23/SUM('Γενικά Στοιχεία Οργανισμού'!$F$13:$F$24) -> 0 | AC65: =E65*'Γενικά Στοιχεία Οργανισμού'!$F$24/SUM('Γενικά Στοιχεία Οργανισμού'!$F$13:$F$24) -> 0
C66: SCOPE 2 | D66: =D69 -> 3069.65248 | E66: =E69 -> 3060.073282 | F66: =F69 -> 119.4390746 | G66: 119.0663514 | H66: 44.09348917 | I66: 43.95589044 | J66: 99.45164635 | K66: 99.14129621 | L66: 203.117948 | M66: 202.4840954 | N66: 353.8173331 | O66: 352.713206 | P66: 217.6420023 | Q66: 216.9628258 | R66: 336.1484681 | S66: 335.0994787 | T66: 499.300907 | U66: 497.742782 | V66: 112.0704028 | W66: 111.7206745 | X66: 278.9279259 | Y66: 278.0574997 | Z66: 436.9052003 | AA66: 435.5417881 | AB66: 368.7380826 | AC66: 367.5873936
E67: =E70 -> 0.06901127809 | G67: =G70 -> 0.002685204023 | I67: =I70 -> 0.0009913005016 | K67: =K70 -> 0.002235850888 | M67: =M70 -> 0.004566454765 | O67: =O70 -> 0.007954446481 | Q67: =Q70 -> 0.004892981484 | S67: =S70 -> 0.007557218794 | U67: =U70 -> 0.01122517743 | W67: =W70 -> 0.002519543103 | Y67: =Y70 -> 0.00627079866 | AA67: =AA70 -> 0.009822410345 | AC67: =AC70 -> 0.008289891616
E68: =E71 -> 0.02803583806 | G68: =G71 -> 0.001090864381 | I68: =I71 -> 0.0004027159198 | K68: =K71 -> 0.0009083146284 | M68: =M71 -> 0.001855122668 | O68: =O71 -> 0.003231494614 | Q68: =Q71 -> 0.001987774177 | S68: =S71 -> 0.003070120829 | U68: =U71 -> 0.004560229363 | W68: =W71 -> 0.001023564617 | Y68: =Y71 -> 0.002547512531 | AA68: =AA71 -> 0.003990355104 | AC68: 0.00336776923
C69: Εισαγόμενη Ηλεκτρική Ενέργεια | D69: ='Υπολογισμός Αν. Απ.'!N27 -> 3069.65248 | E69: ='Υπολογισμός Αν. Απ.'!K27 -> 3060.073282 | F69: =D69*'Γενικά Στοιχεία Οργανισμού'!$F$13/SUM('Γενικά Στοιχεία Οργανισμού'!$F$13:$F$24) -> 119.4390746 | G69: =E69*'Γενικά Στοιχεία Οργανισμού'!$F$13/SUM('Γενικά Στοιχεία Οργανισμού'!$F$13:$F$24) -> 119.0663514 | H69: =D69*'Γενικά Στοιχεία Οργανισμού'!$F$14/SUM('Γενικά Στοιχεία Οργανισμού'!$F$13:$F$24) -> 44.09348917 | I69: =E69*'Γενικά Στοιχεία Οργανισμού'!$F$14/SUM('Γενικά Στοιχεία Οργανισμού'!$F$13:$F$24) -> 43.95589044 | J69: =D69*'Γενικά Στοιχεία Οργανισμού'!$F$15/SUM('Γενικά Στοιχεία Οργανισμού'!$F$13:$F$24) -> 99.45164635 | K69: =E69*'Γενικά Στοιχεία Οργανισμού'!$F$15/SUM('Γενικά Στοιχεία Οργανισμού'!$F$13:$F$24) -> 99.14129621 | L69: =D69*'Γενικά Στοιχεία Οργανισμού'!$F$16/SUM('Γενικά Στοιχεία Οργανισμού'!$F$13:$F$24) -> 203.117948 | M69: =E69*'Γενικά Στοιχεία Οργανισμού'!$F$16/SUM('Γενικά Στοιχεία Οργανισμού'!$F$13:$F$24) -> 202.4840954 | N69: =D69*'Γενικά Στοιχεία Οργανισμού'!$F$17/SUM('Γενικά Στοιχεία Οργανισμού'!$F$13:$F$24) -> 353.8173331 | O69: =E69*'Γενικά Στοιχεία Οργανισμού'!$F$17/SUM('Γενικά Στοιχεία Οργανισμού'!$F$13:$F$24) -> 352.713206 | P69: =D69*'Γενικά Στοιχεία Οργανισμού'!$F$18/SUM('Γενικά Στοιχεία Οργανισμού'!$F$13:$F$24) -> 217.6420023 | Q69: =E69*'Γενικά Στοιχεία Οργανισμού'!$F$18/SUM('Γενικά Στοιχεία Οργανισμού'!$F$13:$F$24) -> 216.9628258 | R69: =D69*'Γενικά Στοιχεία Οργανισμού'!$F$19/SUM('Γενικά Στοιχεία Οργανισμού'!$F$13:$F$24) -> 336.1484681 | S69: =E69*'Γενικά Στοιχεία Οργανισμού'!$F$19/SUM('Γενικά Στοιχεία Οργανισμού'!$F$13:$F$24) -> 335.0994787 | T69: =D69*'Γενικά Στοιχεία Οργανισμού'!$F$20/SUM('Γενικά Στοιχεία Οργανισμού'!$F$13:$F$24) -> 499.300907 | U69: =E69*'Γενικά Στοιχεία Οργανισμού'!$F$20/SUM('Γενικά Στοιχεία Οργανισμού'!$F$13:$F$24) -> 497.742782 | V69: =D69*'Γενικά Στοιχεία Οργανισμού'!$F$21/SUM('Γενικά Στοιχεία Οργανισμού'!$F$13:$F$24) -> 112.0704028 | W69: =E69*'Γενικά Στοιχεία Οργανισμού'!$F$21/SUM('Γενικά Στοιχεία Οργανισμού'!$F$13:$F$24) -> 111.7206745 | X69: =D69*'Γενικά Στοιχεία Οργανισμού'!$F$22/SUM('Γενικά Στοιχεία Οργανισμού'!$F$13:$F$24) -> 278.9279259 | Y69: =E69*'Γενικά Στοιχεία Οργανισμού'!$F$22/SUM('Γενικά Στοιχεία Οργανισμού'!$F$13:$F$24) -> 278.0574997 | Z69: =D69*'Γενικά Στοιχεία Οργανισμού'!$F$23/SUM('Γενικά Στοιχεία Οργανισμού'!$F$13:$F$24) -> 436.9052003 | AA69: =E69*'Γενικά Στοιχεία Οργανισμού'!$F$23/SUM('Γενικά Στοιχεία Οργανισμού'!$F$13:$F$24) -> 435.5417881 | AB69: =D69*'Γενικά Στοιχεία Οργανισμού'!$F$24/SUM('Γενικά Στοιχεία Οργανισμού'!$F$13:$F$24) -> 368.7380826 | AC69: =E69*'Γενικά Στοιχεία Οργανισμού'!$F$24/SUM('Γενικά Στοιχεία Οργανισμού'!$F$13:$F$24) -> 367.5873936
E70: ='Υπολογισμός Αν. Απ.'!L27 -> 0.06901127809 | G70: =E70*'Γενικά Στοιχεία Οργανισμού'!$F$13/SUM('Γενικά Στοιχεία Οργανισμού'!$F$13:$F$24) -> 0.002685204023 | I70: =E70*'Γενικά Στοιχεία Οργανισμού'!$F$14/SUM('Γενικά Στοιχεία Οργανισμού'!$F$13:$F$24) -> 0.0009913005016 | K70: =E70*'Γενικά Στοιχεία Οργανισμού'!$F$15/SUM('Γενικά Στοιχεία Οργανισμού'!$F$13:$F$24) -> 0.002235850888 | M70: =E70*'Γενικά Στοιχεία Οργανισμού'!$F$16/SUM('Γενικά Στοιχεία Οργανισμού'!$F$13:$F$24) -> 0.004566454765 | O70: =E70*'Γενικά Στοιχεία Οργανισμού'!$F$17/SUM('Γενικά Στοιχεία Οργανισμού'!$F$13:$F$24) -> 0.007954446481 | Q70: =E70*'Γενικά Στοιχεία Οργανισμού'!$F$18/SUM('Γενικά Στοιχεία Οργανισμού'!$F$13:$F$24) -> 0.004892981484 | S70: =E70*'Γενικά Στοιχεία Οργανισμού'!$F$19/SUM('Γενικά Στοιχεία Οργανισμού'!$F$13:$F$24) -> 0.007557218794 | U70: =E70*'Γενικά Στοιχεία Οργανισμού'!$F$20/SUM('Γενικά Στοιχεία Οργανισμού'!$F$13:$F$24) -> 0.01122517743 | W70: =E70*'Γενικά Στοιχεία Οργανισμού'!$F$21/SUM('Γενικά Στοιχεία Οργανισμού'!$F$13:$F$24) -> 0.002519543103 | Y70: =E70*'Γενικά Στοιχεία Οργανισμού'!$F$22/SUM('Γενικά Στοιχεία Οργανισμού'!$F$13:$F$24) -> 0.00627079866 | AA70: =E70*'Γενικά Στοιχεία Οργανισμού'!$F$23/SUM('Γενικά Στοιχεία Οργανισμού'!$F$13:$F$24) -> 0.009822410345 | AC70: =E70*'Γενικά Στοιχεία Οργανισμού'!$F$24/SUM('Γενικά Στοιχεία Οργανισμού'!$F$13:$F$24) -> 0.008289891616
E71: ='Υπολογισμός Αν. Απ.'!M27 -> 0.02803583806 | G71: =E71*'Γενικά Στοιχεία Οργανισμού'!$F$13/SUM('Γενικά Στοιχεία Οργανισμού'!$F$13:$F$24) -> 0.001090864381 | I71: =E71*'Γενικά Στοιχεία Οργανισμού'!$F$14/SUM('Γενικά Στοιχεία Οργανισμού'!$F$13:$F$24) -> 0.0004027159198 | K71: =E71*'Γενικά Στοιχεία Οργανισμού'!$F$15/SUM('Γενικά Στοιχεία Οργανισμού'!$F$13:$F$24) -> 0.0009083146284 | M71: =E71*'Γενικά Στοιχεία Οργανισμού'!$F$16/SUM('Γενικά Στοιχεία Οργανισμού'!$F$13:$F$24) -> 0.001855122668 | O71: =E71*'Γενικά Στοιχεία Οργανισμού'!$F$17/SUM('Γενικά Στοιχεία Οργανισμού'!$F$13:$F$24) -> 0.003231494614 | Q71: =E71*'Γενικά Στοιχεία Οργανισμού'!$F$18/SUM('Γενικά Στοιχεία Οργανισμού'!$F$13:$F$24) -> 0.001987774177 | S71: =E71*'Γενικά Στοιχεία Οργανισμού'!$F$19/SUM('Γενικά Στοιχεία Οργανισμού'!$F$13:$F$24) -> 0.003070120829 | U71: =E71*'Γενικά Στοιχεία Οργανισμού'!$F$20/SUM('Γενικά Στοιχεία Οργανισμού'!$F$13:$F$24) -> 0.004560229363 | W71: =E71*'Γενικά Στοιχεία Οργανισμού'!$F$21/SUM('Γενικά Στοιχεία Οργανισμού'!$F$13:$F$24) -> 0.001023564617 | Y71: =E71*'Γενικά Στοιχεία Οργανισμού'!$F$22/SUM('Γενικά Στοιχεία Οργανισμού'!$F$13:$F$24) -> 0.002547512531 | AA71: =E71*'Γενικά Στοιχεία Οργανισμού'!$F$23/SUM('Γενικά Στοιχεία Οργανισμού'!$F$13:$F$24) -> 0.003990355104 | AC71: =E71*'Γενικά Στοιχεία Οργανισμού'!$F$24/SUM('Γενικά Στοιχεία Οργανισμού'!$F$13:$F$24) -> 0.00336776923
C72: SCOPE 3 | D72: =D75+D102+D129+D150+D153+D156 -> 2207.051545 | E72: =E75+E102+E129+E150+E153 -> 2069.103488 | F72: =F75+F102+F129+F150+F153+F156 -> 0 | G72: =G75+G102+G129+G150+G153 -> 0 | H72: =H75+H102+H129+H150+H153+H156 -> 0 | I72: =I75+I102+I129+I150+I153 -> 0 | J72: =J75+J102+J129+J150+J153+J156 -> 513.1272315 | K72: =K75+K102+K129+K150+K153 -> 500.1265574 | L72: =L75+L102+L129+L150+L153+L156 -> 130.5625645 | M72: =M75+M102+M129+M150+M153 -> 119.0509231 | N72: =N75+N102+N129+N150+N153+N156 -> 173.4367132 | O72: =O75+O102+O129+O150+O153 -> 160.7517175 | P72: =P75+P102+P129+P150+P153+P156 -> 181.5732683 | Q72: =Q75+Q102+Q129+Q150+Q153 -> 163.6484386 | R72: =R75+R102+R129+R150+R153+R156 -> 290.6750367 | S72: =S75+S102+S129+S150+S153 -> 261.6603766 | T72: =T75+T102+T129+T150+T153+T156 -> 215.2371639 | U72: =U75+U102+U129+U150+U153 -> 201.075083 | V72: =V75+V102+V129+V150+V153+V156 -> 130.8211887 | W72: =W75+W102+W129+W150+W153 -> 116.58585 | X72: =X75+X102+X129+X150+X153+X156 -> 152.9116239 | Y72: =Y75+Y102+Y129+Y150+Y153 -> 140.7466552 | Z72: =Z75+Z102+Z129+Z150+Z153+Z156 -> 220.105327 | AA72: =AA75+AA102+AA129+AA150+AA153 -> 203.6078709 | AB72: =AB75+AB102+AB129+AB150+AB153+AB156 -> 198.6014268 | AC72: =AC75+AC102+AC129+AC150+AC153 -> 182.9797313
E73: =E76+E103+E130+E151+E154 -> 3.371162926 | G73: =G76+G103+G130+G151+G154 -> 0 | I73: =I76+I103+I130+I151+I154 -> 0 | K73: =K76+K103+K130+K151+K154 -> 0.2782645188 | M73: =M76+M103+M130+M151+M154 -> 0.2470308094 | O73: =O76+O103+O130+O151+O154 -> 0.2721518783 | Q73: =Q76+Q103+Q130+Q151+Q154 -> 0.3846955731 | S73: =S76+S103+S130+S151+S154 -> 0.6227074734 | U73: =U76+U103+U130+U151+U154 -> 0.3037996689 | W73: =W76+W103+W130+W151+W154 -> 0.3055395173 | Y73: =Y76+Y103+Y130+Y151+Y154 -> 0.2610212976 | AA73: =AA76+AA103+AA130+AA151+AA154 -> 0.3539575436 | AC73: =AC76+AC103+AC130+AC151+AC154 -> 0.3351871832
E74: =E77+E104+E131+E152+E155 -> 0.09015399236 | G74: =G77+G104+G131+G152+G155 -> 0 | I74: 0 | K74: 0.0113127581 | M74: 0.006075176299 | O74: 0.00705434474 | Q74: 0.009195188209 | S74: 0.01484473434 | U74: 0.008138795766 | W74: 0.00713965893 | Y74: 0.006601834416 | AA74: 0.00910807884 | AC74: 0.008505034898
C75: Μετακίνηση Φοιτητών | D75: =SUM(D78:D101) -> 827.6281944 | E75: =E78+E81+E84+E90+E93+E96+E99+E87 -> 818.7870948 | F75: =SUM(F78:F101) -> 0 | G75: =G78+G81+G84+G90+G93+G96+G99 -> 0 | H75: =SUM(H78:H101) -> 0 | I75: =I78+I81+I84+I90+I93+I96+I99 -> 0 | J75: =SUM(J78:J101) -> 0 | K75: =K78+K81+K84+K90+K93+K96+K99 -> 0 | L75: =SUM(L78:L101) -> 67.29032963 | M75: =M78+M81+M84+M90+M93+M96+M99 -> 65.0372549 | N75: =SUM(N78:N101) -> 68.00466434 | O75: =O78+O81+O84+O90+O93+O96+O99 -> 65.72767162 | P75: =SUM(P78:P101) -> 109.2932106 | Q75: =Q78+Q81+Q84+Q90+Q93+Q96+Q99 -> 105.633758 | R75: =SUM(R78:R101) -> 177.5836088 | S75: =S78+S81+S84+S90+S93+S96+S99 -> 171.6375963 | T75: =SUM(T78:T101) -> 71.43347095 | U75: =U78+U81+U84+U90+U93+U96+U99 -> 69.04167187 | V75: =SUM(V78:V101) -> 89.57757257 | W75: =W78+W81+W84+W90+W93+W96+W99 -> 86.57825652 | X75: =SUM(X78:X101) -> 68.00466434 | Y75: =Y78+Y81+Y84+Y90+Y93+Y96+Y99 -> 65.72767162 | Z75: =SUM(Z78:Z101) -> 89.57757257 | AA75: =AA78+AA81+AA84+AA90+AA93+AA96+AA99 -> 86.57825652 | AB75: =SUM(AB78:AB101) -> 86.86310068 | AC75: =AC78+AC81+AC84+AC90+AC93+AC96+AC99 -> 83.95467299
E76: =E79+E82+E85+E91+E94+E97+E100+E88 -> 0.1763819082 | G76: =G79+G82+G85+G91+G94+G97+G100 -> 0 | I76: =I79+I82+I85+I91+I94+I97+I100 -> 0 | K76: =K79+K82+K85+K91+K94+K97+K100 -> 0 | M76: =M79+M82+M85+M91+M94+M97+M100 -> 0.0137872543 | O76: =O79+O82+O85+O91+O94+O97+O100 -> 0.01393361581 | Q76: =Q79+Q82+Q85+Q91+Q94+Q97+Q100 -> 0.02239331113 | S76: =S79+S82+S85+S91+S94+S97+S100 -> 0.03638547155 | U76: =U79+U82+U85+U91+U94+U97+U100 -> 0.01463615106 | W76: =W79+W82+W85+W91+W94+W97+W100 -> 0.01835373343 | Y76: =Y79+Y82+Y85+Y91+Y94+Y97+Y100 -> 0.01393361581 | AA76: =AA79+AA82+AA85+AA91+AA94+AA97+AA100 -> 0.01835373343 | AC76: =AC79+AC82+AC85+AC91+AC94+AC97+AC100 -> 0.01779755969
E77: =E80+E83+E86+E92+E95+E98+E101+E89 -> 0.0143591371 | G77: =G80+G83+G86+G92+G95+G98+G101 -> 0 | I77: 0 | K77: 0 | M77: 0.0009903561043 | O77: 0.001000869439 | Q77: 0.001608540169 | S77: 0.002613614942 | U77: 0.001051333444 | W77: 0.001318372139 | Y77: 0.001000869439 | AA77: 0.001318372139 | AC77: 0.001278421468
C78: Πετρέλαιο Κίνησης (Επιβατικό) | D78: ='Υπολογισμός Αν. Απ.'!Q31 -> 42.32488258 | E78: ='Υπολογισμός Αν. Απ.'!N31 -> 41.8655467 | F78: 0 | G78: 0 | H78: 0 | I78: 0 | J78: 0 | K78: 0 | L78: =D78*'Γενικά Στοιχεία Οργανισμού'!$D$16/SUM('Γενικά Στοιχεία Οργανισμού'!$D$13:$D$24) -> 3.441225564 | M78: =E78*'Γενικά Στοιχεία Οργανισμού'!$D$16/SUM('Γενικά Στοιχεία Οργανισμού'!$D$13:$D$24) -> 3.40387925 | N78: =D78*'Γενικά Στοιχεία Οργανισμού'!$D$17/SUM('Γενικά Στοιχεία Οργανισμού'!$D$13:$D$24) -> 3.477756621 | O78: =E78*'Γενικά Στοιχεία Οργανισμού'!$D$17/SUM('Γενικά Στοιχεία Οργανισμού'!$D$13:$D$24) -> 3.440013849 | P78: =D78*'Γενικά Στοιχεία Οργανισμού'!$D$18/SUM('Γενικά Στοιχεία Οργανισμού'!$D$13:$D$24) -> 5.589251713 | Q78: =E78*'Γενικά Στοιχεία Οργανισμού'!$D$18/SUM('Γενικά Στοιχεία Οργανισμού'!$D$13:$D$24) -> 5.528593686 | R78: =D78*'Γενικά Στοιχεία Οργανισμού'!$D$19/SUM('Γενικά Στοιχεία Οργανισμού'!$D$13:$D$24) -> 9.081620757 | S78: =E78*'Γενικά Στοιχεία Οργανισμού'!$D$19/SUM('Γενικά Στοιχεία Οργανισμού'!$D$13:$D$24) -> 8.983061375 | T78: =D78*'Γενικά Στοιχεία Οργανισμού'!$D$20/SUM('Γενικά Στοιχεία Οργανισμού'!$D$13:$D$24) -> 3.653105695 | U78: =E78*'Γενικά Στοιχεία Οργανισμού'!$D$20/SUM('Γενικά Στοιχεία Οργανισμού'!$D$13:$D$24) -> 3.613459925 | V78: =D78*'Γενικά Στοιχεία Οργανισμού'!$D$21/SUM('Γενικά Στοιχεία Οργανισμού'!$D$13:$D$24) -> 4.580994541 | W78: =E78*'Γενικά Στοιχεία Οργανισμού'!$D$21/SUM('Γενικά Στοιχεία Οργανισμού'!$D$13:$D$24) -> 4.531278746 | X78: =D78*'Γενικά Στοιχεία Οργανισμού'!$D$22/SUM('Γενικά Στοιχεία Οργανισμού'!$D$13:$D$24) -> 3.477756621 | Y78: =E78*'Γενικά Στοιχεία Οργανισμού'!$D$22/SUM('Γενικά Στοιχεία Οργανισμού'!$D$13:$D$24) -> 3.440013849 | Z78: =D78*'Γενικά Στοιχεία Οργανισμού'!$D$23/SUM('Γενικά Στοιχεία Οργανισμού'!$D$13:$D$24) -> 4.580994541 | AA78: =E78*'Γενικά Στοιχεία Οργανισμού'!$D$23/SUM('Γενικά Στοιχεία Οργανισμού'!$D$13:$D$24) -> 4.531278746 | AB78: =D78*'Γενικά Στοιχεία Οργανισμού'!$D$24/SUM('Γενικά Στοιχεία Οργανισμού'!$D$13:$D$24) -> 4.442176525 | AC78: =E78*'Γενικά Στοιχεία Οργανισμού'!$D$24/SUM('Γενικά Στοιχεία Οργανισμού'!$D$13:$D$24) -> 4.393967269
E79: ='Υπολογισμός Αν. Απ.'!O31 -> 1.715098185e-05 | G79: 0 | I79: 0 | K79: 0 | M79: =E79*'Γενικά Στοιχεία Οργανισμού'!$D$16/SUM('Γενικά Στοιχεία Οργανισμού'!$D$13:$D$24) -> 1.394460979e-06 | O79: =E79*'Γενικά Στοιχεία Οργανισμού'!$D$17/SUM('Γενικά Στοιχεία Οργανισμού'!$D$13:$D$24) -> 1.409264174e-06 | Q79: =E79*'Γενικά Στοιχεία Οργανισμού'!$D$18/SUM('Γενικά Στοιχεία Οργανισμού'!$D$13:$D$24) -> 2.264888851e-06 | S79: =E79*'Γενικά Στοιχεία Οργανισμού'!$D$19/SUM('Γενικά Στοιχεία Οργανισμού'!$D$13:$D$24) -> 3.680074303e-06 | U79: =E79*'Γενικά Στοιχεία Οργανισμού'!$D$20/SUM('Γενικά Στοιχεία Οργανισμού'!$D$13:$D$24) -> 1.480319511e-06 | W79: =E79*'Γενικά Στοιχεία Οργανισμού'!$D$21/SUM('Γενικά Στοιχεία Οργανισμού'!$D$13:$D$24) -> 1.856320666e-06 | Y79: =E79*'Γενικά Στοιχεία Οργανισμού'!$D$22/SUM('Γενικά Στοιχεία Οργανισμού'!$D$13:$D$24) -> 1.409264174e-06 | AA79: =E79*'Γενικά Στοιχεία Οργανισμού'!$D$23/SUM('Γενικά Στοιχεία Οργανισμού'!$D$13:$D$24) -> 1.856320666e-06 | AC79: =E79*'Γενικά Στοιχεία Οργανισμού'!$D$24/SUM('Γενικά Στοιχεία Οργανισμού'!$D$13:$D$24) -> 1.800068525e-06
E80: ='Υπολογισμός Αν. Απ.'!P31 -> 0.001680796221 | G80: 0 | I80: 0 | K80: 0 | M80: =E80*'Γενικά Στοιχεία Οργανισμού'!$D$16/SUM('Γενικά Στοιχεία Οργανισμού'!$D$13:$D$24) -> 0.0001366571759 | O80: =E80*'Γενικά Στοιχεία Οργανισμού'!$D$17/SUM('Γενικά Στοιχεία Οργανισμού'!$D$13:$D$24) -> 0.0001381078891 | Q80: =E80*'Γενικά Στοιχεία Οργανισμού'!$D$18/SUM('Γενικά Στοιχεία Οργανισμού'!$D$13:$D$24) -> 0.0002219591074 | S80: =E80*'Γενικά Στοιχεία Οργανισμού'!$D$19/SUM('Γενικά Στοιχεία Οργανισμού'!$D$13:$D$24) -> 0.0003606472817 | U80: =E80*'Γενικά Στοιχεία Οργανισμού'!$D$20/SUM('Γενικά Στοιχεία Οργανισμού'!$D$13:$D$24) -> 0.000145071312 | W80: =E80*'Γενικά Στοιχεία Οργανισμού'!$D$21/SUM('Γενικά Στοιχεία Οργανισμού'!$D$13:$D$24) -> 0.0001819194253 | Y80: =E80*'Γενικά Στοιχεία Οργανισμού'!$D$22/SUM('Γενικά Στοιχεία Οργανισμού'!$D$13:$D$24) -> 0.0001381078891 | AA80: =E80*'Γενικά Στοιχεία Οργανισμού'!$D$23/SUM('Γενικά Στοιχεία Οργανισμού'!$D$13:$D$24) -> 0.0001819194253 | AC80: =E80*'Γενικά Στοιχεία Οργανισμού'!$D$24/SUM('Γενικά Στοιχεία Οργανισμού'!$D$13:$D$24) -> 0.0001764067154
C81: Βενζίνη (Επιβατικό) | D81: ='Υπολογισμός Αν. Απ.'!Q32 -> 380.0223618 | E81: ='Υπολογισμός Αν. Απ.'!N32 -> 376.7727049 | F81: 0 | G81: 0 | H81: 0 | I81: 0 | J81: 0 | K81: 0 | L81: =D81*'Γενικά Στοιχεία Οργανισμού'!$D$16/SUM('Γενικά Στοιχεία Οργανισμού'!$D$13:$D$24) -> 30.89772698 | M81: =E81*'Γενικά Στοιχεία Οργανισμού'!$D$16/SUM('Γενικά Στοιχεία Οργανισμού'!$D$13:$D$24) -> 30.63351355 | N81: =D81*'Γενικά Στοιχεία Οργανισμού'!$D$17/SUM('Γενικά Στοιχεία Οργανισμού'!$D$13:$D$24) -> 31.22572833 | O81: =E81*'Γενικά Στοιχεία Οργανισμού'!$D$17/SUM('Γενικά Στοιχεία Οργανισμού'!$D$13:$D$24) -> 30.95871009 | P81: =D81*'Γενικά Στοιχεία Οργανισμού'!$D$18/SUM('Γενικά Στοιχεία Οργανισμού'!$D$13:$D$24) -> 50.18420624 | Q81: =E81*'Γενικά Στοιχεία Οργανισμού'!$D$18/SUM('Γενικά Στοιχεία Οργανισμού'!$D$13:$D$24) -> 49.75506978 | R81: =D81*'Γενικά Στοιχεία Οργανισμού'!$D$19/SUM('Γενικά Στοιχεία Οργανισμού'!$D$13:$D$24) -> 81.54113511 | S81: =E81*'Γενικά Στοιχεία Οργανισμού'!$D$19/SUM('Γενικά Στοιχεία Οργανισμού'!$D$13:$D$24) -> 80.84385848 | T81: =D81*'Γενικά Στοιχεία Οργανισμού'!$D$20/SUM('Γενικά Στοιχεία Οργανισμού'!$D$13:$D$24) -> 32.8001348 | U81: =E81*'Γενικά Στοιχεία Οργανισμού'!$D$20/SUM('Γενικά Στοιχεία Οργανισμού'!$D$13:$D$24) -> 32.51965345 | V81: =D81*'Γενικά Στοιχεία Οργανισμού'!$D$21/SUM('Γενικά Στοιχεία Οργανισμού'!$D$13:$D$24) -> 41.13136904 | W81: =E81*'Γενικά Στοιχεία Οργανισμού'!$D$21/SUM('Γενικά Στοιχεία Οργανισμού'!$D$13:$D$24) -> 40.77964543 | X81: =D81*'Γενικά Στοιχεία Οργανισμού'!$D$22/SUM('Γενικά Στοιχεία Οργανισμού'!$D$13:$D$24) -> 31.22572833 | Y81: =E81*'Γενικά Στοιχεία Οργανισμού'!$D$22/SUM('Γενικά Στοιχεία Οργανισμού'!$D$13:$D$24) -> 30.95871009 | Z81: =D81*'Γενικά Στοιχεία Οργανισμού'!$D$23/SUM('Γενικά Στοιχεία Οργανισμού'!$D$13:$D$24) -> 41.13136904 | AA81: =E81*'Γενικά Στοιχεία Οργανισμού'!$D$23/SUM('Γενικά Στοιχεία Οργανισμού'!$D$13:$D$24) -> 40.77964543 | AB81: =D81*'Γενικά Στοιχεία Οργανισμού'!$D$24/SUM('Γενικά Στοιχεία Οργανισμού'!$D$13:$D$24) -> 39.88496391 | AC81: =E81*'Γενικά Στοιχεία Οργανισμού'!$D$24/SUM('Γενικά Στοιχεία Οργανισμού'!$D$13:$D$24) -> 39.5438986
E82: ='Υπολογισμός Αν. Απ.'!O32 -> 0.04803517695 | G82: 0 | I82: 0 | K82: 0 | M82: =E82*'Γενικά Στοιχεία Οργανισμού'!$D$16/SUM('Γενικά Στοιχεία Οργανισμού'!$D$13:$D$24) -> 0.003905501182 | O82: =E82*'Γενικά Στοιχεία Οργανισμού'!$D$17/SUM('Γενικά Στοιχεία Οργανισμού'!$D$13:$D$24) -> 0.003946960855 | Q82: =E82*'Γενικά Στοιχεία Οργανισμού'!$D$18/SUM('Γενικά Στοιχεία Οργανισμού'!$D$13:$D$24) -> 0.006343329945 | S82: =E82*'Γενικά Στοιχεία Οργανισμού'!$D$19/SUM('Γενικά Στοιχεία Οργανισμού'!$D$13:$D$24) -> 0.01030687467 | U82: =E82*'Γενικά Στοιχεία Οργανισμού'!$D$20/SUM('Γενικά Στοιχεία Οργανισμού'!$D$13:$D$24) -> 0.004145967284 | W82: =E82*'Γενικά Στοιχεία Οργανισμού'!$D$21/SUM('Γενικά Στοιχεία Οργανισμού'!$D$13:$D$24) -> 0.005199042974 | Y82: =E82*'Γενικά Στοιχεία Οργανισμού'!$D$22/SUM('Γενικά Στοιχεία Οργανισμού'!$D$13:$D$24) -> 0.003946960855 | AA82: =E82*'Γενικά Στοιχεία Οργανισμού'!$D$23/SUM('Γενικά Στοιχεία Οργανισμού'!$D$13:$D$24) -> 0.005199042974 | AC82: =E82*'Γενικά Στοιχεία Οργανισμού'!$D$24/SUM('Γενικά Στοιχεία Οργανισμού'!$D$13:$D$24) -> 0.005041496218
E83: ='Υπολογισμός Αν. Απ.'!P32 -> 0.006994415488 | G83: 0 | I83: 0 | K83: 0 | M83: =E83*'Γενικά Στοιχεία Οργανισμού'!$D$16/SUM('Γενικά Στοιχεία Οργανισμού'!$D$13:$D$24) -> 0.0005686811143 | O83: =E83*'Γενικά Στοιχεία Οργανισμού'!$D$17/SUM('Γενικά Στοιχεία Οργανισμού'!$D$13:$D$24) -> 0.0005747180688 | Q83: =E83*'Γενικά Στοιχεία Οργανισμού'!$D$18/SUM('Γενικά Στοιχεία Οργανισμού'!$D$13:$D$24) -> 0.0009236540391 | S83: =E83*'Γενικά Στοιχεία Οργανισμού'!$D$19/SUM('Γενικά Στοιχεία Οργανισμού'!$D$13:$D$24) -> 0.00150078689 | U83: =E83*'Γενικά Στοιχεία Οργανισμού'!$D$20/SUM('Γενικά Στοιχεία Οργανισμού'!$D$13:$D$24) -> 0.0006036954504 | W83: =E83*'Γενικά Στοιχεία Οργανισμού'!$D$21/SUM('Γενικά Στοιχεία Οργανισμού'!$D$13:$D$24) -> 0.0007570340948 | Y83: =E83*'Γενικά Στοιχεία Οργανισμού'!$D$22/SUM('Γενικά Στοιχεία Οργανισμού'!$D$13:$D$24) -> 0.0005747180688 | AA83: =E83*'Γενικά Στοιχεία Οργανισμού'!$D$23/SUM('Γενικά Στοιχεία Οργανισμού'!$D$13:$D$24) -> 0.0007570340948 | AC83: =E83*'Γενικά Στοιχεία Οργανισμού'!$D$24/SUM('Γενικά Στοιχεία Οργανισμού'!$D$13:$D$24) -> 0.0007340936677
C84: Βενζίνη (Μοτοσυκλέτα) | D84: ='Υπολογισμός Αν. Απ.'!Q33 -> 90.31132488 | E84: ='Υπολογισμός Αν. Απ.'!N33 -> 86.72169311 | F84: 0 | G84: 0 | H84: 0 | I84: 0 | J84: 0 | K84: 0 | L84: =D84*'Γενικά Στοιχεία Οργανισμού'!$D$16/SUM('Γενικά Στοιχεία Οργανισμού'!$D$13:$D$24) -> 7.342764374 | M84: =E84*'Γενικά Στοιχεία Οργανισμού'!$D$16/SUM('Γενικά Στοιχεία Οργανισμού'!$D$13:$D$24) -> 7.050909279 | N84: =D84*'Γενικά Στοιχεία Οργανισμού'!$D$17/SUM('Γενικά Στοιχεία Οργανισμού'!$D$13:$D$24) -> 7.42071304 | O84: =E84*'Γενικά Στοιχεία Οργανισμού'!$D$17/SUM('Γενικά Στοιχεία Οργανισμού'!$D$13:$D$24) -> 7.125759696 | P84: =D84*'Γενικά Στοιχεία Οργανισμού'!$D$18/SUM('Γενικά Στοιχεία Οργανισμού'!$D$13:$D$24) -> 11.92614596 | Q84: =E84*'Γενικά Στοιχεία Οργανισμού'!$D$18/SUM('Γενικά Στοιχεία Οργανισμού'!$D$13:$D$24) -> 11.4521138 | R84: =D84*'Γενικά Στοιχεία Οργανισμού'!$D$19/SUM('Γενικά Στοιχεία Οργανισμού'!$D$13:$D$24) -> 19.37803846 | S84: =E84*'Γενικά Στοιχεία Οργανισμού'!$D$19/SUM('Γενικά Στοιχεία Οργανισμού'!$D$13:$D$24) -> 18.60781366 | T84: =D84*'Γενικά Στοιχεία Οργανισμού'!$D$20/SUM('Γενικά Στοιχεία Οργανισμού'!$D$13:$D$24) -> 7.794866639 | U84: =E84*'Γενικά Στοιχεία Οργανισμού'!$D$20/SUM('Γενικά Στοιχεία Οργανισμού'!$D$13:$D$24) -> 7.485041698 | V84: =D84*'Γενικά Στοιχεία Οργανισμού'!$D$21/SUM('Γενικά Στοιχεία Οργανισμού'!$D$13:$D$24) -> 9.774762765 | W84: =E84*'Γενικά Στοιχεία Οργανισμού'!$D$21/SUM('Γενικά Στοιχεία Οργανισμού'!$D$13:$D$24) -> 9.386242289 | X84: =D84*'Γενικά Στοιχεία Οργανισμού'!$D$22/SUM('Γενικά Στοιχεία Οργανισμού'!$D$13:$D$24) -> 7.42071304 | Y84: =E84*'Γενικά Στοιχεία Οργανισμού'!$D$22/SUM('Γενικά Στοιχεία Οργανισμού'!$D$13:$D$24) -> 7.125759696 | Z84: =D84*'Γενικά Στοιχεία Οργανισμού'!$D$23/SUM('Γενικά Στοιχεία Οργανισμού'!$D$13:$D$24) -> 9.774762765 | AA84: =E84*'Γενικά Στοιχεία Οργανισμού'!$D$23/SUM('Γενικά Στοιχεία Οργανισμού'!$D$13:$D$24) -> 9.386242289 | AB84: =D84*'Γενικά Στοιχεία Οργανισμού'!$D$24/SUM('Γενικά Στοιχεία Οργανισμού'!$D$13:$D$24) -> 9.478557833 | AC84: =E84*'Γενικά Στοιχεία Οργανισμού'!$D$24/SUM('Γενικά Στοιχεία Οργανισμού'!$D$13:$D$24) -> 9.101810705
E85: ='Υπολογισμός Αν. Απ.'!O33 -> 0.1108228898 | G85: 0 | I85: 0 | K85: 0 | M85: =E85*'Γενικά Στοιχεία Οργανισμού'!$D$16/SUM('Γενικά Στοιχεία Οργανισμού'!$D$13:$D$24) -> 0.00901045764 | O85: =E85*'Γενικά Στοιχεία Οργανισμού'!$D$17/SUM('Γενικά Στοιχεία Οργανισμού'!$D$13:$D$24) -> 0.009106110057 | Q85: =E85*'Γενικά Στοιχεία Οργανισμού'!$D$18/SUM('Γενικά Στοιχεία Οργανισμού'!$D$13:$D$24) -> 0.01463481973 | S85: =E85*'Γενικά Στοιχεία Οργανισμού'!$D$19/SUM('Γενικά Στοιχεία Οργανισμού'!$D$13:$D$24) -> 0.02377919076 | U85: =E85*'Γενικά Στοιχεία Οργανισμού'!$D$20/SUM('Γενικά Στοιχεία Οργανισμού'!$D$13:$D$24) -> 0.009565241656 | W85: =E85*'Γενικά Στοιχεία Οργανισμού'!$D$21/SUM('Γενικά Στοιχεία Οργανισμού'!$D$13:$D$24) -> 0.01199481304 | Y85: =E85*'Γενικά Στοιχεία Οργανισμού'!$D$22/SUM('Γενικά Στοιχεία Οργανισμού'!$D$13:$D$24) -> 0.009106110057 | AA85: =E85*'Γενικά Στοιχεία Οργανισμού'!$D$23/SUM('Γενικά Στοιχεία Οργανισμού'!$D$13:$D$24) -> 0.01199481304 | AC85: =E85*'Γενικά Στοιχεία Οργανισμού'!$D$24/SUM('Γενικά Στοιχεία Οργανισμού'!$D$13:$D$24) -> 0.01163133385
E86: ='Υπολογισμός Αν. Απ.'!P33 -> 0.001822978534 | G86: 0 | I86: 0 | K86: 0 | M86: =E86*'Γενικά Στοιχεία Οργανισμού'!$D$16/SUM('Γενικά Στοιχεία Οργανισμού'!$D$13:$D$24) -> 0.0001482173122 | O86: =E86*'Γενικά Στοιχεία Οργανισμού'!$D$17/SUM('Γενικά Στοιχεία Οργανισμού'!$D$13:$D$24) -> 0.0001497907444 | Q86: =E86*'Γενικά Στοιχεία Οργανισμού'!$D$18/SUM('Γενικά Στοιχεία Οργανισμού'!$D$13:$D$24) -> 0.0002407351249 | S86: =E86*'Γενικά Στοιχεία Οργανισμού'!$D$19/SUM('Γενικά Στοιχεία Οργανισμού'!$D$13:$D$24) -> 0.0003911552421 | U86: =E86*'Γενικά Στοιχεία Οργανισμού'!$D$20/SUM('Γενικά Στοιχεία Οργανισμού'!$D$13:$D$24) -> 0.0001573432189 | W86: =E86*'Γενικά Στοιχεία Οργανισμού'!$D$21/SUM('Γενικά Στοιχεία Οργανισμού'!$D$13:$D$24) -> 0.0001973083965 | Y86: =E86*'Γενικά Στοιχεία Οργανισμού'!$D$22/SUM('Γενικά Στοιχεία Οργανισμού'!$D$13:$D$24) -> 0.0001497907444 | AA86: =E86*'Γενικά Στοιχεία Οργανισμού'!$D$23/SUM('Γενικά Στοιχεία Οργανισμού'!$D$13:$D$24) -> 0.0001973083965 | AC86: =E86*'Γενικά Στοιχεία Οργανισμού'!$D$24/SUM('Γενικά Στοιχεία Οργανισμού'!$D$13:$D$24) -> 0.0001913293542
C87: Πετρέλαιο Κινησης (Λεωφορείο) | D87: ='Υπολογισμός Αν. Απ.'!Q34 -> 19.65491257 | E87: ='Υπολογισμός Αν. Απ.'!N34 -> 18.87028451 | F87: 0 | G87: 0 | H87: 0 | I87: 0 | J87: 0 | K87: 0 | L87: =D87*'Γενικά Στοιχεία Οργανισμού'!$D$16/SUM('Γενικά Στοιχεία Οργανισμού'!$D$13:$D$24) -> 1.598043125 | M87: =E87*'Γενικά Στοιχεία Οργανισμού'!$D$16/SUM('Γενικά Στοιχεία Οργανισμού'!$D$13:$D$24) -> 1.534248922 | N87: =D87*'Γενικά Στοιχεία Οργανισμού'!$D$17/SUM('Γενικά Στοιχεία Οργανισμού'!$D$13:$D$24) -> 1.615007489 | O87: =E87*'Γενικά Στοιχεία Οργανισμού'!$D$17/SUM('Γενικά Στοιχεία Οργανισμού'!$D$13:$D$24) -> 1.550536065 | P87: =D87*'Γενικά Στοιχεία Οργανισμού'!$D$18/SUM('Γενικά Στοιχεία Οργανισμού'!$D$13:$D$24) -> 2.59554775 | Q87: =E87*'Γενικά Στοιχεία Οργανισμού'!$D$18/SUM('Γενικά Στοιχεία Οργανισμού'!$D$13:$D$24) -> 2.491932962 | R87: =D87*'Γενικά Στοιχεία Οργανισμού'!$D$19/SUM('Γενικά Στοιχεία Οργανισμού'!$D$13:$D$24) -> 4.217340985 | S87: =E87*'Γενικά Στοιχεία Οργανισμού'!$D$19/SUM('Γενικά Στοιχεία Οργανισμού'!$D$13:$D$24) -> 4.048983885 | T87: =D87*'Γενικά Στοιχεία Οργανισμού'!$D$20/SUM('Γενικά Στοιχεία Οργανισμού'!$D$13:$D$24) -> 1.696436438 | U87: =E87*'Γενικά Στοιχεία Οργανισμού'!$D$20/SUM('Γενικά Στοιχεία Οργανισμού'!$D$13:$D$24) -> 1.628714354 | V87: =D87*'Γενικά Στοιχεία Οργανισμού'!$D$21/SUM('Γενικά Στοιχεία Οργανισμού'!$D$13:$D$24) -> 2.127331293 | W87: =E87*'Γενικά Στοιχεία Οργανισμού'!$D$21/SUM('Γενικά Στοιχεία Οργανισμού'!$D$13:$D$24) -> 2.0424078 | X87: =D87*'Γενικά Στοιχεία Οργανισμού'!$D$22/SUM('Γενικά Στοιχεία Οργανισμού'!$D$13:$D$24) -> 1.615007489 | Y87: =E87*'Γενικά Στοιχεία Οργανισμού'!$D$22/SUM('Γενικά Στοιχεία Οργανισμού'!$D$13:$D$24) -> 1.550536065 | Z87: =D87*'Γενικά Στοιχεία Οργανισμού'!$D$23/SUM('Γενικά Στοιχεία Οργανισμού'!$D$13:$D$24) -> 2.127331293 | AA87: =E87*'Γενικά Στοιχεία Οργανισμού'!$D$23/SUM('Γενικά Στοιχεία Οργανισμού'!$D$13:$D$24) -> 2.0424078 | AB87: =D87*'Γενικά Στοιχεία Οργανισμού'!$D$24/SUM('Γενικά Στοιχεία Οργανισμού'!$D$13:$D$24) -> 2.062866709 | AC87: =E87*'Γενικά Στοιχεία Οργανισμού'!$D$24/SUM('Γενικά Στοιχεία Οργανισμού'!$D$13:$D$24) -> 1.980516655
E88: ='Υπολογισμός Αν. Απ.'!O34 -> 0.006807461944 | G88: 0 | I88: 0 | K88: 0 | M88: =E88*'Γενικά Στοιχεία Οργανισμού'!$D$16/SUM('Γενικά Στοιχεία Οργανισμού'!$D$13:$D$24) -> 0.000553480852 | O88: =E88*'Γενικά Στοιχεία Οργανισμού'!$D$17/SUM('Γενικά Στοιχεία Οργανισμού'!$D$13:$D$24) -> 0.0005593564449 | Q88: =E88*'Γενικά Στοιχεία Οργανισμού'!$D$18/SUM('Γενικά Στοιχεία Οργανισμού'!$D$13:$D$24) -> 0.000898965715 | S88: =E88*'Γενικά Στοιχεία Οργανισμού'!$D$19/SUM('Γενικά Στοιχεία Οργανισμού'!$D$13:$D$24) -> 0.001460672397 | U88: =E88*'Γενικά Στοιχεία Οργανισμού'!$D$20/SUM('Γενικά Στοιχεία Οργανισμού'!$D$13:$D$24) -> 0.0005875592908 | W88: =E88*'Γενικά Στοιχεία Οργανισμού'!$D$21/SUM('Γενικά Στοιχεία Οργανισμού'!$D$13:$D$24) -> 0.0007367993507 | Y88: =E88*'Γενικά Στοιχεία Οργανισμού'!$D$22/SUM('Γενικά Στοιχεία Οργανισμού'!$D$13:$D$24) -> 0.0005593564449 | AA88: =E88*'Γενικά Στοιχεία Οργανισμού'!$D$23/SUM('Γενικά Στοιχεία Οργανισμού'!$D$13:$D$24) -> 0.0007367993507 | AC88: =E88*'Γενικά Στοιχεία Οργανισμού'!$D$24/SUM('Γενικά Στοιχεία Οργανισμού'!$D$13:$D$24) -> 0.0007144720977
E89: ='Υπολογισμός Αν. Απ.'!P34 -> 0.002178387822 | G89: 0 | I89: 0 | K89: 0 | M89: =E89*'Γενικά Στοιχεία Οργανισμού'!$D$16/SUM('Γενικά Στοιχεία Οργανισμού'!$D$13:$D$24) -> 0.0001771138726 | O89: =E89*'Γενικά Στοιχεία Οργανισμού'!$D$17/SUM('Γενικά Στοιχεία Οργανισμού'!$D$13:$D$24) -> 0.0001789940624 | Q89: =E89*'Γενικά Στοιχεία Οργανισμού'!$D$18/SUM('Γενικά Στοιχεία Οργανισμού'!$D$13:$D$24) -> 0.0002876690288 | S89: =E89*'Γενικά Στοιχεία Οργανισμού'!$D$19/SUM('Γενικά Στοιχεία Οργανισμού'!$D$13:$D$24) -> 0.0004674151671 | U89: =E89*'Γενικά Στοιχεία Οργανισμού'!$D$20/SUM('Γενικά Στοιχεία Οργανισμού'!$D$13:$D$24) -> 0.0001880189731 | W89: =E89*'Γενικά Στοιχεία Οργανισμού'!$D$21/SUM('Γενικά Στοιχεία Οργανισμού'!$D$13:$D$24) -> 0.0002357757922 | Y89: =E89*'Γενικά Στοιχεία Οργανισμού'!$D$22/SUM('Γενικά Στοιχεία Οργανισμού'!$D$13:$D$24) -> 0.0001789940624 | AA89: =E89*'Γενικά Στοιχεία Οργανισμού'!$D$23/SUM('Γενικά Στοιχεία Οργανισμού'!$D$13:$D$24) -> 0.0002357757922 | AC89: =E89*'Γενικά Στοιχεία Οργανισμού'!$D$24/SUM('Γενικά Στοιχεία Οργανισμού'!$D$13:$D$24) -> 0.0002286310713
C90: Φυσικό Αέριο Κινησης (Λεωφορείο) | D90: ='Υπολογισμός Αν. Απ.'!Q35 -> 4.155419217 | E90: ='Υπολογισμός Αν. Απ.'!N35 -> 3.89311008 | F90: 0 | G90: 0 | H90: 0 | I90: 0 | J90: 0 | K90: 0 | L90: =D90*'Γενικά Στοιχεία Οργανισμού'!$D$16/SUM('Γενικά Στοιχεία Οργανισμού'!$D$13:$D$24) -> 0.3378564563 | M90: =E90*'Γενικά Στοιχεία Οργανισμού'!$D$16/SUM('Γενικά Στοιχεία Οργανισμού'!$D$13:$D$24) -> 0.3165294058 | N90: =D90*'Γενικά Στοιχεία Οργανισμού'!$D$17/SUM('Γενικά Στοιχεία Οργανισμού'!$D$13:$D$24) -> 0.3414430428 | O90: =E90*'Γενικά Στοιχεία Οργανισμού'!$D$17/SUM('Γενικά Στοιχεία Οργανισμού'!$D$13:$D$24) -> 0.3198895906 | P90: =D90*'Γενικά Στοιχεία Οργανισμού'!$D$18/SUM('Γενικά Στοιχεία Οργανισμού'!$D$13:$D$24) -> 0.5487477474 | Q90: =E90*'Γενικά Στοιχεία Οργανισμού'!$D$18/SUM('Γενικά Στοιχεία Οργανισμού'!$D$13:$D$24) -> 0.5141082705 | R90: =D90*'Γενικά Στοιχεία Οργανισμού'!$D$19/SUM('Γενικά Στοιχεία Οργανισμού'!$D$13:$D$24) -> 0.8916254249 | S90: =E90*'Γενικά Στοιχεία Οργανισμού'!$D$19/SUM('Γενικά Στοιχεία Οργανισμού'!$D$13:$D$24) -> 0.835341935 | T90: =D90*'Γενικά Στοιχεία Οργανισμού'!$D$20/SUM('Γενικά Στοιχεία Οργανισμού'!$D$13:$D$24) -> 0.3586586585 | U90: =E90*'Γενικά Στοιχεία Οργανισμού'!$D$20/SUM('Γενικά Στοιχεία Οργανισμού'!$D$13:$D$24) -> 0.3360184775 | V90: =D90*'Γενικά Στοιχεία Οργανισμού'!$D$21/SUM('Γενικά Στοιχεία Οργανισμού'!$D$13:$D$24) -> 0.4497579577 | W90: =E90*'Γενικά Στοιχεία Οργανισμού'!$D$21/SUM('Γενικά Στοιχεία Οργανισμού'!$D$13:$D$24) -> 0.4213671708 | X90: =D90*'Γενικά Στοιχεία Οργανισμού'!$D$22/SUM('Γενικά Στοιχεία Οργανισμού'!$D$13:$D$24) -> 0.3414430428 | Y90: =E90*'Γενικά Στοιχεία Οργανισμού'!$D$22/SUM('Γενικά Στοιχεία Οργανισμού'!$D$13:$D$24) -> 0.3198895906 | Z90: =D90*'Γενικά Στοιχεία Οργανισμού'!$D$23/SUM('Γενικά Στοιχεία Οργανισμού'!$D$13:$D$24) -> 0.4497579577 | AA90: =E90*'Γενικά Στοιχεία Οργανισμού'!$D$23/SUM('Γενικά Στοιχεία Οργανισμού'!$D$13:$D$24) -> 0.4213671708 | AB90: =D90*'Γενικά Στοιχεία Οργανισμού'!$D$24/SUM('Γενικά Στοιχεία Οργανισμού'!$D$13:$D$24) -> 0.4361289287 | AC90: =E90*'Γενικά Στοιχεία Οργανισμού'!$D$24/SUM('Γενικά Στοιχεία Οργανισμού'!$D$13:$D$24) -> 0.4085984686
E91: ='Υπολογισμός Αν. Απ.'!O35 -> 0.00712923168 | G91: 0 | I91: 0 | K91: 0 | M91: =E91*'Γενικά Στοιχεία Οργανισμού'!$D$16/SUM('Γενικά Στοιχεία Οργανισμού'!$D$13:$D$24) -> 0.0005796423479 | O91: =E91*'Γενικά Στοιχεία Οργανισμού'!$D$17/SUM('Γενικά Στοιχεία Οργανισμού'!$D$13:$D$24) -> 0.0005857956637 | Q91: =E91*'Γενικά Στοιχεία Οργανισμού'!$D$18/SUM('Γενικά Στοιχεία Οργανισμού'!$D$13:$D$24) -> 0.0009414573166 | S91: =E91*'Γενικά Στοιχεία Οργανισμού'!$D$19/SUM('Γενικά Στοιχεία Οργανισμού'!$D$13:$D$24) -> 0.001529714307 | U91: =E91*'Γενικά Στοιχεία Οργανισμού'!$D$20/SUM('Γενικά Στοιχεία Οργανισμού'!$D$13:$D$24) -> 0.0006153315795 | W91: =E91*'Γενικά Στοιχεία Οργανισμού'!$D$21/SUM('Γενικά Στοιχεία Οργανισμού'!$D$13:$D$24) -> 0.0007716258007 | Y91: =E91*'Γενικά Στοιχεία Οργανισμού'!$D$22/SUM('Γενικά Στοιχεία Οργανισμού'!$D$13:$D$24) -> 0.0005857956637 | AA91: =E91*'Γενικά Στοιχεία Οργανισμού'!$D$23/SUM('Γενικά Στοιχεία Οργανισμού'!$D$13:$D$24) -> 0.0007716258007 | AC91: =E91*'Γενικά Στοιχεία Οργανισμού'!$D$24/SUM('Γενικά Στοιχεία Οργανισμού'!$D$13:$D$24) -> 0.0007482432007
E92: ='Υπολογισμός Αν. Απ.'!P35 -> 0.00023224752 | G92: 0 | I92: 0 | K92: 0 | M92: =E92*'Γενικά Στοιχεία Οργανισμού'!$D$16/SUM('Γενικά Στοιχεία Οργανισμού'!$D$13:$D$24) -> 1.888289003e-05 | O92: =E92*'Γενικά Στοιχεία Οργανισμού'!$D$17/SUM('Γενικά Στοιχεία Οργανισμού'!$D$13:$D$24) -> 1.908334533e-05 | Q92: =E92*'Γενικά Στοιχεία Οργανισμού'!$D$18/SUM('Γενικά Στοιχεία Οργανισμού'!$D$13:$D$24) -> 3.066966214e-05 | S92: =E92*'Γενικά Στοιχεία Οργανισμού'!$D$19/SUM('Γενικά Στοιχεία Οργανισμού'!$D$13:$D$24) -> 4.98331896e-05 | U92: =E92*'Γενικά Στοιχεία Οργανισμού'!$D$20/SUM('Γενικά Στοιχεία Οργανισμού'!$D$13:$D$24) -> 2.004553081e-05 | W92: =E92*'Γενικά Στοιχεία Οργανισμού'!$D$21/SUM('Γενικά Στοιχεία Οργανισμού'!$D$13:$D$24) -> 2.513709564e-05 | Y92: =E92*'Γενικά Στοιχεία Οργανισμού'!$D$22/SUM('Γενικά Στοιχεία Οργανισμού'!$D$13:$D$24) -> 1.908334533e-05 | AA92: =E92*'Γενικά Στοιχεία Οργανισμού'!$D$23/SUM('Γενικά Στοιχεία Οργανισμού'!$D$13:$D$24) -> 2.513709564e-05 | AC92: =E92*'Γενικά Στοιχεία Οργανισμού'!$D$24/SUM('Γενικά Στοιχεία Οργανισμού'!$D$13:$D$24) -> 2.437536547e-05
C93: Ηλεκτρική Ενέργεια (Επιβατικό) | D93: ='Υπολογισμός Αν. Απ.'!Q36 -> 1.902420701 | E93: ='Υπολογισμός Αν. Απ.'!N36 -> 1.89918288 | F93: 0 | G93: 0 | H93: 0 | I93: 0 | J93: 0 | K93: 0 | L93: =D93*'Γενικά Στοιχεία Οργανισμού'!$D$16/SUM('Γενικά Στοιχεία Οργανισμού'!$D$13:$D$24) -> 0.1546763594 | M93: =E93*'Γενικά Στοιχεία Οργανισμού'!$D$16/SUM('Γενικά Στοιχεία Οργανισμού'!$D$13:$D$24) -> 0.1544131083 | N93: =D93*'Γενικά Στοιχεία Οργανισμού'!$D$17/SUM('Γενικά Στοιχεία Οργανισμού'!$D$13:$D$24) -> 0.156318359 | O93: =E93*'Γενικά Στοιχεία Οργανισμού'!$D$17/SUM('Γενικά Στοιχεία Οργανισμού'!$D$13:$D$24) -> 0.1560523133 | P93: =D93*'Γενικά Στοιχεία Οργανισμού'!$D$18/SUM('Γενικά Στοιχεία Οργανισμού'!$D$13:$D$24) -> 0.2512259341 | Q93: =E93*'Γενικά Στοιχεία Οργανισμού'!$D$18/SUM('Γενικά Στοιχεία Οργανισμού'!$D$13:$D$24) -> 0.2507983606 | R93: =D93*'Γενικά Στοιχεία Οργανισμού'!$D$19/SUM('Γενικά Στοιχεία Οργανισμού'!$D$13:$D$24) -> 0.4082010929 | S93: =E93*'Γενικά Στοιχεία Οργανισμού'!$D$19/SUM('Γενικά Στοιχεία Οργανισμού'!$D$13:$D$24) -> 0.4075063559 | T93: =D93*'Γενικά Στοιχεία Οργανισμού'!$D$20/SUM('Γενικά Στοιχεία Οργανισμού'!$D$13:$D$24) -> 0.1641999569 | U93: =E93*'Γενικά Στοιχεία Οργανισμού'!$D$20/SUM('Γενικά Στοιχεία Οργανισμού'!$D$13:$D$24) -> 0.1639204972 | V93: =D93*'Γενικά Στοιχεία Οργανισμού'!$D$21/SUM('Γενικά Στοιχεία Οργανισμού'!$D$13:$D$24) -> 0.205906746 | W93: =E93*'Γενικά Στοιχεία Οργανισμού'!$D$21/SUM('Γενικά Στοιχεία Οργανισμού'!$D$13:$D$24) -> 0.2055563034 | X93: =D93*'Γενικά Στοιχεία Οργανισμού'!$D$22/SUM('Γενικά Στοιχεία Οργανισμού'!$D$13:$D$24) -> 0.156318359 | Y93: =E93*'Γενικά Στοιχεία Οργανισμού'!$D$22/SUM('Γενικά Στοιχεία Οργανισμού'!$D$13:$D$24) -> 0.1560523133 | Z93: =D93*'Γενικά Στοιχεία Οργανισμού'!$D$23/SUM('Γενικά Στοιχεία Οργανισμού'!$D$13:$D$24) -> 0.205906746 | AA93: =E93*'Γενικά Στοιχεία Οργανισμού'!$D$23/SUM('Γενικά Στοιχεία Οργανισμού'!$D$13:$D$24) -> 0.2055563034 | AB93: =D93*'Γενικά Στοιχεία Οργανισμού'!$D$24/SUM('Γενικά Στοιχεία Οργανισμού'!$D$13:$D$24) -> 0.1996671476 | AC93: =E93*'Γενικά Στοιχεία Οργανισμού'!$D$24/SUM('Γενικά Στοιχεία Οργανισμού'!$D$13:$D$24) -> 0.1993273245
E94: ='Υπολογισμός Αν. Απ.'!O36 -> 2.332618579e-05 | G94: 0 | I94: 0 | K94: 0 | M94: =E94*'Γενικά Στοιχεία Οργανισμού'!$D$16/SUM('Γενικά Στοιχεία Οργανισμού'!$D$13:$D$24) -> 1.896536079e-06 | O94: =E94*'Γενικά Στοιχεία Οργανισμού'!$D$17/SUM('Γενικά Στοιχεία Οργανισμού'!$D$13:$D$24) -> 1.916669159e-06 | Q94: =E94*'Γενικά Στοιχεία Οργανισμού'!$D$18/SUM('Γενικά Στοιχεία Οργανισμού'!$D$13:$D$24) -> 3.080361148e-06 | S94: =E94*'Γενικά Στοιχεία Οργανισμού'!$D$19/SUM('Γενικά Στοιχεία Οργανισμού'!$D$13:$D$24) -> 5.005083539e-06 | U94: =E94*'Γενικά Στοιχεία Οργανισμού'!$D$20/SUM('Γενικά Στοιχεία Οργανισμού'!$D$13:$D$24) -> 2.01330794e-06 | W94: =E94*'Γενικά Στοιχεία Οργανισμού'!$D$21/SUM('Γενικά Στοιχεία Οργανισμού'!$D$13:$D$24) -> 2.524688157e-06 | Y94: =E94*'Γενικά Στοιχεία Οργανισμού'!$D$22/SUM('Γενικά Στοιχεία Οργανισμού'!$D$13:$D$24) -> 1.916669159e-06 | AA94: =E94*'Γενικά Στοιχεία Οργανισμού'!$D$23/SUM('Γενικά Στοιχεία Οργανισμού'!$D$13:$D$24) -> 2.524688157e-06 | AC94: =E94*'Γενικά Στοιχεία Οργανισμού'!$D$24/SUM('Γενικά Στοιχεία Οργανισμού'!$D$13:$D$24) -> 2.448182455e-06
E95: ='Υπολογισμός Αν. Απ.'!P36 -> 9.47626512e-06 | G95: 0 | I95: 0 | K95: 0 | M95: =E95*'Γενικά Στοιχεία Οργανισμού'!$D$16/SUM('Γενικά Στοιχεία Οργανισμού'!$D$13:$D$24) -> 7.704679564e-07 | O95: =E95*'Γενικά Στοιχεία Οργανισμού'!$D$17/SUM('Γενικά Στοιχεία Οργανισμού'!$D$13:$D$24) -> 7.786470218e-07 | Q95: =E95*'Γενικά Στοιχεία Οργανισμού'!$D$18/SUM('Γενικά Στοιχεία Οργανισμού'!$D$13:$D$24) -> 1.251396999e-06 | S95: =E95*'Γενικά Στοιχεία Οργανισμού'!$D$19/SUM('Γενικά Στοιχεία Οργανισμού'!$D$13:$D$24) -> 2.033315647e-06 | U95: =E95*'Γενικά Στοιχεία Οργανισμού'!$D$20/SUM('Γενικά Στοιχεία Οργανισμού'!$D$13:$D$24) -> 8.179065355e-07 | W95: =E95*'Γενικά Στοιχεία Οργανισμού'!$D$21/SUM('Γενικά Στοιχεία Οργανισμού'!$D$13:$D$24) -> 1.025654795e-06 | Y95: =E95*'Γενικά Στοιχεία Οργανισμού'!$D$22/SUM('Γενικά Στοιχεία Οργανισμού'!$D$13:$D$24) -> 7.786470218e-07 | AA95: =E95*'Γενικά Στοιχεία Οργανισμού'!$D$23/SUM('Γενικά Στοιχεία Οργανισμού'!$D$13:$D$24) -> 1.025654795e-06 | AC95: =E95*'Γενικά Στοιχεία Οργανισμού'!$D$24/SUM('Γενικά Στοιχεία Οργανισμού'!$D$13:$D$24) -> 9.945743471e-07
C96: Ηλεκτρική Ενέργεια (Λεωφορείο / Τρόλεϊ) | D96: ='Υπολογισμός Αν. Απ.'!Q37 -> 3.490102683 | E96: ='Υπολογισμός Αν. Απ.'!N37 -> 3.48416271 | F96: 0 | G96: 0 | H96: 0 | I96: 0 | J96: 0 | K96: 0 | L96: =D96*'Γενικά Στοιχεία Οργανισμού'!$D$16/SUM('Γενικά Στοιχεία Οργανισμού'!$D$13:$D$24) -> 0.28376288 | M96: =E96*'Γενικά Στοιχεία Οργανισμού'!$D$16/SUM('Γενικά Στοιχεία Οργανισμού'!$D$13:$D$24) -> 0.2832799303 | N96: =D96*'Γενικά Στοιχεία Οργανισμού'!$D$17/SUM('Γενικά Στοιχεία Οργανισμού'!$D$13:$D$24) -> 0.2867752248 | O96: =E96*'Γενικά Στοιχεία Οργανισμού'!$D$17/SUM('Γενικά Στοιχεία Οργανισμού'!$D$13:$D$24) -> 0.2862871483 | P96: =D96*'Γενικά Στοιχεία Οργανισμού'!$D$18/SUM('Γενικά Στοιχεία Οργανισμού'!$D$13:$D$24) -> 0.4608887541 | Q96: =E96*'Γενικά Στοιχεία Οργανισμού'!$D$18/SUM('Γενικά Στοιχεία Οργανισμού'!$D$13:$D$24) -> 0.4601043454 | R96: =D96*'Γενικά Στοιχεία Οργανισμού'!$D$19/SUM('Γενικά Στοιχεία Οργανισμού'!$D$13:$D$24) -> 0.7488689168 | S96: =E96*'Γενικά Στοιχεία Οργανισμού'!$D$19/SUM('Γενικά Στοιχεία Οργανισμού'!$D$13:$D$24) -> 0.7475943809 | T96: =D96*'Γενικά Στοιχεία Οργανισμού'!$D$20/SUM('Γενικά Στοιχεία Οργανισμού'!$D$13:$D$24) -> 0.3012344798 | U96: =E96*'Γενικά Στοιχεία Οργανισμού'!$D$20/SUM('Γενικά Στοιχεία Οργανισμού'!$D$13:$D$24) -> 0.3007217944 | V96: =D96*'Γενικά Στοιχεία Οργανισμού'!$D$21/SUM('Γενικά Στοιχεία Οργανισμού'!$D$13:$D$24) -> 0.3777480377 | W96: =E96*'Γενικά Στοιχεία Οργανισμού'!$D$21/SUM('Γενικά Στοιχεία Οργανισμού'!$D$13:$D$24) -> 0.3771051302 | X96: =D96*'Γενικά Στοιχεία Οργανισμού'!$D$22/SUM('Γενικά Στοιχεία Οργανισμού'!$D$13:$D$24) -> 0.2867752248 | Y96: =E96*'Γενικά Στοιχεία Οργανισμού'!$D$22/SUM('Γενικά Στοιχεία Οργανισμού'!$D$13:$D$24) -> 0.2862871483 | Z96: =D96*'Γενικά Στοιχεία Οργανισμού'!$D$23/SUM('Γενικά Στοιχεία Οργανισμού'!$D$13:$D$24) -> 0.3777480377 | AA96: =E96*'Γενικά Στοιχεία Οργανισμού'!$D$23/SUM('Γενικά Στοιχεία Οργανισμού'!$D$13:$D$24) -> 0.3771051302 | AB96: =D96*'Γενικά Στοιχεία Οργανισμού'!$D$24/SUM('Γενικά Στοιχεία Οργανισμού'!$D$13:$D$24) -> 0.3663011274 | AC96: =E96*'Γενικά Στοιχεία Οργανισμού'!$D$24/SUM('Γενικά Στοιχεία Οργανισμού'!$D$13:$D$24) -> 0.365677702
E97: ='Υπολογισμός Αν. Απ.'!O37 -> 4.279325996e-05 | G97: 0 | I97: 0 | K97: 0 | M97: =E97*'Γενικά Στοιχεία Οργανισμού'!$D$16/SUM('Γενικά Στοιχεία Οργανισμού'!$D$13:$D$24) -> 3.479306999e-06 | O97: =E97*'Γενικά Στοιχεία Οργανισμού'!$D$17/SUM('Γενικά Στοιχεία Οργανισμού'!$D$13:$D$24) -> 3.516242317e-06 | Q97: =E97*'Γενικά Στοιχεία Οργανισμού'!$D$18/SUM('Γενικά Στοιχεία Οργανισμού'!$D$13:$D$24) -> 5.651103724e-06 | S97: =E97*'Γενικά Στοιχεία Οργανισμού'!$D$19/SUM('Γενικά Στοιχεία Οργανισμού'!$D$13:$D$24) -> 9.182120168e-06 | U97: =E97*'Γενικά Στοιχεία Οργανισμού'!$D$20/SUM('Γενικά Στοιχεία Οργανισμού'!$D$13:$D$24) -> 3.693531846e-06 | W97: =E97*'Γενικά Στοιχεία Οργανισμού'!$D$21/SUM('Γενικά Στοιχεία Οργανισμού'!$D$13:$D$24) -> 4.631688934e-06 | Y97: =E97*'Γενικά Στοιχεία Οργανισμού'!$D$22/SUM('Γενικά Στοιχεία Οργανισμού'!$D$13:$D$24) -> 3.516242317e-06 | AA97: =E97*'Γενικά Στοιχεία Οργανισμού'!$D$23/SUM('Γενικά Στοιχεία Οργανισμού'!$D$13:$D$24) -> 4.631688934e-06 | AC97: =E97*'Γενικά Στοιχεία Οργανισμού'!$D$24/SUM('Γενικά Στοιχεία Οργανισμού'!$D$13:$D$24) -> 4.491334724e-06
E98: ='Υπολογισμός Αν. Απ.'!P37 -> 1.738476579e-05 | G98: 0 | I98: 0 | K98: 0 | M98: =E98*'Γενικά Στοιχεία Οργανισμού'!$D$16/SUM('Γενικά Στοιχεία Οργανισμού'!$D$13:$D$24) -> 1.413468788e-06 | O98: =E98*'Γενικά Στοιχεία Οργανισμού'!$D$17/SUM('Γενικά Στοιχεία Οργανισμού'!$D$13:$D$24) -> 1.428473764e-06 | Q98: =E98*'Γενικά Στοιχεία Οργανισμού'!$D$18/SUM('Γενικά Στοιχεία Οργανισμού'!$D$13:$D$24) -> 2.295761407e-06 | S98: =E98*'Γενικά Στοιχεία Οργανισμού'!$D$19/SUM('Γενικά Στοιχεία Οργανισμού'!$D$13:$D$24) -> 3.730237162e-06 | U98: =E98*'Γενικά Στοιχεία Οργανισμού'!$D$20/SUM('Γενικά Στοιχεία Οργανισμού'!$D$13:$D$24) -> 1.500497651e-06 | W98: =E98*'Γενικά Στοιχεία Οργανισμού'!$D$21/SUM('Γενικά Στοιχεία Οργανισμού'!$D$13:$D$24) -> 1.881624055e-06 | Y98: =E98*'Γενικά Στοιχεία Οργανισμού'!$D$22/SUM('Γενικά Στοιχεία Οργανισμού'!$D$13:$D$24) -> 1.428473764e-06 | AA98: =E98*'Γενικά Στοιχεία Οργανισμού'!$D$23/SUM('Γενικά Στοιχεία Οργανισμού'!$D$13:$D$24) -> 1.881624055e-06 | AC98: =E98*'Γενικά Στοιχεία Οργανισμού'!$D$24/SUM('Γενικά Στοιχεία Οργανισμού'!$D$13:$D$24) -> 1.824605144e-06
C99: Ηλεκτρική Ενέργεια (Συρμοί) | D99: ='Υπολογισμός Αν. Απ.'!Q38 -> 285.76677 | E99: ='Υπολογισμός Αν. Απ.'!N38 -> 285.2804099 | F99: 0 | G99: 0 | H99: 0 | I99: 0 | J99: 0 | K99: 0 | L99: =D99*'Γενικά Στοιχεία Οργανισμού'!$D$16/SUM('Γενικά Στοιχεία Οργανισμού'!$D$13:$D$24) -> 23.2342739 | M99: =E99*'Γενικά Στοιχεία Οργανισμού'!$D$16/SUM('Γενικά Στοιχεία Οργανισμού'!$D$13:$D$24) -> 23.19473037 | N99: =D99*'Γενικά Στοιχεία Οργανισμού'!$D$17/SUM('Γενικά Στοιχεία Οργανισμού'!$D$13:$D$24) -> 23.48092224 | O99: =E99*'Γενικά Στοιχεία Οργανισμού'!$D$17/SUM('Γενικά Στοιχεία Οργανισμού'!$D$13:$D$24) -> 23.44095893 | P99: =D99*'Γενικά Στοιχεία Οργανισμού'!$D$18/SUM('Γενικά Στοιχεία Οργανισμού'!$D$13:$D$24) -> 37.73719646 | Q99: =E99*'Γενικά Στοιχεία Οργανισμού'!$D$18/SUM('Γενικά Στοιχεία Οργανισμού'!$D$13:$D$24) -> 37.67296971 | R99: =D99*'Γενικά Στοιχεία Οργανισμού'!$D$19/SUM('Γενικά Στοιχεία Οργανισμού'!$D$13:$D$24) -> 61.31677804 | S99: =E99*'Γενικά Στοιχεία Οργανισμού'!$D$19/SUM('Γενικά Στοιχεία Οργανισμού'!$D$13:$D$24) -> 61.21242007 | T99: =D99*'Γενικά Στοιχεία Οργανισμού'!$D$20/SUM('Γενικά Στοιχεία Οργανισμού'!$D$13:$D$24) -> 24.66483429 | U99: =E99*'Γενικά Στοιχεία Οργανισμού'!$D$20/SUM('Γενικά Στοιχεία Οργανισμού'!$D$13:$D$24) -> 24.62285602 | V99: =D99*'Γενικά Στοιχεία Οργανισμού'!$D$21/SUM('Γενικά Στοιχεία Οργανισμού'!$D$13:$D$24) -> 30.92970219 | W99: =E99*'Γενικά Στοιχεία Οργανισμού'!$D$21/SUM('Γενικά Στοιχεία Οργανισμού'!$D$13:$D$24) -> 30.87706145 | X99: =D99*'Γενικά Στοιχεία Οργανισμού'!$D$22/SUM('Γενικά Στοιχεία Οργανισμού'!$D$13:$D$24) -> 23.48092224 | Y99: =E99*'Γενικά Στοιχεία Οργανισμού'!$D$22/SUM('Γενικά Στοιχεία Οργανισμού'!$D$13:$D$24) -> 23.44095893 | Z99: =D99*'Γενικά Στοιχεία Οργανισμού'!$D$23/SUM('Γενικά Στοιχεία Οργανισμού'!$D$13:$D$24) -> 30.92970219 | AA99: =E99*'Γενικά Στοιχεία Οργανισμού'!$D$23/SUM('Γενικά Στοιχεία Οργανισμού'!$D$13:$D$24) -> 30.87706145 | AB99: =D99*'Γενικά Στοιχεία Οργανισμού'!$D$24/SUM('Γενικά Στοιχεία Οργανισμού'!$D$13:$D$24) -> 29.99243849 | AC99: =E99*'Γενικά Στοιχεία Οργανισμού'!$D$24/SUM('Γενικά Στοιχεία Οργανισμού'!$D$13:$D$24) -> 29.94139292
E100: ='Υπολογισμός Αν. Απ.'!O38 -> 0.003503877333 | G100: 0 | I100: 0 | K100: 0 | M100: =E100*'Γενικά Στοιχεία Οργανισμού'!$D$16/SUM('Γενικά Στοιχεία Οργανισμού'!$D$13:$D$24) -> 0.0002848828282 | O100: =E100*'Γενικά Στοιχεία Οργανισμού'!$D$17/SUM('Γενικά Στοιχεία Οργανισμού'!$D$13:$D$24) -> 0.000287907062 | Q100: =E100*'Γενικά Στοιχεία Οργανισμού'!$D$18/SUM('Γενικά Στοιχεία Οργανισμού'!$D$13:$D$24) -> 0.0004627077783 | S100: =E100*'Γενικά Στοιχεία Οργανισμού'!$D$19/SUM('Γενικά Στοιχεία Οργανισμού'!$D$13:$D$24) -> 0.0007518245338 | U100: =E100*'Γενικά Στοιχεία Οργανισμού'!$D$20/SUM('Γενικά Στοιχεία Οργανισμού'!$D$13:$D$24) -> 0.0003024233845 | W100: =E100*'Γενικά Στοιχεία Οργανισμού'!$D$21/SUM('Γενικά Στοιχεία Οργανισμού'!$D$13:$D$24) -> 0.0003792389241 | Y100: =E100*'Γενικά Στοιχεία Οργανισμού'!$D$22/SUM('Γενικά Στοιχεία Οργανισμού'!$D$13:$D$24) -> 0.000287907062 | AA100: =E100*'Γενικά Στοιχεία Οργανισμού'!$D$23/SUM('Γενικά Στοιχεία Οργανισμού'!$D$13:$D$24) -> 0.0003792389241 | AC100: =E100*'Γενικά Στοιχεία Οργανισμού'!$D$24/SUM('Γενικά Στοιχεία Οργανισμού'!$D$13:$D$24) -> 0.0003677468355
E101: ='Υπολογισμός Αν. Απ.'!P38 -> 0.001423450488 | G101: 0 | I101: 0 | K101: 0 | M101: =E101*'Γενικά Στοιχεία Οργανισμού'!$D$16/SUM('Γενικά Στοιχεία Οργανισμού'!$D$13:$D$24) -> 0.0001157336751 | O101: =E101*'Γενικά Στοιχεία Οργανισμού'!$D$17/SUM('Γενικά Στοιχεία Οργανισμού'!$D$13:$D$24) -> 0.0001169622704 | Q101: =E101*'Γενικά Στοιχεία Οργανισμού'!$D$18/SUM('Γενικά Στοιχεία Οργανισμού'!$D$13:$D$24) -> 0.0001879750774 | S101: =E101*'Γενικά Στοιχεία Οργανισμού'!$D$19/SUM('Γενικά Στοιχεία Οργανισμού'!$D$13:$D$24) -> 0.0003054287859 | U101: =E101*'Γενικά Στοιχεία Οργανισμού'!$D$20/SUM('Γενικά Στοιχεία Οργανισμού'!$D$13:$D$24) -> 0.0001228595277 | W101: =E101*'Γενικά Στοιχεία Οργανισμού'!$D$21/SUM('Γενικά Στοιχεία Οργανισμού'!$D$13:$D$24) -> 0.0001540658478 | Y101: =E101*'Γενικά Στοιχεία Οργανισμού'!$D$22/SUM('Γενικά Στοιχεία Οργανισμού'!$D$13:$D$24) -> 0.0001169622704 | AA101: =E101*'Γενικά Στοιχεία Οργανισμού'!$D$23/SUM('Γενικά Στοιχεία Οργανισμού'!$D$13:$D$24) -> 0.0001540658478 | AC101: =E101*'Γενικά Στοιχεία Οργανισμού'!$D$24/SUM('Γενικά Στοιχεία Οργανισμού'!$D$13:$D$24) -> 0.0001493971857
C102: Μετακίνηση Υπαλλήλων | D102: =SUM(D105:D128) -> 753.3992162 | E102: =E105+E108+E111+E117+E120+E123+E126+E114 -> 742.3912508 | F102: 0 | G102: 0 | H102: 0 | I102: 0 | J102: =D102*'Γενικά Στοιχεία Οργανισμού'!$D$9/SUM('Γενικά Στοιχεία Οργανισμού'!$E$13:$E$24,'Γενικά Στοιχεία Οργανισμού'!$D$9) -> 301.3596865 | K102: =E102*'Γενικά Στοιχεία Οργανισμού'!$D$9/SUM('Γενικά Στοιχεία Οργανισμού'!$E$13:$E$24,'Γενικά Στοιχεία Οργανισμού'!$D$9) -> 296.9565003 | L102: =D102*'Γενικά Στοιχεία Οργανισμού'!$E$16/SUM('Γενικά Στοιχεία Οργανισμού'!$E$13:$E$24,'Γενικά Στοιχεία Οργανισμού'!$D$9) -> 32.54684614 | M102: =E102*'Γενικά Στοιχεία Οργανισμού'!$E$16/SUM('Γενικά Στοιχεία Οργανισμού'!$E$13:$E$24,'Γενικά Στοιχεία Οργανισμού'!$D$9) -> 32.07130203 | N102: =D102*'Γενικά Στοιχεία Οργανισμού'!$E$17/SUM('Γενικά Στοιχεία Οργανισμού'!$E$13:$E$24,'Γενικά Στοιχεία Οργανισμού'!$D$9) -> 57.25834043 | O102: =E102*'Γενικά Στοιχεία Οργανισμού'!$E$17/SUM('Γενικά Στοιχεία Οργανισμού'!$E$13:$E$24,'Γενικά Στοιχεία Οργανισμού'!$D$9) -> 56.42173506 | P102: =D102*'Γενικά Στοιχεία Οργανισμού'!$E$18/SUM('Γενικά Στοιχεία Οργανισμού'!$E$13:$E$24,'Γενικά Στοιχεία Οργανισμού'!$D$9) -> 34.95772363 | Q102: =E102*'Γενικά Στοιχεία Οργανισμού'!$E$18/SUM('Γενικά Στοιχεία Οργανισμού'!$E$13:$E$24,'Γενικά Στοιχεία Οργανισμού'!$D$9) -> 34.44695404 | R102: =D102*'Γενικά Στοιχεία Οργανισμού'!$E$19/SUM('Γενικά Στοιχεία Οργανισμού'!$E$13:$E$24,'Γενικά Στοιχεία Οργανισμού'!$D$9) -> 54.24474357 | S102: =E102*'Γενικά Στοιχεία Οργανισμού'!$E$19/SUM('Γενικά Στοιχεία Οργανισμού'!$E$13:$E$24,'Γενικά Στοιχεία Οργανισμού'!$D$9) -> 53.45217006 | T102: =D102*'Γενικά Στοιχεία Οργανισμού'!$E$20/SUM('Γενικά Στοιχεία Οργανισμού'!$E$13:$E$24,'Γενικά Στοιχεία Οργανισμού'!$D$9) -> 79.55895723 | U102: =E102*'Γενικά Στοιχεία Οργανισμού'!$E$20/SUM('Γενικά Στοιχεία Οργανισμού'!$E$13:$E$24,'Γενικά Στοιχεία Οργανισμού'!$D$9) -> 78.39651608 | V102: =D102*'Γενικά Στοιχεία Οργανισμού'!$E$21/SUM('Γενικά Στοιχεία Οργανισμού'!$E$13:$E$24,'Γενικά Στοιχεία Οργανισμού'!$D$9) -> 18.08158119 | W102: =E102*'Γενικά Στοιχεία Οργανισμού'!$E$21/SUM('Γενικά Στοιχεία Οργανισμού'!$E$13:$E$24,'Γενικά Στοιχεία Οργανισμού'!$D$9) -> 17.81739002 | X102: =D102*'Γενικά Στοιχεία Οργανισμού'!$E$22/SUM('Γενικά Στοιχεία Οργανισμού'!$E$13:$E$24,'Γενικά Στοιχεία Οργανισμού'!$D$9) -> 45.20395297 | Y102: =E102*'Γενικά Στοιχεία Οργανισμού'!$E$22/SUM('Γενικά Στοιχεία Οργανισμού'!$E$13:$E$24,'Γενικά Στοιχεία Οργανισμού'!$D$9) -> 44.54347505 | Z102: =D102*'Γενικά Στοιχεία Οργανισμού'!$E$23/SUM('Γενικά Στοιχεία Οργανισμού'!$E$13:$E$24,'Γενικά Στοιχεία Οργανισμού'!$D$9) -> 70.51816663 | AA102: =E102*'Γενικά Στοιχεία Οργανισμού'!$E$23/SUM('Γενικά Στοιχεία Οργανισμού'!$E$13:$E$24,'Γενικά Στοιχεία Οργανισμού'!$D$9) -> 69.48782107 | AB102: =D102*'Γενικά Στοιχεία Οργανισμού'!$E$24/SUM('Γενικά Στοιχεία Οργανισμού'!$E$13:$E$24,'Γενικά Στοιχεία Οργανισμού'!$D$9) -> 59.66921792 | AC102: =E102*'Γενικά Στοιχεία Οργανισμού'!$E$24/SUM('Γενικά Στοιχεία Οργανισμού'!$E$13:$E$24,'Γενικά Στοιχεία Οργανισμού'!$D$9) -> 58.79738706
E103: =E106+E109+E112+E118+E121+E124+E127+E115 -> 0.1655513232 | G103: 0 | I103: 0 | K103: =E103*'Γενικά Στοιχεία Οργανισμού'!$D$9/SUM('Γενικά Στοιχεία Οργανισμού'!$E$13:$E$24,'Γενικά Στοιχεία Οργανισμού'!$D$9) -> 0.06622052928 | M103: =E103*'Γενικά Στοιχεία Οργανισμού'!$E$16/SUM('Γενικά Στοιχεία Οργανισμού'!$E$13:$E$24,'Γενικά Στοιχεία Οργανισμού'!$D$9) -> 0.007151817162 | O103: =E103*'Γενικά Στοιχεία Οργανισμού'!$E$17/SUM('Γενικά Στοιχεία Οργανισμού'!$E$13:$E$24,'Γενικά Στοιχεία Οργανισμού'!$D$9) -> 0.01258190056 | Q103: =E103*'Γενικά Στοιχεία Οργανισμού'!$E$18/SUM('Γενικά Στοιχεία Οργανισμού'!$E$13:$E$24,'Γενικά Στοιχεία Οργανισμού'!$D$9) -> 0.007681581397 | S103: =E103*'Γενικά Στοιχεία Οργανισμού'!$E$19/SUM('Γενικά Στοιχεία Οργανισμού'!$E$13:$E$24,'Γενικά Στοιχεία Οργανισμού'!$D$9) -> 0.01191969527 | U103: =E103*'Γενικά Στοιχεία Οργανισμού'!$E$20/SUM('Γενικά Στοιχεία Οργανισμού'!$E$13:$E$24,'Γενικά Στοιχεία Οργανισμού'!$D$9) -> 0.01748221973 | W103: =E103*'Γενικά Στοιχεία Οργανισμού'!$E$21/SUM('Γενικά Στοιχεία Οργανισμού'!$E$13:$E$24,'Γενικά Στοιχεία Οργανισμού'!$D$9) -> 0.003973231757 | Y103: =E103*'Γενικά Στοιχεία Οργανισμού'!$E$22/SUM('Γενικά Στοιχεία Οργανισμού'!$E$13:$E$24,'Γενικά Στοιχεία Οργανισμού'!$D$9) -> 0.009933079392 | AA103: =E103*'Γενικά Στοιχεία Οργανισμού'!$E$23/SUM('Γενικά Στοιχεία Οργανισμού'!$E$13:$E$24,'Γενικά Στοιχεία Οργανισμού'!$D$9) -> 0.01549560385 | AC103: =E103*'Γενικά Στοιχεία Οργανισμού'!$E$24/SUM('Γενικά Στοιχεία Οργανισμού'!$E$13:$E$24,'Γενικά Στοιχεία Οργανισμού'!$D$9) -> 0.0131116648
E104: =E107+E110+E113+E119+E122+E125+E128+E116 -> 0.01471982653 | G104: 0 | I104: 0 | K104: =E104*'Γενικά Στοιχεία Οργανισμού'!$D$9/SUM('Γενικά Στοιχεία Οργανισμού'!$E$13:$E$24,'Γενικά Στοιχεία Οργανισμού'!$D$9) -> 0.005887930613 | M104: =E104*'Γενικά Στοιχεία Οργανισμού'!$E$16/SUM('Γενικά Στοιχεία Οργανισμού'!$E$13:$E$24,'Γενικά Στοιχεία Οργανισμού'!$D$9) -> 0.0006358965062 | O104: =E104*'Γενικά Στοιχεία Οργανισμού'!$E$17/SUM('Γενικά Στοιχεία Οργανισμού'!$E$13:$E$24,'Γενικά Στοιχεία Οργανισμού'!$D$9) -> 0.001118706816 | Q104: =E104*'Γενικά Στοιχεία Οργανισμού'!$E$18/SUM('Γενικά Στοιχεία Οργανισμού'!$E$13:$E$24,'Γενικά Στοιχεία Οργανισμού'!$D$9) -> 0.0006829999511 | S104: =E104*'Γενικά Στοιχεία Οργανισμού'!$E$19/SUM('Γενικά Στοιχεία Οργανισμού'!$E$13:$E$24,'Γενικά Στοιχεία Οργανισμού'!$D$9) -> 0.00105982751 | U104: =E104*'Γενικά Στοιχεία Οργανισμού'!$E$20/SUM('Γενικά Στοιχεία Οργανισμού'!$E$13:$E$24,'Γενικά Στοιχεία Οργανισμού'!$D$9) -> 0.001554413682 | W104: =E104*'Γενικά Στοιχεία Οργανισμού'!$E$21/SUM('Γενικά Στοιχεία Οργανισμού'!$E$13:$E$24,'Γενικά Στοιχεία Οργανισμού'!$D$9) -> 0.0003532758368 | Y104: =E104*'Γενικά Στοιχεία Οργανισμού'!$E$22/SUM('Γενικά Στοιχεία Οργανισμού'!$E$13:$E$24,'Γενικά Στοιχεία Οργανισμού'!$D$9) -> 0.0008831895919 | AA104: =E104*'Γενικά Στοιχεία Οργανισμού'!$E$23/SUM('Γενικά Στοιχεία Οργανισμού'!$E$13:$E$24,'Γενικά Στοιχεία Οργανισμού'!$D$9) -> 0.001377775763 | AC104: =E104*'Γενικά Στοιχεία Οργανισμού'!$E$24/SUM('Γενικά Στοιχεία Οργανισμού'!$E$13:$E$24,'Γενικά Στοιχεία Οργανισμού'!$D$9) -> 0.001165810261
C105: Πετρέλαιο Κίνησης (Επιβατικό) | D105: ='Υπολογισμός Αν. Απ.'!Q42 -> 63.23540574 | E105: ='Υπολογισμός Αν. Απ.'!N42 -> 62.54913589 | F105: 0 | G105: 0 | H105: 0 | I105: 0 | J105: =D105*'Γενικά Στοιχεία Οργανισμού'!$D$9/SUM('Γενικά Στοιχεία Οργανισμού'!$E$13:$E$24,'Γενικά Στοιχεία Οργανισμού'!$D$9) -> 25.2941623 | K105: =E105*'Γενικά Στοιχεία Οργανισμού'!$D$9/SUM('Γενικά Στοιχεία Οργανισμού'!$E$13:$E$24,'Γενικά Στοιχεία Οργανισμού'!$D$9) -> 25.01965436 | L105: =D105*'Γενικά Στοιχεία Οργανισμού'!$E$16/SUM('Γενικά Στοιχεία Οργανισμού'!$E$13:$E$24,'Γενικά Στοιχεία Οργανισμού'!$D$9) -> 2.731769528 | M105: =E105*'Γενικά Στοιχεία Οργανισμού'!$E$16/SUM('Γενικά Στοιχεία Οργανισμού'!$E$13:$E$24,'Γενικά Στοιχεία Οργανισμού'!$D$9) -> 2.702122671 | N105: =D105*'Γενικά Στοιχεία Οργανισμού'!$E$17/SUM('Γενικά Στοιχεία Οργανισμού'!$E$13:$E$24,'Γενικά Στοιχεία Οργανισμού'!$D$9) -> 4.805890836 | O105: =E105*'Γενικά Στοιχεία Οργανισμού'!$E$17/SUM('Γενικά Στοιχεία Οργανισμού'!$E$13:$E$24,'Γενικά Στοιχεία Οργανισμού'!$D$9) -> 4.753734328 | P105: =D105*'Γενικά Στοιχεία Οργανισμού'!$E$18/SUM('Γενικά Στοιχεία Οργανισμού'!$E$13:$E$24,'Γενικά Στοιχεία Οργανισμού'!$D$9) -> 2.934122826 | Q105: =E105*'Γενικά Στοιχεία Οργανισμού'!$E$18/SUM('Γενικά Στοιχεία Οργανισμού'!$E$13:$E$24,'Γενικά Στοιχεία Οργανισμού'!$D$9) -> 2.902279905 | R105: =D105*'Γενικά Στοιχεία Οργανισμού'!$E$19/SUM('Γενικά Στοιχεία Οργανισμού'!$E$13:$E$24,'Γενικά Στοιχεία Οργανισμού'!$D$9) -> 4.552949213 | S105: =E105*'Γενικά Στοιχεία Οργανισμού'!$E$19/SUM('Γενικά Στοιχεία Οργανισμού'!$E$13:$E$24,'Γενικά Στοιχεία Οργανισμού'!$D$9) -> 4.503537784 | T105: =D105*'Γενικά Στοιχεία Οργανισμού'!$E$20/SUM('Γενικά Στοιχεία Οργανισμού'!$E$13:$E$24,'Γενικά Στοιχεία Οργανισμού'!$D$9) -> 6.677658846 | U105: =E105*'Γενικά Στοιχεία Οργανισμού'!$E$20/SUM('Γενικά Στοιχεία Οργανισμού'!$E$13:$E$24,'Γενικά Στοιχεία Οργανισμού'!$D$9) -> 6.60518875 | V105: =D105*'Γενικά Στοιχεία Οργανισμού'!$E$21/SUM('Γενικά Στοιχεία Οργανισμού'!$E$13:$E$24,'Γενικά Στοιχεία Οργανισμού'!$D$9) -> 1.517649738 | W105: =E105*'Γενικά Στοιχεία Οργανισμού'!$E$21/SUM('Γενικά Στοιχεία Οργανισμού'!$E$13:$E$24,'Γενικά Στοιχεία Οργανισμού'!$D$9) -> 1.501179261 | X105: =D105*'Γενικά Στοιχεία Οργανισμού'!$E$22/SUM('Γενικά Στοιχεία Οργανισμού'!$E$13:$E$24,'Γενικά Στοιχεία Οργανισμού'!$D$9) -> 3.794124345 | Y105: =E105*'Γενικά Στοιχεία Οργανισμού'!$E$22/SUM('Γενικά Στοιχεία Οργανισμού'!$E$13:$E$24,'Γενικά Στοιχεία Οργανισμού'!$D$9) -> 3.752948154 | Z105: =D105*'Γενικά Στοιχεία Οργανισμού'!$E$23/SUM('Γενικά Στοιχεία Οργανισμού'!$E$13:$E$24,'Γενικά Στοιχεία Οργανισμού'!$D$9) -> 5.918833977 | AA105: =E105*'Γενικά Στοιχεία Οργανισμού'!$E$23/SUM('Γενικά Στοιχεία Οργανισμού'!$E$13:$E$24,'Γενικά Στοιχεία Οργανισμού'!$D$9) -> 5.85459912 | AB105: =D105*'Γενικά Στοιχεία Οργανισμού'!$E$24/SUM('Γενικά Στοιχεία Οργανισμού'!$E$13:$E$24,'Γενικά Στοιχεία Οργανισμού'!$D$9) -> 5.008244135 | AC105: =E105*'Γενικά Στοιχεία Οργανισμού'!$E$24/SUM('Γενικά Στοιχεία Οργανισμού'!$E$13:$E$24,'Γενικά Στοιχεία Οργανισμού'!$D$9) -> 4.953891563
E106: ='Υπολογισμός Αν. Απ.'!O42 -> 2.562438996e-05 | G106: 0 | I106: 0 | K106: =E106*'Γενικά Στοιχεία Οργανισμού'!$D$9/SUM('Γενικά Στοιχεία Οργανισμού'!$E$13:$E$24,'Γενικά Στοιχεία Οργανισμού'!$D$9) -> 1.024975598e-05 | M106: =E106*'Γενικά Στοιχεία Οργανισμού'!$E$16/SUM('Γενικά Στοιχεία Οργανισμού'!$E$13:$E$24,'Γενικά Στοιχεία Οργανισμού'!$D$9) -> 1.106973646e-06 | O106: =E106*'Γενικά Στοιχεία Οργανισμού'!$E$17/SUM('Γενικά Στοιχεία Οργανισμού'!$E$13:$E$24,'Γενικά Στοιχεία Οργανισμού'!$D$9) -> 1.947453637e-06 | Q106: =E106*'Γενικά Στοιχεία Οργανισμού'!$E$18/SUM('Γενικά Στοιχεία Οργανισμού'!$E$13:$E$24,'Γενικά Στοιχεία Οργανισμού'!$D$9) -> 1.188971694e-06 | S106: =E106*'Γενικά Στοιχεία Οργανισμού'!$E$19/SUM('Γενικά Στοιχεία Οργανισμού'!$E$13:$E$24,'Γενικά Στοιχεία Οργανισμού'!$D$9) -> 1.844956077e-06 | U106: =E106*'Γενικά Στοιχεία Οργανισμού'!$E$20/SUM('Γενικά Στοιχεία Οργανισμού'!$E$13:$E$24,'Γενικά Στοιχεία Οργανισμού'!$D$9) -> 2.70593558e-06 | W106: =E106*'Γενικά Στοιχεία Οργανισμού'!$E$21/SUM('Γενικά Στοιχεία Οργανισμού'!$E$13:$E$24,'Γενικά Στοιχεία Οργανισμού'!$D$9) -> 6.14985359e-07 | Y106: =E106*'Γενικά Στοιχεία Οργανισμού'!$E$22/SUM('Γενικά Στοιχεία Οργανισμού'!$E$13:$E$24,'Γενικά Στοιχεία Οργανισμού'!$D$9) -> 1.537463398e-06 | AA106: =E106*'Γενικά Στοιχεία Οργανισμού'!$E$23/SUM('Γενικά Στοιχεία Οργανισμού'!$E$13:$E$24,'Γενικά Στοιχεία Οργανισμού'!$D$9) -> 2.3984429e-06 | AC106: =E106*'Γενικά Στοιχεία Οργανισμού'!$E$24/SUM('Γενικά Στοιχεία Οργανισμού'!$E$13:$E$24,'Γενικά Στοιχεία Οργανισμού'!$D$9) -> 2.029451685e-06
E107: ='Υπολογισμός Αν. Απ.'!P42 -> 0.002511190216 | G107: 0 | I107: 0 | K107: =E107*'Γενικά Στοιχεία Οργανισμού'!$D$9/SUM('Γενικά Στοιχεία Οργανισμού'!$E$13:$E$24,'Γενικά Στοιχεία Οργανισμού'!$D$9) -> 0.001004476086 | M107: =E107*'Γενικά Στοιχεία Οργανισμού'!$E$16/SUM('Γενικά Στοιχεία Οργανισμού'!$E$13:$E$24,'Γενικά Στοιχεία Οργανισμού'!$D$9) -> 0.0001084834173 | O107: =E107*'Γενικά Στοιχεία Οργανισμού'!$E$17/SUM('Γενικά Στοιχεία Οργανισμού'!$E$13:$E$24,'Γενικά Στοιχεία Οργανισμού'!$D$9) -> 0.0001908504564 | Q107: =E107*'Γενικά Στοιχεία Οργανισμού'!$E$18/SUM('Γενικά Στοιχεία Οργανισμού'!$E$13:$E$24,'Γενικά Στοιχεία Οργανισμού'!$D$9) -> 0.000116519226 | S107: =E107*'Γενικά Στοιχεία Οργανισμού'!$E$19/SUM('Γενικά Στοιχεία Οργανισμού'!$E$13:$E$24,'Γενικά Στοιχεία Οργανισμού'!$D$9) -> 0.0001808056956 | U107: =E107*'Γενικά Στοιχεία Οργανισμού'!$E$20/SUM('Γενικά Στοιχεία Οργανισμού'!$E$13:$E$24,'Γενικά Στοιχεία Οργανισμού'!$D$9) -> 0.0002651816868 | W107: =E107*'Γενικά Στοιχεία Οργανισμού'!$E$21/SUM('Γενικά Στοιχεία Οργανισμού'!$E$13:$E$24,'Γενικά Στοιχεία Οργανισμού'!$D$9) -> 6.026856519e-05 | Y107: =E107*'Γενικά Στοιχεία Οργανισμού'!$E$22/SUM('Γενικά Στοιχεία Οργανισμού'!$E$13:$E$24,'Γενικά Στοιχεία Οργανισμού'!$D$9) -> 0.000150671413 | AA107: =E107*'Γενικά Στοιχεία Οργανισμού'!$E$23/SUM('Γενικά Στοιχεία Οργανισμού'!$E$13:$E$24,'Γενικά Στοιχεία Οργανισμού'!$D$9) -> 0.0002350474042 | AC107: =E107*'Γενικά Στοιχεία Οργανισμού'!$E$24/SUM('Γενικά Στοιχεία Οργανισμού'!$E$13:$E$24,'Γενικά Στοιχεία Οργανισμού'!$D$9) -> 0.0001988862651
C108: Βενζίνη (Επιβατικό) | D108: ='Υπολογισμός Αν. Απ.'!Q43 -> 565.1506134 | E108: ='Υπολογισμός Αν. Απ.'!N43 -> 560.3178831 | F108: 0 | G108: 0 | H108: 0 | I108: 0 | J108: =D108*'Γενικά Στοιχεία Οργανισμού'!$D$9/SUM('Γενικά Στοιχεία Οργανισμού'!$E$13:$E$24,'Γενικά Στοιχεία Οργανισμού'!$D$9) -> 226.0602453 | K108: =E108*'Γενικά Στοιχεία Οργανισμού'!$D$9/SUM('Γενικά Στοιχεία Οργανισμού'!$E$13:$E$24,'Γενικά Στοιχεία Οργανισμού'!$D$9) -> 224.1271532 | L108: =D108*'Γενικά Στοιχεία Οργανισμού'!$E$16/SUM('Γενικά Στοιχεία Οργανισμού'!$E$13:$E$24,'Γενικά Στοιχεία Οργανισμού'!$D$9) -> 24.4145065 | M108: =E108*'Γενικά Στοιχεία Οργανισμού'!$E$16/SUM('Γενικά Στοιχεία Οργανισμού'!$E$13:$E$24,'Γενικά Στοιχεία Οργανισμού'!$D$9) -> 24.20573255 | N108: =D108*'Γενικά Στοιχεία Οργανισμού'!$E$17/SUM('Γενικά Στοιχεία Οργανισμού'!$E$13:$E$24,'Γενικά Στοιχεία Οργανισμού'!$D$9) -> 42.95144662 | O108: =E108*'Γενικά Στοιχεία Οργανισμού'!$E$17/SUM('Γενικά Στοιχεία Οργανισμού'!$E$13:$E$24,'Γενικά Στοιχεία Οργανισμού'!$D$9) -> 42.58415911 | P108: =D108*'Γενικά Στοιχεία Οργανισμού'!$E$18/SUM('Γενικά Στοιχεία Οργανισμού'!$E$13:$E$24,'Γενικά Στοιχεία Οργανισμού'!$D$9) -> 26.22298846 | Q108: =E108*'Γενικά Στοιχεία Οργανισμού'!$E$18/SUM('Γενικά Στοιχεία Οργανισμού'!$E$13:$E$24,'Γενικά Στοιχεία Οργανισμού'!$D$9) -> 25.99874978 | R108: =D108*'Γενικά Στοιχεία Οργανισμού'!$E$19/SUM('Γενικά Στοιχεία Οργανισμού'!$E$13:$E$24,'Γενικά Στοιχεία Οργανισμού'!$D$9) -> 40.69084416 | S108: =E108*'Γενικά Στοιχεία Οργανισμού'!$E$19/SUM('Γενικά Στοιχεία Οργανισμού'!$E$13:$E$24,'Γενικά Στοιχεία Οργανισμού'!$D$9) -> 40.34288758 | T108: =D108*'Γενικά Στοιχεία Οργανισμού'!$E$20/SUM('Γενικά Στοιχεία Οργανισμού'!$E$13:$E$24,'Γενικά Στοιχεία Οργανισμού'!$D$9) -> 59.67990477 | U108: =E108*'Γενικά Στοιχεία Οργανισμού'!$E$20/SUM('Γενικά Στοιχεία Οργανισμού'!$E$13:$E$24,'Γενικά Στοιχεία Οργανισμού'!$D$9) -> 59.16956845 | V108: =D108*'Γενικά Στοιχεία Οργανισμού'!$E$21/SUM('Γενικά Στοιχεία Οργανισμού'!$E$13:$E$24,'Γενικά Στοιχεία Οργανισμού'!$D$9) -> 13.56361472 | W108: =E108*'Γενικά Στοιχεία Οργανισμού'!$E$21/SUM('Γενικά Στοιχεία Οργανισμού'!$E$13:$E$24,'Γενικά Στοιχεία Οργανισμού'!$D$9) -> 13.44762919 | X108: =D108*'Γενικά Στοιχεία Οργανισμού'!$E$22/SUM('Γενικά Στοιχεία Οργανισμού'!$E$13:$E$24,'Γενικά Στοιχεία Οργανισμού'!$D$9) -> 33.9090368 | Y108: =E108*'Γενικά Στοιχεία Οργανισμού'!$E$22/SUM('Γενικά Στοιχεία Οργανισμού'!$E$13:$E$24,'Γενικά Στοιχεία Οργανισμού'!$D$9) -> 33.61907299 | Z108: =D108*'Γενικά Στοιχεία Οργανισμού'!$E$23/SUM('Γενικά Στοιχεία Οργανισμού'!$E$13:$E$24,'Γενικά Στοιχεία Οργανισμού'!$D$9) -> 52.89809741 | AA108: =E108*'Γενικά Στοιχεία Οργανισμού'!$E$23/SUM('Γενικά Στοιχεία Οργανισμού'!$E$13:$E$24,'Γενικά Στοιχεία Οργανισμού'!$D$9) -> 52.44575386 | AB108: =D108*'Γενικά Στοιχεία Οργανισμού'!$E$24/SUM('Γενικά Στοιχεία Οργανισμού'!$E$13:$E$24,'Γενικά Στοιχεία Οργανισμού'!$D$9) -> 44.75992858 | AC108: =E108*'Γενικά Στοιχεία Οργανισμού'!$E$24/SUM('Γενικά Στοιχεία Οργανισμού'!$E$13:$E$24,'Γενικά Στοιχεία Οργανισμού'!$D$9) -> 44.37717634
E109: ='Υπολογισμός Αν. Απ.'!O43 -> 0.07143555867 | G109: 0 | I109: 0 | K109: =E109*'Γενικά Στοιχεία Οργανισμού'!$D$9/SUM('Γενικά Στοιχεία Οργανισμού'!$E$13:$E$24,'Γενικά Στοιχεία Οργανισμού'!$D$9) -> 0.02857422347 | M109: =E109*'Γενικά Στοιχεία Οργανισμού'!$E$16/SUM('Γενικά Στοιχεία Οργανισμού'!$E$13:$E$24,'Γενικά Στοιχεία Οργανισμού'!$D$9) -> 0.003086016134 | O109: =E109*'Γενικά Στοιχεία Οργανισμού'!$E$17/SUM('Γενικά Στοιχεία Οργανισμού'!$E$13:$E$24,'Γενικά Στοιχεία Οργανισμού'!$D$9) -> 0.005429102459 | Q109: =E109*'Γενικά Στοιχεία Οργανισμού'!$E$18/SUM('Γενικά Στοιχεία Οργανισμού'!$E$13:$E$24,'Γενικά Στοιχεία Οργανισμού'!$D$9) -> 0.003314609922 | S109: =E109*'Γενικά Στοιχεία Οργανισμού'!$E$19/SUM('Γενικά Στοιχεία Οργανισμού'!$E$13:$E$24,'Γενικά Στοιχεία Οργανισμού'!$D$9) -> 0.005143360224 | U109: =E109*'Γενικά Στοιχεία Οργανισμού'!$E$20/SUM('Γενικά Στοιχεία Οργανισμού'!$E$13:$E$24,'Γενικά Στοιχεία Οργανισμού'!$D$9) -> 0.007543594995 | W109: =E109*'Γενικά Στοιχεία Οργανισμού'!$E$21/SUM('Γενικά Στοιχεία Οργανισμού'!$E$13:$E$24,'Γενικά Στοιχεία Οργανισμού'!$D$9) -> 0.001714453408 | Y109: =E109*'Γενικά Στοιχεία Οργανισμού'!$E$22/SUM('Γενικά Στοιχεία Οργανισμού'!$E$13:$E$24,'Γενικά Στοιχεία Οργανισμού'!$D$9) -> 0.00428613352 | AA109: =E109*'Γενικά Στοιχεία Οργανισμού'!$E$23/SUM('Γενικά Στοιχεία Οργανισμού'!$E$13:$E$24,'Γενικά Στοιχεία Οργανισμού'!$D$9) -> 0.006686368291 | AC109: =E109*'Γενικά Στοιχεία Οργανισμού'!$E$24/SUM('Γενικά Στοιχεία Οργανισμού'!$E$13:$E$24,'Γενικά Στοιχεία Οργανισμού'!$D$9) -> 0.005657696247
E110: ='Υπολογισμός Αν. Απ.'!P43 -> 0.01040175158 | G110: 0 | I110: 0 | K110: =E110*'Γενικά Στοιχεία Οργανισμού'!$D$9/SUM('Γενικά Στοιχεία Οργανισμού'!$E$13:$E$24,'Γενικά Στοιχεία Οργανισμού'!$D$9) -> 0.004160700633 | M110: =E110*'Γενικά Στοιχεία Οργανισμού'!$E$16/SUM('Γενικά Στοιχεία Οργανισμού'!$E$13:$E$24,'Γενικά Στοιχεία Οργανισμού'!$D$9) -> 0.0004493556684 | O110: =E110*'Γενικά Στοιχεία Οργανισμού'!$E$17/SUM('Γενικά Στοιχεία Οργανισμού'!$E$13:$E$24,'Γενικά Στοιχεία Οργανισμού'!$D$9) -> 0.0007905331203 | Q110: =E110*'Γενικά Στοιχεία Οργανισμού'!$E$18/SUM('Γενικά Στοιχεία Οργανισμού'!$E$13:$E$24,'Γενικά Στοιχεία Οργανισμού'!$D$9) -> 0.0004826412735 | S110: =E110*'Γενικά Στοιχεία Οργανισμού'!$E$19/SUM('Γενικά Στοιχεία Οργανισμού'!$E$13:$E$24,'Γενικά Στοιχεία Οργανισμού'!$D$9) -> 0.000748926114 | U110: =E110*'Γενικά Στοιχεία Οργανισμού'!$E$20/SUM('Γενικά Στοιχεία Οργανισμού'!$E$13:$E$24,'Γενικά Στοιχεία Οργανισμού'!$D$9) -> 0.001098424967 | W110: =E110*'Γενικά Στοιχεία Οργανισμού'!$E$21/SUM('Γενικά Στοιχεία Οργανισμού'!$E$13:$E$24,'Γενικά Στοιχεία Οργανισμού'!$D$9) -> 0.000249642038 | Y110: =E110*'Γενικά Στοιχεία Οργανισμού'!$E$22/SUM('Γενικά Στοιχεία Οργανισμού'!$E$13:$E$24,'Γενικά Στοιχεία Οργανισμού'!$D$9) -> 0.000624105095 | AA110: =E110*'Γενικά Στοιχεία Οργανισμού'!$E$23/SUM('Γενικά Στοιχεία Οργανισμού'!$E$13:$E$24,'Γενικά Στοιχεία Οργανισμού'!$D$9) -> 0.0009736039482 | AC110: =E110*'Γενικά Στοιχεία Οργανισμού'!$E$24/SUM('Γενικά Στοιχεία Οργανισμού'!$E$13:$E$24,'Γενικά Στοιχεία Οργανισμού'!$D$9) -> 0.0008238187254
C111: Βενζίνη (Μοτοσυκλέτα) | D111: ='Υπολογισμός Αν. Απ.'!Q44 -> 74.44723984 | E111: ='Υπολογισμός Αν. Απ.'!N44 -> 71.4881627 | F111: 0 | G111: 0 | H111: 0 | I111: 0 | J111: =D111*'Γενικά Στοιχεία Οργανισμού'!$D$9/SUM('Γενικά Στοιχεία Οργανισμού'!$E$13:$E$24,'Γενικά Στοιχεία Οργανισμού'!$D$9) -> 29.77889594 | K111: =E111*'Γενικά Στοιχεία Οργανισμού'!$D$9/SUM('Γενικά Στοιχεία Οργανισμού'!$E$13:$E$24,'Γενικά Στοιχεία Οργανισμού'!$D$9) -> 28.59526508 | L111: =D111*'Γενικά Στοιχεία Οργανισμού'!$E$16/SUM('Γενικά Στοιχεία Οργανισμού'!$E$13:$E$24,'Γενικά Στοιχεία Οργανισμού'!$D$9) -> 3.216120761 | M111: =E111*'Γενικά Στοιχεία Οργανισμού'!$E$16/SUM('Γενικά Στοιχεία Οργανισμού'!$E$13:$E$24,'Γενικά Στοιχεία Οργανισμού'!$D$9) -> 3.088288629 | N111: =D111*'Γενικά Στοιχεία Οργανισμού'!$E$17/SUM('Γενικά Στοιχεία Οργανισμού'!$E$13:$E$24,'Γενικά Στοιχεία Οργανισμού'!$D$9) -> 5.657990228 | O111: =E111*'Γενικά Στοιχεία Οργανισμού'!$E$17/SUM('Γενικά Στοιχεία Οργανισμού'!$E$13:$E$24,'Γενικά Στοιχεία Οργανισμού'!$D$9) -> 5.433100365 | P111: =D111*'Γενικά Στοιχεία Οργανισμού'!$E$18/SUM('Γενικά Στοιχεία Οργανισμού'!$E$13:$E$24,'Γενικά Στοιχεία Οργανισμού'!$D$9) -> 3.454351929 | Q111: =E111*'Γενικά Στοιχεία Οργανισμού'!$E$18/SUM('Γενικά Στοιχεία Οργανισμού'!$E$13:$E$24,'Γενικά Στοιχεία Οργανισμού'!$D$9) -> 3.317050749 | R111: =D111*'Γενικά Στοιχεία Οργανισμού'!$E$19/SUM('Γενικά Στοιχεία Οργανισμού'!$E$13:$E$24,'Γενικά Στοιχεία Οργανισμού'!$D$9) -> 5.360201269 | S111: =E111*'Γενικά Στοιχεία Οργανισμού'!$E$19/SUM('Γενικά Στοιχεία Οργανισμού'!$E$13:$E$24,'Γενικά Στοιχεία Οργανισμού'!$D$9) -> 5.147147715 | T111: =D111*'Γενικά Στοιχεία Οργανισμού'!$E$20/SUM('Γενικά Στοιχεία Οργανισμού'!$E$13:$E$24,'Γενικά Στοιχεία Οργανισμού'!$D$9) -> 7.861628527 | U111: =E111*'Γενικά Στοιχεία Οργανισμού'!$E$20/SUM('Γενικά Στοιχεία Οργανισμού'!$E$13:$E$24,'Γενικά Στοιχεία Οργανισμού'!$D$9) -> 7.549149981 | V111: =D111*'Γενικά Στοιχεία Οργανισμού'!$E$21/SUM('Γενικά Στοιχεία Οργανισμού'!$E$13:$E$24,'Γενικά Στοιχεία Οργανισμού'!$D$9) -> 1.786733756 | W111: =E111*'Γενικά Στοιχεία Οργανισμού'!$E$21/SUM('Γενικά Στοιχεία Οργανισμού'!$E$13:$E$24,'Γενικά Στοιχεία Οργανισμού'!$D$9) -> 1.715715905 | X111: =D111*'Γενικά Στοιχεία Οργανισμού'!$E$22/SUM('Γενικά Στοιχεία Οργανισμού'!$E$13:$E$24,'Γενικά Στοιχεία Οργανισμού'!$D$9) -> 4.466834391 | Y111: =E111*'Γενικά Στοιχεία Οργανισμού'!$E$22/SUM('Γενικά Στοιχεία Οργανισμού'!$E$13:$E$24,'Γενικά Στοιχεία Οργανισμού'!$D$9) -> 4.289289762 | Z111: =D111*'Γενικά Στοιχεία Οργανισμού'!$E$23/SUM('Γενικά Στοιχεία Οργανισμού'!$E$13:$E$24,'Γενικά Στοιχεία Οργανισμού'!$D$9) -> 6.968261649 | AA111: =E111*'Γενικά Στοιχεία Οργανισμού'!$E$23/SUM('Γενικά Στοιχεία Οργανισμού'!$E$13:$E$24,'Γενικά Στοιχεία Οργανισμού'!$D$9) -> 6.691292029 | AB111: =D111*'Γενικά Στοιχεία Οργανισμού'!$E$24/SUM('Γενικά Στοιχεία Οργανισμού'!$E$13:$E$24,'Γενικά Στοιχεία Οργανισμού'!$D$9) -> 5.896221396 | AC111: =E111*'Γενικά Στοιχεία Οργανισμού'!$E$24/SUM('Γενικά Στοιχεία Οργανισμού'!$E$13:$E$24,'Γενικά Στοιχεία Οργανισμού'!$D$9) -> 5.661862486
E112: ='Υπολογισμός Αν. Απ.'!O44 -> 0.09135574382 | G112: 0 | I112: 0 | K112: =E112*'Γενικά Στοιχεία Οργανισμού'!$D$9/SUM('Γενικά Στοιχεία Οργανισμού'!$E$13:$E$24,'Γενικά Στοιχεία Οργανισμού'!$D$9) -> 0.03654229753 | M112: =E112*'Γενικά Στοιχεία Οργανισμού'!$E$16/SUM('Γενικά Στοιχεία Οργανισμού'!$E$13:$E$24,'Γενικά Στοιχεία Οργανισμού'!$D$9) -> 0.003946568133 | O112: =E112*'Γενικά Στοιχεία Οργανισμού'!$E$17/SUM('Γενικά Στοιχεία Οργανισμού'!$E$13:$E$24,'Γενικά Στοιχεία Οργανισμού'!$D$9) -> 0.00694303653 | Q112: =E112*'Γενικά Στοιχεία Οργανισμού'!$E$18/SUM('Γενικά Στοιχεία Οργανισμού'!$E$13:$E$24,'Γενικά Στοιχεία Οργανισμού'!$D$9) -> 0.004238906513 | S112: =E112*'Γενικά Στοιχεία Οργανισμού'!$E$19/SUM('Γενικά Στοιχεία Οργανισμού'!$E$13:$E$24,'Γενικά Στοιχεία Οργανισμού'!$D$9) -> 0.006577613555 | U112: =E112*'Γενικά Στοιχεία Οργανισμού'!$E$20/SUM('Γενικά Στοιχεία Οργανισμού'!$E$13:$E$24,'Γενικά Στοιχεία Οργανισμού'!$D$9) -> 0.009647166547 | W112: =E112*'Γενικά Στοιχεία Οργανισμού'!$E$21/SUM('Γενικά Στοιχεία Οργανισμού'!$E$13:$E$24,'Γενικά Στοιχεία Οργανισμού'!$D$9) -> 0.002192537852 | Y112: =E112*'Γενικά Στοιχεία Οργανισμού'!$E$22/SUM('Γενικά Στοιχεία Οργανισμού'!$E$13:$E$24,'Γενικά Στοιχεία Οργανισμού'!$D$9) -> 0.005481344629 | AA112: =E112*'Γενικά Στοιχεία Οργανισμού'!$E$23/SUM('Γενικά Στοιχεία Οργανισμού'!$E$13:$E$24,'Γενικά Στοιχεία Οργανισμού'!$D$9) -> 0.008550897621 | AC112: =E112*'Γενικά Στοιχεία Οργανισμού'!$E$24/SUM('Γενικά Στοιχεία Οργανισμού'!$E$13:$E$24,'Γενικά Στοιχεία Οργανισμού'!$D$9) -> 0.00723537491
E113: ='Υπολογισμός Αν. Απ.'!P44 -> 0.001502754171 | G113: 0 | I113: 0 | K113: =E113*'Γενικά Στοιχεία Οργανισμού'!$D$9/SUM('Γενικά Στοιχεία Οργανισμού'!$E$13:$E$24,'Γενικά Στοιχεία Οργανισμού'!$D$9) -> 0.0006011016684 | M113: =E113*'Γενικά Στοιχεία Οργανισμού'!$E$16/SUM('Γενικά Στοιχεία Οργανισμού'!$E$13:$E$24,'Γενικά Στοιχεία Οργανισμού'!$D$9) -> 6.491898018e-05 | O113: =E113*'Γενικά Στοιχεία Οργανισμού'!$E$17/SUM('Γενικά Στοιχεία Οργανισμού'!$E$13:$E$24,'Γενικά Στοιχεία Οργανισμού'!$D$9) -> 0.000114209317 | Q113: =E113*'Γενικά Στοιχεία Οργανισμού'!$E$18/SUM('Γενικά Στοιχεία Οργανισμού'!$E$13:$E$24,'Γενικά Στοιχεία Οργανισμού'!$D$9) -> 6.972779353e-05 | S113: =E113*'Γενικά Στοιχεία Οργανισμού'!$E$19/SUM('Γενικά Στοιχεία Οργανισμού'!$E$13:$E$24,'Γενικά Στοιχεία Οργανισμού'!$D$9) -> 0.0001081983003 | U113: =E113*'Γενικά Στοιχεία Οργανισμού'!$E$20/SUM('Γενικά Στοιχεία Οργανισμού'!$E$13:$E$24,'Γενικά Στοιχεία Οργανισμού'!$D$9) -> 0.0001586908404 | W113: =E113*'Γενικά Στοιχεία Οργανισμού'!$E$21/SUM('Γενικά Στοιχεία Οργανισμού'!$E$13:$E$24,'Γενικά Στοιχεία Οργανισμού'!$D$9) -> 3.60661001e-05 | Y113: =E113*'Γενικά Στοιχεία Οργανισμού'!$E$22/SUM('Γενικά Στοιχεία Οργανισμού'!$E$13:$E$24,'Γενικά Στοιχεία Οργανισμού'!$D$9) -> 9.016525026e-05 | AA113: =E113*'Γενικά Στοιχεία Οργανισμού'!$E$23/SUM('Γενικά Στοιχεία Οργανισμού'!$E$13:$E$24,'Γενικά Στοιχεία Οργανισμού'!$D$9) -> 0.0001406577904 | AC113: =E113*'Γενικά Στοιχεία Οργανισμού'!$E$24/SUM('Γενικά Στοιχεία Οργανισμού'!$E$13:$E$24,'Γενικά Στοιχεία Οργανισμού'!$D$9) -> 0.0001190181303
C114: Πετρέλαιο Κινησης (Λεωφορείο) | D114: ='Υπολογισμός Αν. Απ.'!Q45 -> 2.999746477 | E114: ='Υπολογισμός Αν. Απ.'!N46 -> 0.5894592 | F114: 0 | G114: 0 | H114: 0 | I114: 0 | J114: =D114*'Γενικά Στοιχεία Οργανισμού'!$D$9/SUM('Γενικά Στοιχεία Οργανισμού'!$E$13:$E$24,'Γενικά Στοιχεία Οργανισμού'!$D$9) -> 1.199898591 | K114: =E114*'Γενικά Στοιχεία Οργανισμού'!$D$9/SUM('Γενικά Στοιχεία Οργανισμού'!$E$13:$E$24,'Γενικά Στοιχεία Οργανισμού'!$D$9) -> 0.23578368 | L114: =D114*'Γενικά Στοιχεία Οργανισμού'!$E$16/SUM('Γενικά Στοιχεία Οργανισμού'!$E$13:$E$24,'Γενικά Στοιχεία Οργανισμού'!$D$9) -> 0.1295890478 | M114: =E114*'Γενικά Στοιχεία Οργανισμού'!$E$16/SUM('Γενικά Στοιχεία Οργανισμού'!$E$13:$E$24,'Γενικά Στοιχεία Οργανισμού'!$D$9) -> 0.02546463744 | N114: =D114*'Γενικά Στοιχεία Οργανισμού'!$E$17/SUM('Γενικά Στοιχεία Οργανισμού'!$E$13:$E$24,'Γενικά Στοιχεία Οργανισμού'!$D$9) -> 0.2279807322 | O114: =E114*'Γενικά Στοιχεία Οργανισμού'!$E$17/SUM('Γενικά Στοιχεία Οργανισμού'!$E$13:$E$24,'Γενικά Στοιχεία Οργανισμού'!$D$9) -> 0.0447988992 | P114: =D114*'Γενικά Στοιχεία Οργανισμού'!$E$18/SUM('Γενικά Στοιχεία Οργανισμού'!$E$13:$E$24,'Γενικά Στοιχεία Οργανισμού'!$D$9) -> 0.1391882365 | Q114: =E114*'Γενικά Στοιχεία Οργανισμού'!$E$18/SUM('Γενικά Στοιχεία Οργανισμού'!$E$13:$E$24,'Γενικά Στοιχεία Οργανισμού'!$D$9) -> 0.02735090688 | R114: =D114*'Γενικά Στοιχεία Οργανισμού'!$E$19/SUM('Γενικά Στοιχεία Οργανισμού'!$E$13:$E$24,'Γενικά Στοιχεία Οργανισμού'!$D$9) -> 0.2159817463 | S114: =E114*'Γενικά Στοιχεία Οργανισμού'!$E$19/SUM('Γενικά Στοιχεία Οργανισμού'!$E$13:$E$24,'Γενικά Στοιχεία Οργανισμού'!$D$9) -> 0.0424410624 | T114: =D114*'Γενικά Στοιχεία Οργανισμού'!$E$20/SUM('Γενικά Στοιχεία Οργανισμού'!$E$13:$E$24,'Γενικά Στοιχεία Οργανισμού'!$D$9) -> 0.3167732279 | U114: =E114*'Γενικά Στοιχεία Οργανισμού'!$E$20/SUM('Γενικά Στοιχεία Οργανισμού'!$E$13:$E$24,'Γενικά Στοιχεία Οργανισμού'!$D$9) -> 0.06224689152 | V114: =D114*'Γενικά Στοιχεία Οργανισμού'!$E$21/SUM('Γενικά Στοιχεία Οργανισμού'!$E$13:$E$24,'Γενικά Στοιχεία Οργανισμού'!$D$9) -> 0.07199391544 | W114: =E114*'Γενικά Στοιχεία Οργανισμού'!$E$21/SUM('Γενικά Στοιχεία Οργανισμού'!$E$13:$E$24,'Γενικά Στοιχεία Οργανισμού'!$D$9) -> 0.0141470208 | X114: =D114*'Γενικά Στοιχεία Οργανισμού'!$E$22/SUM('Γενικά Στοιχεία Οργανισμού'!$E$13:$E$24,'Γενικά Στοιχεία Οργανισμού'!$D$9) -> 0.1799847886 | Y114: =E114*'Γενικά Στοιχεία Οργανισμού'!$E$22/SUM('Γενικά Στοιχεία Οργανισμού'!$E$13:$E$24,'Γενικά Στοιχεία Οργανισμού'!$D$9) -> 0.035367552 | Z114: =D114*'Γενικά Στοιχεία Οργανισμού'!$E$23/SUM('Γενικά Στοιχεία Οργανισμού'!$E$13:$E$24,'Γενικά Στοιχεία Οργανισμού'!$D$9) -> 0.2807762702 | AA114: =E114*'Γενικά Στοιχεία Οργανισμού'!$E$23/SUM('Γενικά Στοιχεία Οργανισμού'!$E$13:$E$24,'Γενικά Στοιχεία Οργανισμού'!$D$9) -> 0.05517338112 | AB114: =D114*'Γενικά Στοιχεία Οργανισμού'!$E$24/SUM('Γενικά Στοιχεία Οργανισμού'!$E$13:$E$24,'Γενικά Στοιχεία Οργανισμού'!$D$9) -> 0.237579921 | AC114: =E114*'Γενικά Στοιχεία Οργανισμού'!$E$24/SUM('Γενικά Στοιχεία Οργανισμού'!$E$13:$E$24,'Γενικά Στοιχεία Οργανισμού'!$D$9) -> 0.04668516864
E115: ='Υπολογισμός Αν. Απ.'!O46 -> 0.0010794432 | G115: 0 | I115: 0 | K115: =E115*'Γενικά Στοιχεία Οργανισμού'!$D$9/SUM('Γενικά Στοιχεία Οργανισμού'!$E$13:$E$24,'Γενικά Στοιχεία Οργανισμού'!$D$9) -> 0.00043177728 | M115: =E115*'Γενικά Στοιχεία Οργανισμού'!$E$16/SUM('Γενικά Στοιχεία Οργανισμού'!$E$13:$E$24,'Γενικά Στοιχεία Οργανισμού'!$D$9) -> 4.663194624e-05 | O115: =E115*'Γενικά Στοιχεία Οργανισμού'!$E$17/SUM('Γενικά Στοιχεία Οργανισμού'!$E$13:$E$24,'Γενικά Στοιχεία Οργανισμού'!$D$9) -> 8.20376832e-05 | Q115: =E115*'Γενικά Στοιχεία Οργανισμού'!$E$18/SUM('Γενικά Στοιχεία Οργανισμού'!$E$13:$E$24,'Γενικά Στοιχεία Οργανισμού'!$D$9) -> 5.008616448e-05 | S115: =E115*'Γενικά Στοιχεία Οργανισμού'!$E$19/SUM('Γενικά Στοιχεία Οργανισμού'!$E$13:$E$24,'Γενικά Στοιχεία Οργανισμού'!$D$9) -> 7.77199104e-05 | U115: =E115*'Γενικά Στοιχεία Οργανισμού'!$E$20/SUM('Γενικά Στοιχεία Οργανισμού'!$E$13:$E$24,'Γενικά Στοιχεία Οργανισμού'!$D$9) -> 0.0001139892019 | W115: =E115*'Γενικά Στοιχεία Οργανισμού'!$E$21/SUM('Γενικά Στοιχεία Οργανισμού'!$E$13:$E$24,'Γενικά Στοιχεία Οργανισμού'!$D$9) -> 2.59066368e-05 | Y115: =E115*'Γενικά Στοιχεία Οργανισμού'!$E$22/SUM('Γενικά Στοιχεία Οργανισμού'!$E$13:$E$24,'Γενικά Στοιχεία Οργανισμού'!$D$9) -> 6.4766592e-05 | AA115: =E115*'Γενικά Στοιχεία Οργανισμού'!$E$23/SUM('Γενικά Στοιχεία Οργανισμού'!$E$13:$E$24,'Γενικά Στοιχεία Οργανισμού'!$D$9) -> 0.0001010358835 | AC115: =E115*'Γενικά Στοιχεία Οργανισμού'!$E$24/SUM('Γενικά Στοιχεία Οργανισμού'!$E$13:$E$24,'Γενικά Στοιχεία Οργανισμού'!$D$9) -> 8.549190144e-05
E116: ='Υπολογισμός Αν. Απ.'!P46 -> 3.51648e-05 | G116: 0 | I116: 0 | K116: =E116*'Γενικά Στοιχεία Οργανισμού'!$D$9/SUM('Γενικά Στοιχεία Οργανισμού'!$E$13:$E$24,'Γενικά Στοιχεία Οργανισμού'!$D$9) -> 1.406592e-05 | M116: =E116*'Γενικά Στοιχεία Οργανισμού'!$E$16/SUM('Γενικά Στοιχεία Οργανισμού'!$E$13:$E$24,'Γενικά Στοιχεία Οργανισμού'!$D$9) -> 1.51911936e-06 | O116: =E116*'Γενικά Στοιχεία Οργανισμού'!$E$17/SUM('Γενικά Στοιχεία Οργανισμού'!$E$13:$E$24,'Γενικά Στοιχεία Οργανισμού'!$D$9) -> 2.6725248e-06 | Q116: =E116*'Γενικά Στοιχεία Οργανισμού'!$E$18/SUM('Γενικά Στοιχεία Οργανισμού'!$E$13:$E$24,'Γενικά Στοιχεία Οργανισμού'!$D$9) -> 1.63164672e-06 | S116: =E116*'Γενικά Στοιχεία Οργανισμού'!$E$19/SUM('Γενικά Στοιχεία Οργανισμού'!$E$13:$E$24,'Γενικά Στοιχεία Οργανισμού'!$D$9) -> 2.5318656e-06 | U116: =E116*'Γενικά Στοιχεία Οργανισμού'!$E$20/SUM('Γενικά Στοιχεία Οργανισμού'!$E$13:$E$24,'Γενικά Στοιχεία Οργανισμού'!$D$9) -> 3.71340288e-06 | W116: =E116*'Γενικά Στοιχεία Οργανισμού'!$E$21/SUM('Γενικά Στοιχεία Οργανισμού'!$E$13:$E$24,'Γενικά Στοιχεία Οργανισμού'!$D$9) -> 8.439552e-07 | Y116: =E116*'Γενικά Στοιχεία Οργανισμού'!$E$22/SUM('Γενικά Στοιχεία Οργανισμού'!$E$13:$E$24,'Γενικά Στοιχεία Οργανισμού'!$D$9) -> 2.109888e-06 | AA116: =E116*'Γενικά Στοιχεία Οργανισμού'!$E$23/SUM('Γενικά Στοιχεία Οργανισμού'!$E$13:$E$24,'Γενικά Στοιχεία Οργανισμού'!$D$9) -> 3.29142528e-06 | AC116: =E116*'Γενικά Στοιχεία Οργανισμού'!$E$24/SUM('Γενικά Στοιχεία Οργανισμού'!$E$13:$E$24,'Γενικά Στοιχεία Οργανισμού'!$D$9) -> 2.78505216e-06
C117: Φυσικό Αέριο Κινησης (Λεωφορείο) | D117: ='Υπολογισμός Αν. Απ.'!Q46 -> 0.6291756557 | E117: ='Υπολογισμός Αν. Απ.'!N46 -> 0.5894592 | F117: 0 | G117: 0 | H117: 0 | I117: 0 | J117: =D117*'Γενικά Στοιχεία Οργανισμού'!$D$9/SUM('Γενικά Στοιχεία Οργανισμού'!$E$13:$E$24,'Γενικά Στοιχεία Οργανισμού'!$D$9) -> 0.2516702623 | K117: =E117*'Γενικά Στοιχεία Οργανισμού'!$D$9/SUM('Γενικά Στοιχεία Οργανισμού'!$E$13:$E$24,'Γενικά Στοιχεία Οργανισμού'!$D$9) -> 0.23578368 | L117: =D117*'Γενικά Στοιχεία Οργανισμού'!$E$16/SUM('Γενικά Στοιχεία Οργανισμού'!$E$13:$E$24,'Γενικά Στοιχεία Οργανισμού'!$D$9) -> 0.02718038833 | M117: =E117*'Γενικά Στοιχεία Οργανισμού'!$E$16/SUM('Γενικά Στοιχεία Οργανισμού'!$E$13:$E$24,'Γενικά Στοιχεία Οργανισμού'!$D$9) -> 0.02546463744 | N117: =D117*'Γενικά Στοιχεία Οργανισμού'!$E$17/SUM('Γενικά Στοιχεία Οργανισμού'!$E$13:$E$24,'Γενικά Στοιχεία Οργανισμού'!$D$9) -> 0.04781734983 | O117: =E117*'Γενικά Στοιχεία Οργανισμού'!$E$17/SUM('Γενικά Στοιχεία Οργανισμού'!$E$13:$E$24,'Γενικά Στοιχεία Οργανισμού'!$D$9) -> 0.0447988992 | P117: =D117*'Γενικά Στοιχεία Οργανισμού'!$E$18/SUM('Γενικά Στοιχεία Οργανισμού'!$E$13:$E$24,'Γενικά Στοιχεία Οργανισμού'!$D$9) -> 0.02919375042 | Q117: =E117*'Γενικά Στοιχεία Οργανισμού'!$E$18/SUM('Γενικά Στοιχεία Οργανισμού'!$E$13:$E$24,'Γενικά Στοιχεία Οργανισμού'!$D$9) -> 0.02735090688 | R117: =D117*'Γενικά Στοιχεία Οργανισμού'!$E$19/SUM('Γενικά Στοιχεία Οργανισμού'!$E$13:$E$24,'Γενικά Στοιχεία Οργανισμού'!$D$9) -> 0.04530064721 | S117: =E117*'Γενικά Στοιχεία Οργανισμού'!$E$19/SUM('Γενικά Στοιχεία Οργανισμού'!$E$13:$E$24,'Γενικά Στοιχεία Οργανισμού'!$D$9) -> 0.0424410624 | T117: =D117*'Γενικά Στοιχεία Οργανισμού'!$E$20/SUM('Γενικά Στοιχεία Οργανισμού'!$E$13:$E$24,'Γενικά Στοιχεία Οργανισμού'!$D$9) -> 0.06644094924 | U117: =E117*'Γενικά Στοιχεία Οργανισμού'!$E$20/SUM('Γενικά Στοιχεία Οργανισμού'!$E$13:$E$24,'Γενικά Στοιχεία Οργανισμού'!$D$9) -> 0.06224689152 | V117: =D117*'Γενικά Στοιχεία Οργανισμού'!$E$21/SUM('Γενικά Στοιχεία Οργανισμού'!$E$13:$E$24,'Γενικά Στοιχεία Οργανισμού'!$D$9) -> 0.01510021574 | W117: =E117*'Γενικά Στοιχεία Οργανισμού'!$E$21/SUM('Γενικά Στοιχεία Οργανισμού'!$E$13:$E$24,'Γενικά Στοιχεία Οργανισμού'!$D$9) -> 0.0141470208 | X117: =D117*'Γενικά Στοιχεία Οργανισμού'!$E$22/SUM('Γενικά Στοιχεία Οργανισμού'!$E$13:$E$24,'Γενικά Στοιχεία Οργανισμού'!$D$9) -> 0.03775053934 | Y117: =E117*'Γενικά Στοιχεία Οργανισμού'!$E$22/SUM('Γενικά Στοιχεία Οργανισμού'!$E$13:$E$24,'Γενικά Στοιχεία Οργανισμού'!$D$9) -> 0.035367552 | Z117: =D117*'Γενικά Στοιχεία Οργανισμού'!$E$23/SUM('Γενικά Στοιχεία Οργανισμού'!$E$13:$E$24,'Γενικά Στοιχεία Οργανισμού'!$D$9) -> 0.05889084137 | AA117: =E117*'Γενικά Στοιχεία Οργανισμού'!$E$23/SUM('Γενικά Στοιχεία Οργανισμού'!$E$13:$E$24,'Γενικά Στοιχεία Οργανισμού'!$D$9) -> 0.05517338112 | AB117: =D117*'Γενικά Στοιχεία Οργανισμού'!$E$24/SUM('Γενικά Στοιχεία Οργανισμού'!$E$13:$E$24,'Γενικά Στοιχεία Οργανισμού'!$D$9) -> 0.04983071193 | AC117: =E117*'Γενικά Στοιχεία Οργανισμού'!$E$24/SUM('Γενικά Στοιχεία Οργανισμού'!$E$13:$E$24,'Γενικά Στοιχεία Οργανισμού'!$D$9) -> 0.04668516864
E118: ='Υπολογισμός Αν. Απ.'!O46 -> 0.0010794432 | G118: 0 | I118: 0 | K118: =E118*'Γενικά Στοιχεία Οργανισμού'!$D$9/SUM('Γενικά Στοιχεία Οργανισμού'!$E$13:$E$24,'Γενικά Στοιχεία Οργανισμού'!$D$9) -> 0.00043177728 | M118: =E118*'Γενικά Στοιχεία Οργανισμού'!$E$16/SUM('Γενικά Στοιχεία Οργανισμού'!$E$13:$E$24,'Γενικά Στοιχεία Οργανισμού'!$D$9) -> 4.663194624e-05 | O118: =E118*'Γενικά Στοιχεία Οργανισμού'!$E$17/SUM('Γενικά Στοιχεία Οργανισμού'!$E$13:$E$24,'Γενικά Στοιχεία Οργανισμού'!$D$9) -> 8.20376832e-05 | Q118: =E118*'Γενικά Στοιχεία Οργανισμού'!$E$18/SUM('Γενικά Στοιχεία Οργανισμού'!$E$13:$E$24,'Γενικά Στοιχεία Οργανισμού'!$D$9) -> 5.008616448e-05 | S118: =E118*'Γενικά Στοιχεία Οργανισμού'!$E$19/SUM('Γενικά Στοιχεία Οργανισμού'!$E$13:$E$24,'Γενικά Στοιχεία Οργανισμού'!$D$9) -> 7.77199104e-05 | U118: =E118*'Γενικά Στοιχεία Οργανισμού'!$E$20/SUM('Γενικά Στοιχεία Οργανισμού'!$E$13:$E$24,'Γενικά Στοιχεία Οργανισμού'!$D$9) -> 0.0001139892019 | W118: =E118*'Γενικά Στοιχεία Οργανισμού'!$E$21/SUM('Γενικά Στοιχεία Οργανισμού'!$E$13:$E$24,'Γενικά Στοιχεία Οργανισμού'!$D$9) -> 2.59066368e-05 | Y118: =E118*'Γενικά Στοιχεία Οργανισμού'!$E$22/SUM('Γενικά Στοιχεία Οργανισμού'!$E$13:$E$24,'Γενικά Στοιχεία Οργανισμού'!$D$9) -> 6.4766592e-05 | AA118: =E118*'Γενικά Στοιχεία Οργανισμού'!$E$23/SUM('Γενικά Στοιχεία Οργανισμού'!$E$13:$E$24,'Γενικά Στοιχεία Οργανισμού'!$D$9) -> 0.0001010358835 | AC118: =E118*'Γενικά Στοιχεία Οργανισμού'!$E$24/SUM('Γενικά Στοιχεία Οργανισμού'!$E$13:$E$24,'Γενικά Στοιχεία Οργανισμού'!$D$9) -> 8.549190144e-05
E119: ='Υπολογισμός Αν. Απ.'!P46 -> 3.51648e-05 | G119: 0 | I119: 0 | K119: =E119*'Γενικά Στοιχεία Οργανισμού'!$D$9/SUM('Γενικά Στοιχεία Οργανισμού'!$E$13:$E$24,'Γενικά Στοιχεία Οργανισμού'!$D$9) -> 1.406592e-05 | M119: =E119*'Γενικά Στοιχεία Οργανισμού'!$E$16/SUM('Γενικά Στοιχεία Οργανισμού'!$E$13:$E$24,'Γενικά Στοιχεία Οργανισμού'!$D$9) -> 1.51911936e-06 | O119: =E119*'Γενικά Στοιχεία Οργανισμού'!$E$17/SUM('Γενικά Στοιχεία Οργανισμού'!$E$13:$E$24,'Γενικά Στοιχεία Οργανισμού'!$D$9) -> 2.6725248e-06 | Q119: =E119*'Γενικά Στοιχεία Οργανισμού'!$E$18/SUM('Γενικά Στοιχεία Οργανισμού'!$E$13:$E$24,'Γενικά Στοιχεία Οργανισμού'!$D$9) -> 1.63164672e-06 | S119: =E119*'Γενικά Στοιχεία Οργανισμού'!$E$19/SUM('Γενικά Στοιχεία Οργανισμού'!$E$13:$E$24,'Γενικά Στοιχεία Οργανισμού'!$D$9) -> 2.5318656e-06 | U119: =E119*'Γενικά Στοιχεία Οργανισμού'!$E$20/SUM('Γενικά Στοιχεία Οργανισμού'!$E$13:$E$24,'Γενικά Στοιχεία Οργανισμού'!$D$9) -> 3.71340288e-06 | W119: =E119*'Γενικά Στοιχεία Οργανισμού'!$E$21/SUM('Γενικά Στοιχεία Οργανισμού'!$E$13:$E$24,'Γενικά Στοιχεία Οργανισμού'!$D$9) -> 8.439552e-07 | Y119: =E119*'Γενικά Στοιχεία Οργανισμού'!$E$22/SUM('Γενικά Στοιχεία Οργανισμού'!$E$13:$E$24,'Γενικά Στοιχεία Οργανισμού'!$D$9) -> 2.109888e-06 | AA119: =E119*'Γενικά Στοιχεία Οργανισμού'!$E$23/SUM('Γενικά Στοιχεία Οργανισμού'!$E$13:$E$24,'Γενικά Στοιχεία Οργανισμού'!$D$9) -> 3.29142528e-06 | AC119: =E119*'Γενικά Στοιχεία Οργανισμού'!$E$24/SUM('Γενικά Στοιχεία Οργανισμού'!$E$13:$E$24,'Γενικά Στοιχεία Οργανισμού'!$D$9) -> 2.78505216e-06
C120: Ηλεκτρική Ενέργεια (Επιβατικό) | D120: ='Υπολογισμός Αν. Απ.'!Q47 -> 2.789684137 | E120: ='Υπολογισμός Αν. Απ.'!N47 -> 2.78493624 | F120: 0 | G120: 0 | H120: 0 | I120: 0 | J120: =D120*'Γενικά Στοιχεία Οργανισμού'!$D$9/SUM('Γενικά Στοιχεία Οργανισμού'!$E$13:$E$24,'Γενικά Στοιχεία Οργανισμού'!$D$9) -> 1.115873655 | K120: =E120*'Γενικά Στοιχεία Οργανισμού'!$D$9/SUM('Γενικά Στοιχεία Οργανισμού'!$E$13:$E$24,'Γενικά Στοιχεία Οργανισμού'!$D$9) -> 1.113974496 | L120: =D120*'Γενικά Στοιχεία Οργανισμού'!$E$16/SUM('Γενικά Στοιχεία Οργανισμού'!$E$13:$E$24,'Γενικά Στοιχεία Οργανισμού'!$D$9) -> 0.1205143547 | M120: =E120*'Γενικά Στοιχεία Οργανισμού'!$E$16/SUM('Γενικά Στοιχεία Οργανισμού'!$E$13:$E$24,'Γενικά Στοιχεία Οργανισμού'!$D$9) -> 0.1203092456 | N120: =D120*'Γενικά Στοιχεία Οργανισμού'!$E$17/SUM('Γενικά Στοιχεία Οργανισμού'!$E$13:$E$24,'Γενικά Στοιχεία Οργανισμού'!$D$9) -> 0.2120159944 | O120: =E120*'Γενικά Στοιχεία Οργανισμού'!$E$17/SUM('Γενικά Στοιχεία Οργανισμού'!$E$13:$E$24,'Γενικά Στοιχεία Οργανισμού'!$D$9) -> 0.2116551542 | P120: =D120*'Γενικά Στοιχεία Οργανισμού'!$E$18/SUM('Γενικά Στοιχεία Οργανισμού'!$E$13:$E$24,'Γενικά Στοιχεία Οργανισμού'!$D$9) -> 0.129441344 | Q120: =E120*'Γενικά Στοιχεία Οργανισμού'!$E$18/SUM('Γενικά Στοιχεία Οργανισμού'!$E$13:$E$24,'Γενικά Στοιχεία Οργανισμού'!$D$9) -> 0.1292210415 | R120: =D120*'Γενικά Στοιχεία Οργανισμού'!$E$19/SUM('Γενικά Στοιχεία Οργανισμού'!$E$13:$E$24,'Γενικά Στοιχεία Οργανισμού'!$D$9) -> 0.2008572579 | S120: =E120*'Γενικά Στοιχεία Οργανισμού'!$E$19/SUM('Γενικά Στοιχεία Οργανισμού'!$E$13:$E$24,'Γενικά Στοιχεία Οργανισμού'!$D$9) -> 0.2005154093 | T120: =D120*'Γενικά Στοιχεία Οργανισμού'!$E$20/SUM('Γενικά Στοιχεία Οργανισμού'!$E$13:$E$24,'Γενικά Στοιχεία Οργανισμού'!$D$9) -> 0.2945906449 | U120: =E120*'Γενικά Στοιχεία Οργανισμού'!$E$20/SUM('Γενικά Στοιχεία Οργανισμού'!$E$13:$E$24,'Γενικά Στοιχεία Οργανισμού'!$D$9) -> 0.2940892669 | V120: =D120*'Γενικά Στοιχεία Οργανισμού'!$E$21/SUM('Γενικά Στοιχεία Οργανισμού'!$E$13:$E$24,'Γενικά Στοιχεία Οργανισμού'!$D$9) -> 0.06695241929 | W120: =E120*'Γενικά Στοιχεία Οργανισμού'!$E$21/SUM('Γενικά Στοιχεία Οργανισμού'!$E$13:$E$24,'Γενικά Στοιχεία Οργανισμού'!$D$9) -> 0.06683846976 | X120: =D120*'Γενικά Στοιχεία Οργανισμού'!$E$22/SUM('Γενικά Στοιχεία Οργανισμού'!$E$13:$E$24,'Γενικά Στοιχεία Οργανισμού'!$D$9) -> 0.1673810482 | Y120: =E120*'Γενικά Στοιχεία Οργανισμού'!$E$22/SUM('Γενικά Στοιχεία Οργανισμού'!$E$13:$E$24,'Γενικά Στοιχεία Οργανισμού'!$D$9) -> 0.1670961744 | Z120: =D120*'Γενικά Στοιχεία Οργανισμού'!$E$23/SUM('Γενικά Στοιχεία Οργανισμού'!$E$13:$E$24,'Γενικά Στοιχεία Οργανισμού'!$D$9) -> 0.2611144352 | AA120: =E120*'Γενικά Στοιχεία Οργανισμού'!$E$23/SUM('Γενικά Στοιχεία Οργανισμού'!$E$13:$E$24,'Γενικά Στοιχεία Οργανισμού'!$D$9) -> 0.2606700321 | AB120: =D120*'Γενικά Στοιχεία Οργανισμού'!$E$24/SUM('Γενικά Στοιχεία Οργανισμού'!$E$13:$E$24,'Γενικά Στοιχεία Οργανισμού'!$D$9) -> 0.2209429837 | AC120: =E120*'Γενικά Στοιχεία Οργανισμού'!$E$24/SUM('Γενικά Στοιχεία Οργανισμού'!$E$13:$E$24,'Γενικά Στοιχεία Οργανισμού'!$D$9) -> 0.2205669502
E121: ='Υπολογισμός Αν. Απ.'!O47 -> 3.420520522e-05 | G121: 0 | I121: 0 | K121: =E121*'Γενικά Στοιχεία Οργανισμού'!$D$9/SUM('Γενικά Στοιχεία Οργανισμού'!$E$13:$E$24,'Γενικά Στοιχεία Οργανισμού'!$D$9) -> 1.368208209e-05 | M121: =E121*'Γενικά Στοιχεία Οργανισμού'!$E$16/SUM('Γενικά Στοιχεία Οργανισμού'!$E$13:$E$24,'Γενικά Στοιχεία Οργανισμού'!$D$9) -> 1.477664865e-06 | O121: =E121*'Γενικά Στοιχεία Οργανισμού'!$E$17/SUM('Γενικά Στοιχεία Οργανισμού'!$E$13:$E$24,'Γενικά Στοιχεία Οργανισμού'!$D$9) -> 2.599595596e-06 | Q121: =E121*'Γενικά Στοιχεία Οργανισμού'!$E$18/SUM('Γενικά Στοιχεία Οργανισμού'!$E$13:$E$24,'Γενικά Στοιχεία Οργανισμού'!$D$9) -> 1.587121522e-06 | S121: =E121*'Γενικά Στοιχεία Οργανισμού'!$E$19/SUM('Γενικά Στοιχεία Οργανισμού'!$E$13:$E$24,'Γενικά Στοιχεία Οργανισμού'!$D$9) -> 2.462774776e-06 | U121: =E121*'Γενικά Στοιχεία Οργανισμού'!$E$20/SUM('Γενικά Στοιχεία Οργανισμού'!$E$13:$E$24,'Γενικά Στοιχεία Οργανισμού'!$D$9) -> 3.612069671e-06 | W121: =E121*'Γενικά Στοιχεία Οργανισμού'!$E$21/SUM('Γενικά Στοιχεία Οργανισμού'!$E$13:$E$24,'Γενικά Στοιχεία Οργανισμού'!$D$9) -> 8.209249252e-07 | Y121: =E121*'Γενικά Στοιχεία Οργανισμού'!$E$22/SUM('Γενικά Στοιχεία Οργανισμού'!$E$13:$E$24,'Γενικά Στοιχεία Οργανισμού'!$D$9) -> 2.052312313e-06 | AA121: =E121*'Γενικά Στοιχεία Οργανισμού'!$E$23/SUM('Γενικά Στοιχεία Οργανισμού'!$E$13:$E$24,'Γενικά Στοιχεία Οργανισμού'!$D$9) -> 3.201607208e-06 | AC121: =E121*'Γενικά Στοιχεία Οργανισμού'!$E$24/SUM('Γενικά Στοιχεία Οργανισμού'!$E$13:$E$24,'Γενικά Στοιχεία Οργανισμού'!$D$9) -> 2.709052253e-06
E122: ='Υπολογισμός Αν. Απ.'!P47 -> 1.389586776e-05 | G122: 0 | I122: 0 | K122: =E122*'Γενικά Στοιχεία Οργανισμού'!$D$9/SUM('Γενικά Στοιχεία Οργανισμού'!$E$13:$E$24,'Γενικά Στοιχεία Οργανισμού'!$D$9) -> 5.558347104e-06 | M122: =E122*'Γενικά Στοιχεία Οργανισμού'!$E$16/SUM('Γενικά Στοιχεία Οργανισμού'!$E$13:$E$24,'Γενικά Στοιχεία Οργανισμού'!$D$9) -> 6.003014872e-07 | O122: =E122*'Γενικά Στοιχεία Οργανισμού'!$E$17/SUM('Γενικά Στοιχεία Οργανισμού'!$E$13:$E$24,'Γενικά Στοιχεία Οργανισμού'!$D$9) -> 1.05608595e-06 | Q122: =E122*'Γενικά Στοιχεία Οργανισμού'!$E$18/SUM('Γενικά Στοιχεία Οργανισμού'!$E$13:$E$24,'Γενικά Στοιχεία Οργανισμού'!$D$9) -> 6.447682641e-07 | S122: =E122*'Γενικά Στοιχεία Οργανισμού'!$E$19/SUM('Γενικά Στοιχεία Οργανισμού'!$E$13:$E$24,'Γενικά Στοιχεία Οργανισμού'!$D$9) -> 1.000502479e-06 | U122: =E122*'Γενικά Στοιχεία Οργανισμού'!$E$20/SUM('Γενικά Στοιχεία Οργανισμού'!$E$13:$E$24,'Γενικά Στοιχεία Οργανισμού'!$D$9) -> 1.467403635e-06 | W122: =E122*'Γενικά Στοιχεία Οργανισμού'!$E$21/SUM('Γενικά Στοιχεία Οργανισμού'!$E$13:$E$24,'Γενικά Στοιχεία Οργανισμού'!$D$9) -> 3.335008262e-07 | Y122: =E122*'Γενικά Στοιχεία Οργανισμού'!$E$22/SUM('Γενικά Στοιχεία Οργανισμού'!$E$13:$E$24,'Γενικά Στοιχεία Οργανισμού'!$D$9) -> 8.337520656e-07 | AA122: =E122*'Γενικά Στοιχεία Οργανισμού'!$E$23/SUM('Γενικά Στοιχεία Οργανισμού'!$E$13:$E$24,'Γενικά Στοιχεία Οργανισμού'!$D$9) -> 1.300653222e-06 | AC122: =E122*'Γενικά Στοιχεία Οργανισμού'!$E$24/SUM('Γενικά Στοιχεία Οργανισμού'!$E$13:$E$24,'Γενικά Στοιχεία Οργανισμού'!$D$9) -> 1.100552727e-06
C123: Ηλεκτρική Ενέργεια (Λεωφορείο / Τρόλεϊ) | D123: ='Υπολογισμός Αν. Απ.'!Q48 -> 0.5335570663 | E123: ='Υπολογισμός Αν. Απ.'!N48 -> 0.53264898 | F123: 0 | G123: 0 | H123: 0 | I123: 0 | J123: =D123*'Γενικά Στοιχεία Οργανισμού'!$D$9/SUM('Γενικά Στοιχεία Οργανισμού'!$E$13:$E$24,'Γενικά Στοιχεία Οργανισμού'!$D$9) -> 0.2134228265 | K123: =E123*'Γενικά Στοιχεία Οργανισμού'!$D$9/SUM('Γενικά Στοιχεία Οργανισμού'!$E$13:$E$24,'Γενικά Στοιχεία Οργανισμού'!$D$9) -> 0.213059592 | L123: =D123*'Γενικά Στοιχεία Οργανισμού'!$E$16/SUM('Γενικά Στοιχεία Οργανισμού'!$E$13:$E$24,'Γενικά Στοιχεία Οργανισμού'!$D$9) -> 0.02304966527 | M123: =E123*'Γενικά Στοιχεία Οργανισμού'!$E$16/SUM('Γενικά Στοιχεία Οργανισμού'!$E$13:$E$24,'Γενικά Στοιχεία Οργανισμού'!$D$9) -> 0.02301043594 | N123: =D123*'Γενικά Στοιχεία Οργανισμού'!$E$17/SUM('Γενικά Στοιχεία Οργανισμού'!$E$13:$E$24,'Γενικά Στοιχεία Οργανισμού'!$D$9) -> 0.04055033704 | O123: =E123*'Γενικά Στοιχεία Οργανισμού'!$E$17/SUM('Γενικά Στοιχεία Οργανισμού'!$E$13:$E$24,'Γενικά Στοιχεία Οργανισμού'!$D$9) -> 0.04048132248 | P123: =D123*'Γενικά Στοιχεία Οργανισμού'!$E$18/SUM('Γενικά Στοιχεία Οργανισμού'!$E$13:$E$24,'Γενικά Στοιχεία Οργανισμού'!$D$9) -> 0.02475704788 | Q123: =E123*'Γενικά Στοιχεία Οργανισμού'!$E$18/SUM('Γενικά Στοιχεία Οργανισμού'!$E$13:$E$24,'Γενικά Στοιχεία Οργανισμού'!$D$9) -> 0.02471491267 | R123: =D123*'Γενικά Στοιχεία Οργανισμού'!$E$19/SUM('Γενικά Στοιχεία Οργανισμού'!$E$13:$E$24,'Γενικά Στοιχεία Οργανισμού'!$D$9) -> 0.03841610878 | S123: =E123*'Γενικά Στοιχεία Οργανισμού'!$E$19/SUM('Γενικά Στοιχεία Οργανισμού'!$E$13:$E$24,'Γενικά Στοιχεία Οργανισμού'!$D$9) -> 0.03835072656 | T123: =D123*'Γενικά Στοιχεία Οργανισμού'!$E$20/SUM('Γενικά Στοιχεία Οργανισμού'!$E$13:$E$24,'Γενικά Στοιχεία Οργανισμού'!$D$9) -> 0.05634362621 | U123: =E123*'Γενικά Στοιχεία Οργανισμού'!$E$20/SUM('Γενικά Στοιχεία Οργανισμού'!$E$13:$E$24,'Γενικά Στοιχεία Οργανισμού'!$D$9) -> 0.05624773229 | V123: =D123*'Γενικά Στοιχεία Οργανισμού'!$E$21/SUM('Γενικά Στοιχεία Οργανισμού'!$E$13:$E$24,'Γενικά Στοιχεία Οργανισμού'!$D$9) -> 0.01280536959 | W123: =E123*'Γενικά Στοιχεία Οργανισμού'!$E$21/SUM('Γενικά Στοιχεία Οργανισμού'!$E$13:$E$24,'Γενικά Στοιχεία Οργανισμού'!$D$9) -> 0.01278357552 | X123: =D123*'Γενικά Στοιχεία Οργανισμού'!$E$22/SUM('Γενικά Στοιχεία Οργανισμού'!$E$13:$E$24,'Γενικά Στοιχεία Οργανισμού'!$D$9) -> 0.03201342398 | Y123: =E123*'Γενικά Στοιχεία Οργανισμού'!$E$22/SUM('Γενικά Στοιχεία Οργανισμού'!$E$13:$E$24,'Γενικά Στοιχεία Οργανισμού'!$D$9) -> 0.0319589388 | Z123: =D123*'Γενικά Στοιχεία Οργανισμού'!$E$23/SUM('Γενικά Στοιχεία Οργανισμού'!$E$13:$E$24,'Γενικά Στοιχεία Οργανισμού'!$D$9) -> 0.04994094141 | AA123: =E123*'Γενικά Στοιχεία Οργανισμού'!$E$23/SUM('Γενικά Στοιχεία Οργανισμού'!$E$13:$E$24,'Γενικά Στοιχεία Οργανισμού'!$D$9) -> 0.04985594453 | AB123: =D123*'Γενικά Στοιχεία Οργανισμού'!$E$24/SUM('Γενικά Στοιχεία Οργανισμού'!$E$13:$E$24,'Γενικά Στοιχεία Οργανισμού'!$D$9) -> 0.04225771965 | AC123: =E123*'Γενικά Στοιχεία Οργανισμού'!$E$24/SUM('Γενικά Στοιχεία Οργανισμού'!$E$13:$E$24,'Γενικά Στοιχεία Οργανισμού'!$D$9) -> 0.04218579922
E124: ='Υπολογισμός Αν. Απ.'!O48 -> 6.542113032e-06 | G124: 0 | I124: 0 | K124: =E124*'Γενικά Στοιχεία Οργανισμού'!$D$9/SUM('Γενικά Στοιχεία Οργανισμού'!$E$13:$E$24,'Γενικά Στοιχεία Οργανισμού'!$D$9) -> 2.616845213e-06 | M124: =E124*'Γενικά Στοιχεία Οργανισμού'!$E$16/SUM('Γενικά Στοιχεία Οργανισμού'!$E$13:$E$24,'Γενικά Στοιχεία Οργανισμού'!$D$9) -> 2.82619283e-07 | O124: =E124*'Γενικά Στοιχεία Οργανισμού'!$E$17/SUM('Γενικά Στοιχεία Οργανισμού'!$E$13:$E$24,'Γενικά Στοιχεία Οργανισμού'!$D$9) -> 4.972005904e-07 | Q124: =E124*'Γενικά Στοιχεία Οργανισμού'!$E$18/SUM('Γενικά Στοιχεία Οργανισμού'!$E$13:$E$24,'Γενικά Στοιχεία Οργανισμού'!$D$9) -> 3.035540447e-07 | S124: =E124*'Γενικά Στοιχεία Οργανισμού'!$E$19/SUM('Γενικά Στοιχεία Οργανισμού'!$E$13:$E$24,'Γενικά Στοιχεία Οργανισμού'!$D$9) -> 4.710321383e-07 | U124: =E124*'Γενικά Στοιχεία Οργανισμού'!$E$20/SUM('Γενικά Στοιχεία Οργανισμού'!$E$13:$E$24,'Γενικά Στοιχεία Οργανισμού'!$D$9) -> 6.908471362e-07 | W124: =E124*'Γενικά Στοιχεία Οργανισμού'!$E$21/SUM('Γενικά Στοιχεία Οργανισμού'!$E$13:$E$24,'Γενικά Στοιχεία Οργανισμού'!$D$9) -> 1.570107128e-07 | Y124: =E124*'Γενικά Στοιχεία Οργανισμού'!$E$22/SUM('Γενικά Στοιχεία Οργανισμού'!$E$13:$E$24,'Γενικά Στοιχεία Οργανισμού'!$D$9) -> 3.925267819e-07 | AA124: =E124*'Γενικά Στοιχεία Οργανισμού'!$E$23/SUM('Γενικά Στοιχεία Οργανισμού'!$E$13:$E$24,'Γενικά Στοιχεία Οργανισμού'!$D$9) -> 6.123417798e-07 | AC124: =E124*'Γενικά Στοιχεία Οργανισμού'!$E$24/SUM('Γενικά Στοιχεία Οργανισμού'!$E$13:$E$24,'Γενικά Στοιχεία Οργανισμού'!$D$9) -> 5.181353521e-07
E125: ='Υπολογισμός Αν. Απ.'!P48 -> 2.65773402e-06 | G125: 0 | I125: 0 | K125: =E125*'Γενικά Στοιχεία Οργανισμού'!$D$9/SUM('Γενικά Στοιχεία Οργανισμού'!$E$13:$E$24,'Γενικά Στοιχεία Οργανισμού'!$D$9) -> 1.063093608e-06 | M125: =E125*'Γενικά Στοιχεία Οργανισμού'!$E$16/SUM('Γενικά Στοιχεία Οργανισμού'!$E$13:$E$24,'Γενικά Στοιχεία Οργανισμού'!$D$9) -> 1.148141097e-07 | O125: =E125*'Γενικά Στοιχεία Οργανισμού'!$E$17/SUM('Γενικά Στοιχεία Οργανισμού'!$E$13:$E$24,'Γενικά Στοιχεία Οργανισμού'!$D$9) -> 2.019877855e-07 | Q125: =E125*'Γενικά Στοιχεία Οργανισμού'!$E$18/SUM('Γενικά Στοιχεία Οργανισμού'!$E$13:$E$24,'Γενικά Στοιχεία Οργανισμού'!$D$9) -> 1.233188585e-07 | S125: =E125*'Γενικά Στοιχεία Οργανισμού'!$E$19/SUM('Γενικά Στοιχεία Οργανισμού'!$E$13:$E$24,'Γενικά Στοιχεία Οργανισμού'!$D$9) -> 1.913568494e-07 | U125: =E125*'Γενικά Στοιχεία Οργανισμού'!$E$20/SUM('Γενικά Στοιχεία Οργανισμού'!$E$13:$E$24,'Γενικά Στοιχεία Οργανισμού'!$D$9) -> 2.806567125e-07 | W125: =E125*'Γενικά Στοιχεία Οργανισμού'!$E$21/SUM('Γενικά Στοιχεία Οργανισμού'!$E$13:$E$24,'Γενικά Στοιχεία Οργανισμού'!$D$9) -> 6.378561648e-08 | Y125: =E125*'Γενικά Στοιχεία Οργανισμού'!$E$22/SUM('Γενικά Στοιχεία Οργανισμού'!$E$13:$E$24,'Γενικά Στοιχεία Οργανισμού'!$D$9) -> 1.594640412e-07 | AA125: =E125*'Γενικά Στοιχεία Οργανισμού'!$E$23/SUM('Γενικά Στοιχεία Οργανισμού'!$E$13:$E$24,'Γενικά Στοιχεία Οργανισμού'!$D$9) -> 2.487639043e-07 | AC125: =E125*'Γενικά Στοιχεία Οργανισμού'!$E$24/SUM('Γενικά Στοιχεία Οργανισμού'!$E$13:$E$24,'Γενικά Στοιχεία Οργανισμού'!$D$9) -> 2.104925344e-07
C126: Ηλεκτρική Ενέργεια (Συρμοί) | D126: ='Υπολογισμός Αν. Απ.'!Q49 -> 43.61379391 | E126: ='Υπολογισμός Αν. Απ.'!N49 -> 43.5395655 | F126: 0 | G126: 0 | H126: 0 | I126: 0 | J126: =D126*'Γενικά Στοιχεία Οργανισμού'!$D$9/SUM('Γενικά Στοιχεία Οργανισμού'!$E$13:$E$24,'Γενικά Στοιχεία Οργανισμού'!$D$9) -> 17.44551756 | K126: =E126*'Γενικά Στοιχεία Οργανισμού'!$D$9/SUM('Γενικά Στοιχεία Οργανισμού'!$E$13:$E$24,'Γενικά Στοιχεία Οργανισμού'!$D$9) -> 17.4158262 | L126: =D126*'Γενικά Στοιχεία Οργανισμού'!$E$16/SUM('Γενικά Στοιχεία Οργανισμού'!$E$13:$E$24,'Γενικά Στοιχεία Οργανισμού'!$D$9) -> 1.884115897 | M126: =E126*'Γενικά Στοιχεία Οργανισμού'!$E$16/SUM('Γενικά Στοιχεία Οργανισμού'!$E$13:$E$24,'Γενικά Στοιχεία Οργανισμού'!$D$9) -> 1.88090923 | N126: =D126*'Γενικά Στοιχεία Οργανισμού'!$E$17/SUM('Γενικά Στοιχεία Οργανισμού'!$E$13:$E$24,'Γενικά Στοιχεία Οργανισμού'!$D$9) -> 3.314648337 | O126: =E126*'Γενικά Στοιχεία Οργανισμού'!$E$17/SUM('Γενικά Στοιχεία Οργανισμού'!$E$13:$E$24,'Γενικά Στοιχεία Οργανισμού'!$D$9) -> 3.309006978 | P126: =D126*'Γενικά Στοιχεία Οργανισμού'!$E$18/SUM('Γενικά Στοιχεία Οργανισμού'!$E$13:$E$24,'Γενικά Στοιχεία Οργανισμού'!$D$9) -> 2.023680037 | Q126: =E126*'Γενικά Στοιχεία Οργανισμού'!$E$18/SUM('Γενικά Στοιχεία Οργανισμού'!$E$13:$E$24,'Γενικά Στοιχεία Οργανισμού'!$D$9) -> 2.020235839 | R126: =D126*'Γενικά Στοιχεία Οργανισμού'!$E$19/SUM('Γενικά Στοιχεία Οργανισμού'!$E$13:$E$24,'Γενικά Στοιχεία Οργανισμού'!$D$9) -> 3.140193161 | S126: =E126*'Γενικά Στοιχεία Οργανισμού'!$E$19/SUM('Γενικά Στοιχεία Οργανισμού'!$E$13:$E$24,'Γενικά Στοιχεία Οργανισμού'!$D$9) -> 3.134848716 | T126: =D126*'Γενικά Στοιχεία Οργανισμού'!$E$20/SUM('Γενικά Στοιχεία Οργανισμού'!$E$13:$E$24,'Γενικά Στοιχεία Οργανισμού'!$D$9) -> 4.605616636 | U126: =E126*'Γενικά Στοιχεία Οργανισμού'!$E$20/SUM('Γενικά Στοιχεία Οργανισμού'!$E$13:$E$24,'Γενικά Στοιχεία Οργανισμού'!$D$9) -> 4.597778117 | V126: =D126*'Γενικά Στοιχεία Οργανισμού'!$E$21/SUM('Γενικά Στοιχεία Οργανισμού'!$E$13:$E$24,'Γενικά Στοιχεία Οργανισμού'!$D$9) -> 1.046731054 | W126: =E126*'Γενικά Στοιχεία Οργανισμού'!$E$21/SUM('Γενικά Στοιχεία Οργανισμού'!$E$13:$E$24,'Γενικά Στοιχεία Οργανισμού'!$D$9) -> 1.044949572 | X126: =D126*'Γενικά Στοιχεία Οργανισμού'!$E$22/SUM('Γενικά Στοιχεία Οργανισμού'!$E$13:$E$24,'Γενικά Στοιχεία Οργανισμού'!$D$9) -> 2.616827634 | Y126: =E126*'Γενικά Στοιχεία Οργανισμού'!$E$22/SUM('Γενικά Στοιχεία Οργανισμού'!$E$13:$E$24,'Γενικά Στοιχεία Οργανισμού'!$D$9) -> 2.61237393 | Z126: =D126*'Γενικά Στοιχεία Οργανισμού'!$E$23/SUM('Γενικά Στοιχεία Οργανισμού'!$E$13:$E$24,'Γενικά Στοιχεία Οργανισμού'!$D$9) -> 4.08225111 | AA126: =E126*'Γενικά Στοιχεία Οργανισμού'!$E$23/SUM('Γενικά Στοιχεία Οργανισμού'!$E$13:$E$24,'Γενικά Στοιχεία Οργανισμού'!$D$9) -> 4.075303331 | AB126: =D126*'Γενικά Στοιχεία Οργανισμού'!$E$24/SUM('Γενικά Στοιχεία Οργανισμού'!$E$13:$E$24,'Γενικά Στοιχεία Οργανισμού'!$D$9) -> 3.454212477 | AC126: =E126*'Γενικά Στοιχεία Οργανισμού'!$E$24/SUM('Γενικά Στοιχεία Οργανισμού'!$E$13:$E$24,'Γενικά Στοιχεία Οργανισμού'!$D$9) -> 3.448333588
E127: ='Υπολογισμός Αν. Απ.'!O49 -> 0.0005347626102 | G127: 0 | I127: 0 | K127: =E127*'Γενικά Στοιχεία Οργανισμού'!$D$9/SUM('Γενικά Στοιχεία Οργανισμού'!$E$13:$E$24,'Γενικά Στοιχεία Οργανισμού'!$D$9) -> 0.0002139050441 | M127: =E127*'Γενικά Στοιχεία Οργανισμού'!$E$16/SUM('Γενικά Στοιχεία Οργανισμού'!$E$13:$E$24,'Γενικά Στοιχεία Οργανισμού'!$D$9) -> 2.310174476e-05 | O127: =E127*'Γενικά Στοιχεία Οργανισμού'!$E$17/SUM('Γενικά Στοιχεία Οργανισμού'!$E$13:$E$24,'Γενικά Στοιχεία Οργανισμού'!$D$9) -> 4.064195838e-05 | Q127: =E127*'Γενικά Στοιχεία Οργανισμού'!$E$18/SUM('Γενικά Στοιχεία Οργανισμού'!$E$13:$E$24,'Γενικά Στοιχεία Οργανισμού'!$D$9) -> 2.481298511e-05 | S127: =E127*'Γενικά Στοιχεία Οργανισμού'!$E$19/SUM('Γενικά Στοιχεία Οργανισμού'!$E$13:$E$24,'Γενικά Στοιχεία Οργανισμού'!$D$9) -> 3.850290793e-05 | U127: =E127*'Γενικά Στοιχεία Οργανισμού'!$E$20/SUM('Γενικά Στοιχεία Οργανισμού'!$E$13:$E$24,'Γενικά Στοιχεία Οργανισμού'!$D$9) -> 5.647093164e-05 | W127: =E127*'Γενικά Στοιχεία Οργανισμού'!$E$21/SUM('Γενικά Στοιχεία Οργανισμού'!$E$13:$E$24,'Γενικά Στοιχεία Οργανισμού'!$D$9) -> 1.283430264e-05 | Y127: =E127*'Γενικά Στοιχεία Οργανισμού'!$E$22/SUM('Γενικά Στοιχεία Οργανισμού'!$E$13:$E$24,'Γενικά Στοιχεία Οργανισμού'!$D$9) -> 3.208575661e-05 | AA127: =E127*'Γενικά Στοιχεία Οργανισμού'!$E$23/SUM('Γενικά Στοιχεία Οργανισμού'!$E$13:$E$24,'Γενικά Στοιχεία Οργανισμού'!$D$9) -> 5.005378031e-05 | AC127: =E127*'Γενικά Στοιχεία Οργανισμού'!$E$24/SUM('Γενικά Στοιχεία Οργανισμού'!$E$13:$E$24,'Γενικά Στοιχεία Οργανισμού'!$D$9) -> 4.235319873e-05
E128: ='Υπολογισμός Αν. Απ.'!P49 -> 0.0002172473595 | G128: 0 | I128: 0 | K128: =E128*'Γενικά Στοιχεία Οργανισμού'!$D$9/SUM('Γενικά Στοιχεία Οργανισμού'!$E$13:$E$24,'Γενικά Στοιχεία Οργανισμού'!$D$9) -> 8.68989438e-05 | M128: =E128*'Γενικά Στοιχεία Οργανισμού'!$E$16/SUM('Γενικά Στοιχεία Οργανισμού'!$E$13:$E$24,'Γενικά Στοιχεία Οργανισμού'!$D$9) -> 9.38508593e-06 | O128: =E128*'Γενικά Στοιχεία Οργανισμού'!$E$17/SUM('Γενικά Στοιχεία Οργανισμού'!$E$13:$E$24,'Γενικά Στοιχεία Οργανισμού'!$D$9) -> 1.651079932e-05 | Q128: =E128*'Γενικά Στοιχεία Οργανισμού'!$E$18/SUM('Γενικά Στοιχεία Οργανισμού'!$E$13:$E$24,'Γενικά Στοιχεία Οργανισμού'!$D$9) -> 1.008027748e-05 | S128: =E128*'Γενικά Στοιχεία Οργανισμού'!$E$19/SUM('Γενικά Στοιχεία Οργανισμού'!$E$13:$E$24,'Γενικά Στοιχεία Οργανισμού'!$D$9) -> 1.564180988e-05 | U128: =E128*'Γενικά Στοιχεία Οργανισμού'!$E$20/SUM('Γενικά Στοιχεία Οργανισμού'!$E$13:$E$24,'Γενικά Στοιχεία Οργανισμού'!$D$9) -> 2.294132116e-05 | W128: =E128*'Γενικά Στοιχεία Οργανισμού'!$E$21/SUM('Γενικά Στοιχεία Οργανισμού'!$E$13:$E$24,'Γενικά Στοιχεία Οργανισμού'!$D$9) -> 5.213936628e-06 | Y128: =E128*'Γενικά Στοιχεία Οργανισμού'!$E$22/SUM('Γενικά Στοιχεία Οργανισμού'!$E$13:$E$24,'Γενικά Στοιχεία Οργανισμού'!$D$9) -> 1.303484157e-05 | AA128: =E128*'Γενικά Στοιχεία Οργανισμού'!$E$23/SUM('Γενικά Στοιχεία Οργανισμού'!$E$13:$E$24,'Γενικά Στοιχεία Οργανισμού'!$D$9) -> 2.033435285e-05 | AC128: =E128*'Γενικά Στοιχεία Οργανισμού'!$E$24/SUM('Γενικά Στοιχεία Οργανισμού'!$E$13:$E$24,'Γενικά Στοιχεία Οργανισμού'!$D$9) -> 1.720599087e-05
C129: Επαγγελματικά Ταξίδια | D129: =SUM(D132:D149) -> 511.8002326 | E129: =E132+E135+E138+E141+E144+E147 -> 507.9251426 | F129: 0 | G129: 0 | H129: 0 | I129: 0 | J129: =D129*'Γενικά Στοιχεία Οργανισμού'!$D$9/SUM('Γενικά Στοιχεία Οργανισμού'!$E$13:$E$24,'Γενικά Στοιχεία Οργανισμού'!$D$9) -> 204.720093 | K129: =E129*'Γενικά Στοιχεία Οργανισμού'!$D$9/SUM('Γενικά Στοιχεία Οργανισμού'!$E$13:$E$24,'Γενικά Στοιχεία Οργανισμού'!$D$9) -> 203.170057 | L129: =D129*'Γενικά Στοιχεία Οργανισμού'!$E$16/SUM('Γενικά Στοιχεία Οργανισμού'!$E$13:$E$24,'Γενικά Στοιχεία Οργανισμού'!$D$9) -> 22.10977005 | M129: =E129*'Γενικά Στοιχεία Οργανισμού'!$E$16/SUM('Γενικά Στοιχεία Οργανισμού'!$E$13:$E$24,'Γενικά Στοιχεία Οργανισμού'!$D$9) -> 21.94236616 | N129: =D129*'Γενικά Στοιχεία Οργανισμού'!$E$17/SUM('Γενικά Στοιχεία Οργανισμού'!$E$13:$E$24,'Γενικά Στοιχεία Οργανισμού'!$D$9) -> 38.89681768 | O129: =E129*'Γενικά Στοιχεία Οργανισμού'!$E$17/SUM('Γενικά Στοιχεία Οργανισμού'!$E$13:$E$24,'Γενικά Στοιχεία Οργανισμού'!$D$9) -> 38.60231084 | P129: =D129*'Γενικά Στοιχεία Οργανισμού'!$E$18/SUM('Γενικά Στοιχεία Οργανισμού'!$E$13:$E$24,'Γενικά Στοιχεία Οργανισμού'!$D$9) -> 23.74753079 | Q129: =E129*'Γενικά Στοιχεία Οργανισμού'!$E$18/SUM('Γενικά Στοιχεία Οργανισμού'!$E$13:$E$24,'Γενικά Στοιχεία Οργανισμού'!$D$9) -> 23.56772662 | R129: =D129*'Γενικά Στοιχεία Οργανισμού'!$E$19/SUM('Γενικά Στοιχεία Οργανισμού'!$E$13:$E$24,'Γενικά Στοιχεία Οργανισμού'!$D$9) -> 36.84961675 | S129: =E129*'Γενικά Στοιχεία Οργανισμού'!$E$19/SUM('Γενικά Στοιχεία Οργανισμού'!$E$13:$E$24,'Γενικά Στοιχεία Οργανισμού'!$D$9) -> 36.57061027 | T129: =D129*'Γενικά Στοιχεία Οργανισμού'!$E$20/SUM('Γενικά Στοιχεία Οργανισμού'!$E$13:$E$24,'Γενικά Στοιχεία Οργανισμού'!$D$9) -> 54.04610456 | U129: =E129*'Γενικά Στοιχεία Οργανισμού'!$E$20/SUM('Γενικά Στοιχεία Οργανισμού'!$E$13:$E$24,'Γενικά Στοιχεία Οργανισμού'!$D$9) -> 53.63689506 | V129: =D129*'Γενικά Στοιχεία Οργανισμού'!$E$21/SUM('Γενικά Στοιχεία Οργανισμού'!$E$13:$E$24,'Γενικά Στοιχεία Οργανισμού'!$D$9) -> 12.28320558 | W129: =E129*'Γενικά Στοιχεία Οργανισμού'!$E$21/SUM('Γενικά Στοιχεία Οργανισμού'!$E$13:$E$24,'Γενικά Στοιχεία Οργανισμού'!$D$9) -> 12.19020342 | X129: =D129*'Γενικά Στοιχεία Οργανισμού'!$E$22/SUM('Γενικά Στοιχεία Οργανισμού'!$E$13:$E$24,'Γενικά Στοιχεία Οργανισμού'!$D$9) -> 30.70801396 | Y129: =E129*'Γενικά Στοιχεία Οργανισμού'!$E$22/SUM('Γενικά Στοιχεία Οργανισμού'!$E$13:$E$24,'Γενικά Στοιχεία Οργανισμού'!$D$9) -> 30.47550856 | Z129: =D129*'Γενικά Στοιχεία Οργανισμού'!$E$23/SUM('Γενικά Στοιχεία Οργανισμού'!$E$13:$E$24,'Γενικά Στοιχεία Οργανισμού'!$D$9) -> 47.90450177 | AA129: =E129*'Γενικά Στοιχεία Οργανισμού'!$E$23/SUM('Γενικά Στοιχεία Οργανισμού'!$E$13:$E$24,'Γενικά Στοιχεία Οργανισμού'!$D$9) -> 47.54179335 | AB129: =D129*'Γενικά Στοιχεία Οργανισμού'!$E$24/SUM('Γενικά Στοιχεία Οργανισμού'!$E$13:$E$24,'Γενικά Στοιχεία Οργανισμού'!$D$9) -> 40.53457842 | AC129: =E129*'Γενικά Στοιχεία Οργανισμού'!$E$24/SUM('Γενικά Στοιχεία Οργανισμού'!$E$13:$E$24,'Γενικά Στοιχεία Οργανισμού'!$D$9) -> 40.22767129
E130: =E133+E136+E139+E142+E145+E148 -> 0.006188001626 | G130: 0 | I130: 0 | K130: =E130*'Γενικά Στοιχεία Οργανισμού'!$D$9/SUM('Γενικά Στοιχεία Οργανισμού'!$E$13:$E$24,'Γενικά Στοιχεία Οργανισμού'!$D$9) -> 0.00247520065 | M130: =E130*'Γενικά Στοιχεία Οργανισμού'!$E$16/SUM('Γενικά Στοιχεία Οργανισμού'!$E$13:$E$24,'Γενικά Στοιχεία Οργανισμού'!$D$9) -> 0.0002673216702 | O130: =E130*'Γενικά Στοιχεία Οργανισμού'!$E$17/SUM('Γενικά Στοιχεία Οργανισμού'!$E$13:$E$24,'Γενικά Στοιχεία Οργανισμού'!$D$9) -> 0.0004702881236 | Q130: =E130*'Γενικά Στοιχεία Οργανισμού'!$E$18/SUM('Γενικά Στοιχεία Οργανισμού'!$E$13:$E$24,'Γενικά Στοιχεία Οργανισμού'!$D$9) -> 0.0002871232754 | S130: =E130*'Γενικά Στοιχεία Οργανισμού'!$E$19/SUM('Γενικά Στοιχεία Οργανισμού'!$E$13:$E$24,'Γενικά Στοιχεία Οργανισμού'!$D$9) -> 0.0004455361171 | U130: =E130*'Γενικά Στοιχεία Οργανισμού'!$E$20/SUM('Γενικά Στοιχεία Οργανισμού'!$E$13:$E$24,'Γενικά Στοιχεία Οργανισμού'!$D$9) -> 0.0006534529717 | W130: =E130*'Γενικά Στοιχεία Οργανισμού'!$E$21/SUM('Γενικά Στοιχεία Οργανισμού'!$E$13:$E$24,'Γενικά Στοιχεία Οργανισμού'!$D$9) -> 0.000148512039 | Y130: =E130*'Γενικά Στοιχεία Οργανισμού'!$E$22/SUM('Γενικά Στοιχεία Οργανισμού'!$E$13:$E$24,'Γενικά Στοιχεία Οργανισμού'!$D$9) -> 0.0003712800976 | AA130: =E130*'Γενικά Στοιχεία Οργανισμού'!$E$23/SUM('Γενικά Στοιχεία Οργανισμού'!$E$13:$E$24,'Γενικά Στοιχεία Οργανισμού'!$D$9) -> 0.0005791969522 | AC130: =E130*'Γενικά Στοιχεία Οργανισμού'!$E$24/SUM('Γενικά Στοιχεία Οργανισμού'!$E$13:$E$24,'Γενικά Στοιχεία Οργανισμού'!$D$9) -> 0.0004900897288
E131: 0.01356206873 | G131: 0 | I131: 0 | K131: =E131*'Γενικά Στοιχεία Οργανισμού'!$D$9/SUM('Γενικά Στοιχεία Οργανισμού'!$E$13:$E$24,'Γενικά Στοιχεία Οργανισμού'!$D$9) -> 0.00542482749 | M131: =E131*'Γενικά Στοιχεία Οργανισμού'!$E$16/SUM('Γενικά Στοιχεία Οργανισμού'!$E$13:$E$24,'Γενικά Στοιχεία Οργανισμού'!$D$9) -> 0.0005858813689 | O131: =E131*'Γενικά Στοιχεία Οργανισμού'!$E$17/SUM('Γενικά Στοιχεία Οργανισμού'!$E$13:$E$24,'Γενικά Στοιχεία Οργανισμού'!$D$9) -> 0.001030717223 | Q131: =E131*'Γενικά Στοιχεία Οργανισμού'!$E$18/SUM('Γενικά Στοιχεία Οργανισμού'!$E$13:$E$24,'Γενικά Στοιχεία Οργανισμού'!$D$9) -> 0.0006292799889 | S131: =E131*'Γενικά Στοιχεία Οργανισμού'!$E$19/SUM('Γενικά Στοιχεία Οργανισμού'!$E$13:$E$24,'Γενικά Στοιχεία Οργανισμού'!$D$9) -> 0.0009764689482 | U131: =E131*'Γενικά Στοιχεία Οργανισμού'!$E$20/SUM('Γενικά Στοιχεία Οργανισμού'!$E$13:$E$24,'Γενικά Στοιχεία Οργανισμού'!$D$9) -> 0.001432154457 | W131: =E131*'Γενικά Στοιχεία Οργανισμού'!$E$21/SUM('Γενικά Στοιχεία Οργανισμού'!$E$13:$E$24,'Γενικά Στοιχεία Οργανισμού'!$D$9) -> 0.0003254896494 | Y131: =E131*'Γενικά Στοιχεία Οργανισμού'!$E$22/SUM('Γενικά Στοιχεία Οργανισμού'!$E$13:$E$24,'Γενικά Στοιχεία Οργανισμού'!$D$9) -> 0.0008137241235 | AA131: =E131*'Γενικά Στοιχεία Οργανισμού'!$E$23/SUM('Γενικά Στοιχεία Οργανισμού'!$E$13:$E$24,'Γενικά Στοιχεία Οργανισμού'!$D$9) -> 0.001269409633 | AC131: =E131*'Γενικά Στοιχεία Οργανισμού'!$E$24/SUM('Γενικά Στοιχεία Οργανισμού'!$E$13:$E$24,'Γενικά Στοιχεία Οργανισμού'!$D$9) -> 0.001074115843
C132: Πετρέλαιο Κίνησης (Επιβατικό) | D132: ='Υπολογισμός Αν. Απ.'!Q53+'Υπολογισμός Αν. Απ.'!Q55 -> 2.58940176 | E132: ='Υπολογισμός Αν. Απ.'!N53+'Υπολογισμός Αν. Απ.'!N55 -> 2.561299966 | F132: 0 | G132: 0 | H132: 0 | I132: 0 | J132: =D132*'Γενικά Στοιχεία Οργανισμού'!$D$9/SUM('Γενικά Στοιχεία Οργανισμού'!$E$13:$E$24,'Γενικά Στοιχεία Οργανισμού'!$D$9) -> 1.035760704 | K132: =E132*'Γενικά Στοιχεία Οργανισμού'!$D$9/SUM('Γενικά Στοιχεία Οργανισμού'!$E$13:$E$24,'Γενικά Στοιχεία Οργανισμού'!$D$9) -> 1.024519986 | L132: =D132*'Γενικά Στοιχεία Οργανισμού'!$E$16/SUM('Γενικά Στοιχεία Οργανισμού'!$E$13:$E$24,'Γενικά Στοιχεία Οργανισμού'!$D$9) -> 0.111862156 | M132: =E132*'Γενικά Στοιχεία Οργανισμού'!$E$16/SUM('Γενικά Στοιχεία Οργανισμού'!$E$13:$E$24,'Γενικά Στοιχεία Οργανισμού'!$D$9) -> 0.1106481585 | N132: =D132*'Γενικά Στοιχεία Οργανισμού'!$E$17/SUM('Γενικά Στοιχεία Οργανισμού'!$E$13:$E$24,'Γενικά Στοιχεία Οργανισμού'!$D$9) -> 0.1967945337 | O132: =E132*'Γενικά Στοιχεία Οργανισμού'!$E$17/SUM('Γενικά Στοιχεία Οργανισμού'!$E$13:$E$24,'Γενικά Στοιχεία Οργανισμού'!$D$9) -> 0.1946587974 | P132: =D132*'Γενικά Στοιχεία Οργανισμού'!$E$18/SUM('Γενικά Στοιχεία Οργανισμού'!$E$13:$E$24,'Γενικά Στοιχεία Οργανισμού'!$D$9) -> 0.1201482417 | Q132: =E132*'Γενικά Στοιχεία Οργανισμού'!$E$18/SUM('Γενικά Στοιχεία Οργανισμού'!$E$13:$E$24,'Γενικά Στοιχεία Οργανισμού'!$D$9) -> 0.1188443184 | R132: =D132*'Γενικά Στοιχεία Οργανισμού'!$E$19/SUM('Γενικά Στοιχεία Οργανισμού'!$E$13:$E$24,'Γενικά Στοιχεία Οργανισμού'!$D$9) -> 0.1864369267 | S132: =E132*'Γενικά Στοιχεία Οργανισμού'!$E$19/SUM('Γενικά Στοιχεία Οργανισμού'!$E$13:$E$24,'Γενικά Στοιχεία Οργανισμού'!$D$9) -> 0.1844135975 | T132: =D132*'Γενικά Στοιχεία Οργανισμού'!$E$20/SUM('Γενικά Στοιχεία Οργανισμού'!$E$13:$E$24,'Γενικά Στοιχεία Οργανισμού'!$D$9) -> 0.2734408258 | U132: =E132*'Γενικά Στοιχεία Οργανισμού'!$E$20/SUM('Γενικά Στοιχεία Οργανισμού'!$E$13:$E$24,'Γενικά Στοιχεία Οργανισμού'!$D$9) -> 0.2704732764 | V132: =D132*'Γενικά Στοιχεία Οργανισμού'!$E$21/SUM('Γενικά Στοιχεία Οργανισμού'!$E$13:$E$24,'Γενικά Στοιχεία Οργανισμού'!$D$9) -> 0.06214564223 | W132: =E132*'Γενικά Στοιχεία Οργανισμού'!$E$21/SUM('Γενικά Στοιχεία Οργανισμού'!$E$13:$E$24,'Γενικά Στοιχεία Οργανισμού'!$D$9) -> 0.06147119917 | X132: =D132*'Γενικά Στοιχεία Οργανισμού'!$E$22/SUM('Γενικά Στοιχεία Οργανισμού'!$E$13:$E$24,'Γενικά Στοιχεία Οργανισμού'!$D$9) -> 0.1553641056 | Y132: =E132*'Γενικά Στοιχεία Οργανισμού'!$E$22/SUM('Γενικά Στοιχεία Οργανισμού'!$E$13:$E$24,'Γενικά Στοιχεία Οργανισμού'!$D$9) -> 0.1536779979 | Z132: =D132*'Γενικά Στοιχεία Οργανισμού'!$E$23/SUM('Γενικά Στοιχεία Οργανισμού'!$E$13:$E$24,'Γενικά Στοιχεία Οργανισμού'!$D$9) -> 0.2423680047 | AA132: =E132*'Γενικά Στοιχεία Οργανισμού'!$E$23/SUM('Γενικά Στοιχεία Οργανισμού'!$E$13:$E$24,'Γενικά Στοιχεία Οργανισμού'!$D$9) -> 0.2397376768 | AB132: =D132*'Γενικά Στοιχεία Οργανισμού'!$E$24/SUM('Γενικά Στοιχεία Οργανισμού'!$E$13:$E$24,'Γενικά Στοιχεία Οργανισμού'!$D$9) -> 0.2050806194 | AC132: =E132*'Γενικά Στοιχεία Οργανισμού'!$E$24/SUM('Γενικά Στοιχεία Οργανισμού'!$E$13:$E$24,'Γενικά Στοιχεία Οργανισμού'!$D$9) -> 0.2028549573
E133: ='Υπολογισμός Αν. Απ.'!O53+'Υπολογισμός Αν. Απ.'!O55 -> 1.049283067e-06 | G133: 0 | I133: 0 | K133: =E133*'Γενικά Στοιχεία Οργανισμού'!$D$9/SUM('Γενικά Στοιχεία Οργανισμού'!$E$13:$E$24,'Γενικά Στοιχεία Οργανισμού'!$D$9) -> 4.197132266e-07 | M133: =E133*'Γενικά Στοιχεία Οργανισμού'!$E$16/SUM('Γενικά Στοιχεία Οργανισμού'!$E$13:$E$24,'Γενικά Στοιχεία Οργανισμού'!$D$9) -> 4.532902848e-08 | O133: =E133*'Γενικά Στοιχεία Οργανισμού'!$E$17/SUM('Γενικά Στοιχεία Οργανισμού'!$E$13:$E$24,'Γενικά Στοιχεία Οργανισμού'!$D$9) -> 7.974551306e-08 | Q133: =E133*'Γενικά Στοιχεία Οργανισμού'!$E$18/SUM('Γενικά Στοιχεία Οργανισμού'!$E$13:$E$24,'Γενικά Στοιχεία Οργανισμού'!$D$9) -> 4.868673429e-08 | S133: =E133*'Γενικά Στοιχεία Οργανισμού'!$E$19/SUM('Γενικά Στοιχεία Οργανισμού'!$E$13:$E$24,'Γενικά Στοιχεία Οργανισμού'!$D$9) -> 7.55483808e-08 | U133: =E133*'Γενικά Στοιχεία Οργανισμού'!$E$20/SUM('Γενικά Στοιχεία Οργανισμού'!$E$13:$E$24,'Γενικά Στοιχεία Οργανισμού'!$D$9) -> 1.108042918e-07 | W133: =E133*'Γενικά Στοιχεία Οργανισμού'!$E$21/SUM('Γενικά Στοιχεία Οργανισμού'!$E$13:$E$24,'Γενικά Στοιχεία Οργανισμού'!$D$9) -> 2.51827936e-08 | Y133: =E133*'Γενικά Στοιχεία Οργανισμού'!$E$22/SUM('Γενικά Στοιχεία Οργανισμού'!$E$13:$E$24,'Γενικά Στοιχεία Οργανισμού'!$D$9) -> 6.2956984e-08 | AA133: =E133*'Γενικά Στοιχεία Οργανισμού'!$E$23/SUM('Γενικά Στοιχεία Οργανισμού'!$E$13:$E$24,'Γενικά Στοιχεία Οργανισμού'!$D$9) -> 9.821289503e-08 | AC133: =E133*'Γενικά Στοιχεία Οργανισμού'!$E$24/SUM('Γενικά Στοιχεία Οργανισμού'!$E$13:$E$24,'Γενικά Στοιχεία Οργανισμού'!$D$9) -> 8.310321887e-08
E134: ='Υπολογισμός Αν. Απ.'!P53+'Υπολογισμός Αν. Απ.'!P55 -> 0.0001028297405 | G134: 0 | I134: 0 | K134: =E134*'Γενικά Στοιχεία Οργανισμού'!$D$9/SUM('Γενικά Στοιχεία Οργανισμού'!$E$13:$E$24,'Γενικά Στοιχεία Οργανισμού'!$D$9) -> 4.113189621e-05 | M134: =E134*'Γενικά Στοιχεία Οργανισμού'!$E$16/SUM('Γενικά Στοιχεία Οργανισμού'!$E$13:$E$24,'Γενικά Στοιχεία Οργανισμού'!$D$9) -> 4.442244791e-06 | O134: =E134*'Γενικά Στοιχεία Οργανισμού'!$E$17/SUM('Γενικά Στοιχεία Οργανισμού'!$E$13:$E$24,'Γενικά Στοιχεία Οργανισμού'!$D$9) -> 7.81506028e-06 | Q134: =E134*'Γενικά Στοιχεία Οργανισμού'!$E$18/SUM('Γενικά Στοιχεία Οργανισμού'!$E$13:$E$24,'Γενικά Στοιχεία Οργανισμού'!$D$9) -> 4.77129996e-06 | S134: =E134*'Γενικά Στοιχεία Οργανισμού'!$E$19/SUM('Γενικά Στοιχεία Οργανισμού'!$E$13:$E$24,'Γενικά Στοιχεία Οργανισμού'!$D$9) -> 7.403741318e-06 | U134: =E134*'Γενικά Στοιχεία Οργανισμού'!$E$20/SUM('Γενικά Στοιχεία Οργανισμού'!$E$13:$E$24,'Γενικά Στοιχεία Οργανισμού'!$D$9) -> 1.08588206e-05 | W134: =E134*'Γενικά Στοιχεία Οργανισμού'!$E$21/SUM('Γενικά Στοιχεία Οργανισμού'!$E$13:$E$24,'Γενικά Στοιχεία Οργανισμού'!$D$9) -> 2.467913773e-06 | Y134: =E134*'Γενικά Στοιχεία Οργανισμού'!$E$22/SUM('Γενικά Στοιχεία Οργανισμού'!$E$13:$E$24,'Γενικά Στοιχεία Οργανισμού'!$D$9) -> 6.169784432e-06 | AA134: =E134*'Γενικά Στοιχεία Οργανισμού'!$E$23/SUM('Γενικά Στοιχεία Οργανισμού'!$E$13:$E$24,'Γενικά Στοιχεία Οργανισμού'!$D$9) -> 9.624863713e-06 | AC134: =E134*'Γενικά Στοιχεία Οργανισμού'!$E$24/SUM('Γενικά Στοιχεία Οργανισμού'!$E$13:$E$24,'Γενικά Στοιχεία Οργανισμού'!$D$9) -> 8.14411545e-06
C135: Βενζίνη (Επιβατικό) | D135: ='Υπολογισμός Αν. Απ.'!Q54+'Υπολογισμός Αν. Απ.'!Q56 -> 23.15962014 | E135: ='Υπολογισμός Αν. Απ.'!N54+'Υπολογισμός Αν. Απ.'!N56 -> 22.96157701 | F135: 0 | G135: 0 | H135: 0 | I135: 0 | J135: =D135*'Γενικά Στοιχεία Οργανισμού'!$D$9/SUM('Γενικά Στοιχεία Οργανισμού'!$E$13:$E$24,'Γενικά Στοιχεία Οργανισμού'!$D$9) -> 9.263848057 | K135: =E135*'Γενικά Στοιχεία Οργανισμού'!$D$9/SUM('Γενικά Στοιχεία Οργανισμού'!$E$13:$E$24,'Γενικά Στοιχεία Οργανισμού'!$D$9) -> 9.184630804 | L135: =D135*'Γενικά Στοιχεία Οργανισμού'!$E$16/SUM('Γενικά Στοιχεία Οργανισμού'!$E$13:$E$24,'Γενικά Στοιχεία Οργανισμού'!$D$9) -> 1.00049559 | M135: =E135*'Γενικά Στοιχεία Οργανισμού'!$E$16/SUM('Γενικά Στοιχεία Οργανισμού'!$E$13:$E$24,'Γενικά Στοιχεία Οργανισμού'!$D$9) -> 0.9919401269 | N135: =D135*'Γενικά Στοιχεία Οργανισμού'!$E$17/SUM('Γενικά Στοιχεία Οργανισμού'!$E$13:$E$24,'Γενικά Στοιχεία Οργανισμού'!$D$9) -> 1.760131131 | O135: =E135*'Γενικά Στοιχεία Οργανισμού'!$E$17/SUM('Γενικά Στοιχεία Οργανισμού'!$E$13:$E$24,'Γενικά Στοιχεία Οργανισμού'!$D$9) -> 1.745079853 | P135: =D135*'Γενικά Στοιχεία Οργανισμού'!$E$18/SUM('Γενικά Στοιχεία Οργανισμού'!$E$13:$E$24,'Γενικά Στοιχεία Οργανισμού'!$D$9) -> 1.074606375 | Q135: =E135*'Γενικά Στοιχεία Οργανισμού'!$E$18/SUM('Γενικά Στοιχεία Οργανισμού'!$E$13:$E$24,'Γενικά Στοιχεία Οργανισμού'!$D$9) -> 1.065417173 | R135: =D135*'Γενικά Στοιχεία Οργανισμού'!$E$19/SUM('Γενικά Στοιχεία Οργανισμού'!$E$13:$E$24,'Γενικά Στοιχεία Οργανισμού'!$D$9) -> 1.66749265 | S135: =E135*'Γενικά Στοιχεία Οργανισμού'!$E$19/SUM('Γενικά Στοιχεία Οργανισμού'!$E$13:$E$24,'Γενικά Στοιχεία Οργανισμού'!$D$9) -> 1.653233545 | T135: =D135*'Γενικά Στοιχεία Οργανισμού'!$E$20/SUM('Γενικά Στοιχεία Οργανισμού'!$E$13:$E$24,'Γενικά Στοιχεία Οργανισμού'!$D$9) -> 2.445655887 | U135: =E135*'Γενικά Στοιχεία Οργανισμού'!$E$20/SUM('Γενικά Στοιχεία Οργανισμού'!$E$13:$E$24,'Γενικά Στοιχεία Οργανισμού'!$D$9) -> 2.424742532 | V135: =D135*'Γενικά Στοιχεία Οργανισμού'!$E$21/SUM('Γενικά Στοιχεία Οργανισμού'!$E$13:$E$24,'Γενικά Στοιχεία Οργανισμού'!$D$9) -> 0.5558308834 | W135: =E135*'Γενικά Στοιχεία Οργανισμού'!$E$21/SUM('Γενικά Στοιχεία Οργανισμού'!$E$13:$E$24,'Γενικά Στοιχεία Οργανισμού'!$D$9) -> 0.5510778483 | X135: =D135*'Γενικά Στοιχεία Οργανισμού'!$E$22/SUM('Γενικά Στοιχεία Οργανισμού'!$E$13:$E$24,'Γενικά Στοιχεία Οργανισμού'!$D$9) -> 1.389577209 | Y135: =E135*'Γενικά Στοιχεία Οργανισμού'!$E$22/SUM('Γενικά Στοιχεία Οργανισμού'!$E$13:$E$24,'Γενικά Στοιχεία Οργανισμού'!$D$9) -> 1.377694621 | Z135: =D135*'Γενικά Στοιχεία Οργανισμού'!$E$23/SUM('Γενικά Στοιχεία Οργανισμού'!$E$13:$E$24,'Γενικά Στοιχεία Οργανισμού'!$D$9) -> 2.167740445 | AA135: =E135*'Γενικά Στοιχεία Οργανισμού'!$E$23/SUM('Γενικά Στοιχεία Οργανισμού'!$E$13:$E$24,'Γενικά Στοιχεία Οργανισμού'!$D$9) -> 2.149203608 | AB135: =D135*'Γενικά Στοιχεία Οργανισμού'!$E$24/SUM('Γενικά Στοιχεία Οργανισμού'!$E$13:$E$24,'Γενικά Στοιχεία Οργανισμού'!$D$9) -> 1.834241915 | AC135: =E135*'Γενικά Στοιχεία Οργανισμού'!$E$24/SUM('Γενικά Στοιχεία Οργανισμού'!$E$13:$E$24,'Γενικά Στοιχεία Οργανισμού'!$D$9) -> 1.818556899
E136: ='Υπολογισμός Αν. Απ.'!O54+'Υπολογισμός Αν. Απ.'!O56 -> 0.002927397342 | G136: 0 | I136: 0 | K136: =E136*'Γενικά Στοιχεία Οργανισμού'!$D$9/SUM('Γενικά Στοιχεία Οργανισμού'!$E$13:$E$24,'Γενικά Στοιχεία Οργανισμού'!$D$9) -> 0.001170958937 | M136: =E136*'Γενικά Στοιχεία Οργανισμού'!$E$16/SUM('Γενικά Στοιχεία Οργανισμού'!$E$13:$E$24,'Γενικά Στοιχεία Οργανισμού'!$D$9) -> 0.0001264635652 | O136: =E136*'Γενικά Στοιχεία Οργανισμού'!$E$17/SUM('Γενικά Στοιχεία Οργανισμού'!$E$13:$E$24,'Γενικά Στοιχεία Οργανισμού'!$D$9) -> 0.000222482198 | Q136: =E136*'Γενικά Στοιχεία Οργανισμού'!$E$18/SUM('Γενικά Στοιχεία Οργανισμού'!$E$13:$E$24,'Γενικά Στοιχεία Οργανισμού'!$D$9) -> 0.0001358312367 | S136: =E136*'Γενικά Στοιχεία Οργανισμού'!$E$19/SUM('Γενικά Στοιχεία Οργανισμού'!$E$13:$E$24,'Γενικά Στοιχεία Οργανισμού'!$D$9) -> 0.0002107726086 | U136: =E136*'Γενικά Στοιχεία Οργανισμού'!$E$20/SUM('Γενικά Στοιχεία Οργανισμού'!$E$13:$E$24,'Γενικά Στοιχεία Οργανισμού'!$D$9) -> 0.0003091331593 | W136: =E136*'Γενικά Στοιχεία Οργανισμού'!$E$21/SUM('Γενικά Στοιχεία Οργανισμού'!$E$13:$E$24,'Γενικά Στοιχεία Οργανισμού'!$D$9) -> 7.025753621e-05 | Y136: =E136*'Γενικά Στοιχεία Οργανισμού'!$E$22/SUM('Γενικά Στοιχεία Οργανισμού'!$E$13:$E$24,'Γενικά Στοιχεία Οργανισμού'!$D$9) -> 0.0001756438405 | AA136: =E136*'Γενικά Στοιχεία Οργανισμού'!$E$23/SUM('Γενικά Στοιχεία Οργανισμού'!$E$13:$E$24,'Γενικά Στοιχεία Οργανισμού'!$D$9) -> 0.0002740043912 | AC136: =E136*'Γενικά Στοιχεία Οργανισμού'!$E$24/SUM('Γενικά Στοιχεία Οργανισμού'!$E$13:$E$24,'Γενικά Στοιχεία Οργανισμού'!$D$9) -> 0.0002318498695
E137: ='Υπολογισμός Αν. Απ.'!P54+'Υπολογισμός Αν. Απ.'!P56 -> 0.0004262591419 | G137: 0 | I137: 0 | K137: =E137*'Γενικά Στοιχεία Οργανισμού'!$D$9/SUM('Γενικά Στοιχεία Οργανισμού'!$E$13:$E$24,'Γενικά Στοιχεία Οργανισμού'!$D$9) -> 0.0001705036568 | M137: =E137*'Γενικά Στοιχεία Οργανισμού'!$E$16/SUM('Γενικά Στοιχεία Οργανισμού'!$E$13:$E$24,'Γενικά Στοιχεία Οργανισμού'!$D$9) -> 1.841439493e-05 | O137: =E137*'Γενικά Στοιχεία Οργανισμού'!$E$17/SUM('Γενικά Στοιχεία Οργανισμού'!$E$13:$E$24,'Γενικά Στοιχεία Οργανισμού'!$D$9) -> 3.239569478e-05 | Q137: =E137*'Γενικά Στοιχεία Οργανισμού'!$E$18/SUM('Γενικά Στοιχεία Οργανισμού'!$E$13:$E$24,'Γενικά Στοιχεία Οργανισμού'!$D$9) -> 1.977842418e-05 | S137: =E137*'Γενικά Στοιχεία Οργανισμού'!$E$19/SUM('Γενικά Στοιχεία Οργανισμού'!$E$13:$E$24,'Γενικά Στοιχεία Οργανισμού'!$D$9) -> 3.069065822e-05 | U137: =E137*'Γενικά Στοιχεία Οργανισμού'!$E$20/SUM('Γενικά Στοιχεία Οργανισμού'!$E$13:$E$24,'Γενικά Στοιχεία Οργανισμού'!$D$9) -> 4.501296538e-05 | W137: =E137*'Γενικά Στοιχεία Οργανισμού'!$E$21/SUM('Γενικά Στοιχεία Οργανισμού'!$E$13:$E$24,'Γενικά Στοιχεία Οργανισμού'!$D$9) -> 1.023021941e-05 | Y137: =E137*'Γενικά Στοιχεία Οργανισμού'!$E$22/SUM('Γενικά Στοιχεία Οργανισμού'!$E$13:$E$24,'Γενικά Στοιχεία Οργανισμού'!$D$9) -> 2.557554851e-05 | AA137: =E137*'Γενικά Στοιχεία Οργανισμού'!$E$23/SUM('Γενικά Στοιχεία Οργανισμού'!$E$13:$E$24,'Γενικά Στοιχεία Οργανισμού'!$D$9) -> 3.989785568e-05 | AC137: =E137*'Γενικά Στοιχεία Οργανισμού'!$E$24/SUM('Γενικά Στοιχεία Οργανισμού'!$E$13:$E$24,'Γενικά Στοιχεία Οργανισμού'!$D$9) -> 3.375972404e-05
C138: Πετρέλαιο Κίνησης (Τρένο) | D138: ='Υπολογισμός Αν. Απ.'!Q57+'Υπολογισμός Αν. Απ.'!Q58 -> 0 | E138: ='Υπολογισμός Αν. Απ.'!N57+'Υπολογισμός Αν. Απ.'!N58 -> 0 | F138: 0 | G138: 0 | H138: 0 | I138: 0 | J138: =D138*'Γενικά Στοιχεία Οργανισμού'!$D$9/SUM('Γενικά Στοιχεία Οργανισμού'!$E$13:$E$24,'Γενικά Στοιχεία Οργανισμού'!$D$9) -> 0 | K138: =E138*'Γενικά Στοιχεία Οργανισμού'!$D$9/SUM('Γενικά Στοιχεία Οργανισμού'!$E$13:$E$24,'Γενικά Στοιχεία Οργανισμού'!$D$9) -> 0 | L138: =D138*'Γενικά Στοιχεία Οργανισμού'!$E$16/SUM('Γενικά Στοιχεία Οργανισμού'!$E$13:$E$24,'Γενικά Στοιχεία Οργανισμού'!$D$9) -> 0 | M138: =E138*'Γενικά Στοιχεία Οργανισμού'!$E$16/SUM('Γενικά Στοιχεία Οργανισμού'!$E$13:$E$24,'Γενικά Στοιχεία Οργανισμού'!$D$9) -> 0 | N138: =D138*'Γενικά Στοιχεία Οργανισμού'!$E$17/SUM('Γενικά Στοιχεία Οργανισμού'!$E$13:$E$24,'Γενικά Στοιχεία Οργανισμού'!$D$9) -> 0 | O138: =E138*'Γενικά Στοιχεία Οργανισμού'!$E$17/SUM('Γενικά Στοιχεία Οργανισμού'!$E$13:$E$24,'Γενικά Στοιχεία Οργανισμού'!$D$9) -> 0 | P138: =D138*'Γενικά Στοιχεία Οργανισμού'!$E$18/SUM('Γενικά Στοιχεία Οργανισμού'!$E$13:$E$24,'Γενικά Στοιχεία Οργανισμού'!$D$9) -> 0 | Q138: =E138*'Γενικά Στοιχεία Οργανισμού'!$E$18/SUM('Γενικά Στοιχεία Οργανισμού'!$E$13:$E$24,'Γενικά Στοιχεία Οργανισμού'!$D$9) -> 0 | R138: =D138*'Γενικά Στοιχεία Οργανισμού'!$E$19/SUM('Γενικά Στοιχεία Οργανισμού'!$E$13:$E$24,'Γενικά Στοιχεία Οργανισμού'!$D$9) -> 0 | S138: =E138*'Γενικά Στοιχεία Οργανισμού'!$E$19/SUM('Γενικά Στοιχεία Οργανισμού'!$E$13:$E$24,'Γενικά Στοιχεία Οργανισμού'!$D$9) -> 0 | T138: =D138*'Γενικά Στοιχεία Οργανισμού'!$E$20/SUM('Γενικά Στοιχεία Οργανισμού'!$E$13:$E$24,'Γενικά Στοιχεία Οργανισμού'!$D$9) -> 0 | U138: =E138*'Γενικά Στοιχεία Οργανισμού'!$E$20/SUM('Γενικά Στοιχεία Οργανισμού'!$E$13:$E$24,'Γενικά Στοιχεία Οργανισμού'!$D$9) -> 0 | V138: =D138*'Γενικά Στοιχεία Οργανισμού'!$E$21/SUM('Γενικά Στοιχεία Οργανισμού'!$E$13:$E$24,'Γενικά Στοιχεία Οργανισμού'!$D$9) -> 0 | W138: =E138*'Γενικά Στοιχεία Οργανισμού'!$E$21/SUM('Γενικά Στοιχεία Οργανισμού'!$E$13:$E$24,'Γενικά Στοιχεία Οργανισμού'!$D$9) -> 0 | X138: =D138*'Γενικά Στοιχεία Οργανισμού'!$E$22/SUM('Γενικά Στοιχεία Οργανισμού'!$E$13:$E$24,'Γενικά Στοιχεία Οργανισμού'!$D$9) -> 0 | Y138: =E138*'Γενικά Στοιχεία Οργανισμού'!$E$22/SUM('Γενικά Στοιχεία Οργανισμού'!$E$13:$E$24,'Γενικά Στοιχεία Οργανισμού'!$D$9) -> 0 | Z138: =D138*'Γενικά Στοιχεία Οργανισμού'!$E$23/SUM('Γενικά Στοιχεία Οργανισμού'!$E$13:$E$24,'Γενικά Στοιχεία Οργανισμού'!$D$9) -> 0 | AA138: =E138*'Γενικά Στοιχεία Οργανισμού'!$E$23/SUM('Γενικά Στοιχεία Οργανισμού'!$E$13:$E$24,'Γενικά Στοιχεία Οργανισμού'!$D$9) -> 0 | AB138: =D138*'Γενικά Στοιχεία Οργανισμού'!$E$24/SUM('Γενικά Στοιχεία Οργανισμού'!$E$13:$E$24,'Γενικά Στοιχεία Οργανισμού'!$D$9) -> 0 | AC138: =E138*'Γενικά Στοιχεία Οργανισμού'!$E$24/SUM('Γενικά Στοιχεία Οργανισμού'!$E$13:$E$24,'Γενικά Στοιχεία Οργανισμού'!$D$9) -> 0
E139: ='Υπολογισμός Αν. Απ.'!O56+'Υπολογισμός Αν. Απ.'!O57 -> 0 | G139: 0 | I139: 0 | K139: =E139*'Γενικά Στοιχεία Οργανισμού'!$D$9/SUM('Γενικά Στοιχεία Οργανισμού'!$E$13:$E$24,'Γενικά Στοιχεία Οργανισμού'!$D$9) -> 0 | M139: =E139*'Γενικά Στοιχεία Οργανισμού'!$E$16/SUM('Γενικά Στοιχεία Οργανισμού'!$E$13:$E$24,'Γενικά Στοιχεία Οργανισμού'!$D$9) -> 0 | O139: =E139*'Γενικά Στοιχεία Οργανισμού'!$E$17/SUM('Γενικά Στοιχεία Οργανισμού'!$E$13:$E$24,'Γενικά Στοιχεία Οργανισμού'!$D$9) -> 0 | Q139: =E139*'Γενικά Στοιχεία Οργανισμού'!$E$18/SUM('Γενικά Στοιχεία Οργανισμού'!$E$13:$E$24,'Γενικά Στοιχεία Οργανισμού'!$D$9) -> 0 | S139: =E139*'Γενικά Στοιχεία Οργανισμού'!$E$19/SUM('Γενικά Στοιχεία Οργανισμού'!$E$13:$E$24,'Γενικά Στοιχεία Οργανισμού'!$D$9) -> 0 | U139: =E139*'Γενικά Στοιχεία Οργανισμού'!$E$20/SUM('Γενικά Στοιχεία Οργανισμού'!$E$13:$E$24,'Γενικά Στοιχεία Οργανισμού'!$D$9) -> 0 | W139: =E139*'Γενικά Στοιχεία Οργανισμού'!$E$21/SUM('Γενικά Στοιχεία Οργανισμού'!$E$13:$E$24,'Γενικά Στοιχεία Οργανισμού'!$D$9) -> 0 | Y139: =E139*'Γενικά Στοιχεία Οργανισμού'!$E$22/SUM('Γενικά Στοιχεία Οργανισμού'!$E$13:$E$24,'Γενικά Στοιχεία Οργανισμού'!$D$9) -> 0 | AA139: =E139*'Γενικά Στοιχεία Οργανισμού'!$E$23/SUM('Γενικά Στοιχεία Οργανισμού'!$E$13:$E$24,'Γενικά Στοιχεία Οργανισμού'!$D$9) -> 0 | AC139: =E139*'Γενικά Στοιχεία Οργανισμού'!$E$24/SUM('Γενικά Στοιχεία Οργανισμού'!$E$13:$E$24,'Γενικά Στοιχεία Οργανισμού'!$D$9) -> 0
E140: ='Υπολογισμός Αν. Απ.'!P56+'Υπολογισμός Αν. Απ.'!P57 -> 0 | G140: 0 | I140: 0 | K140: =E140*'Γενικά Στοιχεία Οργανισμού'!$D$9/SUM('Γενικά Στοιχεία Οργανισμού'!$E$13:$E$24,'Γενικά Στοιχεία Οργανισμού'!$D$9) -> 0 | M140: =E140*'Γενικά Στοιχεία Οργανισμού'!$E$16/SUM('Γενικά Στοιχεία Οργανισμού'!$E$13:$E$24,'Γενικά Στοιχεία Οργανισμού'!$D$9) -> 0 | O140: =E140*'Γενικά Στοιχεία Οργανισμού'!$E$17/SUM('Γενικά Στοιχεία Οργανισμού'!$E$13:$E$24,'Γενικά Στοιχεία Οργανισμού'!$D$9) -> 0 | Q140: =E140*'Γενικά Στοιχεία Οργανισμού'!$E$18/SUM('Γενικά Στοιχεία Οργανισμού'!$E$13:$E$24,'Γενικά Στοιχεία Οργανισμού'!$D$9) -> 0 | S140: =E140*'Γενικά Στοιχεία Οργανισμού'!$E$19/SUM('Γενικά Στοιχεία Οργανισμού'!$E$13:$E$24,'Γενικά Στοιχεία Οργανισμού'!$D$9) -> 0 | U140: =E140*'Γενικά Στοιχεία Οργανισμού'!$E$20/SUM('Γενικά Στοιχεία Οργανισμού'!$E$13:$E$24,'Γενικά Στοιχεία Οργανισμού'!$D$9) -> 0 | W140: =E140*'Γενικά Στοιχεία Οργανισμού'!$E$21/SUM('Γενικά Στοιχεία Οργανισμού'!$E$13:$E$24,'Γενικά Στοιχεία Οργανισμού'!$D$9) -> 0 | Y140: =E140*'Γενικά Στοιχεία Οργανισμού'!$E$22/SUM('Γενικά Στοιχεία Οργανισμού'!$E$13:$E$24,'Γενικά Στοιχεία Οργανισμού'!$D$9) -> 0 | AA140: =E140*'Γενικά Στοιχεία Οργανισμού'!$E$23/SUM('Γενικά Στοιχεία Οργανισμού'!$E$13:$E$24,'Γενικά Στοιχεία Οργανισμού'!$D$9) -> 0 | AC140: =E140*'Γενικά Στοιχεία Οργανισμού'!$E$24/SUM('Γενικά Στοιχεία Οργανισμού'!$E$13:$E$24,'Γενικά Στοιχεία Οργανισμού'!$D$9) -> 0
C141: Κηροζίνη (Αεροσκάφος) | D141: ='Υπολογισμός Αν. Απ.'!Q59+'Υπολογισμός Αν. Απ.'!Q60 -> 485.9322894 | E141: ='Υπολογισμός Αν. Απ.'!N59+'Υπολογισμός Αν. Απ.'!N60 -> 482.2835467 | F141: 0 | G141: 0 | H141: 0 | I141: 0 | J141: =D141*'Γενικά Στοιχεία Οργανισμού'!$D$9/SUM('Γενικά Στοιχεία Οργανισμού'!$E$13:$E$24,'Γενικά Στοιχεία Οργανισμού'!$D$9) -> 194.3729158 | K141: =E141*'Γενικά Στοιχεία Οργανισμού'!$D$9/SUM('Γενικά Στοιχεία Οργανισμού'!$E$13:$E$24,'Γενικά Στοιχεία Οργανισμού'!$D$9) -> 192.9134187 | L141: =D141*'Γενικά Στοιχεία Οργανισμού'!$E$16/SUM('Γενικά Στοιχεία Οργανισμού'!$E$13:$E$24,'Γενικά Στοιχεία Οργανισμού'!$D$9) -> 20.9922749 | M141: =E141*'Γενικά Στοιχεία Οργανισμού'!$E$16/SUM('Γενικά Στοιχεία Οργανισμού'!$E$13:$E$24,'Γενικά Στοιχεία Οργανισμού'!$D$9) -> 20.83464922 | N141: =D141*'Γενικά Στοιχεία Οργανισμού'!$E$17/SUM('Γενικά Στοιχεία Οργανισμού'!$E$13:$E$24,'Γενικά Στοιχεία Οργανισμού'!$D$9) -> 36.930854 | O141: =E141*'Γενικά Στοιχεία Οργανισμού'!$E$17/SUM('Γενικά Στοιχεία Οργανισμού'!$E$13:$E$24,'Γενικά Στοιχεία Οργανισμού'!$D$9) -> 36.65354955 | P141: =D141*'Γενικά Στοιχεία Οργανισμού'!$E$18/SUM('Γενικά Στοιχεία Οργανισμού'!$E$13:$E$24,'Γενικά Στοιχεία Οργανισμού'!$D$9) -> 22.54725823 | Q141: =E141*'Γενικά Στοιχεία Οργανισμού'!$E$18/SUM('Γενικά Στοιχεία Οργανισμού'!$E$13:$E$24,'Γενικά Στοιχεία Οργανισμού'!$D$9) -> 22.37795657 | R141: =D141*'Γενικά Στοιχεία Οργανισμού'!$E$19/SUM('Γενικά Στοιχεία Οργανισμού'!$E$13:$E$24,'Γενικά Στοιχεία Οργανισμού'!$D$9) -> 34.98712484 | S141: =E141*'Γενικά Στοιχεία Οργανισμού'!$E$19/SUM('Γενικά Στοιχεία Οργανισμού'!$E$13:$E$24,'Γενικά Στοιχεία Οργανισμού'!$D$9) -> 34.72441536 | T141: =D141*'Γενικά Στοιχεία Οργανισμού'!$E$20/SUM('Γενικά Στοιχεία Οργανισμού'!$E$13:$E$24,'Γενικά Στοιχεία Οργανισμού'!$D$9) -> 51.31444976 | U141: =E141*'Γενικά Στοιχεία Οργανισμού'!$E$20/SUM('Γενικά Στοιχεία Οργανισμού'!$E$13:$E$24,'Γενικά Στοιχεία Οργανισμού'!$D$9) -> 50.92914253 | V141: =D141*'Γενικά Στοιχεία Οργανισμού'!$E$21/SUM('Γενικά Στοιχεία Οργανισμού'!$E$13:$E$24,'Γενικά Στοιχεία Οργανισμού'!$D$9) -> 11.66237495 | W141: =E141*'Γενικά Στοιχεία Οργανισμού'!$E$21/SUM('Γενικά Στοιχεία Οργανισμού'!$E$13:$E$24,'Γενικά Στοιχεία Οργανισμού'!$D$9) -> 11.57480512 | X141: =D141*'Γενικά Στοιχεία Οργανισμού'!$E$22/SUM('Γενικά Στοιχεία Οργανισμού'!$E$13:$E$24,'Γενικά Στοιχεία Οργανισμού'!$D$9) -> 29.15593736 | Y141: =E141*'Γενικά Στοιχεία Οργανισμού'!$E$22/SUM('Γενικά Στοιχεία Οργανισμού'!$E$13:$E$24,'Γενικά Στοιχεία Οργανισμού'!$D$9) -> 28.9370128 | Z141: =D141*'Γενικά Στοιχεία Οργανισμού'!$E$23/SUM('Γενικά Στοιχεία Οργανισμού'!$E$13:$E$24,'Γενικά Στοιχεία Οργανισμού'!$D$9) -> 45.48326229 | AA141: =E141*'Γενικά Στοιχεία Οργανισμού'!$E$23/SUM('Γενικά Στοιχεία Οργανισμού'!$E$13:$E$24,'Γενικά Στοιχεία Οργανισμού'!$D$9) -> 45.14173997 | AB141: =D141*'Γενικά Στοιχεία Οργανισμού'!$E$24/SUM('Γενικά Στοιχεία Οργανισμού'!$E$13:$E$24,'Γενικά Στοιχεία Οργανισμού'!$D$9) -> 38.48583732 | AC141: =E141*'Γενικά Στοιχεία Οργανισμού'!$E$24/SUM('Γενικά Στοιχεία Οργανισμού'!$E$13:$E$24,'Γενικά Στοιχεία Οργανισμού'!$D$9) -> 38.1968569
E142: ='Υπολογισμός Αν. Απ.'!O59+'Υπολογισμός Αν. Απ.'!O60 -> 0.003258096869 | G142: 0 | I142: 0 | K142: =E142*'Γενικά Στοιχεία Οργανισμού'!$D$9/SUM('Γενικά Στοιχεία Οργανισμού'!$E$13:$E$24,'Γενικά Στοιχεία Οργανισμού'!$D$9) -> 0.001303238748 | M142: =E142*'Γενικά Στοιχεία Οργανισμού'!$E$16/SUM('Γενικά Στοιχεία Οργανισμού'!$E$13:$E$24,'Γενικά Στοιχεία Οργανισμού'!$D$9) -> 0.0001407497848 | O142: =E142*'Γενικά Στοιχεία Οργανισμού'!$E$17/SUM('Γενικά Στοιχεία Οργανισμού'!$E$13:$E$24,'Γενικά Στοιχεία Οργανισμού'!$D$9) -> 0.0002476153621 | Q142: =E142*'Γενικά Στοιχεία Οργανισμού'!$E$18/SUM('Γενικά Στοιχεία Οργανισμού'!$E$13:$E$24,'Γενικά Στοιχεία Οργανισμού'!$D$9) -> 0.0001511756947 | S142: =E142*'Γενικά Στοιχεία Οργανισμού'!$E$19/SUM('Γενικά Στοιχεία Οργανισμού'!$E$13:$E$24,'Γενικά Στοιχεία Οργανισμού'!$D$9) -> 0.0002345829746 | U142: =E142*'Γενικά Στοιχεία Οργανισμού'!$E$20/SUM('Γενικά Στοιχεία Οργανισμού'!$E$13:$E$24,'Γενικά Στοιχεία Οργανισμού'!$D$9) -> 0.0003440550294 | W142: =E142*'Γενικά Στοιχεία Οργανισμού'!$E$21/SUM('Γενικά Στοιχεία Οργανισμού'!$E$13:$E$24,'Γενικά Στοιχεία Οργανισμού'!$D$9) -> 7.819432486e-05 | Y142: =E142*'Γενικά Στοιχεία Οργανισμού'!$E$22/SUM('Γενικά Στοιχεία Οργανισμού'!$E$13:$E$24,'Γενικά Στοιχεία Οργανισμού'!$D$9) -> 0.0001954858122 | AA142: =E142*'Γενικά Στοιχεία Οργανισμού'!$E$23/SUM('Γενικά Στοιχεία Οργανισμού'!$E$13:$E$24,'Γενικά Στοιχεία Οργανισμού'!$D$9) -> 0.000304957867 | AC142: =E142*'Γενικά Στοιχεία Οργανισμού'!$E$24/SUM('Γενικά Στοιχεία Οργανισμού'!$E$13:$E$24,'Γενικά Στοιχεία Οργανισμού'!$D$9) -> 0.000258041272
E143: ='Υπολογισμός Αν. Απ.'!P59+'Υπολογισμός Αν. Απ.'!P60 -> 0.01303238748 | G143: 0 | I143: 0 | K143: =E143*'Γενικά Στοιχεία Οργανισμού'!$D$9/SUM('Γενικά Στοιχεία Οργανισμού'!$E$13:$E$24,'Γενικά Στοιχεία Οργανισμού'!$D$9) -> 0.005212954991 | M143: =E143*'Γενικά Στοιχεία Οργανισμού'!$E$16/SUM('Γενικά Στοιχεία Οργανισμού'!$E$13:$E$24,'Γενικά Στοιχεία Οργανισμού'!$D$9) -> 0.000562999139 | O143: =E143*'Γενικά Στοιχεία Οργανισμού'!$E$17/SUM('Γενικά Στοιχεία Οργανισμού'!$E$13:$E$24,'Γενικά Στοιχεία Οργανισμού'!$D$9) -> 0.0009904614483 | Q143: =E143*'Γενικά Στοιχεία Οργανισμού'!$E$18/SUM('Γενικά Στοιχεία Οργανισμού'!$E$13:$E$24,'Γενικά Στοιχεία Οργανισμού'!$D$9) -> 0.0006047027789 | S143: =E143*'Γενικά Στοιχεία Οργανισμού'!$E$19/SUM('Γενικά Στοιχεία Οργανισμού'!$E$13:$E$24,'Γενικά Στοιχεία Οργανισμού'!$D$9) -> 0.0009383318983 | U143: =E143*'Γενικά Στοιχεία Οργανισμού'!$E$20/SUM('Γενικά Στοιχεία Οργανισμού'!$E$13:$E$24,'Γενικά Στοιχεία Οργανισμού'!$D$9) -> 0.001376220118 | W143: =E143*'Γενικά Στοιχεία Οργανισμού'!$E$21/SUM('Γενικά Στοιχεία Οργανισμού'!$E$13:$E$24,'Γενικά Στοιχεία Οργανισμού'!$D$9) -> 0.0003127772994 | Y143: =E143*'Γενικά Στοιχεία Οργανισμού'!$E$22/SUM('Γενικά Στοιχεία Οργανισμού'!$E$13:$E$24,'Γενικά Στοιχεία Οργανισμού'!$D$9) -> 0.0007819432486 | AA143: =E143*'Γενικά Στοιχεία Οργανισμού'!$E$23/SUM('Γενικά Στοιχεία Οργανισμού'!$E$13:$E$24,'Γενικά Στοιχεία Οργανισμού'!$D$9) -> 0.001219831468 | AC143: =E143*'Γενικά Στοιχεία Οργανισμού'!$E$24/SUM('Γενικά Στοιχεία Οργανισμού'!$E$13:$E$24,'Γενικά Στοιχεία Οργανισμού'!$D$9) -> 0.001032165088
C144: Ηλεκτρική Ενέργεια (Επιβατικό) | D144: ='Υπολογισμός Αν. Απ.'!Q61 -> 0.1189212772 | E144: ='Υπολογισμός Αν. Απ.'!N61 -> 0.1187188794 | F144: 0 | G144: 0 | H144: 0 | I144: 0 | J144: =D144*'Γενικά Στοιχεία Οργανισμού'!$D$9/SUM('Γενικά Στοιχεία Οργανισμού'!$E$13:$E$24,'Γενικά Στοιχεία Οργανισμού'!$D$9) -> 0.04756851089 | K144: =E144*'Γενικά Στοιχεία Οργανισμού'!$D$9/SUM('Γενικά Στοιχεία Οργανισμού'!$E$13:$E$24,'Γενικά Στοιχεία Οργανισμού'!$D$9) -> 0.04748755176 | L144: =D144*'Γενικά Στοιχεία Οργανισμού'!$E$16/SUM('Γενικά Στοιχεία Οργανισμού'!$E$13:$E$24,'Γενικά Στοιχεία Οργανισμού'!$D$9) -> 0.005137399176 | M144: =E144*'Γενικά Στοιχεία Οργανισμού'!$E$16/SUM('Γενικά Στοιχεία Οργανισμού'!$E$13:$E$24,'Γενικά Στοιχεία Οργανισμού'!$D$9) -> 0.00512865559 | N144: =D144*'Γενικά Στοιχεία Οργανισμού'!$E$17/SUM('Γενικά Στοιχεία Οργανισμού'!$E$13:$E$24,'Γενικά Στοιχεία Οργανισμού'!$D$9) -> 0.009038017069 | O144: =E144*'Γενικά Στοιχεία Οργανισμού'!$E$17/SUM('Γενικά Στοιχεία Οργανισμού'!$E$13:$E$24,'Γενικά Στοιχεία Οργανισμού'!$D$9) -> 0.009022634834 | P144: =D144*'Γενικά Στοιχεία Οργανισμού'!$E$18/SUM('Γενικά Στοιχεία Οργανισμού'!$E$13:$E$24,'Γενικά Στοιχεία Οργανισμού'!$D$9) -> 0.005517947263 | Q144: =E144*'Γενικά Στοιχεία Οργανισμού'!$E$18/SUM('Γενικά Στοιχεία Οργανισμού'!$E$13:$E$24,'Γενικά Στοιχεία Οργανισμού'!$D$9) -> 0.005508556004 | R144: =D144*'Γενικά Στοιχεία Οργανισμού'!$E$19/SUM('Γενικά Στοιχεία Οργανισμού'!$E$13:$E$24,'Γενικά Στοιχεία Οργανισμού'!$D$9) -> 0.00856233196 | S144: =E144*'Γενικά Στοιχεία Οργανισμού'!$E$19/SUM('Γενικά Στοιχεία Οργανισμού'!$E$13:$E$24,'Γενικά Στοιχεία Οργανισμού'!$D$9) -> 0.008547759317 | T144: =D144*'Γενικά Στοιχεία Οργανισμού'!$E$20/SUM('Γενικά Στοιχεία Οργανισμού'!$E$13:$E$24,'Γενικά Στοιχεία Οργανισμού'!$D$9) -> 0.01255808687 | U144: =E144*'Γενικά Στοιχεία Οργανισμού'!$E$20/SUM('Γενικά Στοιχεία Οργανισμού'!$E$13:$E$24,'Γενικά Στοιχεία Οργανισμού'!$D$9) -> 0.01253671366 | V144: =D144*'Γενικά Στοιχεία Οργανισμού'!$E$21/SUM('Γενικά Στοιχεία Οργανισμού'!$E$13:$E$24,'Γενικά Στοιχεία Οργανισμού'!$D$9) -> 0.002854110653 | W144: =E144*'Γενικά Στοιχεία Οργανισμού'!$E$21/SUM('Γενικά Στοιχεία Οργανισμού'!$E$13:$E$24,'Γενικά Στοιχεία Οργανισμού'!$D$9) -> 0.002849253106 | X144: =D144*'Γενικά Στοιχεία Οργανισμού'!$E$22/SUM('Γενικά Στοιχεία Οργανισμού'!$E$13:$E$24,'Γενικά Στοιχεία Οργανισμού'!$D$9) -> 0.007135276633 | Y144: =E144*'Γενικά Στοιχεία Οργανισμού'!$E$22/SUM('Γενικά Στοιχεία Οργανισμού'!$E$13:$E$24,'Γενικά Στοιχεία Οργανισμού'!$D$9) -> 0.007123132764 | Z144: =D144*'Γενικά Στοιχεία Οργανισμού'!$E$23/SUM('Γενικά Στοιχεία Οργανισμού'!$E$13:$E$24,'Γενικά Στοιχεία Οργανισμού'!$D$9) -> 0.01113103155 | AA144: =E144*'Γενικά Στοιχεία Οργανισμού'!$E$23/SUM('Γενικά Στοιχεία Οργανισμού'!$E$13:$E$24,'Γενικά Στοιχεία Οργανισμού'!$D$9) -> 0.01111208711 | AB144: =D144*'Γενικά Στοιχεία Οργανισμού'!$E$24/SUM('Γενικά Στοιχεία Οργανισμού'!$E$13:$E$24,'Γενικά Στοιχεία Οργανισμού'!$D$9) -> 0.009418565156 | AC144: =E144*'Γενικά Στοιχεία Οργανισμού'!$E$24/SUM('Γενικά Στοιχεία Οργανισμού'!$E$13:$E$24,'Γενικά Στοιχεία Οργανισμού'!$D$9) -> 0.009402535248
E145: ='Υπολογισμός Αν. Απ.'!O61 -> 1.458131635e-06 | G145: 0 | I145: 0 | K145: =E145*'Γενικά Στοιχεία Οργανισμού'!$D$9/SUM('Γενικά Στοιχεία Οργανισμού'!$E$13:$E$24,'Γενικά Στοιχεία Οργανισμού'!$D$9) -> 5.83252654e-07 | M145: =E145*'Γενικά Στοιχεία Οργανισμού'!$E$16/SUM('Γενικά Στοιχεία Οργανισμού'!$E$13:$E$24,'Γενικά Στοιχεία Οργανισμού'!$D$9) -> 6.299128663e-08 | O145: =E145*'Γενικά Στοιχεία Οργανισμού'!$E$17/SUM('Γενικά Στοιχεία Οργανισμού'!$E$13:$E$24,'Γενικά Στοιχεία Οργανισμού'!$D$9) -> 1.108180043e-07 | Q145: =E145*'Γενικά Στοιχεία Οργανισμού'!$E$18/SUM('Γενικά Στοιχεία Οργανισμού'!$E$13:$E$24,'Γενικά Στοιχεία Οργανισμού'!$D$9) -> 6.765730786e-08 | S145: =E145*'Γενικά Στοιχεία Οργανισμού'!$E$19/SUM('Γενικά Στοιχεία Οργανισμού'!$E$13:$E$24,'Γενικά Στοιχεία Οργανισμού'!$D$9) -> 1.049854777e-07 | U145: =E145*'Γενικά Στοιχεία Οργανισμού'!$E$20/SUM('Γενικά Στοιχεία Οργανισμού'!$E$13:$E$24,'Γενικά Στοιχεία Οργανισμού'!$D$9) -> 1.539787007e-07 | W145: =E145*'Γενικά Στοιχεία Οργανισμού'!$E$21/SUM('Γενικά Στοιχεία Οργανισμού'!$E$13:$E$24,'Γενικά Στοιχεία Οργανισμού'!$D$9) -> 3.499515924e-08 | Y145: =E145*'Γενικά Στοιχεία Οργανισμού'!$E$22/SUM('Γενικά Στοιχεία Οργανισμού'!$E$13:$E$24,'Γενικά Στοιχεία Οργανισμού'!$D$9) -> 8.74878981e-08 | AA145: =E145*'Γενικά Στοιχεία Οργανισμού'!$E$23/SUM('Γενικά Στοιχεία Οργανισμού'!$E$13:$E$24,'Γενικά Στοιχεία Οργανισμού'!$D$9) -> 1.36481121e-07 | AC145: =E145*'Γενικά Στοιχεία Οργανισμού'!$E$24/SUM('Γενικά Στοιχεία Οργανισμού'!$E$13:$E$24,'Γενικά Στοιχεία Οργανισμού'!$D$9) -> 1.154840255e-07
E146: ='Υπολογισμός Αν. Απ.'!P61 -> 5.923661106e-07 | G146: 0 | I146: 0 | K146: =E146*'Γενικά Στοιχεία Οργανισμού'!$D$9/SUM('Γενικά Στοιχεία Οργανισμού'!$E$13:$E$24,'Γενικά Στοιχεία Οργανισμού'!$D$9) -> 2.369464442e-07 | M146: =E146*'Γενικά Στοιχεία Οργανισμού'!$E$16/SUM('Γενικά Στοιχεία Οργανισμού'!$E$13:$E$24,'Γενικά Στοιχεία Οργανισμού'!$D$9) -> 2.559021598e-08 | O146: =E146*'Γενικά Στοιχεία Οργανισμού'!$E$17/SUM('Γενικά Στοιχεία Οργανισμού'!$E$13:$E$24,'Γενικά Στοιχεία Οργανισμού'!$D$9) -> 4.501982441e-08 | Q146: =E146*'Γενικά Στοιχεία Οργανισμού'!$E$18/SUM('Γενικά Στοιχεία Οργανισμού'!$E$13:$E$24,'Γενικά Στοιχεία Οργανισμού'!$D$9) -> 2.748578753e-08 | S146: =E146*'Γενικά Στοιχεία Οργανισμού'!$E$19/SUM('Γενικά Στοιχεία Οργανισμού'!$E$13:$E$24,'Γενικά Στοιχεία Οργανισμού'!$D$9) -> 4.265035996e-08 | U146: =E146*'Γενικά Στοιχεία Οργανισμού'!$E$20/SUM('Γενικά Στοιχεία Οργανισμού'!$E$13:$E$24,'Γενικά Στοιχεία Οργανισμού'!$D$9) -> 6.255386128e-08 | W146: =E146*'Γενικά Στοιχεία Οργανισμού'!$E$21/SUM('Γενικά Στοιχεία Οργανισμού'!$E$13:$E$24,'Γενικά Στοιχεία Οργανισμού'!$D$9) -> 1.421678665e-08 | Y146: =E146*'Γενικά Στοιχεία Οργανισμού'!$E$22/SUM('Γενικά Στοιχεία Οργανισμού'!$E$13:$E$24,'Γενικά Στοιχεία Οργανισμού'!$D$9) -> 3.554196664e-08 | AA146: =E146*'Γενικά Στοιχεία Οργανισμού'!$E$23/SUM('Γενικά Στοιχεία Οργανισμού'!$E$13:$E$24,'Γενικά Στοιχεία Οργανισμού'!$D$9) -> 5.544546795e-08 | AC146: =E146*'Γενικά Στοιχεία Οργανισμού'!$E$24/SUM('Γενικά Στοιχεία Οργανισμού'!$E$13:$E$24,'Γενικά Στοιχεία Οργανισμού'!$D$9) -> 4.691539596e-08
C147: Ηλεκτρική Ενέργεια (Τρένο) | D147: ='Υπολογισμός Αν. Απ.'!Q63 -> 0 | E147: ='Υπολογισμός Αν. Απ.'!N63 -> 0 | F147: 0 | G147: 0 | H147: 0 | I147: 0 | J147: =D147*'Γενικά Στοιχεία Οργανισμού'!$D$9/SUM('Γενικά Στοιχεία Οργανισμού'!$E$13:$E$24,'Γενικά Στοιχεία Οργανισμού'!$D$9) -> 0 | K147: =E147*'Γενικά Στοιχεία Οργανισμού'!$D$9/SUM('Γενικά Στοιχεία Οργανισμού'!$E$13:$E$24,'Γενικά Στοιχεία Οργανισμού'!$D$9) -> 0 | L147: =D147*'Γενικά Στοιχεία Οργανισμού'!$E$16/SUM('Γενικά Στοιχεία Οργανισμού'!$E$13:$E$24,'Γενικά Στοιχεία Οργανισμού'!$D$9) -> 0 | M147: =E147*'Γενικά Στοιχεία Οργανισμού'!$E$16/SUM('Γενικά Στοιχεία Οργανισμού'!$E$13:$E$24,'Γενικά Στοιχεία Οργανισμού'!$D$9) -> 0 | N147: =D147*'Γενικά Στοιχεία Οργανισμού'!$E$17/SUM('Γενικά Στοιχεία Οργανισμού'!$E$13:$E$24,'Γενικά Στοιχεία Οργανισμού'!$D$9) -> 0 | O147: =E147*'Γενικά Στοιχεία Οργανισμού'!$E$17/SUM('Γενικά Στοιχεία Οργανισμού'!$E$13:$E$24,'Γενικά Στοιχεία Οργανισμού'!$D$9) -> 0 | P147: =D147*'Γενικά Στοιχεία Οργανισμού'!$E$18/SUM('Γενικά Στοιχεία Οργανισμού'!$E$13:$E$24,'Γενικά Στοιχεία Οργανισμού'!$D$9) -> 0 | Q147: =E147*'Γενικά Στοιχεία Οργανισμού'!$E$18/SUM('Γενικά Στοιχεία Οργανισμού'!$E$13:$E$24,'Γενικά Στοιχεία Οργανισμού'!$D$9) -> 0 | R147: =D147*'Γενικά Στοιχεία Οργανισμού'!$E$19/SUM('Γενικά Στοιχεία Οργανισμού'!$E$13:$E$24,'Γενικά Στοιχεία Οργανισμού'!$D$9) -> 0 | S147: =E147*'Γενικά Στοιχεία Οργανισμού'!$E$19/SUM('Γενικά Στοιχεία Οργανισμού'!$E$13:$E$24,'Γενικά Στοιχεία Οργανισμού'!$D$9) -> 0 | T147: =D147*'Γενικά Στοιχεία Οργανισμού'!$E$20/SUM('Γενικά Στοιχεία Οργανισμού'!$E$13:$E$24,'Γενικά Στοιχεία Οργανισμού'!$D$9) -> 0 | U147: =E147*'Γενικά Στοιχεία Οργανισμού'!$E$20/SUM('Γενικά Στοιχεία Οργανισμού'!$E$13:$E$24,'Γενικά Στοιχεία Οργανισμού'!$D$9) -> 0 | V147: =D147*'Γενικά Στοιχεία Οργανισμού'!$E$21/SUM('Γενικά Στοιχεία Οργανισμού'!$E$13:$E$24,'Γενικά Στοιχεία Οργανισμού'!$D$9) -> 0 | W147: =E147*'Γενικά Στοιχεία Οργανισμού'!$E$21/SUM('Γενικά Στοιχεία Οργανισμού'!$E$13:$E$24,'Γενικά Στοιχεία Οργανισμού'!$D$9) -> 0 | X147: =D147*'Γενικά Στοιχεία Οργανισμού'!$E$22/SUM('Γενικά Στοιχεία Οργανισμού'!$E$13:$E$24,'Γενικά Στοιχεία Οργανισμού'!$D$9) -> 0 | Y147: =E147*'Γενικά Στοιχεία Οργανισμού'!$E$22/SUM('Γενικά Στοιχεία Οργανισμού'!$E$13:$E$24,'Γενικά Στοιχεία Οργανισμού'!$D$9) -> 0 | Z147: =D147*'Γενικά Στοιχεία Οργανισμού'!$E$23/SUM('Γενικά Στοιχεία Οργανισμού'!$E$13:$E$24,'Γενικά Στοιχεία Οργανισμού'!$D$9) -> 0 | AA147: =E147*'Γενικά Στοιχεία Οργανισμού'!$E$23/SUM('Γενικά Στοιχεία Οργανισμού'!$E$13:$E$24,'Γενικά Στοιχεία Οργανισμού'!$D$9) -> 0 | AB147: =D147*'Γενικά Στοιχεία Οργανισμού'!$E$24/SUM('Γενικά Στοιχεία Οργανισμού'!$E$13:$E$24,'Γενικά Στοιχεία Οργανισμού'!$D$9) -> 0 | AC147: =E147*'Γενικά Στοιχεία Οργανισμού'!$E$24/SUM('Γενικά Στοιχεία Οργανισμού'!$E$13:$E$24,'Γενικά Στοιχεία Οργανισμού'!$D$9) -> 0
E148: ='Υπολογισμός Αν. Απ.'!O63 -> 0 | G148: 0 | I148: 0 | K148: =E148*'Γενικά Στοιχεία Οργανισμού'!$D$9/SUM('Γενικά Στοιχεία Οργανισμού'!$E$13:$E$24,'Γενικά Στοιχεία Οργανισμού'!$D$9) -> 0 | M148: =E148*'Γενικά Στοιχεία Οργανισμού'!$E$16/SUM('Γενικά Στοιχεία Οργανισμού'!$E$13:$E$24,'Γενικά Στοιχεία Οργανισμού'!$D$9) -> 0 | O148: =E148*'Γενικά Στοιχεία Οργανισμού'!$E$17/SUM('Γενικά Στοιχεία Οργανισμού'!$E$13:$E$24,'Γενικά Στοιχεία Οργανισμού'!$D$9) -> 0 | Q148: =E148*'Γενικά Στοιχεία Οργανισμού'!$E$18/SUM('Γενικά Στοιχεία Οργανισμού'!$E$13:$E$24,'Γενικά Στοιχεία Οργανισμού'!$D$9) -> 0 | S148: =E148*'Γενικά Στοιχεία Οργανισμού'!$E$19/SUM('Γενικά Στοιχεία Οργανισμού'!$E$13:$E$24,'Γενικά Στοιχεία Οργανισμού'!$D$9) -> 0 | U148: =E148*'Γενικά Στοιχεία Οργανισμού'!$E$20/SUM('Γενικά Στοιχεία Οργανισμού'!$E$13:$E$24,'Γενικά Στοιχεία Οργανισμού'!$D$9) -> 0 | W148: =E148*'Γενικά Στοιχεία Οργανισμού'!$E$21/SUM('Γενικά Στοιχεία Οργανισμού'!$E$13:$E$24,'Γενικά Στοιχεία Οργανισμού'!$D$9) -> 0 | Y148: =E148*'Γενικά Στοιχεία Οργανισμού'!$E$22/SUM('Γενικά Στοιχεία Οργανισμού'!$E$13:$E$24,'Γενικά Στοιχεία Οργανισμού'!$D$9) -> 0 | AA148: =E148*'Γενικά Στοιχεία Οργανισμού'!$E$23/SUM('Γενικά Στοιχεία Οργανισμού'!$E$13:$E$24,'Γενικά Στοιχεία Οργανισμού'!$D$9) -> 0 | AC148: =E148*'Γενικά Στοιχεία Οργανισμού'!$E$24/SUM('Γενικά Στοιχεία Οργανισμού'!$E$13:$E$24,'Γενικά Στοιχεία Οργανισμού'!$D$9) -> 0
E149: ='Υπολογισμός Αν. Απ.'!P63 -> 0 | G149: 0 | I149: 0 | K149: =E149*'Γενικά Στοιχεία Οργανισμού'!$D$9/SUM('Γενικά Στοιχεία Οργανισμού'!$E$13:$E$24,'Γενικά Στοιχεία Οργανισμού'!$D$9) -> 0 | M149: =E149*'Γενικά Στοιχεία Οργανισμού'!$E$16/SUM('Γενικά Στοιχεία Οργανισμού'!$E$13:$E$24,'Γενικά Στοιχεία Οργανισμού'!$D$9) -> 0 | O149: =E149*'Γενικά Στοιχεία Οργανισμού'!$E$17/SUM('Γενικά Στοιχεία Οργανισμού'!$E$13:$E$24,'Γενικά Στοιχεία Οργανισμού'!$D$9) -> 0 | Q149: =E149*'Γενικά Στοιχεία Οργανισμού'!$E$18/SUM('Γενικά Στοιχεία Οργανισμού'!$E$13:$E$24,'Γενικά Στοιχεία Οργανισμού'!$D$9) -> 0 | S149: =E149*'Γενικά Στοιχεία Οργανισμού'!$E$19/SUM('Γενικά Στοιχεία Οργανισμού'!$E$13:$E$24,'Γενικά Στοιχεία Οργανισμού'!$D$9) -> 0 | U149: =E149*'Γενικά Στοιχεία Οργανισμού'!$E$20/SUM('Γενικά Στοιχεία Οργανισμού'!$E$13:$E$24,'Γενικά Στοιχεία Οργανισμού'!$D$9) -> 0 | W149: =E149*'Γενικά Στοιχεία Οργανισμού'!$E$21/SUM('Γενικά Στοιχεία Οργανισμού'!$E$13:$E$24,'Γενικά Στοιχεία Οργανισμού'!$D$9) -> 0 | Y149: =E149*'Γενικά Στοιχεία Οργανισμού'!$E$22/SUM('Γενικά Στοιχεία Οργανισμού'!$E$13:$E$24,'Γενικά Στοιχεία Οργανισμού'!$D$9) -> 0 | AA149: =E149*'Γενικά Στοιχεία Οργανισμού'!$E$23/SUM('Γενικά Στοιχεία Οργανισμού'!$E$13:$E$24,'Γενικά Στοιχεία Οργανισμού'!$D$9) -> 0 | AC149: =E149*'Γενικά Στοιχεία Οργανισμού'!$E$24/SUM('Γενικά Στοιχεία Οργανισμού'!$E$13:$E$24,'Γενικά Στοιχεία Οργανισμού'!$D$9) -> 0
C150: Τελική Διάθεση Στερεών Αποβλήτων | D150: ='Υπολογισμός Αν. Απ.'!J68 -> 82.36040828 | E150: 0 | F150: 0 | G150: 0 | H150: 0 | I150: 0 | J150: =D150*'Γενικά Στοιχεία Οργανισμού'!$D$9/SUM('Γενικά Στοιχεία Οργανισμού'!$E$13:$E$24,'Γενικά Στοιχεία Οργανισμού'!$D$9,'Γενικά Στοιχεία Οργανισμού'!$D$13:$D$24) -> 5.846969209 | K150: =E150*'Γενικά Στοιχεία Οργανισμού'!$D$9/SUM('Γενικά Στοιχεία Οργανισμού'!$E$13:$E$24,'Γενικά Στοιχεία Οργανισμού'!$D$9,'Γενικά Στοιχεία Οργανισμού'!$D$13:$D$24) -> 0 | L150: =D150*('Γενικά Στοιχεία Οργανισμού'!$E$16+'Γενικά Στοιχεία Οργανισμού'!$D$16)/SUM('Γενικά Στοιχεία Οργανισμού'!$E$13:$E$24,'Γενικά Στοιχεία Οργανισμού'!$D$9,'Γενικά Στοιχεία Οργανισμού'!$D$13:$D$24) -> 6.13931767 | M150: =E150*('Γενικά Στοιχεία Οργανισμού'!$E$16+'Γενικά Στοιχεία Οργανισμού'!$D$16)/SUM('Γενικά Στοιχεία Οργανισμού'!$E$13:$E$24,'Γενικά Στοιχεία Οργανισμού'!$D$9,'Γενικά Στοιχεία Οργανισμού'!$D$13:$D$24) -> 0 | N150: =D150*('Γενικά Στοιχεία Οργανισμού'!$E$17+'Γενικά Στοιχεία Οργανισμού'!$D$17)/SUM('Γενικά Στοιχεία Οργανισμού'!$E$13:$E$24,'Γενικά Στοιχεία Οργανισμού'!$D$9,'Γενικά Στοιχεία Οργανισμού'!$D$13:$D$24) -> 6.677238837 | O150: =E150*('Γενικά Στοιχεία Οργανισμού'!$E$17+'Γενικά Στοιχεία Οργανισμού'!$D$17)/SUM('Γενικά Στοιχεία Οργανισμού'!$E$13:$E$24,'Γενικά Στοιχεία Οργανισμού'!$D$9,'Γενικά Στοιχεία Οργανισμού'!$D$13:$D$24) -> 0 | P150: =D150*('Γενικά Στοιχεία Οργανισμού'!$E$18+'Γενικά Στοιχεία Οργανισμού'!$D$18)/SUM('Γενικά Στοιχεία Οργανισμού'!$E$13:$E$24,'Γενικά Στοιχεία Οργανισμού'!$D$9,'Γενικά Στοιχεία Οργανισμού'!$D$13:$D$24) -> 9.624111319 | Q150: =E150*('Γενικά Στοιχεία Οργανισμού'!$E$18+'Γενικά Στοιχεία Οργανισμού'!$D$18)/SUM('Γενικά Στοιχεία Οργανισμού'!$E$13:$E$24,'Γενικά Στοιχεία Οργανισμού'!$D$9,'Γενικά Στοιχεία Οργανισμού'!$D$13:$D$24) -> 0 | R150: =D150*('Γενικά Στοιχεία Οργανισμού'!$E$19+'Γενικά Στοιχεία Οργανισμού'!$D$19)/SUM('Γενικά Στοιχεία Οργανισμού'!$E$13:$E$24,'Γενικά Στοιχεία Οργανισμού'!$D$9,'Γενικά Στοιχεία Οργανισμού'!$D$13:$D$24) -> 15.58801991 | S150: =E150*('Γενικά Στοιχεία Οργανισμού'!$E$19+'Γενικά Στοιχεία Οργανισμού'!$D$19)/SUM('Γενικά Στοιχεία Οργανισμού'!$E$13:$E$24,'Γενικά Στοιχεία Οργανισμού'!$D$9,'Γενικά Στοιχεία Οργανισμού'!$D$13:$D$24) -> 0 | T150: =D150*('Γενικά Στοιχεία Οργανισμού'!$E$20+'Γενικά Στοιχεία Οργανισμού'!$D$20)/SUM('Γενικά Στοιχεία Οργανισμού'!$E$13:$E$24,'Γενικά Στοιχεία Οργανισμού'!$D$9,'Γενικά Στοιχεία Οργανισμού'!$D$13:$D$24) -> 7.390569081 | U150: =E150*('Γενικά Στοιχεία Οργανισμού'!$E$20+'Γενικά Στοιχεία Οργανισμού'!$D$20)/SUM('Γενικά Στοιχεία Οργανισμού'!$E$13:$E$24,'Γενικά Στοιχεία Οργανισμού'!$D$9,'Γενικά Στοιχεία Οργανισμού'!$D$13:$D$24) -> 0 | V150: =D150*('Γενικά Στοιχεία Οργανισμού'!$E$21+'Γενικά Στοιχεία Οργανισμού'!$D$21)/SUM('Γενικά Στοιχεία Οργανισμού'!$E$13:$E$24,'Γενικά Στοιχεία Οργανισμού'!$D$9,'Γενικά Στοιχεία Οργανισμού'!$D$13:$D$24) -> 7.682917541 | W150: =E150*('Γενικά Στοιχεία Οργανισμού'!$E$21+'Γενικά Στοιχεία Οργανισμού'!$D$21)/SUM('Γενικά Στοιχεία Οργανισμού'!$E$13:$E$24,'Γενικά Στοιχεία Οργανισμού'!$D$9,'Γενικά Στοιχεία Οργανισμού'!$D$13:$D$24) -> 0 | X150: =D150*('Γενικά Στοιχεία Οργανισμού'!$E$22+'Γενικά Στοιχεία Οργανισμού'!$D$22)/SUM('Γενικά Στοιχεία Οργανισμού'!$E$13:$E$24,'Γενικά Στοιχεία Οργανισμού'!$D$9,'Γενικά Στοιχεία Οργανισμού'!$D$13:$D$24) -> 6.443360069 | Y150: =E150*('Γενικά Στοιχεία Οργανισμού'!$E$22+'Γενικά Στοιχεία Οργανισμού'!$D$22)/SUM('Γενικά Στοιχεία Οργανισμού'!$E$13:$E$24,'Γενικά Στοιχεία Οργανισμού'!$D$9,'Γενικά Στοιχεία Οργανισμού'!$D$13:$D$24) -> 0 | Z150: =D150*('Γενικά Στοιχεία Οργανισμού'!$E$23+'Γενικά Στοιχεία Οργανισμού'!$D$23)/SUM('Γενικά Στοιχεία Οργανισμού'!$E$13:$E$24,'Γενικά Στοιχεία Οργανισμού'!$D$9,'Γενικά Στοιχεία Οργανισμού'!$D$13:$D$24) -> 8.700290184 | AA150: =E150*('Γενικά Στοιχεία Οργανισμού'!$E$23+'Γενικά Στοιχεία Οργανισμού'!$D$23)/SUM('Γενικά Στοιχεία Οργανισμού'!$E$13:$E$24,'Γενικά Στοιχεία Οργανισμού'!$D$9,'Γενικά Στοιχεία Οργανισμού'!$D$13:$D$24) -> 0 | AB150: =D150*('Γενικά Στοιχεία Οργανισμού'!$E$24+'Γενικά Στοιχεία Οργανισμού'!$D$24)/SUM('Γενικά Στοιχεία Οργανισμού'!$E$13:$E$24,'Γενικά Στοιχεία Οργανισμού'!$D$9,'Γενικά Στοιχεία Οργανισμού'!$D$13:$D$24) -> 8.267614462 | AC150: =E150*('Γενικά Στοιχεία Οργανισμού'!$E$24+'Γενικά Στοιχεία Οργανισμού'!$D$24)/SUM('Γενικά Στοιχεία Οργανισμού'!$E$13:$E$24,'Γενικά Στοιχεία Οργανισμού'!$D$9,'Γενικά Στοιχεία Οργανισμού'!$D$13:$D$24) -> 0
E151: ='Υπολογισμός Αν. Απ.'!I68 -> 2.95198596 | G151: 0 | I151: 0 | K151: =E151*'Γενικά Στοιχεία Οργανισμού'!$D$9/SUM('Γενικά Στοιχεία Οργανισμού'!$E$13:$E$24,'Γενικά Στοιχεία Οργανισμού'!$D$9,'Γενικά Στοιχεία Οργανισμού'!$D$13:$D$24) -> 0.2095687889 | M151: =E151*('Γενικά Στοιχεία Οργανισμού'!$E$16+'Γενικά Στοιχεία Οργανισμού'!$D$16)/SUM('Γενικά Στοιχεία Οργανισμού'!$E$13:$E$24,'Γενικά Στοιχεία Οργανισμού'!$D$9,'Γενικά Στοιχεία Οργανισμού'!$D$13:$D$24) -> 0.2200472283 | O151: =E151*('Γενικά Στοιχεία Οργανισμού'!$E$17+'Γενικά Στοιχεία Οργανισμού'!$D$17)/SUM('Γενικά Στοιχεία Οργανισμού'!$E$13:$E$24,'Γενικά Στοιχεία Οργανισμού'!$D$9,'Γενικά Στοιχεία Οργανισμού'!$D$13:$D$24) -> 0.2393275569 | Q151: =E151*('Γενικά Στοιχεία Οργανισμού'!$E$18+'Γενικά Στοιχεία Οργανισμού'!$D$18)/SUM('Γενικά Στοιχεία Οργανισμού'!$E$13:$E$24,'Γενικά Στοιχεία Οργανισμού'!$D$9,'Γενικά Στοιχεία Οργανισμού'!$D$13:$D$24) -> 0.3449502265 | S151: =E151*('Γενικά Στοιχεία Οργανισμού'!$E$19+'Γενικά Στοιχεία Οργανισμού'!$D$19)/SUM('Γενικά Στοιχεία Οργανισμού'!$E$13:$E$24,'Γενικά Στοιχεία Οργανισμού'!$D$9,'Γενικά Στοιχεία Οργανισμού'!$D$13:$D$24) -> 0.5587103911 | U151: =E151*('Γενικά Στοιχεία Οργανισμού'!$E$20+'Γενικά Στοιχεία Οργανισμού'!$D$20)/SUM('Γενικά Στοιχεία Οργανισμού'!$E$13:$E$24,'Γενικά Στοιχεία Οργανισμού'!$D$9,'Γενικά Στοιχεία Οργανισμού'!$D$13:$D$24) -> 0.2648949491 | W151: =E151*('Γενικά Στοιχεία Οργανισμού'!$E$21+'Γενικά Στοιχεία Οργανισμού'!$D$21)/SUM('Γενικά Στοιχεία Οργανισμού'!$E$13:$E$24,'Γενικά Στοιχεία Οργανισμού'!$D$9,'Γενικά Στοιχεία Οργανισμού'!$D$13:$D$24) -> 0.2753733886 | Y151: =E151*('Γενικά Στοιχεία Οργανισμού'!$E$22+'Γενικά Στοιχεία Οργανισμού'!$D$22)/SUM('Γενικά Στοιχεία Οργανισμού'!$E$13:$E$24,'Γενικά Στοιχεία Οργανισμού'!$D$9,'Γενικά Στοιχεία Οργανισμού'!$D$13:$D$24) -> 0.2309448053 | AA151: =E151*('Γενικά Στοιχεία Οργανισμού'!$E$23+'Γενικά Στοιχεία Οργανισμού'!$D$23)/SUM('Γενικά Στοιχεία Οργανισμού'!$E$13:$E$24,'Γενικά Στοιχεία Οργανισμού'!$D$9,'Γενικά Στοιχεία Οργανισμού'!$D$13:$D$24) -> 0.3118383578 | AC151: =E151*('Γενικά Στοιχεία Οργανισμού'!$E$24+'Γενικά Στοιχεία Οργανισμού'!$D$24)/SUM('Γενικά Στοιχεία Οργανισμού'!$E$13:$E$24,'Γενικά Στοιχεία Οργανισμού'!$D$9,'Γενικά Στοιχεία Οργανισμού'!$D$13:$D$24) -> 0.2963302675
E152: 0 | G152: 0 | I152: 0 | K152: =E152*'Γενικά Στοιχεία Οργανισμού'!$D$9/SUM('Γενικά Στοιχεία Οργανισμού'!$E$13:$E$24,'Γενικά Στοιχεία Οργανισμού'!$D$9,'Γενικά Στοιχεία Οργανισμού'!$D$13:$D$24) -> 0 | M152: =E152*('Γενικά Στοιχεία Οργανισμού'!$E$16+'Γενικά Στοιχεία Οργανισμού'!$D$16)/SUM('Γενικά Στοιχεία Οργανισμού'!$E$13:$E$24,'Γενικά Στοιχεία Οργανισμού'!$D$9,'Γενικά Στοιχεία Οργανισμού'!$D$13:$D$24) -> 0 | O152: =E152*('Γενικά Στοιχεία Οργανισμού'!$E$17+'Γενικά Στοιχεία Οργανισμού'!$D$17)/SUM('Γενικά Στοιχεία Οργανισμού'!$E$13:$E$24,'Γενικά Στοιχεία Οργανισμού'!$D$9,'Γενικά Στοιχεία Οργανισμού'!$D$13:$D$24) -> 0 | Q152: =E152*('Γενικά Στοιχεία Οργανισμού'!$E$18+'Γενικά Στοιχεία Οργανισμού'!$D$18)/SUM('Γενικά Στοιχεία Οργανισμού'!$E$13:$E$24,'Γενικά Στοιχεία Οργανισμού'!$D$9,'Γενικά Στοιχεία Οργανισμού'!$D$13:$D$24) -> 0 | S152: =E152*('Γενικά Στοιχεία Οργανισμού'!$E$19+'Γενικά Στοιχεία Οργανισμού'!$D$19)/SUM('Γενικά Στοιχεία Οργανισμού'!$E$13:$E$24,'Γενικά Στοιχεία Οργανισμού'!$D$9,'Γενικά Στοιχεία Οργανισμού'!$D$13:$D$24) -> 0 | U152: =E152*('Γενικά Στοιχεία Οργανισμού'!$E$20+'Γενικά Στοιχεία Οργανισμού'!$D$20)/SUM('Γενικά Στοιχεία Οργανισμού'!$E$13:$E$24,'Γενικά Στοιχεία Οργανισμού'!$D$9,'Γενικά Στοιχεία Οργανισμού'!$D$13:$D$24) -> 0 | W152: =E152*('Γενικά Στοιχεία Οργανισμού'!$E$21+'Γενικά Στοιχεία Οργανισμού'!$D$21)/SUM('Γενικά Στοιχεία Οργανισμού'!$E$13:$E$24,'Γενικά Στοιχεία Οργανισμού'!$D$9,'Γενικά Στοιχεία Οργανισμού'!$D$13:$D$24) -> 0 | Y152: =E152*('Γενικά Στοιχεία Οργανισμού'!$E$22+'Γενικά Στοιχεία Οργανισμού'!$D$22)/SUM('Γενικά Στοιχεία Οργανισμού'!$E$13:$E$24,'Γενικά Στοιχεία Οργανισμού'!$D$9,'Γενικά Στοιχεία Οργανισμού'!$D$13:$D$24) -> 0 | AA152: =E152*('Γενικά Στοιχεία Οργανισμού'!$E$23+'Γενικά Στοιχεία Οργανισμού'!$D$23)/SUM('Γενικά Στοιχεία Οργανισμού'!$E$13:$E$24,'Γενικά Στοιχεία Οργανισμού'!$D$9,'Γενικά Στοιχεία Οργανισμού'!$D$13:$D$24) -> 0 | AC152: =E152*('Γενικά Στοιχεία Οργανισμού'!$E$24+'Γενικά Στοιχεία Οργανισμού'!$D$24)/SUM('Γενικά Στοιχεία Οργανισμού'!$E$13:$E$24,'Γενικά Στοιχεία Οργανισμού'!$D$9,'Γενικά Στοιχεία Οργανισμού'!$D$13:$D$24) -> 0
C153: Διαχείριση Λυμάτων | D153: ='Υπολογισμός Αν. Απ.'!L72 -> 14.95349302 | E153: 0 | F153: 0 | G153: 0 | H153: 0 | I153: 0 | J153: 0 | K153: 0 | L153: =D153*'Γενικά Στοιχεία Οργανισμού'!$D$16/SUM('Γενικά Στοιχεία Οργανισμού'!$D$13:$D$24) -> 1.215794098 | M153: =E153*'Γενικά Στοιχεία Οργανισμού'!$D$16/SUM('Γενικά Στοιχεία Οργανισμού'!$D$13:$D$24) -> 0 | N153: =D153*'Γενικά Στοιχεία Οργανισμού'!$D$17/SUM('Γενικά Στοιχεία Οργανισμού'!$D$13:$D$24) -> 1.228700618 | O153: =E153*'Γενικά Στοιχεία Οργανισμού'!$D$17/SUM('Γενικά Στοιχεία Οργανισμού'!$D$13:$D$24) -> 0 | P153: =D153*'Γενικά Στοιχεία Οργανισμού'!$D$18/SUM('Γενικά Στοιχεία Οργανισμού'!$D$13:$D$24) -> 1.974697421 | Q153: =E153*'Γενικά Στοιχεία Οργανισμού'!$D$18/SUM('Γενικά Στοιχεία Οργανισμού'!$D$13:$D$24) -> 0 | R153: =D153*'Γενικά Στοιχεία Οργανισμού'!$D$19/SUM('Γενικά Στοιχεία Οργανισμού'!$D$13:$D$24) -> 3.208560646 | S153: =E153*'Γενικά Στοιχεία Οργανισμού'!$D$19/SUM('Γενικά Στοιχεία Οργανισμού'!$D$13:$D$24) -> 0 | T153: =D153*'Γενικά Στοιχεία Οργανισμού'!$D$20/SUM('Γενικά Στοιχεία Οργανισμού'!$D$13:$D$24) -> 1.290651909 | U153: =E153*'Γενικά Στοιχεία Οργανισμού'!$D$20/SUM('Γενικά Στοιχεία Οργανισμού'!$D$13:$D$24) -> 0 | V153: =D153*'Γενικά Στοιχεία Οργανισμού'!$D$21/SUM('Γενικά Στοιχεία Οργανισμού'!$D$13:$D$24) -> 1.618477494 | W153: =E153*'Γενικά Στοιχεία Οργανισμού'!$D$21/SUM('Γενικά Στοιχεία Οργανισμού'!$D$13:$D$24) -> 0 | X153: =D153*'Γενικά Στοιχεία Οργανισμού'!$D$22/SUM('Γενικά Στοιχεία Οργανισμού'!$D$13:$D$24) -> 1.228700618 | Y153: =E153*'Γενικά Στοιχεία Οργανισμού'!$D$22/SUM('Γενικά Στοιχεία Οργανισμού'!$D$13:$D$24) -> 0 | Z153: =D153*'Γενικά Στοιχεία Οργανισμού'!$D$23/SUM('Γενικά Στοιχεία Οργανισμού'!$D$13:$D$24) -> 1.618477494 | AA153: =E153*'Γενικά Στοιχεία Οργανισμού'!$D$23/SUM('Γενικά Στοιχεία Οργανισμού'!$D$13:$D$24) -> 0 | AB153: =D153*'Γενικά Στοιχεία Οργανισμού'!$D$24/SUM('Γενικά Στοιχεία Οργανισμού'!$D$13:$D$24) -> 1.569432722 | AC153: =E153*'Γενικά Στοιχεία Οργανισμού'!$D$24/SUM('Γενικά Στοιχεία Οργανισμού'!$D$13:$D$24) -> 0
E154: ='Υπολογισμός Αν. Απ.'!J72 -> 0.0710557326 | G154: 0 | I154: 0 | K154: 0 | M154: =E154*'Γενικά Στοιχεία Οργανισμού'!$D$16/SUM('Γενικά Στοιχεία Οργανισμού'!$D$13:$D$24) -> 0.005777187995 | O154: =E154*'Γενικά Στοιχεία Οργανισμού'!$D$17/SUM('Γενικά Στοιχεία Οργανισμού'!$D$13:$D$24) -> 0.005838516955 | Q154: =E154*'Γενικά Στοιχεία Οργανισμού'!$D$18/SUM('Γενικά Στοιχεία Οργανισμού'!$D$13:$D$24) -> 0.00938333082 | S154: =E154*'Γενικά Στοιχεία Οργανισμού'!$D$19/SUM('Γενικά Στοιχεία Οργανισμού'!$D$13:$D$24) -> 0.01524637936 | U154: =E154*'Γενικά Στοιχεία Οργανισμού'!$D$20/SUM('Γενικά Στοιχεία Οργανισμού'!$D$13:$D$24) -> 0.006132895961 | W154: =E154*'Γενικά Στοιχεία Οργανισμού'!$D$21/SUM('Γενικά Στοιχεία Οργανισμού'!$D$13:$D$24) -> 0.007690651535 | Y154: =E154*'Γενικά Στοιχεία Οργανισμού'!$D$22/SUM('Γενικά Στοιχεία Οργανισμού'!$D$13:$D$24) -> 0.005838516955 | AA154: =E154*'Γενικά Στοιχεία Οργανισμού'!$D$23/SUM('Γενικά Στοιχεία Οργανισμού'!$D$13:$D$24) -> 0.007690651535 | AC154: =E154*'Γενικά Στοιχεία Οργανισμού'!$D$24/SUM('Γενικά Στοιχεία Οργανισμού'!$D$13:$D$24) -> 0.007457601488
E155: ='Υπολογισμός Αν. Απ.'!K72 -> 0.04751296 | G155: 0 | I155: 0 | K155: 0 | M155: =E155*'Γενικά Στοιχεία Οργανισμού'!$D$16/SUM('Γενικά Στοιχεία Οργανισμού'!$D$13:$D$24) -> 0.00386304232 | O155: =E155*'Γενικά Στοιχεία Οργανισμού'!$D$17/SUM('Γενικά Στοιχεία Οργανισμού'!$D$13:$D$24) -> 0.003904051262 | Q155: =E155*'Γενικά Στοιχεία Οργανισμού'!$D$18/SUM('Γενικά Στοιχεία Οργανισμού'!$D$13:$D$24) -> 0.006274368099 | S155: =E155*'Γενικά Στοιχεία Οργανισμού'!$D$19/SUM('Γενικά Στοιχεία Οργανισμού'!$D$13:$D$24) -> 0.01019482294 | U155: =E155*'Γενικά Στοιχεία Οργανισμού'!$D$20/SUM('Γενικά Στοιχεία Οργανισμού'!$D$13:$D$24) -> 0.004100894183 | W155: =E155*'Γενικά Στοιχεία Οργανισμού'!$D$21/SUM('Γενικά Στοιχεία Οργανισμού'!$D$13:$D$24) -> 0.005142521305 | Y155: =E155*'Γενικά Στοιχεία Οργανισμού'!$D$22/SUM('Γενικά Στοιχεία Οργανισμού'!$D$13:$D$24) -> 0.003904051262 | AA155: =E155*'Γενικά Στοιχεία Οργανισμού'!$D$23/SUM('Γενικά Στοιχεία Οργανισμού'!$D$13:$D$24) -> 0.005142521305 | AC155: =E155*'Γενικά Στοιχεία Οργανισμού'!$D$24/SUM('Γενικά Στοιχεία Οργανισμού'!$D$13:$D$24) -> 0.004986687326
C156: Προμήθεια Χαρτιών | D156: ='Υπολογισμός Αν. Απ.'!H76 -> 16.91 | E156: - | F156: 0 | G156: 0 | H156: 0 | I156: 0 | J156: =D156*'Γενικά Στοιχεία Οργανισμού'!$D$9/SUM('Γενικά Στοιχεία Οργανισμού'!$E$13:$E$24,'Γενικά Στοιχεία Οργανισμού'!$D$9,'Γενικά Στοιχεία Οργανισμού'!$D$13:$D$24) -> 1.200482749 | K156: - | L156: =D156*('Γενικά Στοιχεία Οργανισμού'!$E$16+'Γενικά Στοιχεία Οργανισμού'!$D$16)/SUM('Γενικά Στοιχεία Οργανισμού'!$E$13:$E$24,'Γενικά Στοιχεία Οργανισμού'!$D$9,'Γενικά Στοιχεία Οργανισμού'!$D$13:$D$24) -> 1.260506886 | M156: - | N156: =D156*('Γενικά Στοιχεία Οργανισμού'!$E$17+'Γενικά Στοιχεία Οργανισμού'!$D$17)/SUM('Γενικά Στοιχεία Οργανισμού'!$E$13:$E$24,'Γενικά Στοιχεία Οργανισμού'!$D$9,'Γενικά Στοιχεία Οργανισμού'!$D$13:$D$24) -> 1.370951299 | O156: - | P156: =D156*('Γενικά Στοιχεία Οργανισμού'!$E$18+'Γενικά Στοιχεία Οργανισμού'!$D$18)/SUM('Γενικά Στοιχεία Οργανισμού'!$E$13:$E$24,'Γενικά Στοιχεία Οργανισμού'!$D$9,'Γενικά Στοιχεία Οργανισμού'!$D$13:$D$24) -> 1.975994605 | Q156: - | R156: =D156*('Γενικά Στοιχεία Οργανισμού'!$E$19+'Γενικά Στοιχεία Οργανισμού'!$D$19)/SUM('Γενικά Στοιχεία Οργανισμού'!$E$13:$E$24,'Γενικά Στοιχεία Οργανισμού'!$D$9,'Γενικά Στοιχεία Οργανισμού'!$D$13:$D$24) -> 3.200487008 | S156: - | T156: =D156*('Γενικά Στοιχεία Οργανισμού'!$E$20+'Γενικά Στοιχεία Οργανισμού'!$D$20)/SUM('Γενικά Στοιχεία Οργανισμού'!$E$13:$E$24,'Γενικά Στοιχεία Οργανισμού'!$D$9,'Γενικά Στοιχεία Οργανισμού'!$D$13:$D$24) -> 1.517410195 | U156: - | V156: =D156*('Γενικά Στοιχεία Οργανισμού'!$E$21+'Γενικά Στοιχεία Οργανισμού'!$D$21)/SUM('Γενικά Στοιχεία Οργανισμού'!$E$13:$E$24,'Γενικά Στοιχεία Οργανισμού'!$D$9,'Γενικά Στοιχεία Οργανισμού'!$D$13:$D$24) -> 1.577434332 | W156: - | X156: =D156*('Γενικά Στοιχεία Οργανισμού'!$E$22+'Γενικά Στοιχεία Οργανισμού'!$D$22)/SUM('Γενικά Στοιχεία Οργανισμού'!$E$13:$E$24,'Γενικά Στοιχεία Οργανισμού'!$D$9,'Γενικά Στοιχεία Οργανισμού'!$D$13:$D$24) -> 1.322931989 | Y156: - | Z156: =D156*('Γενικά Στοιχεία Οργανισμού'!$E$23+'Γενικά Στοιχεία Οργανισμού'!$D$23)/SUM('Γενικά Στοιχεία Οργανισμού'!$E$13:$E$24,'Γενικά Στοιχεία Οργανισμού'!$D$9,'Γενικά Στοιχεία Οργανισμού'!$D$13:$D$24) -> 1.78631833 | AA156: - | AB156: =D156*('Γενικά Στοιχεία Οργανισμού'!$E$24+'Γενικά Στοιχεία Οργανισμού'!$D$24)/SUM('Γενικά Στοιχεία Οργανισμού'!$E$13:$E$24,'Γενικά Στοιχεία Οργανισμού'!$D$9,'Γενικά Στοιχεία Οργανισμού'!$D$13:$D$24) -> 1.697482607 | AC156: -
E157: - | G157: 0 | I157: 0 | K157: - | M157: - | O157: - | Q157: - | S157: - | U157: - | W157: - | Y157: - | AA157: - | AC157: -
E158: - | G158: 0 | I158: 0 | K158: - | M158: - | O158: - | Q158: - | S158: - | U158: - | W158: - | Y158: - | AA158: - | AC158: -
C159: ΣΥΝΟΛΟ | D159: =D24+D66+D72 -> 5875.504836 | E159: =E24+E66+E72 -> 5726.962034 | F159: 144.7804743 | G159: 144.3474015 | H159: 55.86554814 | I159: 55.68101476 | J159: 634.3206476 | K159: 620.9528324 | L159: 374.092034 | M159: 361.8712917 | N159: 594.8057287 | O159: 580.9145262 | P159: 442.2424974 | Q159: 423.5606569 | R159: 691.1931182 | S159: 661.0305348 | T159: 808.2905742 | U159: 792.4423858 | V159: 266.9059325 | W159: 252.2618277 | X159: 485.9040467 | Y159: 472.7799058 | Z159: 739.5258943 | AA159: 721.5481529 | AB159: 637.5783397 | AC159: 620.7012189
E160: =E25+E67+E73 -> 3.45173173 | G160: =G25+G67+G73 -> 0.003208489216 | I160: =I25+I67+I73 -> 0.001271560851 | K160: =K25+K67+K73 -> 0.2809591861 | M160: =M25+M67+M73 -> 0.252390453 | O160: =O25+O67+O73 -> 0.2813855898 | Q160: =Q25+Q67+Q73 -> 0.3904285903 | S160: =S25+S67+S73 -> 0.6314869668 | U160: =U25+U67+U73 -> 0.316773364 | W160: =W25+W67+W73 -> 0.3085585782 | Y160: =Y25+Y67+Y73 -> 0.2683298078 | AA160: =AA25+AA67+AA73 -> 0.3653272163 | AC160: =AC25+AC67+AC73 -> 0.3448044662
E161: =E26+E68+E74 -> 0.1207286283 | G161: =G26+G68+G74 -> 0.001258446665 | I161: =I26+I68+I74 -> 0.0005459957191 | K161: =K26+K68+K74 -> 0.01238220813 | M161: =M26+M68+M74 -> 0.008124871611 | O161: =O26+O68+O74 -> 0.01052901962 | Q161: =Q26+Q68+Q74 -> 0.01138221972 | S161: =S26+S68+S74 -> 0.01815233639 | U161: =U26+U68+U74 -> 0.01298913067 | W161: =W26+W68+W74 -> 0.008328429089 | Y161: =Y26+Y68+Y74 -> 0.009368371864 | AA161: =AA26+AA68+AA74 -> 0.01336841394 | AC161: =AC26+AC68+AC74 -> 0.01212079703
C163: Συγκεντρωτικός Πίνακας Κατανάλωσης (άμεσης και έμμεσης) Τελικής Ενέργειας (kWh)
C164: Κατηγορία | D164: Ε.Μ.Π. | F164: Βιβλιοθήκη | H164: Γυμναστήριο | J164: Διοίκηση | L164: Σχολή Αγρονόμων και Τοπογράφων Μηχανικών | N164: Σχολή Εφαρμοσμένων Μαθηματικών και Φυσικών Επιστημών | P164: Σχολή Ηλεκτρολόγων Μηχανικών και Μηχανικών Υπολογιστών | R164: Σχολή Μηχανικών Μεταλλείων Μεταλλουργών | T164: Σχολή Μηχανολόγων Μηχανικών | V164: Σχολή Ναυπηγών Μηχανολόγων Μηχανικών | X164: Σχολή Πολιτικών Μηχανικών | Z164: Σχολή Χημικών Μηχανικών | AB164: Σχολή Αρχιτεκτόνων Μηχανικών
C165: SCOPE 1 | D165: =D166+D169 -> 2922882.374 | F165: =F166+F169 -> 121395.1888 | H165: =H166+H169 -> 53888.28779 | J165: =J166+J169 -> 103487.1809 | L165: =L166+L169 -> 196368.4125 | N165: =N166+N169 -> 331389.5743 | P165: =P166+P169 -> 209381.4363 | R165: =R166+R169 -> 315558.9146 | T165: =T166+T169 -> 461737.5592 | V165: =V166+V169 -> 114793.1273 | X165: =X166+X169 -> 264291.3923 | Z165: =Z166+Z169 -> 405833.2779 | AB165: =AB166+AB169 -> 344758.0225
C166: Σταθερή Καύση | D166: =SUM(D167:E168) -> 2750296.85 | F166: =SUM(F167:G168) -> 107013.0618 | H166: =SUM(H167:I168) -> 39506.16076 | J166: =SUM(J167:K168) -> 89105.05389 | L166: =SUM(L167:M168) -> 181986.2855 | N166: =SUM(N167:O168) -> 317007.4473 | P166: =SUM(P167:Q168) -> 194999.3093 | R166: =SUM(R167:S168) -> 301176.7876 | T166: =SUM(T167:U168) -> 447355.4321 | V166: =SUM(V167:W168) -> 100411.0002 | X166: =SUM(X167:Y168) -> 249909.2652 | Z166: =SUM(Z167:AA168) -> 391451.1508 | AB166: =SUM(AB167:AC168) -> 330375.8955
C167: Πετρέλαιο Θέρμανσης | D167: ='Υπολογισμός Αν. Απ.'!H8*Παραμετροποίηση!E21*Παραμετροποίηση!G21/3.6 -> 0 | F167: =D167*'Γενικά Στοιχεία Οργανισμού'!$F$13/SUM('Γενικά Στοιχεία Οργανισμού'!$F$13:$F$24) -> 0 | H167: =D167*'Γενικά Στοιχεία Οργανισμού'!$F$14/SUM('Γενικά Στοιχεία Οργανισμού'!$F$13:$F$24) -> 0 | J167: =D167*'Γενικά Στοιχεία Οργανισμού'!$F$15/SUM('Γενικά Στοιχεία Οργανισμού'!$F$13:$F$24) -> 0 | L167: =D167*'Γενικά Στοιχεία Οργανισμού'!$F$16/SUM('Γενικά Στοιχεία Οργανισμού'!$F$13:$F$24) -> 0 | N167: =D167*'Γενικά Στοιχεία Οργανισμού'!$F$17/SUM('Γενικά Στοιχεία Οργανισμού'!$F$13:$F$24) -> 0 | P167: =D167*'Γενικά Στοιχεία Οργανισμού'!$F$18/SUM('Γενικά Στοιχεία Οργανισμού'!$F$13:$F$24) -> 0 | R167: =D167*'Γενικά Στοιχεία Οργανισμού'!$F$19/SUM('Γενικά Στοιχεία Οργανισμού'!$F$13:$F$24) -> 0 | T167: =D167*'Γενικά Στοιχεία Οργανισμού'!$F$20/SUM('Γενικά Στοιχεία Οργανισμού'!$F$13:$F$24) -> 0 | V167: =D167*'Γενικά Στοιχεία Οργανισμού'!$F$21/SUM('Γενικά Στοιχεία Οργανισμού'!$F$13:$F$24) -> 0 | X167: =D167*'Γενικά Στοιχεία Οργανισμού'!$F$22/SUM('Γενικά Στοιχεία Οργανισμού'!$F$13:$F$24) -> 0 | Z167: =D167*'Γενικά Στοιχεία Οργανισμού'!$F$23/SUM('Γενικά Στοιχεία Οργανισμού'!$F$13:$F$24) -> 0 | AB167: =D167*'Γενικά Στοιχεία Οργανισμού'!$F$24/SUM('Γενικά Στοιχεία Οργανισμού'!$F$13:$F$24) -> 0
C168: Φυσικό Αέριο | D168: ='Υπολογισμός Αν. Απ.'!H9 -> 2750296.85 | F168: =D168*'Γενικά Στοιχεία Οργανισμού'!$F$13/SUM('Γενικά Στοιχεία Οργανισμού'!$F$13:$F$24) -> 107013.0618 | H168: =D168*'Γενικά Στοιχεία Οργανισμού'!$F$14/SUM('Γενικά Στοιχεία Οργανισμού'!$F$13:$F$24) -> 39506.16076 | J168: =D168*'Γενικά Στοιχεία Οργανισμού'!$F$15/SUM('Γενικά Στοιχεία Οργανισμού'!$F$13:$F$24) -> 89105.05389 | L168: =D168*'Γενικά Στοιχεία Οργανισμού'!$F$16/SUM('Γενικά Στοιχεία Οργανισμού'!$F$13:$F$24) -> 181986.2855 | N168: =D168*'Γενικά Στοιχεία Οργανισμού'!$F$17/SUM('Γενικά Στοιχεία Οργανισμού'!$F$13:$F$24) -> 317007.4473 | P168: =D168*'Γενικά Στοιχεία Οργανισμού'!$F$18/SUM('Γενικά Στοιχεία Οργανισμού'!$F$13:$F$24) -> 194999.3093 | R168: =D168*'Γενικά Στοιχεία Οργανισμού'!$F$19/SUM('Γενικά Στοιχεία Οργανισμού'!$F$13:$F$24) -> 301176.7876 | T168: =D168*'Γενικά Στοιχεία Οργανισμού'!$F$20/SUM('Γενικά Στοιχεία Οργανισμού'!$F$13:$F$24) -> 447355.4321 | V168: =D168*'Γενικά Στοιχεία Οργανισμού'!$F$21/SUM('Γενικά Στοιχεία Οργανισμού'!$F$13:$F$24) -> 100411.0002 | X168: =D168*'Γενικά Στοιχεία Οργανισμού'!$F$22/SUM('Γενικά Στοιχεία Οργανισμού'!$F$13:$F$24) -> 249909.2652 | Z168: =D168*'Γενικά Στοιχεία Οργανισμού'!$F$23/SUM('Γενικά Στοιχεία Οργανισμού'!$F$13:$F$24) -> 391451.1508 | AB168: =D168*'Γενικά Στοιχεία Οργανισμού'!$F$24/SUM('Γενικά Στοιχεία Οργανισμού'!$F$13:$F$24) -> 330375.8955
C169: Κινητή Καύση | D169: =SUM(D170:E171) -> 172585.5243 | F169: =SUM(F170:G171) -> 14382.12703 | H169: =SUM(H170:I171) -> 14382.12703 | J169: =SUM(J170:K171) -> 14382.12703 | L169: =SUM(L170:M171) -> 14382.12703 | N169: =SUM(N170:O171) -> 14382.12703 | P169: =SUM(P170:Q171) -> 14382.12703 | R169: =SUM(R170:S171) -> 14382.12703 | T169: =SUM(T170:U171) -> 14382.12703 | V169: =SUM(V170:W171) -> 14382.12703 | X169: =SUM(X170:Y171) -> 14382.12703 | Z169: =SUM(Z170:AA171) -> 14382.12703 | AB169: =SUM(AB170:AC171) -> 14382.12703
C170: Πετρέλαιο Κίνησης (Επιβατικό) | D170: ='Υπολογισμός Αν. Απ.'!H13*Παραμετροποίηση!E26*Παραμετροποίηση!G26/3.6 -> 123718.75 | F170: =$D$170/12 -> 10309.89583 | H170: =$D$170/12 -> 10309.89583 | J170: =$D$170/12 -> 10309.89583 | L170: =$D$170/12 -> 10309.89583 | N170: =$D$170/12 -> 10309.89583 | P170: =$D$170/12 -> 10309.89583 | R170: =$D$170/12 -> 10309.89583 | T170: =$D$170/12 -> 10309.89583 | V170: =$D$170/12 -> 10309.89583 | X170: =$D$170/12 -> 10309.89583 | Z170: =$D$170/12 -> 10309.89583 | AB170: =$D$170/12 -> 10309.89583
C171: Βενζίνη (Επιβατικό) | D171: ='Υπολογισμός Αν. Απ.'!H14*Παραμετροποίηση!E27*Παραμετροποίηση!G27/3.6 -> 48866.77431 | F171: =$D$171/12 -> 4072.231192 | H171: =$D$171/12 -> 4072.231192 | J171: =$D$171/12 -> 4072.231192 | L171: =$D$171/12 -> 4072.231192 | N171: =$D$171/12 -> 4072.231192 | P171: =$D$171/12 -> 4072.231192 | R171: =$D$171/12 -> 4072.231192 | T171: =$D$171/12 -> 4072.231192 | V171: =$D$171/12 -> 4072.231192 | X171: =$D$171/12 -> 4072.231192 | Z171: =$D$171/12 -> 4072.231192 | AB171: =$D$171/12 -> 4072.231192
C172: SCOPE 2 | D172: =D173 -> 11266091.65 | F172: =F173 -> 438359.5763 | H172: =H173 -> 161829.8141 | J172: =J173 -> 365002.6737 | L172: =L173 -> 745473.7736 | N172: =N173 -> 1298563.446 | P172: =P173 -> 798779.2628 | R172: =R173 -> 1233716.023 | T172: =T173 -> 1832510.297 | V172: =V173 -> 411315.4299 | X172: =X173 -> 1023707.927 | Z172: =Z173 -> 1603508.56 | AB172: =AB173 -> 1353324.866
C173: Εισαγόμενη Ηλεκτρική Ενέργεια | D173: ='Υπολογισμός Αν. Απ.'!E27 -> 11266091.65 | F173: =D173*'Γενικά Στοιχεία Οργανισμού'!$F$13/SUM('Γενικά Στοιχεία Οργανισμού'!$F$13:$F$24) -> 438359.5763 | H173: =D173*'Γενικά Στοιχεία Οργανισμού'!$F$14/SUM('Γενικά Στοιχεία Οργανισμού'!$F$13:$F$24) -> 161829.8141 | J173: =D173*'Γενικά Στοιχεία Οργανισμού'!$F$15/SUM('Γενικά Στοιχεία Οργανισμού'!$F$13:$F$24) -> 365002.6737 | L173: =D173*'Γενικά Στοιχεία Οργανισμού'!$F$16/SUM('Γενικά Στοιχεία Οργανισμού'!$F$13:$F$24) -> 745473.7736 | N173: =D173*'Γενικά Στοιχεία Οργανισμού'!$F$17/SUM('Γενικά Στοιχεία Οργανισμού'!$F$13:$F$24) -> 1298563.446 | P173: =D173*'Γενικά Στοιχεία Οργανισμού'!$F$18/SUM('Γενικά Στοιχεία Οργανισμού'!$F$13:$F$24) -> 798779.2628 | R173: =D173*'Γενικά Στοιχεία Οργανισμού'!$F$19/SUM('Γενικά Στοιχεία Οργανισμού'!$F$13:$F$24) -> 1233716.023 | T173: =D173*'Γενικά Στοιχεία Οργανισμού'!$F$20/SUM('Γενικά Στοιχεία Οργανισμού'!$F$13:$F$24) -> 1832510.297 | V173: =D173*'Γενικά Στοιχεία Οργανισμού'!$F$21/SUM('Γενικά Στοιχεία Οργανισμού'!$F$13:$F$24) -> 411315.4299 | X173: =D173*'Γενικά Στοιχεία Οργανισμού'!$F$22/SUM('Γενικά Στοιχεία Οργανισμού'!$F$13:$F$24) -> 1023707.927 | Z173: =D173*'Γενικά Στοιχεία Οργανισμού'!$F$23/SUM('Γενικά Στοιχεία Οργανισμού'!$F$13:$F$24) -> 1603508.56 | AB173: =D173*'Γενικά Στοιχεία Οργανισμού'!$F$24/SUM('Γενικά Στοιχεία Οργανισμού'!$F$13:$F$24) -> 1353324.866
C174: SCOPE 3 | D174: =D175+D184+D193 -> 7267900.322 | F174: =F175+F184+F193 -> 0 | H174: =H175+H184+H193 -> 0 | J174: =J175+J184+J193 -> 369596.3175 | L174: =L175+L184+L193 -> 560866.7679 | N174: =N175+N184+N193 -> 566820.7675 | P174: =P175+P184+P193 -> 910961.9478 | R174: =R175+R184+R193 -> 1480164.315 | T174: =T175+T184+T193 -> 595399.9659 | V174: =V175+V184+V193 -> 746631.5572 | X174: =X175+X184+X193 -> 566820.7675 | Z174: =Z175+Z184+Z193 -> 746631.5572 | AB174: =AB175+AB184+AB193 -> 724006.3585
C175: Μετακίνηση Φοιτητών | D175: =SUM(D176:E183) -> 2616161.071 | F175: =SUM(F176:G183) -> 0 | H175: =SUM(H176:I183) -> 0 | J175: =SUM(J176:K183) -> 0 | L175: =SUM(L176:M183) -> 212707.0368 | N175: =SUM(N176:O183) -> 214965.0733 | P175: =SUM(P176:Q183) -> 345479.5821 | R175: =SUM(R176:S183) -> 561347.87 | T175: =SUM(T176:U183) -> 225803.6484 | V175: =SUM(V176:W183) -> 283157.7751 | X175: =SUM(X176:Y183) -> 214965.0733 | Z175: =SUM(Z176:AA183) -> 283157.7751 | AB175: =SUM(AB176:AC183) -> 274577.2365
C176: Πετρέλαιο Κίνησης (Επιβατικό) | D176: ='Υπολογισμός Αν. Απ.'!H31*Παραμετροποίηση!E26*Παραμετροποίηση!G26/3.6 -> 158805.3875 | F176: 0 | H176: 0 | J176: 0 | L176: =D176*'Γενικά Στοιχεία Οργανισμού'!$D$16/SUM('Γενικά Στοιχεία Οργανισμού'!$D$13:$D$24) -> 12911.67573 | N176: =D176*'Γενικά Στοιχεία Οργανισμού'!$D$17/SUM('Γενικά Στοιχεία Οργανισμού'!$D$13:$D$24) -> 13048.74235 | P176: =D176*'Γενικά Στοιχεία Οργανισμού'!$D$18/SUM('Γενικά Στοιχεία Οργανισμού'!$D$13:$D$24) -> 20971.19307 | R176: =D176*'Γενικά Στοιχεία Οργανισμού'!$D$19/SUM('Γενικά Στοιχεία Οργανισμού'!$D$13:$D$24) -> 34074.76207 | T176: =D176*'Γενικά Στοιχεία Οργανισμού'!$D$20/SUM('Γενικά Στοιχεία Οργανισμού'!$D$13:$D$24) -> 13706.66214 | V176: =D176*'Γενικά Στοιχεία Οργανισμού'!$D$21/SUM('Γενικά Στοιχεία Οργανισμού'!$D$13:$D$24) -> 17188.15432 | X176: =D176*'Γενικά Στοιχεία Οργανισμού'!$D$22/SUM('Γενικά Στοιχεία Οργανισμού'!$D$13:$D$24) -> 13048.74235 | Z176: =D176*'Γενικά Στοιχεία Οργανισμού'!$D$23/SUM('Γενικά Στοιχεία Οργανισμού'!$D$13:$D$24) -> 17188.15432 | AB176: =D176*'Γενικά Στοιχεία Οργανισμού'!$D$24/SUM('Γενικά Στοιχεία Οργανισμού'!$D$13:$D$24) -> 16667.30116
C177: Βενζίνη (Επιβατικό) | D177: ='Υπολογισμός Αν. Απ.'!H32*Παραμετροποίηση!E27*Παραμετροποίηση!G27/3.6 -> 1428597.935 | F177: 0 | H177: 0 | J177: 0 | L177: =D177*'Γενικά Στοιχεία Οργανισμού'!$D$16/SUM('Γενικά Στοιχεία Οργανισμού'!$D$13:$D$24) -> 116152.1884 | N177: =D177*'Γενικά Στοιχεία Οργανισμού'!$D$17/SUM('Γενικά Στοιχεία Οργανισμού'!$D$13:$D$24) -> 117385.2265 | P177: =D177*'Γενικά Στοιχεία Οργανισμού'!$D$18/SUM('Γενικά Στοιχεία Οργανισμού'!$D$13:$D$24) -> 188654.8282 | R177: =D177*'Γενικά Στοιχεία Οργανισμού'!$D$19/SUM('Γενικά Στοιχεία Οργανισμού'!$D$13:$D$24) -> 306533.2699 | T177: =D177*'Γενικά Στοιχεία Οργανισμού'!$D$20/SUM('Γενικά Στοιχεία Οργανισμού'!$D$13:$D$24) -> 123303.8093 | V177: =D177*'Γενικά Στοιχεία Οργανισμού'!$D$21/SUM('Γενικά Στοιχεία Οργανισμού'!$D$13:$D$24) -> 154622.9769 | X177: =D177*'Γενικά Στοιχεία Οργανισμού'!$D$22/SUM('Γενικά Στοιχεία Οργανισμού'!$D$13:$D$24) -> 117385.2265 | Z177: =D177*'Γενικά Στοιχεία Οργανισμού'!$D$23/SUM('Γενικά Στοιχεία Οργανισμού'!$D$13:$D$24) -> 154622.9769 | AB177: =D177*'Γενικά Στοιχεία Οργανισμού'!$D$24/SUM('Γενικά Στοιχεία Οργανισμού'!$D$13:$D$24) -> 149937.4321
C178: Βενζίνη (Μοτοσυκλέτα) | D178: ='Υπολογισμός Αν. Απ.'!H33*Παραμετροποίηση!E30*Παραμετροποίηση!G30/3.6 -> 328820.0819 | F178: 0 | H178: 0 | J178: 0 | L178: =D178*'Γενικά Στοιχεία Οργανισμού'!$D$16/SUM('Γενικά Στοιχεία Οργανισμού'!$D$13:$D$24) -> 26734.72442 | N178: =D178*'Γενικά Στοιχεία Οργανισμού'!$D$17/SUM('Γενικά Στοιχεία Οργανισμού'!$D$13:$D$24) -> 27018.53253 | P178: =D178*'Γενικά Στοιχεία Οργανισμού'!$D$18/SUM('Γενικά Στοιχεία Οργανισμού'!$D$13:$D$24) -> 43422.64157 | R178: =D178*'Γενικά Στοιχεία Οργανισμού'!$D$19/SUM('Γενικά Στοιχεία Οργανισμού'!$D$13:$D$24) -> 70554.69735 | T178: =D178*'Γενικά Στοιχεία Οργανισμού'!$D$20/SUM('Γενικά Στοιχεία Οργανισμού'!$D$13:$D$24) -> 28380.81149 | V178: =D178*'Γενικά Στοιχεία Οργανισμού'!$D$21/SUM('Γενικά Στοιχεία Οργανισμού'!$D$13:$D$24) -> 35589.5376 | X178: =D178*'Γενικά Στοιχεία Οργανισμού'!$D$22/SUM('Γενικά Στοιχεία Οργανισμού'!$D$13:$D$24) -> 27018.53253 | Z178: =D178*'Γενικά Στοιχεία Οργανισμού'!$D$23/SUM('Γενικά Στοιχεία Οργανισμού'!$D$13:$D$24) -> 35589.5376 | AB178: =D178*'Γενικά Στοιχεία Οργανισμού'!$D$24/SUM('Γενικά Στοιχεία Οργανισμού'!$D$13:$D$24) -> 34511.06677
C179: Πετρέλαιο Κινησης (Λεωφορείο | D179: ='Υπολογισμός Αν. Απ.'!H34*Παραμετροποίηση!E31/3.6 -> 97762.33333 | F179: 0 | H179: 0 | J179: 0 | L179: =D179*'Γενικά Στοιχεία Οργανισμού'!$D$16/SUM('Γενικά Στοιχεία Οργανισμού'!$D$13:$D$24) -> 7948.56879 | N179: =D179*'Γενικά Στοιχεία Οργανισμού'!$D$17/SUM('Γενικά Στοιχεία Οργανισμού'!$D$13:$D$24) -> 8032.948501 | P179: =D179*'Γενικά Στοιχεία Οργανισμού'!$D$18/SUM('Γενικά Στοιχεία Οργανισμού'!$D$13:$D$24) -> 12910.09581 | R179: =D179*'Γενικά Στοιχεία Οργανισμού'!$D$19/SUM('Γενικά Στοιχεία Οργανισμού'!$D$13:$D$24) -> 20976.79619 | T179: =D179*'Γενικά Στοιχεία Οργανισμού'!$D$20/SUM('Γενικά Στοιχεία Οργανισμού'!$D$13:$D$24) -> 8437.971115 | V179: =D179*'Γενικά Στοιχεία Οργανισμού'!$D$21/SUM('Γενικά Στοιχεία Οργανισμού'!$D$13:$D$24) -> 10581.21578 | X179: =D179*'Γενικά Στοιχεία Οργανισμού'!$D$22/SUM('Γενικά Στοιχεία Οργανισμού'!$D$13:$D$24) -> 8032.948501 | Z179: =D179*'Γενικά Στοιχεία Οργανισμού'!$D$23/SUM('Γενικά Στοιχεία Οργανισμού'!$D$13:$D$24) -> 10581.21578 | AB179: =D179*'Γενικά Στοιχεία Οργανισμού'!$D$24/SUM('Γενικά Στοιχεία Οργανισμού'!$D$13:$D$24) -> 10260.57288
C180: Φυσικό Αέριο Κινησης (Λεωφορείο | D180: ='Υπολογισμός Αν. Απ.'!H35*Παραμετροποίηση!E32/3.6 -> 19373.33333 | F180: 0 | H180: 0 | J180: 0 | L180: =D180*'Γενικά Στοιχεία Οργανισμού'!$D$16/SUM('Γενικά Στοιχεία Οργανισμού'!$D$13:$D$24) -> 1575.149318 | N180: =D180*'Γενικά Στοιχεία Οργανισμού'!$D$17/SUM('Γενικά Στοιχεία Οργανισμού'!$D$13:$D$24) -> 1591.870648 | P180: =D180*'Γενικά Στοιχεία Οργανισμού'!$D$18/SUM('Γενικά Στοιχεία Οργανισμού'!$D$13:$D$24) -> 2558.363542 | R180: =D180*'Γενικά Στοιχεία Οργανισμού'!$D$19/SUM('Γενικά Στοιχεία Οργανισμού'!$D$13:$D$24) -> 4156.922723 | T180: =D180*'Γενικά Στοιχεία Οργανισμού'!$D$20/SUM('Γενικά Στοιχεία Οργανισμού'!$D$13:$D$24) -> 1672.133034 | V180: =D180*'Γενικά Στοιχεία Οργανισμού'!$D$21/SUM('Γενικά Στοιχεία Οργανισμού'!$D$13:$D$24) -> 2096.854825 | X180: =D180*'Γενικά Στοιχεία Οργανισμού'!$D$22/SUM('Γενικά Στοιχεία Οργανισμού'!$D$13:$D$24) -> 1591.870648 | Z180: =D180*'Γενικά Στοιχεία Οργανισμού'!$D$23/SUM('Γενικά Στοιχεία Οργανισμού'!$D$13:$D$24) -> 2096.854825 | AB180: =D180*'Γενικά Στοιχεία Οργανισμού'!$D$24/SUM('Γενικά Στοιχεία Οργανισμού'!$D$13:$D$24) -> 2033.313769
C181: Ηλεκτρική Ενέργεια (Επιβατικό) | D181: ='Υπολογισμός Αν. Απ.'!H36 -> 3808 | F181: 0 | H181: 0 | J181: 0 | L181: =D181*'Γενικά Στοιχεία Οργανισμού'!$D$16/SUM('Γενικά Στοιχεία Οργανισμού'!$D$13:$D$24) -> 309.6095287 | N181: =D181*'Γενικά Στοιχεία Οργανισμού'!$D$17/SUM('Γενικά Στοιχεία Οργανισμού'!$D$13:$D$24) -> 312.8962541 | P181: =D181*'Γενικά Στοιχεία Οργανισμού'!$D$18/SUM('Γενικά Στοιχεία Οργανισμού'!$D$13:$D$24) -> 502.8689798 | R181: =D181*'Γενικά Στοιχεία Οργανισμού'!$D$19/SUM('Γενικά Στοιχεία Οργανισμού'!$D$13:$D$24) -> 817.079924 | T181: =D181*'Γενικά Στοιχεία Οργανισμού'!$D$20/SUM('Γενικά Στοιχεία Οργανισμού'!$D$13:$D$24) -> 328.6725358 | V181: =D181*'Γενικά Στοιχεία Οργανισμού'!$D$21/SUM('Γενικά Στοιχεία Οργανισμού'!$D$13:$D$24) -> 412.1553599 | X181: =D181*'Γενικά Στοιχεία Οργανισμού'!$D$22/SUM('Γενικά Στοιχεία Οργανισμού'!$D$13:$D$24) -> 312.8962541 | Z181: =D181*'Γενικά Στοιχεία Οργανισμού'!$D$23/SUM('Γενικά Στοιχεία Οργανισμού'!$D$13:$D$24) -> 412.1553599 | AB181: =D181*'Γενικά Στοιχεία Οργανισμού'!$D$24/SUM('Γενικά Στοιχεία Οργανισμού'!$D$13:$D$24) -> 399.6658036
C182: Ηλεκτρική Ενέργεια (Λεωφορείο / Τρόλεϊ) | D182: ='Υπολογισμός Αν. Απ.'!H37 -> 6986 | F182: 0 | H182: 0 | J182: 0 | L182: =D182*'Γενικά Στοιχεία Οργανισμού'!$D$16/SUM('Γενικά Στοιχεία Οργανισμού'!$D$13:$D$24) -> 567.9968928 | N182: =D182*'Γενικά Στοιχεία Οργανισμού'!$D$17/SUM('Γενικά Στοιχεία Οργανισμού'!$D$13:$D$24) -> 574.0265838 | P182: =D182*'Γενικά Στοιχεία Οργανισμού'!$D$18/SUM('Γενικά Στοιχεία Οργανισμού'!$D$13:$D$24) -> 922.542724 | R182: =D182*'Γενικά Στοιχεία Οργανισμού'!$D$19/SUM('Γενικά Στοιχεία Οργανισμού'!$D$13:$D$24) -> 1498.981184 | T182: =D182*'Γενικά Στοιχεία Οργανισμού'!$D$20/SUM('Γενικά Στοιχεία Οργανισμού'!$D$13:$D$24) -> 602.9691006 | V182: =D182*'Γενικά Στοιχεία Οργανισμού'!$D$21/SUM('Γενικά Στοιχεία Οργανισμού'!$D$13:$D$24) -> 756.1232522 | X182: =D182*'Γενικά Στοιχεία Οργανισμού'!$D$22/SUM('Γενικά Στοιχεία Οργανισμού'!$D$13:$D$24) -> 574.0265838 | Z182: =D182*'Γενικά Στοιχεία Οργανισμού'!$D$23/SUM('Γενικά Στοιχεία Οργανισμού'!$D$13:$D$24) -> 756.1232522 | AB182: =D182*'Γενικά Στοιχεία Οργανισμού'!$D$24/SUM('Γενικά Στοιχεία Οργανισμού'!$D$13:$D$24) -> 733.2104264
C183: Ηλεκτρική Ενέργεια (Συρμοί) | D183: ='Υπολογισμός Αν. Απ.'!H38 -> 572008 | F183: 0 | H183: 0 | J183: 0 | L183: =D183*'Γενικά Στοιχεία Οργανισμού'!$D$16/SUM('Γενικά Στοιχεία Οργανισμού'!$D$13:$D$24) -> 46507.12377 | N183: =D183*'Γενικά Στοιχεία Οργανισμού'!$D$17/SUM('Γενικά Στοιχεία Οργανισμού'!$D$13:$D$24) -> 47000.82997 | P183: =D183*'Γενικά Στοιχεία Οργανισμού'!$D$18/SUM('Γενικά Στοιχεία Οργανισμού'!$D$13:$D$24) -> 75537.04816 | R183: =D183*'Γενικά Στοιχεία Οργανισμού'!$D$19/SUM('Γενικά Στοιχεία Οργανισμού'!$D$13:$D$24) -> 122735.3606 | T183: =D183*'Γενικά Στοιχεία Οργανισμού'!$D$20/SUM('Γενικά Στοιχεία Οργανισμού'!$D$13:$D$24) -> 49370.61971 | V183: =D183*'Γενικά Στοιχεία Οργανισμού'!$D$21/SUM('Γενικά Στοιχεία Οργανισμού'!$D$13:$D$24) -> 61910.75712 | X183: =D183*'Γενικά Στοιχεία Οργανισμού'!$D$22/SUM('Γενικά Στοιχεία Οργανισμού'!$D$13:$D$24) -> 47000.82997 | Z183: =D183*'Γενικά Στοιχεία Οργανισμού'!$D$23/SUM('Γενικά Στοιχεία Οργανισμού'!$D$13:$D$24) -> 61910.75712 | AB183: =D183*'Γενικά Στοιχεία Οργανισμού'!$D$24/SUM('Γενικά Στοιχεία Οργανισμού'!$D$13:$D$24) -> 60034.67357
C184: Μετακίνηση Υπαλλήλων | D184: =SUM(D185:E192) -> 2744669.078 | F184: =SUM(F185:G192) -> 0 | H184: =SUM(H185:I192) -> 0 | J184: =SUM(J185:K192) -> 218073.1828 | L184: =SUM(L185:M192) -> 205424.9382 | N184: =SUM(N185:O192) -> 207605.67 | P184: =SUM(P185:Q192) -> 333651.9696 | R184: =SUM(R185:S192) -> 542129.9323 | T184: =SUM(T185:U192) -> 218073.1828 | V184: =SUM(V185:W192) -> 273463.7712 | X184: =SUM(X185:Y192) -> 207605.67 | Z184: =SUM(Z185:AA192) -> 273463.7712 | AB184: =SUM(AB185:AC192) -> 265176.9902
C185: Πετρέλαιο Κίνησης (Επιβατικό) | D185: ='Υπολογισμός Αν. Απ.'!H42*Παραμετροποίηση!E26*Παραμετροποίηση!G26/3.6 -> 237262.87 | F185: 0 | H185: 0 | J185: =D185*'Γενικά Στοιχεία Οργανισμού'!$D$9/SUM('Γενικά Στοιχεία Οργανισμού'!$D$13:$D$24,'Γενικά Στοιχεία Οργανισμού'!$D$9) -> 18851.33243 | L185: =D185*'Γενικά Στοιχεία Οργανισμού'!$D$16/SUM('Γενικά Στοιχεία Οργανισμού'!$D$13:$D$24,'Γενικά Στοιχεία Οργανισμού'!$D$9) -> 17757.95515 | N185: =D185*'Γενικά Στοιχεία Οργανισμού'!$D$17/SUM('Γενικά Στοιχεία Οργανισμού'!$D$13:$D$24,'Γενικά Στοιχεία Οργανισμού'!$D$9) -> 17946.46848 | P185: =D185*'Γενικά Στοιχεία Οργανισμού'!$D$18/SUM('Γενικά Στοιχεία Οργανισμού'!$D$13:$D$24,'Γενικά Στοιχεία Οργανισμού'!$D$9) -> 28842.53862 | R185: =D185*'Γενικά Στοιχεία Οργανισμού'!$D$19/SUM('Γενικά Στοιχεία Οργανισμού'!$D$13:$D$24,'Γενικά Στοιχεία Οργανισμού'!$D$9) -> 46864.41243 | T185: =D185*'Γενικά Στοιχεία Οργανισμού'!$D$20/SUM('Γενικά Στοιχεία Οργανισμού'!$D$13:$D$24,'Γενικά Στοιχεία Οργανισμού'!$D$9) -> 18851.33243 | V185: =D185*'Γενικά Στοιχεία Οργανισμού'!$D$21/SUM('Γενικά Στοιχεία Οργανισμού'!$D$13:$D$24,'Γενικά Στοιχεία Οργανισμού'!$D$9) -> 23639.57087 | X185: =D185*'Γενικά Στοιχεία Οργανισμού'!$D$22/SUM('Γενικά Στοιχεία Οργανισμού'!$D$13:$D$24,'Γενικά Στοιχεία Οργανισμού'!$D$9) -> 17946.46848 | Z185: =D185*'Γενικά Στοιχεία Οργανισμού'!$D$23/SUM('Γενικά Στοιχεία Οργανισμού'!$D$13:$D$24,'Γενικά Στοιχεία Οργανισμού'!$D$9) -> 23639.57087 | AB185: =D185*'Γενικά Στοιχεία Οργανισμού'!$D$24/SUM('Γενικά Στοιχεία Οργανισμού'!$D$13:$D$24,'Γενικά Στοιχεία Οργανισμού'!$D$9) -> 22923.22024
C186: Βενζίνη (Επιβατικό) | D186: ='Υπολογισμός Αν. Απ.'!H43*Παραμετροποίηση!E27*Παραμετροποίηση!G27/3.6 -> 2124540.765 | F186: 0 | H186: 0 | J186: =D186*'Γενικά Στοιχεία Οργανισμού'!$D$9/SUM('Γενικά Στοιχεία Οργανισμού'!$D$13:$D$24,'Γενικά Στοιχεία Οργανισμού'!$D$9) -> 168801.9041 | L186: =D186*'Γενικά Στοιχεία Οργανισμού'!$D$16/SUM('Γενικά Στοιχεία Οργανισμού'!$D$13:$D$24,'Γενικά Στοιχεία Οργανισμού'!$D$9) -> 159011.3936 | N186: =D186*'Γενικά Στοιχεία Οργανισμού'!$D$17/SUM('Γενικά Στοιχεία Οργανισμού'!$D$13:$D$24,'Γενικά Στοιχεία Οργανισμού'!$D$9) -> 160699.4127 | P186: =D186*'Γενικά Στοιχεία Οργανισμού'!$D$18/SUM('Γενικά Στοιχεία Οργανισμού'!$D$13:$D$24,'Γενικά Στοιχεία Οργανισμού'!$D$9) -> 258266.9132 | R186: =D186*'Γενικά Στοιχεία Οργανισμού'!$D$19/SUM('Γενικά Στοιχεία Οργανισμού'!$D$13:$D$24,'Γενικά Στοιχεία Οργανισμού'!$D$9) -> 419641.5335 | T186: =D186*'Γενικά Στοιχεία Οργανισμού'!$D$20/SUM('Γενικά Στοιχεία Οργανισμού'!$D$13:$D$24,'Γενικά Στοιχεία Οργανισμού'!$D$9) -> 168801.9041 | V186: =D186*'Γενικά Στοιχεία Οργανισμού'!$D$21/SUM('Γενικά Στοιχεία Οργανισμού'!$D$13:$D$24,'Γενικά Στοιχεία Οργανισμού'!$D$9) -> 211677.5877 | X186: =D186*'Γενικά Στοιχεία Οργανισμού'!$D$22/SUM('Γενικά Στοιχεία Οργανισμού'!$D$13:$D$24,'Γενικά Στοιχεία Οργανισμού'!$D$9) -> 160699.4127 | Z186: =D186*'Γενικά Στοιχεία Οργανισμού'!$D$23/SUM('Γενικά Στοιχεία Οργανισμού'!$D$13:$D$24,'Γενικά Στοιχεία Οργανισμού'!$D$9) -> 211677.5877 | AB186: =D186*'Γενικά Στοιχεία Οργανισμού'!$D$24/SUM('Γενικά Στοιχεία Οργανισμού'!$D$13:$D$24,'Γενικά Στοιχεία Οργανισμού'!$D$9) -> 205263.1153
C187: Βενζίνη (Μοτοσυκλέτα) | D187: ='Υπολογισμός Αν. Απ.'!H44*Παραμετροποίηση!E30*Παραμετροποίηση!G30/3.6 -> 271059.5546 | F187: 0 | H187: 0 | J187: =D187*'Γενικά Στοιχεία Οργανισμού'!$D$9/SUM('Γενικά Στοιχεία Οργανισμού'!$D$13:$D$24,'Γενικά Στοιχεία Οργανισμού'!$D$9) -> 21536.59261 | L187: =D187*'Γενικά Στοιχεία Οργανισμού'!$D$16/SUM('Γενικά Στοιχεία Οργανισμού'!$D$13:$D$24,'Γενικά Στοιχεία Οργανισμού'!$D$9) -> 20287.47024 | N187: =D187*'Γενικά Στοιχεία Οργανισμού'!$D$17/SUM('Γενικά Στοιχεία Οργανισμού'!$D$13:$D$24,'Γενικά Στοιχεία Οργανισμού'!$D$9) -> 20502.83617 | P187: =D187*'Γενικά Στοιχεία Οργανισμού'!$D$18/SUM('Γενικά Στοιχεία Οργανισμού'!$D$13:$D$24,'Γενικά Στοιχεία Οργανισμού'!$D$9) -> 32950.9867 | R187: =D187*'Γενικά Στοιχεία Οργανισμού'!$D$19/SUM('Γενικά Στοιχεία Οργανισμού'!$D$13:$D$24,'Γενικά Στοιχεία Οργανισμού'!$D$9) -> 53539.96924 | T187: =D187*'Γενικά Στοιχεία Οργανισμού'!$D$20/SUM('Γενικά Στοιχεία Οργανισμού'!$D$13:$D$24,'Γενικά Στοιχεία Οργανισμού'!$D$9) -> 21536.59261 | V187: =D187*'Γενικά Στοιχεία Οργανισμού'!$D$21/SUM('Γενικά Στοιχεία Οργανισμού'!$D$13:$D$24,'Γενικά Στοιχεία Οργανισμού'!$D$9) -> 27006.88714 | X187: =D187*'Γενικά Στοιχεία Οργανισμού'!$D$22/SUM('Γενικά Στοιχεία Οργανισμού'!$D$13:$D$24,'Γενικά Στοιχεία Οργανισμού'!$D$9) -> 20502.83617 | Z187: =D187*'Γενικά Στοιχεία Οργανισμού'!$D$23/SUM('Γενικά Στοιχεία Οργανισμού'!$D$13:$D$24,'Γενικά Στοιχεία Οργανισμού'!$D$9) -> 27006.88714 | AB187: =D187*'Γενικά Στοιχεία Οργανισμού'!$D$24/SUM('Γενικά Στοιχεία Οργανισμού'!$D$13:$D$24,'Γενικά Στοιχεία Οργανισμού'!$D$9) -> 26188.49662
C188: Πετρέλαιο Κινησης (Λεωφορείο | D188: ='Υπολογισμός Αν. Απ.'!H45*Παραμετροποίηση!E31/3.6 -> 14920.55556 | F188: 0 | H188: 0 | J188: =D188*'Γενικά Στοιχεία Οργανισμού'!$D$9/SUM('Γενικά Στοιχεία Οργανισμού'!$D$13:$D$24,'Γενικά Στοιχεία Οργανισμού'!$D$9) -> 1185.488285 | L188: =D188*'Γενικά Στοιχεία Οργανισμού'!$D$16/SUM('Γενικά Στοιχεία Οργανισμού'!$D$13:$D$24,'Γενικά Στοιχεία Οργανισμού'!$D$9) -> 1116.729965 | N188: =D188*'Γενικά Στοιχεία Οργανισμού'!$D$17/SUM('Γενικά Στοιχεία Οργανισμού'!$D$13:$D$24,'Γενικά Στοιχεία Οργανισμού'!$D$9) -> 1128.584847 | P188: =D188*'Γενικά Στοιχεία Οργανισμού'!$D$18/SUM('Γενικά Στοιχεία Οργανισμού'!$D$13:$D$24,'Γενικά Στοιχεία Οργανισμού'!$D$9) -> 1813.797076 | R188: =D188*'Γενικά Στοιχεία Οργανισμού'!$D$19/SUM('Γενικά Στοιχεία Οργανισμού'!$D$13:$D$24,'Γενικά Στοιχεία Οργανισμού'!$D$9) -> 2947.123877 | T188: =D188*'Γενικά Στοιχεία Οργανισμού'!$D$20/SUM('Γενικά Στοιχεία Οργανισμού'!$D$13:$D$24,'Γενικά Στοιχεία Οργανισμού'!$D$9) -> 1185.488285 | V188: =D188*'Γενικά Στοιχεία Οργανισμού'!$D$21/SUM('Γενικά Στοιχεία Οργανισμού'!$D$13:$D$24,'Γενικά Στοιχεία Οργανισμού'!$D$9) -> 1486.602309 | X188: =D188*'Γενικά Στοιχεία Οργανισμού'!$D$22/SUM('Γενικά Στοιχεία Οργανισμού'!$D$13:$D$24,'Γενικά Στοιχεία Οργανισμού'!$D$9) -> 1128.584847 | Z188: =D188*'Γενικά Στοιχεία Οργανισμού'!$D$23/SUM('Γενικά Στοιχεία Οργανισμού'!$D$13:$D$24,'Γενικά Στοιχεία Οργανισμού'!$D$9) -> 1486.602309 | AB188: =D188*'Γενικά Στοιχεία Οργανισμού'!$D$24/SUM('Γενικά Στοιχεία Οργανισμού'!$D$13:$D$24,'Γενικά Στοιχεία Οργανισμού'!$D$9) -> 1441.553755
C189: Φυσικό Αέριο Κινησης (Λεωφορείο | D189: ='Υπολογισμός Αν. Απ.'!H46*Παραμετροποίηση!E32/3.6 -> 2933.333333 | F189: 0 | H189: 0 | J189: =D189*'Γενικά Στοιχεία Οργανισμού'!$D$9/SUM('Γενικά Στοιχεία Οργανισμού'!$D$13:$D$24,'Γενικά Στοιχεία Οργανισμού'!$D$9) -> 233.0631919 | L189: =D189*'Γενικά Στοιχεία Οργανισμού'!$D$16/SUM('Γενικά Στοιχεία Οργανισμού'!$D$13:$D$24,'Γενικά Στοιχεία Οργανισμού'!$D$9) -> 219.5455268 | N189: =D189*'Γενικά Στοιχεία Οργανισμού'!$D$17/SUM('Γενικά Στοιχεία Οργανισμού'!$D$13:$D$24,'Γενικά Στοιχεία Οργανισμού'!$D$9) -> 221.8761587 | P189: =D189*'Γενικά Στοιχεία Οργανισμού'!$D$18/SUM('Γενικά Στοιχεία Οργανισμού'!$D$13:$D$24,'Γενικά Στοιχεία Οργανισμού'!$D$9) -> 356.5866836 | R189: =D189*'Γενικά Στοιχεία Οργανισμού'!$D$19/SUM('Γενικά Στοιχεία Οργανισμού'!$D$13:$D$24,'Γενικά Στοιχεία Οργανισμού'!$D$9) -> 579.3950951 | T189: =D189*'Γενικά Στοιχεία Οργανισμού'!$D$20/SUM('Γενικά Στοιχεία Οργανισμού'!$D$13:$D$24,'Γενικά Στοιχεία Οργανισμού'!$D$9) -> 233.0631919 | V189: =D189*'Γενικά Στοιχεία Οργανισμού'!$D$21/SUM('Γενικά Στοιχεία Οργανισμού'!$D$13:$D$24,'Γενικά Στοιχεία Οργανισμού'!$D$9) -> 292.2612427 | X189: =D189*'Γενικά Στοιχεία Οργανισμού'!$D$22/SUM('Γενικά Στοιχεία Οργανισμού'!$D$13:$D$24,'Γενικά Στοιχεία Οργανισμού'!$D$9) -> 221.8761587 | Z189: =D189*'Γενικά Στοιχεία Οργανισμού'!$D$23/SUM('Γενικά Στοιχεία Οργανισμού'!$D$13:$D$24,'Γενικά Στοιχεία Οργανισμού'!$D$9) -> 292.2612427 | AB189: =D189*'Γενικά Στοιχεία Οργανισμού'!$D$24/SUM('Γενικά Στοιχεία Οργανισμού'!$D$13:$D$24,'Γενικά Στοιχεία Οργανισμού'!$D$9) -> 283.4048414
C190: Ηλεκτρική Ενέργεια (Επιβατικό) | D190: ='Υπολογισμός Αν. Απ.'!H47 -> 5584 | F190: 0 | H190: 0 | J190: =D190*'Γενικά Στοιχεία Οργανισμού'!$D$9/SUM('Γενικά Στοιχεία Οργανισμού'!$D$13:$D$24,'Γενικά Στοιχεία Οργανισμού'!$D$9) -> 443.6675671 | L190: =D190*'Γενικά Στοιχεία Οργανισμού'!$D$16/SUM('Γενικά Στοιχεία Οργανισμού'!$D$13:$D$24,'Γενικά Στοιχεία Οργανισμού'!$D$9) -> 417.9348482 | N190: =D190*'Γενικά Στοιχεία Οργανισμού'!$D$17/SUM('Γενικά Στοιχεία Οργανισμού'!$D$13:$D$24,'Γενικά Στοιχεία Οργανισμού'!$D$9) -> 422.3715239 | P190: =D190*'Γενικά Στοιχεία Οργανισμού'!$D$18/SUM('Γενικά Στοιχεία Οργανισμού'!$D$13:$D$24,'Γενικά Στοιχεία Οργανισμού'!$D$9) -> 678.8113777 | R190: =D190*'Γενικά Στοιχεία Οργανισμού'!$D$19/SUM('Γενικά Στοιχεία Οργανισμού'!$D$13:$D$24,'Γενικά Στοιχεία Οργανισμού'!$D$9) -> 1102.957572 | T190: =D190*'Γενικά Στοιχεία Οργανισμού'!$D$20/SUM('Γενικά Στοιχεία Οργανισμού'!$D$13:$D$24,'Γενικά Στοιχεία Οργανισμού'!$D$9) -> 443.6675671 | V190: =D190*'Γενικά Στοιχεία Οργανισμού'!$D$21/SUM('Γενικά Στοιχεία Οργανισμού'!$D$13:$D$24,'Γενικά Στοιχεία Οργανισμού'!$D$9) -> 556.3591292 | X190: =D190*'Γενικά Στοιχεία Οργανισμού'!$D$22/SUM('Γενικά Στοιχεία Οργανισμού'!$D$13:$D$24,'Γενικά Στοιχεία Οργανισμού'!$D$9) -> 422.3715239 | Z190: =D190*'Γενικά Στοιχεία Οργανισμού'!$D$23/SUM('Γενικά Στοιχεία Οργανισμού'!$D$13:$D$24,'Γενικά Στοιχεία Οργανισμού'!$D$9) -> 556.3591292 | AB190: =D190*'Γενικά Στοιχεία Οργανισμού'!$D$24/SUM('Γενικά Στοιχεία Οργανισμού'!$D$13:$D$24,'Γενικά Στοιχεία Οργανισμού'!$D$9) -> 539.4997616
C191: Ηλεκτρική Ενέργεια (Λεωφορείο / Τρόλεϊ) | D191: ='Υπολογισμός Αν. Απ.'!H48 -> 1068 | F191: 0 | H191: 0 | J191: =D191*'Γενικά Στοιχεία Οργανισμού'!$D$9/SUM('Γενικά Στοιχεία Οργανισμού'!$D$13:$D$24,'Γενικά Στοιχεία Οργανισμού'!$D$9) -> 84.85618942 | L191: =D191*'Γενικά Στοιχεία Οργανισμού'!$D$16/SUM('Γενικά Στοιχεία Οργανισμού'!$D$13:$D$24,'Γενικά Στοιχεία Οργανισμού'!$D$9) -> 79.93453043 | N191: =D191*'Γενικά Στοιχεία Οργανισμού'!$D$17/SUM('Γενικά Στοιχεία Οργανισμού'!$D$13:$D$24,'Γενικά Στοιχεία Οργανισμού'!$D$9) -> 80.78309232 | P191: =D191*'Γενικά Στοιχεία Οργανισμού'!$D$18/SUM('Γενικά Στοιχεία Οργανισμού'!$D$13:$D$24,'Γενικά Στοιχεία Οργανισμού'!$D$9) -> 129.8299698 | R191: =D191*'Γενικά Στοιχεία Οργανισμού'!$D$19/SUM('Γενικά Στοιχεία Οργανισμού'!$D$13:$D$24,'Γενικά Στοιχεία Οργανισμού'!$D$9) -> 210.9524869 | T191: =D191*'Γενικά Στοιχεία Οργανισμού'!$D$20/SUM('Γενικά Στοιχεία Οργανισμού'!$D$13:$D$24,'Γενικά Στοιχεία Οργανισμού'!$D$9) -> 84.85618942 | V191: =D191*'Γενικά Στοιχεία Οργανισμού'!$D$21/SUM('Γενικά Στοιχεία Οργανισμού'!$D$13:$D$24,'Γενικά Στοιχεία Οργανισμού'!$D$9) -> 106.4096615 | X191: =D191*'Γενικά Στοιχεία Οργανισμού'!$D$22/SUM('Γενικά Στοιχεία Οργανισμού'!$D$13:$D$24,'Γενικά Στοιχεία Οργανισμού'!$D$9) -> 80.78309232 | Z191: =D191*'Γενικά Στοιχεία Οργανισμού'!$D$23/SUM('Γενικά Στοιχεία Οργανισμού'!$D$13:$D$24,'Γενικά Στοιχεία Οργανισμού'!$D$9) -> 106.4096615 | AB191: =D191*'Γενικά Στοιχεία Οργανισμού'!$D$24/SUM('Γενικά Στοιχεία Οργανισμού'!$D$13:$D$24,'Γενικά Στοιχεία Οργανισμού'!$D$9) -> 103.1851263
C192: Ηλεκτρική Ενέργεια (Συρμοί) | D192: ='Υπολογισμός Αν. Απ.'!H49 -> 87300 | F192: 0 | H192: 0 | J192: =D192*'Γενικά Στοιχεία Οργανισμού'!$D$9/SUM('Γενικά Στοιχεία Οργανισμού'!$D$13:$D$24,'Γενικά Στοιχεία Οργανισμού'!$D$9) -> 6936.278405 | L192: =D192*'Γενικά Στοιχεία Οργανισμού'!$D$16/SUM('Γενικά Στοιχεία Οργανισμού'!$D$13:$D$24,'Γενικά Στοιχεία Οργανισμού'!$D$9) -> 6533.974257 | N192: =D192*'Γενικά Στοιχεία Οργανισμού'!$D$17/SUM('Γενικά Στοιχεία Οργανισμού'!$D$13:$D$24,'Γενικά Στοιχεία Οργανισμού'!$D$9) -> 6603.337041 | P192: =D192*'Γενικά Στοιχεία Οργανισμού'!$D$18/SUM('Γενικά Στοιχεία Οργανισμού'!$D$13:$D$24,'Γενικά Στοιχεία Οργανισμού'!$D$9) -> 10612.50596 | R192: =D192*'Γενικά Στοιχεία Οργανισμού'!$D$19/SUM('Γενικά Στοιχεία Οργανισμού'!$D$13:$D$24,'Γενικά Στοιχεία Οργανισμού'!$D$9) -> 17243.58811 | T192: =D192*'Γενικά Στοιχεία Οργανισμού'!$D$20/SUM('Γενικά Στοιχεία Οργανισμού'!$D$13:$D$24,'Γενικά Στοιχεία Οργανισμού'!$D$9) -> 6936.278405 | V192: =D192*'Γενικά Στοιχεία Οργανισμού'!$D$21/SUM('Γενικά Στοιχεία Οργανισμού'!$D$13:$D$24,'Γενικά Στοιχεία Οργανισμού'!$D$9) -> 8698.093119 | X192: =D192*'Γενικά Στοιχεία Οργανισμού'!$D$22/SUM('Γενικά Στοιχεία Οργανισμού'!$D$13:$D$24,'Γενικά Στοιχεία Οργανισμού'!$D$9) -> 6603.337041 | Z192: =D192*'Γενικά Στοιχεία Οργανισμού'!$D$23/SUM('Γενικά Στοιχεία Οργανισμού'!$D$13:$D$24,'Γενικά Στοιχεία Οργανισμού'!$D$9) -> 8698.093119 | AB192: =D192*'Γενικά Στοιχεία Οργανισμού'!$D$24/SUM('Γενικά Στοιχεία Οργανισμού'!$D$13:$D$24,'Γενικά Στοιχεία Οργανισμού'!$D$9) -> 8434.51454
C193: Επαγγελματικά Ταξίδια | D193: =SUM(D194:E199) -> 1907070.173 | F193: =SUM(F194:G199) -> 0 | H193: =SUM(H194:I199) -> 0 | J193: =SUM(J194:K199) -> 151523.1347 | L193: =SUM(L194:M199) -> 142734.7929 | N193: =SUM(N194:O199) -> 144250.0242 | P193: =SUM(P194:Q199) -> 231830.3961 | R193: =SUM(R194:S199) -> 376686.5129 | T193: =SUM(T194:U199) -> 151523.1347 | V193: =SUM(V194:W199) -> 190010.0109 | X193: =SUM(X194:Y199) -> 144250.0242 | Z193: =SUM(Z194:AA199) -> 190010.0109 | AB193: =SUM(AB194:AC199) -> 184252.1318
C194: Πετρέλαιο Κίνησης (Επιβατικό) | D194: ='Υπολογισμός Αν. Απ.'!H53*Παραμετροποίηση!E26*Παραμετροποίηση!G26/3.6+'Υπολογισμός Αν. Απ.'!H55*Παραμετροποίηση!E28*Παραμετροποίηση!G28/3.6 -> 9715.58395 | F194: 0 | H194: 0 | J194: =D194*'Γενικά Στοιχεία Οργανισμού'!$D$9/SUM('Γενικά Στοιχεία Οργανισμού'!$D$13:$D$24,'Γενικά Στοιχεία Οργανισμού'!$D$9) -> 771.9357977 | L194: =D194*'Γενικά Στοιχεία Οργανισμού'!$D$16/SUM('Γενικά Στοιχεία Οργανισμού'!$D$13:$D$24,'Γενικά Στοιχεία Οργανισμού'!$D$9) -> 727.1635214 | N194: =D194*'Γενικά Στοιχεία Οργανισμού'!$D$17/SUM('Γενικά Στοιχεία Οργανισμού'!$D$13:$D$24,'Γενικά Στοιχεία Οργανισμού'!$D$9) -> 734.8828794 | P194: =D194*'Γενικά Στοιχεία Οργανισμού'!$D$18/SUM('Γενικά Στοιχεία Οργανισμού'!$D$13:$D$24,'Γενικά Στοιχεία Οργανισμού'!$D$9) -> 1181.06177 | R194: =D194*'Γενικά Στοιχεία Οργανισμού'!$D$19/SUM('Γενικά Στοιχεία Οργανισμού'!$D$13:$D$24,'Γενικά Στοιχεία Οργανισμού'!$D$9) -> 1919.032393 | T194: =D194*'Γενικά Στοιχεία Οργανισμού'!$D$20/SUM('Γενικά Στοιχεία Οργανισμού'!$D$13:$D$24,'Γενικά Στοιχεία Οργανισμού'!$D$9) -> 771.9357977 | V194: =D194*'Γενικά Στοιχεία Οργανισμού'!$D$21/SUM('Γενικά Στοιχεία Οργανισμού'!$D$13:$D$24,'Γενικά Στοιχεία Οργανισμού'!$D$9) -> 968.0074903 | X194: =D194*'Γενικά Στοιχεία Οργανισμού'!$D$22/SUM('Γενικά Στοιχεία Οργανισμού'!$D$13:$D$24,'Γενικά Στοιχεία Οργανισμού'!$D$9) -> 734.8828794 | Z194: =D194*'Γενικά Στοιχεία Οργανισμού'!$D$23/SUM('Γενικά Στοιχεία Οργανισμού'!$D$13:$D$24,'Γενικά Στοιχεία Οργανισμού'!$D$9) -> 968.0074903 | AB194: =D194*'Γενικά Στοιχεία Οργανισμού'!$D$24/SUM('Γενικά Στοιχεία Οργανισμού'!$D$13:$D$24,'Γενικά Στοιχεία Οργανισμού'!$D$9) -> 938.67393
C195: Βενζίνη (Επιβατικό) | D195: ='Υπολογισμός Αν. Απ.'!H54*Παραμετροποίηση!E27*Παραμετροποίηση!G27/3.6+'Υπολογισμός Αν. Απ.'!H56*Παραμετροποίηση!E29*Παραμετροποίηση!G29/3.6 -> 87062.73323 | F195: 0 | H195: 0 | J195: =D195*'Γενικά Στοιχεία Οργανισμού'!$D$9/SUM('Γενικά Στοιχεία Οργανισμού'!$D$13:$D$24,'Γενικά Στοιχεία Οργανισμού'!$D$9) -> 6917.426762 | L195: =D195*'Γενικά Στοιχεία Οργανισμού'!$D$16/SUM('Γενικά Στοιχεία Οργανισμού'!$D$13:$D$24,'Γενικά Στοιχεία Οργανισμού'!$D$9) -> 6516.21601 | N195: =D195*'Γενικά Στοιχεία Οργανισμού'!$D$17/SUM('Γενικά Στοιχεία Οργανισμού'!$D$13:$D$24,'Γενικά Στοιχεία Οργανισμού'!$D$9) -> 6585.390278 | P195: =D195*'Γενικά Στοιχεία Οργανισμού'!$D$18/SUM('Γενικά Στοιχεία Οργανισμού'!$D$13:$D$24,'Γενικά Στοιχεία Οργανισμού'!$D$9) -> 10583.66295 | R195: =D195*'Γενικά Στοιχεία Οργανισμού'!$D$19/SUM('Γενικά Στοιχεία Οργανισμού'!$D$13:$D$24,'Γενικά Στοιχεία Οργανισμού'!$D$9) -> 17196.72293 | T195: =D195*'Γενικά Στοιχεία Οργανισμού'!$D$20/SUM('Γενικά Στοιχεία Οργανισμού'!$D$13:$D$24,'Γενικά Στοιχεία Οργανισμού'!$D$9) -> 6917.426762 | V195: =D195*'Γενικά Στοιχεία Οργανισμού'!$D$21/SUM('Γενικά Στοιχεία Οργανισμού'!$D$13:$D$24,'Γενικά Στοιχεία Οργανισμού'!$D$9) -> 8674.45316 | X195: =D195*'Γενικά Στοιχεία Οργανισμού'!$D$22/SUM('Γενικά Στοιχεία Οργανισμού'!$D$13:$D$24,'Γενικά Στοιχεία Οργανισμού'!$D$9) -> 6585.390278 | Z195: =D195*'Γενικά Στοιχεία Οργανισμού'!$D$23/SUM('Γενικά Στοιχεία Οργανισμού'!$D$13:$D$24,'Γενικά Στοιχεία Οργανισμού'!$D$9) -> 8674.45316 | AB195: =D195*'Γενικά Στοιχεία Οργανισμού'!$D$24/SUM('Γενικά Στοιχεία Οργανισμού'!$D$13:$D$24,'Γενικά Στοιχεία Οργανισμού'!$D$9) -> 8411.590943
C196: Πετρέλαιο Κίνησης (Τρένο) | D196: ='Υπολογισμός Αν. Απ.'!H57*Παραμετροποίηση!E33*Παραμετροποίηση!G33/3.6+'Υπολογισμός Αν. Απ.'!H58*Παραμετροποίηση!E34*Παραμετροποίηση!G34/3.6 -> 0 | F196: 0 | H196: 0 | J196: =D196*'Γενικά Στοιχεία Οργανισμού'!$D$9/SUM('Γενικά Στοιχεία Οργανισμού'!$D$13:$D$24,'Γενικά Στοιχεία Οργανισμού'!$D$9) -> 0 | L196: =D196*'Γενικά Στοιχεία Οργανισμού'!$D$16/SUM('Γενικά Στοιχεία Οργανισμού'!$D$13:$D$24,'Γενικά Στοιχεία Οργανισμού'!$D$9) -> 0 | N196: =D196*'Γενικά Στοιχεία Οργανισμού'!$D$17/SUM('Γενικά Στοιχεία Οργανισμού'!$D$13:$D$24,'Γενικά Στοιχεία Οργανισμού'!$D$9) -> 0 | P196: =D196*'Γενικά Στοιχεία Οργανισμού'!$D$18/SUM('Γενικά Στοιχεία Οργανισμού'!$D$13:$D$24,'Γενικά Στοιχεία Οργανισμού'!$D$9) -> 0 | R196: =D196*'Γενικά Στοιχεία Οργανισμού'!$D$19/SUM('Γενικά Στοιχεία Οργανισμού'!$D$13:$D$24,'Γενικά Στοιχεία Οργανισμού'!$D$9) -> 0 | T196: =D196*'Γενικά Στοιχεία Οργανισμού'!$D$20/SUM('Γενικά Στοιχεία Οργανισμού'!$D$13:$D$24,'Γενικά Στοιχεία Οργανισμού'!$D$9) -> 0 | V196: =D196*'Γενικά Στοιχεία Οργανισμού'!$D$21/SUM('Γενικά Στοιχεία Οργανισμού'!$D$13:$D$24,'Γενικά Στοιχεία Οργανισμού'!$D$9) -> 0 | X196: =D196*'Γενικά Στοιχεία Οργανισμού'!$D$22/SUM('Γενικά Στοιχεία Οργανισμού'!$D$13:$D$24,'Γενικά Στοιχεία Οργανισμού'!$D$9) -> 0 | Z196: =D196*'Γενικά Στοιχεία Οργανισμού'!$D$23/SUM('Γενικά Στοιχεία Οργανισμού'!$D$13:$D$24,'Γενικά Στοιχεία Οργανισμού'!$D$9) -> 0 | AB196: =D196*'Γενικά Στοιχεία Οργανισμού'!$D$24/SUM('Γενικά Στοιχεία Οργανισμού'!$D$13:$D$24,'Γενικά Στοιχεία Οργανισμού'!$D$9) -> 0
C197: Κηροζίνη (Αεροσκάφος) | D197: ='Υπολογισμός Αν. Απ.'!H59*Παραμετροποίηση!E35/3.6+'Υπολογισμός Αν. Απ.'!H60*Παραμετροποίηση!E36/3.6 -> 1810053.816 | F197: 0 | H197: 0 | J197: =D197*'Γενικά Στοιχεία Οργανισμού'!$D$9/SUM('Γενικά Στοιχεία Οργανισμού'!$D$13:$D$24,'Γενικά Στοιχεία Οργανισμού'!$D$9) -> 143814.8591 | L197: =D197*'Γενικά Στοιχεία Οργανισμού'!$D$16/SUM('Γενικά Στοιχεία Οργανισμού'!$D$13:$D$24,'Γενικά Στοιχεία Οργανισμού'!$D$9) -> 135473.5972 | N197: =D197*'Γενικά Στοιχεία Οργανισμού'!$D$17/SUM('Γενικά Στοιχεία Οργανισμού'!$D$13:$D$24,'Γενικά Στοιχεία Οργανισμού'!$D$9) -> 136911.7458 | P197: =D197*'Γενικά Στοιχεία Οργανισμού'!$D$18/SUM('Γενικά Στοιχεία Οργανισμού'!$D$13:$D$24,'Γενικά Στοιχεία Οργανισμού'!$D$9) -> 220036.7344 | R197: =D197*'Γενικά Στοιχεία Οργανισμού'!$D$19/SUM('Γενικά Στοιχεία Οργανισμού'!$D$13:$D$24,'Γενικά Στοιχεία Οργανισμού'!$D$9) -> 357523.7396 | T197: =D197*'Γενικά Στοιχεία Οργανισμού'!$D$20/SUM('Γενικά Στοιχεία Οργανισμού'!$D$13:$D$24,'Γενικά Στοιχεία Οργανισμού'!$D$9) -> 143814.8591 | V197: =D197*'Γενικά Στοιχεία Οργανισμού'!$D$21/SUM('Γενικά Στοιχεία Οργανισμού'!$D$13:$D$24,'Γενικά Στοιχεία Οργανισμού'!$D$9) -> 180343.8333 | X197: =D197*'Γενικά Στοιχεία Οργανισμού'!$D$22/SUM('Γενικά Στοιχεία Οργανισμού'!$D$13:$D$24,'Γενικά Στοιχεία Οργανισμού'!$D$9) -> 136911.7458 | Z197: =D197*'Γενικά Στοιχεία Οργανισμού'!$D$23/SUM('Γενικά Στοιχεία Οργανισμού'!$D$13:$D$24,'Γενικά Στοιχεία Οργανισμού'!$D$9) -> 180343.8333 | AB197: =D197*'Γενικά Στοιχεία Οργανισμού'!$D$24/SUM('Γενικά Στοιχεία Οργανισμού'!$D$13:$D$24,'Γενικά Στοιχεία Οργανισμού'!$D$9) -> 174878.8686
C198: Ηλεκτρική Ενέργεια (Επιβατικό) | D198: ='Υπολογισμός Αν. Απ.'!H61 -> 238.04 | F198: 0 | H198: 0 | J198: =D198*'Γενικά Στοιχεία Οργανισμού'!$D$9/SUM('Γενικά Στοιχεία Οργανισμού'!$D$13:$D$24,'Γενικά Στοιχεία Οργανισμού'!$D$9) -> 18.91307802 | L198: =D198*'Γενικά Στοιχεία Οργανισμού'!$D$16/SUM('Γενικά Στοιχεία Οργανισμού'!$D$13:$D$24,'Γενικά Στοιχεία Οργανισμού'!$D$9) -> 17.8161195 | N198: =D198*'Γενικά Στοιχεία Οργανισμού'!$D$17/SUM('Γενικά Στοιχεία Οργανισμού'!$D$13:$D$24,'Γενικά Στοιχεία Οργανισμού'!$D$9) -> 18.00525028 | P198: =D198*'Γενικά Στοιχεία Οργανισμού'!$D$18/SUM('Γενικά Στοιχεία Οργανισμού'!$D$13:$D$24,'Γενικά Στοιχεία Οργανισμού'!$D$9) -> 28.93700938 | R198: =D198*'Γενικά Στοιχεία Οργανισμού'!$D$19/SUM('Γενικά Στοιχεία Οργανισμού'!$D$13:$D$24,'Γενικά Στοιχεία Οργανισμού'!$D$9) -> 47.01791197 | T198: =D198*'Γενικά Στοιχεία Οργανισμού'!$D$20/SUM('Γενικά Στοιχεία Οργανισμού'!$D$13:$D$24,'Γενικά Στοιχεία Οργανισμού'!$D$9) -> 18.91307802 | V198: =D198*'Γενικά Στοιχεία Οργανισμού'!$D$21/SUM('Γενικά Στοιχεία Οργανισμού'!$D$13:$D$24,'Γενικά Στοιχεία Οργανισμού'!$D$9) -> 23.71699984 | X198: =D198*'Γενικά Στοιχεία Οργανισμού'!$D$22/SUM('Γενικά Στοιχεία Οργανισμού'!$D$13:$D$24,'Γενικά Στοιχεία Οργανισμού'!$D$9) -> 18.00525028 | Z198: =D198*'Γενικά Στοιχεία Οργανισμού'!$D$23/SUM('Γενικά Στοιχεία Οργανισμού'!$D$13:$D$24,'Γενικά Στοιχεία Οργανισμού'!$D$9) -> 23.71699984 | AB198: =D198*'Γενικά Στοιχεία Οργανισμού'!$D$24/SUM('Γενικά Στοιχεία Οργανισμού'!$D$13:$D$24,'Γενικά Στοιχεία Οργανισμού'!$D$9) -> 22.99830288
C199: Ηλεκτρική Ενέργεια (Τρένο) | D199: ='Υπολογισμός Αν. Απ.'!H63 -> 0 | F199: 0 | H199: 0 | J199: =D199*'Γενικά Στοιχεία Οργανισμού'!$D$9/SUM('Γενικά Στοιχεία Οργανισμού'!$D$13:$D$24,'Γενικά Στοιχεία Οργανισμού'!$D$9) -> 0 | L199: =D199*'Γενικά Στοιχεία Οργανισμού'!$D$16/SUM('Γενικά Στοιχεία Οργανισμού'!$D$13:$D$24,'Γενικά Στοιχεία Οργανισμού'!$D$9) -> 0 | N199: =D199*'Γενικά Στοιχεία Οργανισμού'!$D$17/SUM('Γενικά Στοιχεία Οργανισμού'!$D$13:$D$24,'Γενικά Στοιχεία Οργανισμού'!$D$9) -> 0 | P199: =D199*'Γενικά Στοιχεία Οργανισμού'!$D$18/SUM('Γενικά Στοιχεία Οργανισμού'!$D$13:$D$24,'Γενικά Στοιχεία Οργανισμού'!$D$9) -> 0 | R199: =D199*'Γενικά Στοιχεία Οργανισμού'!$D$19/SUM('Γενικά Στοιχεία Οργανισμού'!$D$13:$D$24,'Γενικά Στοιχεία Οργανισμού'!$D$9) -> 0 | T199: =D199*'Γενικά Στοιχεία Οργανισμού'!$D$20/SUM('Γενικά Στοιχεία Οργανισμού'!$D$13:$D$24,'Γενικά Στοιχεία Οργανισμού'!$D$9) -> 0 | V199: =D199*'Γενικά Στοιχεία Οργανισμού'!$D$21/SUM('Γενικά Στοιχεία Οργανισμού'!$D$13:$D$24,'Γενικά Στοιχεία Οργανισμού'!$D$9) -> 0 | X199: =D199*'Γενικά Στοιχεία Οργανισμού'!$D$22/SUM('Γενικά Στοιχεία Οργανισμού'!$D$13:$D$24,'Γενικά Στοιχεία Οργανισμού'!$D$9) -> 0 | Z199: =D199*'Γενικά Στοιχεία Οργανισμού'!$D$23/SUM('Γενικά Στοιχεία Οργανισμού'!$D$13:$D$24,'Γενικά Στοιχεία Οργανισμού'!$D$9) -> 0 | AB199: =D199*'Γενικά Στοιχεία Οργανισμού'!$D$24/SUM('Γενικά Στοιχεία Οργανισμού'!$D$13:$D$24,'Γενικά Στοιχεία Οργανισμού'!$D$9) -> 0
C200: ΣΥΝΟΛΟ | D200: =D165+D172+D174 -> 21456874.35 | F200: =F165+F172+F174 -> 559754.7651 | H200: =H165+H172+H174 -> 215718.1019 | J200: =J165+J172+J174 -> 838086.172 | L200: =L165+L172+L174 -> 1502708.954 | N200: =N165+N172+N174 -> 2196773.788 | P200: =P165+P172+P174 -> 1919122.647 | R200: =R165+R172+R174 -> 3029439.253 | T200: =T165+T172+T174 -> 2889647.822 | V200: =V165+V172+V174 -> 1272740.114 | X200: =X165+X172+X174 -> 1854820.087 | Z200: =Z165+Z172+Z174 -> 2755973.395 | AB200: =AB165+AB172+AB174 -> 2422089.247
C202: Συγκεντρωτικός Πίνακας Βασικών Δεικτών Επίδοσης (KPIs)
C203: Κατηγορία | D203: Μονάδες Δείκτη Εκπομπών | F203: KPI Εκπομπών | H203: Μονάδες Δείκτη Ενέργειας | J203: KPI Ενέργειας | L203: Μονάδες Δείκτη Εκπομπών 2 | N203: KPI Εκπομπών 2 | P203: Μονάδες Δείκτη Ενέργειας 2 | R203: KPI Ενέργειας 2 | T203: (Επιβατικά) Χιλιόμετρα
C204: SCOPE 1 | D204: - | F204: - | H204: - | J204: - | L204: - | N204: - | P204: - | R204: - | T204: -
C205: Σταθερή Καύση | D205: (kg CO2e / m2) | F205: =SUM(F206:G207) -> 2.550613578 | H205: (kWh / m2) | J205: =SUM(J206:K207) -> 12.68919555 | L205: - | N205: - | P205: - | R205: - | T205: -
C206: Πετρέλαιο Θέρμανσης | D206: (kg CO2e / m2) | F206: =D30/SUM('Γενικά Στοιχεία Οργανισμού'!$F$13:$F$24)*1000 -> 0 | H206: (kWh / m2) | J206: =D167/SUM('Γενικά Στοιχεία Οργανισμού'!$F$13:$F$24) -> 0 | L206: - | N206: - | P206: - | R206: - | T206: -
C207: Φυσικό Αέριο | D207: (kg CO2e / m2) | F207: =D33/SUM('Γενικά Στοιχεία Οργανισμού'!$F$13:$F$24)*1000 -> 2.550613578 | H207: (kWh / m2) | J207: =D168/SUM('Γενικά Στοιχεία Οργανισμού'!$F$13:$F$24) -> 12.68919555 | L207: - | N207: - | P207: - | R207: - | T207: -
C208: Κινητή Καύση | D208: (kg CO2e / km) | F208: =IF(T208="-","-",D36/T208*1000) -> 0.1391479145 | H208: (kWh / km) | J208: =IF(T208="-","-",D169/T208) -> 0.5223738352 | L208: - | N208: - | P208: - | R208: - | T208: 330387
C209: Πετρέλαιο Κίνησης (Επιβατικό) | D209: (kg CO2e / km) | F209: =IF(T209="-","-",D39/T209*1000) -> 0.1279374557 | H209: (kWh / km) | J209: =IF(T209="-","-",D170/T209) -> 0.4800286732 | L209: - | N209: - | P209: - | R209: - | T209: 257732
... 39 more rows

Sheet Σύνοψη - Διαγράμματα

Sheet Διαγράμματα Αναφοράς (hidden)

Sheet Στοιχεία Αναφοράς (hidden)
A1: Κατηγορία | B1: Εκπομπές CO2e (tn) | C1: Ενέργεια (kWh) | D1: Μονάδες Δείκτη Εκπομπών | E1: KPI Εκπομπών | F1: Μονάδες Δείκτη Ενέργειας | G1: KPI Ενέργειας | I1: Κατηγορία | J1: Εκπομπές CO2e (tn) | N1: =_xlfn._xlws.SORT(Table6[#All],2,-1) -> Κατηγορία | O1: Εκπομπές CO2e (tn)
A2: SCOPE 1 | B2: ='Σύνοψη - Πίνακες'!D24 -> 598.8008109 | C2: ='Σύνοψη - Πίνακες'!D165 -> 2922882.374 | D2: - | E2: - | F2: - | G2: - | I2: =A3 -> Σταθερή Καύση | J2: =B3 -> 552.8281488 | N2: Εισαγόμενη Ηλεκτρική Ενέργεια | O2: 3069.65248 | P2: =O2/SUM($O$2:$O$11) -> 0.5224491454
A3: Σταθερή Καύση | B3: ='Σύνοψη - Πίνακες'!D27 -> 552.8281488 | C3: ='Σύνοψη - Πίνακες'!D166 -> 2750296.85 | D3: (kg CO2e / m2) | E3: ='Σύνοψη - Πίνακες'!F205 -> 2.550613578 | F3: (kWh / m2) | G3: ='Σύνοψη - Πίνακες'!J205 -> 12.68919555 | I3: =A6 -> Κινητή Καύση | J3: =B6 -> 45.97266203 | N3: Μετακίνηση Φοιτητών | O3: 827.6281944 | P3: 0.1408607801
A4: Πετρέλαιο Θέρμανσης | B4: ='Σύνοψη - Πίνακες'!D30 -> 0 | C4: ='Σύνοψη - Πίνακες'!D167 -> 0 | D4: (kg CO2e / m2) | E4: ='Σύνοψη - Πίνακες'!F206 -> 0 | F4: (kWh / m2) | G4: ='Σύνοψη - Πίνακες'!J206 -> 0 | I4: =A9 -> Ανεξέλεγκτες Εκπομπές Ανθρωπογενών Συστημάτων | J4: =B9 -> 0 | N4: Μετακίνηση Υπαλλήλων | O4: 753.3992162 | P4: 0.128227146
A5: Φυσικό Αέριο | B5: ='Σύνοψη - Πίνακες'!D33 -> 552.8281488 | C5: ='Σύνοψη - Πίνακες'!D168 -> 2750296.85 | D5: (kg CO2e / m2) | E5: ='Σύνοψη - Πίνακες'!F207 -> 2.550613578 | F5: (kWh / m2) | G5: ='Σύνοψη - Πίνακες'!J207 -> 12.68919555 | I5: =A17 -> Εισαγόμενη Ηλεκτρική Ενέργεια | J5: =B17 -> 3069.65248 | N5: Σταθερή Καύση | O5: 552.8281488 | P5: 0.09409032318
A6: Κινητή Καύση | B6: ='Σύνοψη - Πίνακες'!D36 -> 45.97266203 | C6: ='Σύνοψη - Πίνακες'!D169 -> 172585.5243 | D6: (kg CO2e / km) | E6: =IF('Σύνοψη - Πίνακες'!F208="-","-",'Σύνοψη - Πίνακες'!F208) -> 0.1391479145 | F6: (kWh / km) | G6: =IF('Σύνοψη - Πίνακες'!J208="-","-",'Σύνοψη - Πίνακες'!J208) -> 0.5223738352 | I6: =A19 -> Μετακίνηση Φοιτητών | J6: =B19 -> 827.6281944 | N6: Επαγγελματικά Ταξίδια | O6: 511.8002326 | P6: 0.08710744811
A7: Πετρέλαιο Κίνησης (Επιβατικό) | B7: ='Σύνοψη - Πίνακες'!D39 -> 32.97357633 | C7: ='Σύνοψη - Πίνακες'!D170 -> 123718.75 | D7: (kg CO2e / km) | E7: =IF('Σύνοψη - Πίνακες'!F209="-","-",'Σύνοψη - Πίνακες'!F209) -> 0.1279374557 | F7: (kWh / km) | G7: =IF('Σύνοψη - Πίνακες'!J209="-","-",'Σύνοψη - Πίνακες'!J209) -> 0.4800286732 | I7: =A37 -> Μετακίνηση Υπαλλήλων | J7: =B37 -> 753.3992162 | N7: Τελική Διάθεση Στερεών Αποβλήτων | O7: 82.36040828 | P7: 0.01401758838
A8: Βενζίνη (Επιβατικό) | B8: ='Σύνοψη - Πίνακες'!D42 -> 12.9990857 | C8: ='Σύνοψη - Πίνακες'!D171 -> 48866.77431 | D8: (kg CO2e / km) | E8: =IF('Σύνοψη - Πίνακες'!F210="-","-",'Σύνοψη - Πίνακες'!F210) -> 0.1789152254 | F8: (kWh / km) | G8: =IF('Σύνοψη - Πίνακες'!J210="-","-",'Σύνοψη - Πίνακες'!J210) -> 0.6725865296 | I8: =A55 -> Επαγγελματικά Ταξίδια | J8: =B55 -> 511.8002326 | N8: Κινητή Καύση | O8: 45.97266203 | P8: 0.007824461611
A9: Ανεξέλεγκτες Εκπομπές Ανθρωπογενών Συστημάτων | B9: ='Σύνοψη - Πίνακες'!D45 -> 0 | C9: - | D9: (kg CO2e / m2) | E9: ='Σύνοψη - Πίνακες'!F211 -> 0 | F9: (kWh / m2) | G9: ='Σύνοψη - Πίνακες'!H211 -> - | I9: =A69 -> Τελική Διάθεση Στερεών Αποβλήτων | J9: 82.36040828 | N9: Προμήθεια Χαρτιών | O9: 16.91 | P9: 0.002878050563
A10: R-11 | B10: ='Σύνοψη - Πίνακες'!D48 -> 0 | C10: - | D10: (kg CO2e / m2) | E10: ='Σύνοψη - Πίνακες'!F212 -> 0 | F10: (kWh / m2) | G10: ='Σύνοψη - Πίνακες'!H212 -> - | I10: Διαχείριση Λυμάτων | J10: 14.95349302 | N10: Διαχείριση Λυμάτων | O10: 14.95349302 | P10: 0.002545056712
A11: R-12 | B11: ='Σύνοψη - Πίνακες'!D51 -> 0 | C11: - | D11: (kg CO2e / m2) | E11: ='Σύνοψη - Πίνακες'!F213 -> 0 | F11: (kWh / m2) | G11: ='Σύνοψη - Πίνακες'!H213 -> - | I11: Προμήθεια Χαρτιών | J11: 16.91 | N11: Ανεξέλεγκτες Εκπομπές Ανθρωπογενών Συστημάτων | O11: 0 | P11: 0
A12: R-134a | B12: ='Σύνοψη - Πίνακες'!D54 -> 0 | C12: - | D12: (kg CO2e / m2) | E12: ='Σύνοψη - Πίνακες'!F214 -> 0 | F12: (kWh / m2) | G12: ='Σύνοψη - Πίνακες'!H214 -> -
A13: R-290 | B13: ='Σύνοψη - Πίνακες'!D57 -> 0 | C13: - | D13: (kg CO2e / m2) | E13: ='Σύνοψη - Πίνακες'!F215 -> 0 | F13: (kWh / m2) | G13: ='Σύνοψη - Πίνακες'!H215 -> - | I13: Εκπομπές CO2e (tn) | J13: 1 | K13: 2 | L13: Υποκατηγορία | N13: =_xlfn._xlws.SORT(Table7[#All],1,-1,FALSE) -> Εκπομπές CO2e (tn) | O13: 1 | P13: 2 | Q13: Υποκατηγορία
A14: R-404a | B14: ='Σύνοψη - Πίνακες'!D60 -> 0 | C14: - | D14: (kg CO2e / m2) | E14: ='Σύνοψη - Πίνακες'!F216 -> 0 | F14: (kWh / m2) | G14: ='Σύνοψη - Πίνακες'!H216 -> - | I14: =B4 -> 0 | J14: =A4 -> Πετρέλαιο Θέρμανσης | K14: ΣΚ - | L14: =_xlfn.TEXTJOIN(,,Table7[[#This Row],[2]],Table7[[#This Row],[1]]) -> ΣΚ - Πετρέλαιο Θέρμανσης | N14: 3069.65248 | O14: Εισαγόμενη Ηλεκτρική Ενέργεια | P14: 0 | Q14: Εισαγόμενη Ηλεκτρική Ενέργεια | R14: =N14/SUM($O$2:$O$11) -> 0.5224491454
A15: R-410a | B15: ='Σύνοψη - Πίνακες'!D63 -> 0 | C15: - | D15: (kg CO2e / m2) | E15: ='Σύνοψη - Πίνακες'!F217 -> 0 | F15: (kWh / m2) | G15: ='Σύνοψη - Πίνακες'!H217 -> - | I15: =B5 -> 552.8281488 | J15: =A5 -> Φυσικό Αέριο | K15: ΣΚ - | L15: =_xlfn.TEXTJOIN(,,Table7[[#This Row],[2]],Table7[[#This Row],[1]]) -> ΣΚ - Φυσικό Αέριο | N15: 565.1506134 | O15: Βενζίνη (Επιβατικό) | P15: ΜΥ - | Q15: ΜΥ - Βενζίνη (Επιβατικό) | R15: 0.09618758373
A16: SCOPE 2 | B16: ='Σύνοψη - Πίνακες'!D66 -> 3069.65248 | C16: ='Σύνοψη - Πίνακες'!D172 -> 11266091.65 | D16: (kg CO2e / m2) | E16: ='Σύνοψη - Πίνακες'!F218 -> 14.16262416 | F16: (kWh / m2) | G16: ='Σύνοψη - Πίνακες'!J218 -> 51.9789855 | I16: =B7 -> 32.97357633 | J16: =A7 -> Πετρέλαιο Κίνησης (Επιβατικό) | K16: ΚΚ - | L16: =_xlfn.TEXTJOIN(,,Table7[[#This Row],[2]],Table7[[#This Row],[1]]) -> ΚΚ - Πετρέλαιο Κίνησης (Επιβατικό) | N16: 552.8281488 | O16: Φυσικό Αέριο | P16: ΣΚ - | Q16: ΣΚ - Φυσικό Αέριο | R16: 0.09409032318
A17: Εισαγόμενη Ηλεκτρική Ενέργεια | B17: ='Σύνοψη - Πίνακες'!D69 -> 3069.65248 | C17: ='Σύνοψη - Πίνακες'!D173 -> 11266091.65 | D17: (kg CO2e / m2) | E17: ='Σύνοψη - Πίνακες'!F219 -> 14.16262416 | F17: (kWh / m2) | G17: ='Σύνοψη - Πίνακες'!J219 -> 51.9789855 | I17: =B8 -> 12.9990857 | J17: =A8 -> Βενζίνη (Επιβατικό) | K17: ΚΚ - | L17: =_xlfn.TEXTJOIN(,,Table7[[#This Row],[2]],Table7[[#This Row],[1]]) -> ΚΚ - Βενζίνη (Επιβατικό) | N17: 485.9322894 | O17: Κηροζίνη (Αεροσκάφος) | P17: ΕΤ - | Q17: ΕΤ - Κηροζίνη (Αεροσκάφος) | R17: 0.08270477227
A18: SCOPE 3 | B18: ='Σύνοψη - Πίνακες'!D72 -> 2207.051545 | C18: ='Σύνοψη - Πίνακες'!D174 -> 7267900.322 | D18: - | E18: - | F18: - | G18: - | I18: =B10 -> 0 | J18: =A10 -> R-11 | K18: ΑΕΑΣ - | L18: =_xlfn.TEXTJOIN(,,Table7[[#This Row],[2]],Table7[[#This Row],[1]]) -> ΑΕΑΣ - R-11 | N18: 380.0223618 | O18: Βενζίνη (Επιβατικό) | P18: ΜΦ - | Q18: ΜΦ - Βενζίνη (Επιβατικό) | R18: 0.06467909948
A19: Μετακίνηση Φοιτητών | B19: ='Σύνοψη - Πίνακες'!D75 -> 827.6281944 | C19: ='Σύνοψη - Πίνακες'!D175 -> 2616161.071 | D19: (kg CO2e / φοιτητή) | E19: ='Σύνοψη - Πίνακες'!F221 -> 142.8669419 | F19: (kWh / φοιτητή) | G19: ='Σύνοψη - Πίνακες'!J221 -> 451.6072969 | I19: 0 | J19: R-12 | K19: ΑΕΑΣ - | L19: =_xlfn.TEXTJOIN(,,Table7[[#This Row],[2]],Table7[[#This Row],[1]]) -> ΑΕΑΣ - R-12 | N19: 285.76677 | O19: Ηλεκτρική Ενέργεια (Συρμοί) | P19: ΜΦ - | Q19: ΜΦ - Ηλεκτρική Ενέργεια (Συρμοί) | R19: 0.048636973
D20: (kg CO2e / pkm) | E20: =IF('Σύνοψη - Πίνακες'!N221="-","-",'Σύνοψη - Πίνακες'!N221) -> 0.06157843412 | F20: (kWh / pkm) | G20: =IF('Σύνοψη - Πίνακες'!R221="-","-",'Σύνοψη - Πίνακες'!R221) -> 0.1946515394 | I20: 0 | J20: R-134a | K20: ΑΕΑΣ - | L20: =_xlfn.TEXTJOIN(,,Table7[[#This Row],[2]],Table7[[#This Row],[1]]) -> ΑΕΑΣ - R-134a | N20: 90.31132488 | O20: Βενζίνη (Μοτοσυκλέτα) | P20: ΜΦ - | Q20: ΜΦ - Βενζίνη (Μοτοσυκλέτα) | R20: 0.0153708196
A21: Πετρέλαιο Κίνησης (Επιβατικό) | B21: ='Σύνοψη - Πίνακες'!D78 -> 42.32488258 | C21: ='Σύνοψη - Πίνακες'!D176 -> 158805.3875 | D21: (kg CO2e / φοιτητή) | E21: ='Σύνοψη - Πίνακες'!F222 -> 7.306211389 | F21: (kWh / φοιτητή) | G21: ='Σύνοψη - Πίνακες'!J222 -> 27.41332427 | I21: 0 | J21: R-290 | K21: ΑΕΑΣ - | L21: =_xlfn.TEXTJOIN(,,Table7[[#This Row],[2]],Table7[[#This Row],[1]]) -> ΑΕΑΣ - R-290 | N21: 82.36040828 | O21: Τελική Διάθεση Στερεών Αποβλήτων | P21: 0 | Q21: Τελική Διάθεση Στερεών Αποβλήτων | R21: 0.01401758838
D22: (kg CO2e / pkm) | E22: =IF('Σύνοψη - Πίνακες'!N222="-","-",'Σύνοψη - Πίνακες'!N222) -> 0.08520221632 | F22: (kWh / pkm) | G22: =IF('Σύνοψη - Πίνακες'!R222="-","-",'Σύνοψη - Πίνακες'!R222) -> 0.3196836035 | I22: 0 | J22: R-404a | K22: ΑΕΑΣ - | L22: =_xlfn.TEXTJOIN(,,Table7[[#This Row],[2]],Table7[[#This Row],[1]]) -> ΑΕΑΣ - R-404a | N22: 74.44723984 | O22: Βενζίνη (Μοτοσυκλέτα) | P22: ΜΥ - | Q22: ΜΥ - Βενζίνη (Μοτοσυκλέτα) | R22: 0.01267078182
A23: Βενζίνη (Επιβατικό) | B23: ='Σύνοψη - Πίνακες'!D81 -> 380.0223618 | C23: ='Σύνοψη - Πίνακες'!D177 -> 1428597.935 | D23: (kg CO2e / φοιτητή) | E23: ='Σύνοψη - Πίνακες'!F223 -> 65.60026959 | F23: (kWh / φοιτητή) | G23: ='Σύνοψη - Πίνακες'!J223 -> 246.6076186 | I23: 0 | J23: R-410a | K23: ΑΕΑΣ - | L23: =_xlfn.TEXTJOIN(,,Table7[[#This Row],[2]],Table7[[#This Row],[1]]) -> ΑΕΑΣ - R-410a | N23: 63.23540574 | O23: Πετρέλαιο Κίνησης (Επιβατικό) | P23: ΜΥ - | Q23: ΜΥ - Πετρέλαιο Κίνησης (Επιβατικό) | R23: 0.0107625485
D24: (kg CO2e / pkm) | E24: =IF('Σύνοψη - Πίνακες'!N223="-","-",'Σύνοψη - Πίνακες'!N223) -> 0.1193551063 | F24: (kWh / pkm) | G24: =IF('Σύνοψη - Πίνακες'!R223="-","-",'Σύνοψη - Πίνακες'!R223) -> 0.4486853289 | I24: =B21 -> 42.32488258 | J24: =A21 -> Πετρέλαιο Κίνησης (Επιβατικό) | K24: ΜΦ - | L24: =_xlfn.TEXTJOIN(,,Table7[[#This Row],[2]],Table7[[#This Row],[1]]) -> ΜΦ - Πετρέλαιο Κίνησης (Επιβατικό) | N24: 43.61379391 | O24: Ηλεκτρική Ενέργεια (Συρμοί) | P24: ΜΥ - | Q24: ΜΥ - Ηλεκτρική Ενέργεια (Συρμοί) | R24: 0.007422986641
A25: Βενζίνη (Μοτοσυκλέτα) | B25: ='Σύνοψη - Πίνακες'!D84 -> 90.31132488 | C25: ='Σύνοψη - Πίνακες'!D178 -> 328820.0819 | D25: (kg CO2e / φοιτητή) | E25: ='Σύνοψη - Πίνακες'!F224 -> 15.58973328 | F25: (kWh / φοιτητή) | G25: ='Σύνοψη - Πίνακες'!J224 -> 56.76162297 | I25: =B23 -> 380.0223618 | J25: =A23 -> Βενζίνη (Επιβατικό) | K25: ΜΦ - | L25: =_xlfn.TEXTJOIN(,,Table7[[#This Row],[2]],Table7[[#This Row],[1]]) -> ΜΦ - Βενζίνη (Επιβατικό) | N25: 42.32488258 | O25: Πετρέλαιο Κίνησης (Επιβατικό) | P25: ΜΦ - | Q25: ΜΦ - Πετρέλαιο Κίνησης (Επιβατικό) | R25: 0.007203616329
D26: (kg CO2e / pkm) | E26: =IF('Σύνοψη - Πίνακες'!N224="-","-",'Σύνοψη - Πίνακες'!N224) -> 0.07272052159 | F26: (kWh / pkm) | G26: =IF('Σύνοψη - Πίνακες'!R224="-","-",'Σύνοψη - Πίνακες'!R224) -> 0.2647726395 | I26: =B25 -> 90.31132488 | J26: =A25 -> Βενζίνη (Μοτοσυκλέτα) | K26: ΜΦ - | L26: =_xlfn.TEXTJOIN(,,Table7[[#This Row],[2]],Table7[[#This Row],[1]]) -> ΜΦ - Βενζίνη (Μοτοσυκλέτα) | N26: 32.97357633 | O26: Πετρέλαιο Κίνησης (Επιβατικό) | P26: ΚΚ - | Q26: ΚΚ - Πετρέλαιο Κίνησης (Επιβατικό) | R26: 0.005612041391
A27: Πετρέλαιο Κίνησης (Λεωφορείο) | B27: ='Σύνοψη - Πίνακες'!D87 -> 19.65491257 | C27: ='Σύνοψη - Πίνακες'!D179 -> 97762.33333 | D27: (kg CO2e / φοιτητή) | E27: ='Σύνοψη - Πίνακες'!F225 -> 3.392872876 | F27: (kWh / φοιτητή) | G27: ='Σύνοψη - Πίνακες'!J225 -> 16.87594223 | I27: =Table3[[#This Row],[Εκπομπές CO2e (tn)]] -> 19.65491257 | J27: =Table3[[#This Row],[Κατηγορία]] -> Πετρέλαιο Κίνησης (Λεωφορείο) | K27: ΜΦ - | L27: =_xlfn.TEXTJOIN(,,Table7[[#This Row],[2]],Table7[[#This Row],[1]]) -> ΜΦ - Πετρέλαιο Κίνησης (Λεωφορείο) | N27: 23.15962014 | O27: Βενζίνη (Επιβατικό) | P27: ΕΤ - | Q27: ΕΤ - Βενζίνη (Επιβατικό) | R27: 0.003941724293
D28: (kg CO2e / pkm) | E28: =IF('Σύνοψη - Πίνακες'!N224="-","-",'Σύνοψη - Πίνακες'!N224) -> 0.07272052159 | F28: (kWh / pkm) | G28: =IF('Σύνοψη - Πίνακες'!R224="-","-",'Σύνοψη - Πίνακες'!R224) -> 0.2647726395 | I28: =B31 -> 1.902420701 | J28: =A31 -> Ηλεκτρική Ενέργεια (Επιβατικό) | K28: ΜΦ - | L28: =_xlfn.TEXTJOIN(,,Table7[[#This Row],[2]],Table7[[#This Row],[1]]) -> ΜΦ - Ηλεκτρική Ενέργεια (Επιβατικό) | N28: 19.65491257 | O28: Πετρέλαιο Κίνησης (Λεωφορείο) | P28: ΜΦ - | Q28: ΜΦ - Πετρέλαιο Κίνησης (Λεωφορείο) | R28: 0.00334522958
